Workbook

Sheet 1. Information Sheet
V1: Algoma Power Inc.
V2: Atikokan Hydro Inc.
V3: Attawapiskat Power Corporation
V4: Bluewater Power Distribution Corporation
V5: Brantford Power Inc.
V6: Burlington Hydro Inc.
V7: Canadian Niagara Power Inc.
V8: Centre Wellington Hydro Ltd.
V9: Chapleau Public Utilities Corporation
V10: COLLUS PowerStream Corp.
V11: Cooperative Hydro Embrun Inc.
M12: Version | N12: 2.8 | V12: E.L.K. Energy Inc.
V13: Energy + Inc.
E14: Utility Name | V14: Enersource Hydro Mississauga Inc.
V15: Entegrus Powerlines Inc.
E16: Service Territory | V16: EnWin Utilities Ltd.
V17: Erie Thames Powerlines Corporation
E18: Assigned EB Number | V18: Espanola Regional Hydro Distribution Corporation
V19: Essex Powerlines Corporation
E20: Name of Contact and Title | V20: Festival Hydro Inc.
V21: Fort Albany Power Corporation
E22: Phone Number | V22: Fort Frances Power Corporation
V23: Greater Sudbury Hydro Inc.
E24: Email Address | V24: Grimsby Power Inc.
V25: Guelph Hydro Electric Systems Inc.
V26: Haldimand County Hydro Inc.
B27: General Notes 1. Please ensure that your macros have been enabled. (Tools -> Macro -> Security) 2. Due to the time lag of deferral/variance account dispositions, this model assumes that all opening balances include previously disposed of amounts. Accordingly, all "Board Approved Dispositions" are deducted from the opening balance. 3. Please provide information in this model since the last time your balances were disposed. 4. For all Board-Approved dispositions, please ensure that the disposition amount has the same sign (e.g: debit balances are to have a positive figure and credit balance are to have a negative figure) as per the related Board decision. | V27: Halton Hills Hydro Inc.
V28: Hearst Power Distribution Company Limited
B29: Notes | V29: Horizon Utilities Corporation
V30: Hydro 2000 Inc.
C31: Pale green cells represent input cells. | V31: Hydro Hawkesbury Inc.
V32: Hydro One Brampton Networks Inc.
C33: Pale blue cells represent drop-down lists. The applicant should select the appropriate item from the drop-down list. | V33: Hydro One Networks Inc.
V34: Hydro One Remote Communities Inc.
C35: White cells contain fixed values, automatically generated values or formulae. | V35: Hydro Ottawa Limited
V36: Innpower Corporation
V37: Kashechewan Power Corporation
V38: Kenora Hydro Electric Corporation Ltd.
V39: Kingston Hydro Corporation
V40: Kitchener-Wilmot Hydro Inc.
V41: Lakefront Utilities Inc.
V42: Lakeland Power Distribution Ltd.
V43: London Hydro Inc.
V44: Midland Power Utility Corporation
V45: Milton Hydro Distribution Inc.
V46: Newmarket-Tay Power Distribution Ltd.
V47: Niagara Peninsula Energy Inc.
V48: Niagara-on-the-Lake Hydro Inc.
V49: North Bay Hydro Distribution Limited
V50: Northern Ontario Wires Inc.
V51: Oakville Hydro Electricity Distribution Inc.
V52: Orangeville Hydro Limited
V53: Orillia Power Distribution Corporation
V54: Oshawa PUC Networks Inc.
V55: Ottawa River Power Corporation
V56: Peterborough Distribution Incorporated
V57: PowerStream Inc.
V58: PUC Distribution Inc.
V59: Renfrew Hydro Inc.
V60: Rideau St. Lawrence Distribution Inc.
V61: Sioux Lookout Hydro Inc.
V62: St. Thomas Energy Inc.
V63: Thunder Bay Hydro Electricity Distribution Inc.
V64: Tillsonburg Hydro Inc.
V65: Toronto Hydro-Electric System Limited
V66: Veridian Connections Inc.
V67: Wasaga Distribution Inc.
V68: Waterloo North Hydro Inc.
V69: Welland Hydro Electric System Corp.
V70: Wellington North Power Inc.
V71: West Coast Huron Energy Inc.
V72: Westario Power Inc.
V73: Whitby Hydro Electric Corporation
V74: Woodstock Hydro Services Inc.

Sheet 2. 2016 Continuity Schedule
CA11: FALSE
E19: 2010 | O19: 2011 | Y19: 2012 | AI19: 2013 | AS19: 2014 | BC19: 2015 | BM19: 2016 | BQ19: Projected Interest on Dec-31-15 Balances | BU19: 2.1.7 RRR
C20: Account Descriptions | D20: Account Number | E20: Opening Principal Amounts as of Jan-1-10 | F20: Transactions1 Debit / (Credit) during 2010 | G20: OEB-Approved Disposition during 2010 | H20: Principal Adjustments2 during 2010 | I20: Closing Principal Balance as of Dec-31-10 | J20: Opening Interest Amounts as of Jan-1-10 | K20: Interest Jan-1 to Dec-31-10 | L20: OEB-Approved Disposition during 2010 | M20: Interest Adjustments1 during 2010 | N20: Closing Interest Amounts as of Dec-31-10 | O20: Opening Principal Amounts as of Jan-1-11 | P20: Transactions1 Debit / (Credit) during 2011 | Q20: OEB-Approved Disposition during 2011 | R20: Principal Adjustments2 during 2011 | S20: Closing Principal Balance as of Dec-31-11 | T20: Opening Interest Amounts as of Jan-1-11 | U20: Interest Jan-1 to Dec-31-10 | V20: OEB-Approved Disposition during 2011 | W20: Interest Adjustments2 during 2011 | X20: Closing Interest Amounts as of Dec-31-11 | Y20: Opening Principal Amounts as of Jan-1-12 | Z20: Transactions1 Debit / (Credit) during 2012 | AA20: OEB-Approved Disposition during 2012 | AB20: Principal Adjustments2 during 2012 | AC20: Closing Principal Balance as of Dec-31-12 | AD20: Opening Interest Amounts as of Jan-1-12 | AE20: Interest Jan-1 to Dec-31-12 | AF20: OEB-Approved Disposition during 2012 | AG20: Interest Adjustments2 during 2012 | AH20: Closing Interest Amounts as of Dec-31-12 | AI20: Opening Principal Amounts as of Jan-1-13 | AJ20: Transactions1 Debit / (Credit) during 2013 | AK20: OEB-Approved Disposition during 2013 | AL20: Principal Adjustments2 during 2013 | AM20: Closing Principal Balance as of Dec-31-13 | AN20: Opening Interest Amounts as of Jan-1-13 | AO20: Interest Jan-1 to Dec-31-13 | AP20: OEB-Approved Disposition during 2013 | AQ20: Interest Adjustments2 during 2013 | AR20: Closing Interest Amounts as of Dec-31-13 | AS20: Opening Principal Amounts as of Jan-1-14 | AT20: Transactions1 Debit / (Credit) during 2014 | AU20: OEB-Approved Disposition during 2014 | AV20: Principal Adjustments2 during 2014 | AW20: Closing Principal Balance as of Dec-31-14 | AX20: Opening Interest Amounts as of Jan-1-14 | AY20: Interest Jan-1 to Dec-31-14 | AZ20: OEB-Approved Disposition during 2014 | BA20: Interest Adjustments2 during 2014 | BB20: Closing Interest Amounts as of Dec-31-14 | BC20: Opening Principal Amounts as of Jan-1-15 | BD20: Transactions1 Debit / (Credit) during 2015 | BE20: OEB-Approved Disposition during 2015 | BF20: Principal Adjustments2 during 2015 | BG20: Closing Principal Balance as of Dec-31-15 | BH20: Opening Interest Amounts as of Jan-1-15 | BI20: Interest Jan-1 to Dec-31-15 | BJ20: OEB-Approved Disposition during 2015 | BK20: Interest Adjustments2 during 2015 | BL20: Closing Interest Amounts as of Dec-31-15 | BM20: Principal Disposition during 2016 - instructed by OEB | BN20: Interest Disposition during 2016 - instructed by OEB | BO20: Closing Principal Balances as of Dec 31-15 Adjusted for Dispositions during 2016 | BP20: Closing Interest Balances as of Dec 31-15 Adjusted for Dispositions during 2016 | BQ20: Projected Interest from Jan 1, 2016 to December 31, 2016 on Dec 31 -15 balance adjusted for disposition during 2016 7 | BR20: Projected Interest from January 1, 2017 to April 30, 2017 on Dec 31 -15 balance adjusted for disposition during 2016 7 | BS20: Total Interest | BT20: Total Claim | BU20: As of Dec 31-15 | BV20: Variance RRR vs. 2015 Balance (Principal + Interest)
BS22: Claim before Forecasted Transactions | BT22: Claim before Forecasted Transactions
C23: Group 1 Accounts
A24: 1 | C24: LV Variance Account | D24: 1550 | I24: =E24+F24-G24+H24 -> 0 | N24: =J24+K24-L24+M24 -> 0 | O24: =I24 -> 0 | S24: =O24+P24-Q24+R24 -> 0 | T24: =N24 -> 0 | X24: =T24+U24-V24+W24 -> 0 | Y24: =S24 -> 0 | Z24: ='[8]2. 2015 Continuity Schedule'!AJ24 -> 0 | AA24: ='[8]2. 2015 Continuity Schedule'!AK24 -> 0 | AB24: ='[8]2. 2015 Continuity Schedule'!AL24 -> 0 | AC24: =Y24+Z24-AA24+SUM(AB24:AB24) -> 0 | AD24: =X24 -> 0 | AE24: ='[8]2. 2015 Continuity Schedule'!AO24 -> 0 | AF24: ='[8]2. 2015 Continuity Schedule'!AP24 -> 0 | AG24: ='[8]2. 2015 Continuity Schedule'!AQ24 -> 0 | AH24: =AD24+AE24-AF24+AG24 -> 0 | AI24: =AC24 -> 0 | AJ24: ='[8]2. 2015 Continuity Schedule'!AT24 -> 0 | AK24: ='[8]2. 2015 Continuity Schedule'!AU24 -> 0 | AL24: ='[8]2. 2015 Continuity Schedule'!AV24 -> 0 | AM24: =AI24+AJ24-AK24+SUM(AL24:AL24) -> 0 | AN24: =AH24 -> 0 | AO24: ='[8]2. 2015 Continuity Schedule'!AY24 -> 0 | AP24: ='[8]2. 2015 Continuity Schedule'!AZ24 -> 0 | AQ24: ='[8]2. 2015 Continuity Schedule'!BA24 -> 0 | AR24: =AN24+AO24-AP24+AQ24 -> 0 | AS24: =AM24 -> 0 | AT24: ='[8]2. 2015 Continuity Schedule'!BD24 -> 0 | AU24: ='[8]2. 2015 Continuity Schedule'!BE24 -> 0 | AV24: ='[8]2. 2015 Continuity Schedule'!BF24 -> 0 | AW24: =AS24+AT24-AU24+SUM(AV24:AV24) -> 0 | AX24: =AR24 -> 0 | AY24: ='[8]2. 2015 Continuity Schedule'!BI24 -> 0 | AZ24: ='[8]2. 2015 Continuity Schedule'!BJ24 -> 0 | BA24: ='[8]2. 2015 Continuity Schedule'!BK24 -> 0 | BB24: =AX24+AY24-AZ24+BA24 -> 0 | BC24: =AW24 -> 0 | BD24: ='[8]2. 2015 Continuity Schedule'!BN24 -> 0 | BE24: ='[8]2. 2015 Continuity Schedule'!BO24 -> 0 | BF24: ='[8]2. 2015 Continuity Schedule'!BP24 -> 0 | BG24: =BC24+BD24-BE24+SUM(BF24:BF24) -> 0 | BH24: =BB24 -> 0 | BI24: ='[8]2. 2015 Continuity Schedule'!BS24 -> 0 | BJ24: ='[8]2. 2015 Continuity Schedule'!BT24 -> 0 | BK24: ='[8]2. 2015 Continuity Schedule'!BU24 -> 0 | BL24: =BH24+BI24-BJ24+BK24 -> 0 | BM24: ='[8]2. 2015 Continuity Schedule'!BW24 -> 0 | BN24: ='[8]2. 2015 Continuity Schedule'!BX24 -> 0 | BO24: =BG24-BM24 -> 0 | BP24: =BL24-BN24 -> 0 | BQ24: ='[8]2. 2015 Continuity Schedule'!CA24 -> 0 | BR24: ='[8]2. 2015 Continuity Schedule'!CB24 -> 0 | BS24: =BP24+BQ24+BR24 -> 0 | BT24: =SUM(BO24:BR24) -> 0 | BU24: ='[8]2. 2015 Continuity Schedule'!CD24 -> 0 | BV24: =BU24-SUM(BG24,BL24) -> 0
A25: 2 | C25: Smart Metering Entity Charge Variance Account | D25: 1551 | AI25: 0 | AJ25: ='[8]2. 2015 Continuity Schedule'!AT25 -> 27892.92 | AK25: ='[8]2. 2015 Continuity Schedule'!AU25 -> 0 | AL25: ='[8]2. 2015 Continuity Schedule'!AV25 -> 0 | AM25: =AI25+AJ25-AK25+SUM(AL25:AL25) -> 27892.92 | AN25: 0 | AO25: ='[8]2. 2015 Continuity Schedule'!AY25 -> 282.91 | AP25: ='[8]2. 2015 Continuity Schedule'!AZ25 -> 0 | AQ25: ='[8]2. 2015 Continuity Schedule'!BA25 -> 0 | AR25: =AN25+AO25-AP25+AQ25 -> 282.91 | AS25: 27892.92 | AT25: ='[8]2. 2015 Continuity Schedule'!BD25 -> -4230.72 | AU25: ='[8]2. 2015 Continuity Schedule'!BE25 -> 0 | AV25: ='[8]2. 2015 Continuity Schedule'!BF25 -> 0 | AW25: 23662.2 | AX25: 282.91 | AY25: ='[8]2. 2015 Continuity Schedule'!BI25 -> 381.5 | AZ25: ='[8]2. 2015 Continuity Schedule'!BJ25 -> 0 | BA25: ='[8]2. 2015 Continuity Schedule'!BK25 -> 0 | BB25: =AX25+AY25-AZ25+BA25 -> 664.41 | BC25: 23662.2 | BD25: ='[8]2. 2015 Continuity Schedule'!BN25 -> -4782.85 | BE25: ='[8]2. 2015 Continuity Schedule'!BO25 -> 27892.92 | BF25: ='[8]2. 2015 Continuity Schedule'!BP25 -> 0 | BG25: =BC25+BD25-BE25+SUM(BF25:BF25) -> -9013.57 | BH25: 664.41 | BI25: ='[8]2. 2015 Continuity Schedule'!BS25 -> -10.05 | BJ25: ='[8]2. 2015 Continuity Schedule'!BT25 -> 693 | BK25: ='[8]2. 2015 Continuity Schedule'!BU25 -> 0 | BL25: =BH25+BI25-BJ25+BK25 -> -38.64 | BM25: ='[8]2. 2015 Continuity Schedule'!BW25 -> -4231 | BN25: ='[8]2. 2015 Continuity Schedule'!BX25 -> -79 | BO25: =BG25-BM25 -> -4782.57 | BP25: =BL25-BN25 -> 40.36 | BQ25: ='[8]2. 2015 Continuity Schedule'!CA25 -> -52.60827 | BR25: ='[8]2. 2015 Continuity Schedule'!CB25 -> 0 | BS25: -12.24827 | BT25: =SUM(BO25:BR25) -> -4794.81827 | BU25: ='[8]2. 2015 Continuity Schedule'!CD25 -> -9052.21 | BV25: =BU25-SUM(BG25,BL25) -> 0
A26: 3 | C26: RSVA - Wholesale Market Service Charge10 | D26: 1580 | I26: =E26+F26-G26+H26 -> 0 | N26: =J26+K26-L26+M26 -> 0 | O26: =I26 -> 0 | S26: =O26+P26-Q26+SUM(R26:R26) -> 0 | T26: =N26 -> 0 | X26: =T26+U26-V26+W26 -> 0 | Y26: 0 | Z26: ='[8]2. 2015 Continuity Schedule'!AJ26 -> 0 | AA26: ='[8]2. 2015 Continuity Schedule'!AK26 -> 0 | AB26: ='[8]2. 2015 Continuity Schedule'!AL26 -> -2407015 | AC26: -2407015 | AD26: 0 | AE26: ='[8]2. 2015 Continuity Schedule'!AO26 -> 0 | AF26: ='[8]2. 2015 Continuity Schedule'!AP26 -> 0 | AG26: ='[8]2. 2015 Continuity Schedule'!AQ26 -> -34037 | AH26: =AD26+AE26-AF26+AG26 -> -34037 | AI26: -2407015 | AJ26: ='[8]2. 2015 Continuity Schedule'!AT26 -> -714713.28 | AK26: ='[8]2. 2015 Continuity Schedule'!AU26 -> 0 | AL26: ='[8]2. 2015 Continuity Schedule'!AV26 -> 0 | AM26: -3121728.28 | AN26: -34037 | AO26: ='[8]2. 2015 Continuity Schedule'!AY26 -> -42184.96 | AP26: ='[8]2. 2015 Continuity Schedule'!AZ26 -> 0 | AQ26: ='[8]2. 2015 Continuity Schedule'!BA26 -> 0 | AR26: =AN26+AO26-AP26+AQ26 -> -76221.96 | AS26: -3121728.28 | AT26: ='[8]2. 2015 Continuity Schedule'!BD26 -> -232038.11 | AU26: ='[8]2. 2015 Continuity Schedule'!BE26 -> -2407015.05 | AV26: ='[8]2. 2015 Continuity Schedule'!BF26 -> 0 | AW26: -946751.34 | AX26: -76221.96 | AY26: ='[8]2. 2015 Continuity Schedule'!BI26 -> -11728 | AZ26: ='[8]2. 2015 Continuity Schedule'!BJ26 -> -45831.95 | BA26: ='[8]2. 2015 Continuity Schedule'!BK26 -> 0 | BB26: =AX26+AY26-AZ26+BA26 -> -42118.01 | BC26: -946751.34 | BD26: ='[8]2. 2015 Continuity Schedule'!BN26-BD27-BD28 -> -2021783.67 | BE26: ='[8]2. 2015 Continuity Schedule'!BO26 -> -714713.28 | BF26: ='[8]2. 2015 Continuity Schedule'!BP26 -> 0 | BG26: -2253821.73 | BH26: -42118.01 | BI26: ='[8]2. 2015 Continuity Schedule'!BS26-BI27-BI28 -> -9938.38 | BJ26: ='[8]2. 2015 Continuity Schedule'!BT26 -> -40896 | BK26: ='[8]2. 2015 Continuity Schedule'!BU26 -> 0 | BL26: =BH26+BI26-BJ26+BK26 -> -11160.39 | BM26: ='[8]2. 2015 Continuity Schedule'!BW26 -> -232038 | BN26: ='[8]2. 2015 Continuity Schedule'!BX26 -> -3989 | BO26: -2021783.73 | BP26: -7171.39 | BQ26: ='[8]2. 2015 Continuity Schedule'!CA26 -> -19563.46689 | BR26: ='[8]2. 2015 Continuity Schedule'!CB26 -> 0 | BS26: -26734.85689 | BT26: =SUM(BO26:BR26) -> -2048518.587 | BU26: ='[8]2. 2015 Continuity Schedule'!CD26 -> -2020892.37 | BV26: 244089.75
A27: 3.1 | C27: Variance WMS – Sub-account CBR Class A10 | D27: 1580 | BC27: 0 | BD27: 17193.09 | BG27: 17193.09 | BH27: 0 | BI27: 49.45 | BL27: 49.45 | BO27: 17193.09 | BP27: 49.45 | BS27: 49.45 | BT27: =IF(CB27=TRUE, SUM(BO27:BR27), 0) -> 17242.54 | BV27: =BU27-SUM(BG27,BL27) -> -17242.54 | CA27: 1580 CBDR A | CB27: TRUE
A28: 3.2 | C28: Variance WMS – Sub-account CBR Class B10 | D28: 1580 | BC28: 0 | BD28: 226093.65 | BE28: 0 | BF28: 0 | BG28: 226093.65 | BH28: 0 | BI28: 753.89 | BJ28: 0 | BK28: 0 | BL28: 753.89 | BO28: 226093.65 | BP28: 753.89 | BS28: 753.89 | BT28: =IF(CB28=TRUE, SUM(BO28:BR28), 0) -> 226847.54 | BV28: =BU28-SUM(BG28,BL28) -> -226847.54 | CA28: 1580 CBDR B | CB28: TRUE
A29: 4 | C29: RSVA - Retail Transmission Network Charge | D29: 1584 | I29: =E29+F29-G29+H29 -> 0 | N29: =J29+K29-L29+M29 -> 0 | O29: 0 | S29: =O29+P29-Q29+SUM(R29:R29) -> 0 | T29: 0 | X29: 0 | Y29: 0 | Z29: ='[8]2. 2015 Continuity Schedule'!AJ27 -> 0 | AA29: ='[8]2. 2015 Continuity Schedule'!AK27 -> 0 | AB29: ='[8]2. 2015 Continuity Schedule'!AL27 -> 177629 | AC29: 177629 | AD29: 0 | AE29: ='[8]2. 2015 Continuity Schedule'!AO27 -> 0 | AF29: ='[8]2. 2015 Continuity Schedule'!AP27 -> 0 | AG29: ='[8]2. 2015 Continuity Schedule'!AQ27 -> -181 | AH29: -181 | AI29: 177629 | AJ29: ='[8]2. 2015 Continuity Schedule'!AT27 -> 239346.08 | AK29: ='[8]2. 2015 Continuity Schedule'!AU27 -> 0 | AL29: ='[8]2. 2015 Continuity Schedule'!AV27 -> 0 | AM29: 416975.08 | AN29: -181 | AO29: ='[8]2. 2015 Continuity Schedule'!AY27 -> 4160.27 | AP29: ='[8]2. 2015 Continuity Schedule'!AZ27 -> 0 | AQ29: ='[8]2. 2015 Continuity Schedule'!BA27 -> 0 | AR29: 3979.27 | AS29: 416975.08 | AT29: ='[8]2. 2015 Continuity Schedule'!BD27 -> 624224.64 | AU29: ='[8]2. 2015 Continuity Schedule'!BE27 -> 177628.92 | AV29: ='[8]2. 2015 Continuity Schedule'!BF27 -> 0 | AW29: 863570.8 | AX29: 3979.27 | AY29: ='[8]2. 2015 Continuity Schedule'!BI27 -> 7331.42 | AZ29: ='[8]2. 2015 Continuity Schedule'!BJ27 -> 689.08 | BA29: ='[8]2. 2015 Continuity Schedule'!BK27 -> 0 | BB29: 10621.61 | BC29: 863570.8 | BD29: ='[8]2. 2015 Continuity Schedule'!BN27 -> -249135.34 | BE29: ='[8]2. 2015 Continuity Schedule'!BO27 -> 239346.08 | BF29: ='[8]2. 2015 Continuity Schedule'!BP27 -> 0 | BG29: =BC29+BD29-BE29+SUM(BF29:BF29) -> 375089.38 | BH29: 10621.61 | BI29: ='[8]2. 2015 Continuity Schedule'!BS27 -> 6652.55 | BJ29: ='[8]2. 2015 Continuity Schedule'!BT27 -> 6808 | BK29: ='[8]2. 2015 Continuity Schedule'!BU27 -> 0 | BL29: 10466.16 | BM29: ='[8]2. 2015 Continuity Schedule'!BW27 -> 624225 | BN29: ='[8]2. 2015 Continuity Schedule'!BX27 -> 11257 | BO29: -249135.62 | BP29: -790.84 | BQ29: ='[8]2. 2015 Continuity Schedule'!CA27 -> -2740.49182 | BR29: ='[8]2. 2015 Continuity Schedule'!CB27 -> 0 | BS29: -3531.33182 | BT29: =SUM(BO29:BR29) -> -252666.9518 | BU29: ='[8]2. 2015 Continuity Schedule'!CD27 -> 385555.63 | BV29: 0.09000000026
A30: 5 | C30: RSVA - Retail Transmission Connection Charge | D30: 1586 | I30: 0 | N30: 0 | O30: 0 | S30: 0 | T30: 0 | X30: 0 | Y30: 0 | Z30: ='[8]2. 2015 Continuity Schedule'!AJ28 -> 0 | AA30: ='[8]2. 2015 Continuity Schedule'!AK28 -> 0 | AB30: ='[8]2. 2015 Continuity Schedule'!AL28 -> -2417 | AC30: -2417 | AD30: 0 | AE30: ='[8]2. 2015 Continuity Schedule'!AO28 -> 0 | AF30: ='[8]2. 2015 Continuity Schedule'!AP28 -> 0 | AG30: ='[8]2. 2015 Continuity Schedule'!AQ28 -> -6664 | AH30: -6664 | AI30: -2417 | AJ30: ='[8]2. 2015 Continuity Schedule'!AT28 -> -52045.35 | AK30: ='[8]2. 2015 Continuity Schedule'!AU28 -> 0 | AL30: ='[8]2. 2015 Continuity Schedule'!AV28 -> 0 | AM30: -54462.35 | AN30: -6664 | AO30: ='[8]2. 2015 Continuity Schedule'!AY28 -> -630.31 | AP30: ='[8]2. 2015 Continuity Schedule'!AZ28 -> 0 | AQ30: ='[8]2. 2015 Continuity Schedule'!BA28 -> 0 | AR30: -7294.31 | AS30: -54462.35 | AT30: ='[8]2. 2015 Continuity Schedule'!BD28 -> 126558.47 | AU30: ='[8]2. 2015 Continuity Schedule'!BE28 -> -2417.3 | AV30: ='[8]2. 2015 Continuity Schedule'!BF28 -> 0 | AW30: 74513.42 | AX30: -7294.31 | AY30: ='[8]2. 2015 Continuity Schedule'!BI28 -> -449 | AZ30: ='[8]2. 2015 Continuity Schedule'!BJ28 -> -6675.7 | BA30: ='[8]2. 2015 Continuity Schedule'!BK28 -> 0 | BB30: -1067.61 | BC30: 74513.42 | BD30: ='[8]2. 2015 Continuity Schedule'!BN28 -> 30327 | BE30: ='[8]2. 2015 Continuity Schedule'!BO28 -> -52045.35 | BF30: ='[8]2. 2015 Continuity Schedule'!BP28 -> 0 | BG30: 156885.77 | BH30: -1067.61 | BI30: ='[8]2. 2015 Continuity Schedule'!BS28 -> 2068.4 | BJ30: ='[8]2. 2015 Continuity Schedule'!BT28 -> -1384 | BK30: ='[8]2. 2015 Continuity Schedule'!BU28 -> 0 | BL30: 2384.79 | BM30: ='[8]2. 2015 Continuity Schedule'!BW28 -> 126558 | BN30: ='[8]2. 2015 Continuity Schedule'!BX28 -> 1826 | BO30: 30327.77 | BP30: 558.79 | BQ30: ='[8]2. 2015 Continuity Schedule'!CA28 -> 333.60547 | BR30: ='[8]2. 2015 Continuity Schedule'!CB28 -> 0 | BS30: 892.39547 | BT30: 31220.16547 | BU30: ='[8]2. 2015 Continuity Schedule'!CD28 -> 159271.69 | BV30: 1.13
A31: 6 | C31: RSVA - Power (excluding Global Adjustment) | D31: 1588 | I31: 0 | N31: 0 | O31: 0 | S31: 0 | T31: 0 | X31: 0 | Y31: 0 | Z31: ='[8]2. 2015 Continuity Schedule'!AJ29 -> 0 | AA31: ='[8]2. 2015 Continuity Schedule'!AK29 -> 0 | AB31: ='[8]2. 2015 Continuity Schedule'!AL29 -> -1772558 | AC31: -1772558 | AD31: 0 | AE31: ='[8]2. 2015 Continuity Schedule'!AO29 -> 0 | AF31: ='[8]2. 2015 Continuity Schedule'!AP29 -> 0 | AG31: ='[8]2. 2015 Continuity Schedule'!AQ29 -> -19252 | AH31: -19252 | AI31: -1772558 | AJ31: ='[8]2. 2015 Continuity Schedule'!AT29 -> -1484560.62 | AK31: ='[8]2. 2015 Continuity Schedule'!AU29 -> 0 | AL31: ='[8]2. 2015 Continuity Schedule'!AV29 -> 0 | AM31: -3257118.62 | AN31: -19252 | AO31: ='[8]2. 2015 Continuity Schedule'!AY29 -> -40173.24 | AP31: ='[8]2. 2015 Continuity Schedule'!AZ29 -> 0 | AQ31: ='[8]2. 2015 Continuity Schedule'!BA29 -> 0 | AR31: -59425.24 | AS31: -3257118.62 | AT31: ='[8]2. 2015 Continuity Schedule'!BD29 -> -1276046.71 | AU31: ='[8]2. 2015 Continuity Schedule'!BE29 -> -1772557.73 | AV31: ='[8]2. 2015 Continuity Schedule'!BF29 -> 0 | AW31: -2760607.6 | AX31: -59425.24 | AY31: ='[8]2. 2015 Continuity Schedule'!BI29 -> -29362 | AZ31: ='[8]2. 2015 Continuity Schedule'!BJ29 -> -27938.27 | BA31: ='[8]2. 2015 Continuity Schedule'!BK29 -> 0 | BB31: -60848.97 | BC31: -2760607.6 | BD31: ='[8]2. 2015 Continuity Schedule'!BN29 -> -1546522.49 | BE31: ='[8]2. 2015 Continuity Schedule'!BO29 -> -1484560.62 | BF31: ='[8]2. 2015 Continuity Schedule'!BP29 -> 0 | BG31: -2822569.47 | BH31: -60848.97 | BI31: ='[8]2. 2015 Continuity Schedule'!BS29 -> 90701.78 | BJ31: ='[8]2. 2015 Continuity Schedule'!BT29 -> 53310 | BK31: ='[8]2. 2015 Continuity Schedule'!BU29 -> 0 | BL31: -23457.19 | BM31: ='[8]2. 2015 Continuity Schedule'!BW29 -> -1276047 | BN31: ='[8]2. 2015 Continuity Schedule'!BX29 -> -22756 | BO31: -1546522.47 | BP31: -701.19 | BQ31: ='[8]2. 2015 Continuity Schedule'!CA29 -> -17011.74717 | BR31: ='[8]2. 2015 Continuity Schedule'!CB29 -> 0 | BS31: -17712.93717 | BT31: -1564235.407 | BU31: ='[8]2. 2015 Continuity Schedule'!CD29 -> -2846026.8 | BV31: -0.140000002
A32: 7 | C32: RSVA - Global Adjustment | D32: 1589 | I32: 0 | N32: 0 | O32: 0 | S32: 0 | T32: 0 | X32: 0 | Y32: 0 | Z32: ='[8]2. 2015 Continuity Schedule'!AJ30 -> 0 | AA32: ='[8]2. 2015 Continuity Schedule'!AK30 -> 0 | AB32: ='[8]2. 2015 Continuity Schedule'!AL30 -> 783497 | AC32: 783497 | AD32: 0 | AE32: ='[8]2. 2015 Continuity Schedule'!AO30 -> 0 | AF32: ='[8]2. 2015 Continuity Schedule'!AP30 -> 0 | AG32: ='[8]2. 2015 Continuity Schedule'!AQ30 -> 22577 | AH32: 22577 | AI32: 783497 | AJ32: ='[8]2. 2015 Continuity Schedule'!AT30 -> 1426993.16 | AK32: ='[8]2. 2015 Continuity Schedule'!AU30 -> 0 | AL32: ='[8]2. 2015 Continuity Schedule'!AV30 -> 0 | AM32: 2210490.16 | AN32: 22577 | AO32: ='[8]2. 2015 Continuity Schedule'!AY30 -> 28790.83 | AP32: ='[8]2. 2015 Continuity Schedule'!AZ30 -> 0 | AQ32: ='[8]2. 2015 Continuity Schedule'!BA30 -> 0 | AR32: 51367.83 | AS32: 2210490.16 | AT32: ='[8]2. 2015 Continuity Schedule'!BD30 -> 1561083.59 | AU32: ='[8]2. 2015 Continuity Schedule'!BE30 -> 783497.21 | AV32: ='[8]2. 2015 Continuity Schedule'!BF30 -> 0 | AW32: 2988076.54 | AX32: 51367.83 | AY32: ='[8]2. 2015 Continuity Schedule'!BI30 -> 21393 | AZ32: ='[8]2. 2015 Continuity Schedule'!BJ30 -> 26415.79 | BA32: ='[8]2. 2015 Continuity Schedule'!BK30 -> 0 | BB32: 46345.04 | BC32: 2988076.54 | BD32: ='[8]2. 2015 Continuity Schedule'!BN30 -> 1613939.6 | BE32: ='[8]2. 2015 Continuity Schedule'!BO30 -> 1426993 | BF32: ='[8]2. 2015 Continuity Schedule'!BP30 -> 0 | BG32: 3175023.14 | BH32: 46345.04 | BI32: ='[8]2. 2015 Continuity Schedule'!BS30 -> 25203.25 | BJ32: ='[8]2. 2015 Continuity Schedule'!BT30 -> 45929 | BK32: ='[8]2. 2015 Continuity Schedule'!BU30 -> 0 | BL32: 25619.29 | BM32: ='[8]2. 2015 Continuity Schedule'!BW30 -> 1561083 | BN32: ='[8]2. 2015 Continuity Schedule'!BX30 -> 19032 | BO32: 1613940.14 | BP32: 6587.29 | BQ32: ='[8]2. 2015 Continuity Schedule'!CA30 -> 17753.34154 | BR32: ='[8]2. 2015 Continuity Schedule'!CB30 -> 0 | BS32: 24340.63154 | BT32: =SUM(BO32:BR32) -> 1638280.772 | BU32: ='[8]2. 2015 Continuity Schedule'!CD30 -> 3200642.45 | BV32: 0.02000000002
A33: 8 | C33: Disposition and Recovery/Refund of Regulatory Balances (2009)8 | D33: 1595 | I33: 0 | N33: 0 | O33: =I33 -> 0 | S33: 0 | T33: =N33 -> 0 | X33: 0 | Y33: =S33 -> 0 | Z33: ='[8]2. 2015 Continuity Schedule'!AJ32 -> 0 | AA33: ='[8]2. 2015 Continuity Schedule'!AK32 -> 0 | AB33: ='[8]2. 2015 Continuity Schedule'!AL32 -> 0 | AC33: 0 | AD33: 0 | AE33: ='[8]2. 2015 Continuity Schedule'!AO32 -> 0 | AF33: ='[8]2. 2015 Continuity Schedule'!AP32 -> 0 | AG33: ='[8]2. 2015 Continuity Schedule'!AQ32 -> 0 | AH33: 0 | AI33: 0 | AJ33: ='[8]2. 2015 Continuity Schedule'!AT32 -> 0 | AK33: ='[8]2. 2015 Continuity Schedule'!AU32 -> 0 | AL33: ='[8]2. 2015 Continuity Schedule'!AV32 -> 0 | AM33: 0 | AN33: 0 | AO33: ='[8]2. 2015 Continuity Schedule'!AY32 -> 0 | AP33: ='[8]2. 2015 Continuity Schedule'!AZ32 -> 0 | AQ33: ='[8]2. 2015 Continuity Schedule'!BA32 -> 0 | AR33: 0 | AS33: =AM33 -> 0 | AT33: ='[8]2. 2015 Continuity Schedule'!BD32 -> 0 | AU33: ='[8]2. 2015 Continuity Schedule'!BE32 -> 0 | AV33: ='[8]2. 2015 Continuity Schedule'!BF32 -> 0 | AW33: 0 | AX33: 0 | AY33: ='[8]2. 2015 Continuity Schedule'!BI32 -> 0 | AZ33: ='[8]2. 2015 Continuity Schedule'!BJ32 -> 0 | BA33: ='[8]2. 2015 Continuity Schedule'!BK32 -> 0 | BB33: 0 | BC33: =AW33 -> 0 | BD33: ='[8]2. 2015 Continuity Schedule'!BN32 -> 0 | BE33: ='[8]2. 2015 Continuity Schedule'!BO32 -> 0 | BF33: ='[8]2. 2015 Continuity Schedule'!BP32 -> 0 | BG33: 0 | BH33: 0 | BI33: ='[8]2. 2015 Continuity Schedule'!BS32 -> 0 | BJ33: ='[8]2. 2015 Continuity Schedule'!BT32 -> 0 | BK33: ='[8]2. 2015 Continuity Schedule'!BU32 -> 0 | BL33: 0 | BM33: ='[8]2. 2015 Continuity Schedule'!BW32 -> 0 | BN33: ='[8]2. 2015 Continuity Schedule'!BX32 -> 0 | BO33: 0 | BP33: 0 | BQ33: ='[8]2. 2015 Continuity Schedule'!CA32 -> 0 | BR33: ='[8]2. 2015 Continuity Schedule'!CB32 -> 0 | BS33: 0 | BT33: =IF(CB33=TRUE, SUM(BO33:BR33), 0) -> 0 | BU33: ='[8]2. 2015 Continuity Schedule'!CD32 -> 0 | BV33: 0 | CA33: 1595 (2009) | CB33: TRUE
A34: 9 | C34: Disposition and Recovery/Refund of Regulatory Balances (2010)8 | D34: 1595 | I34: 0 | N34: 0 | O34: 0 | S34: =O34+P34-Q34+SUM(R34:R34) -> 0 | T34: 0 | X34: 0 | Y34: 0 | Z34: ='[8]2. 2015 Continuity Schedule'!AJ33 -> 0 | AA34: ='[8]2. 2015 Continuity Schedule'!AK33 -> 0 | AB34: ='[8]2. 2015 Continuity Schedule'!AL33 -> 117037 | AC34: 117037 | AD34: 0 | AE34: ='[8]2. 2015 Continuity Schedule'!AO33 -> 0 | AF34: ='[8]2. 2015 Continuity Schedule'!AP33 -> 0 | AG34: ='[8]2. 2015 Continuity Schedule'!AQ33 -> -1066547 | AH34: -1066547 | AI34: 117037 | AJ34: ='[8]2. 2015 Continuity Schedule'!AT33 -> 0 | AK34: ='[8]2. 2015 Continuity Schedule'!AU33 -> 0 | AL34: ='[8]2. 2015 Continuity Schedule'!AV33 -> 0 | AM34: 117037 | AN34: -1066547 | AO34: ='[8]2. 2015 Continuity Schedule'!AY33 -> 1720.44 | AP34: ='[8]2. 2015 Continuity Schedule'!AZ33 -> 0 | AQ34: ='[8]2. 2015 Continuity Schedule'!BA33 -> 0 | AR34: -1064826.56 | AS34: 117037 | AT34: ='[8]2. 2015 Continuity Schedule'!BD33 -> 0 | AU34: ='[8]2. 2015 Continuity Schedule'!BE33 -> 117037.16 | AV34: ='[8]2. 2015 Continuity Schedule'!BF33 -> 0 | AW34: -0.16 | AX34: -1064826.56 | AY34: ='[8]2. 2015 Continuity Schedule'!BI33 -> 336.74 | AZ34: ='[8]2. 2015 Continuity Schedule'!BJ33 -> -1065925.16 | BA34: ='[8]2. 2015 Continuity Schedule'!BK33 -> 0 | BB34: 1435.34 | BC34: -0.16 | BD34: ='[8]2. 2015 Continuity Schedule'!BN33 -> 0 | BE34: ='[8]2. 2015 Continuity Schedule'!BO33 -> 0 | BF34: ='[8]2. 2015 Continuity Schedule'!BP33 -> 0 | BG34: -0.16 | BH34: 1435.34 | BI34: ='[8]2. 2015 Continuity Schedule'!BS33 -> 0 | BJ34: ='[8]2. 2015 Continuity Schedule'!BT33 -> 1148.93 | BK34: ='[8]2. 2015 Continuity Schedule'!BU33 -> 0 | BL34: 286.41 | BM34: ='[8]2. 2015 Continuity Schedule'!BW33 -> 0 | BN34: ='[8]2. 2015 Continuity Schedule'!BX33 -> 286 | BO34: -0.16 | BP34: 0.4100000001 | BQ34: ='[8]2. 2015 Continuity Schedule'!CA33 -> -0.00176 | BR34: ='[8]2. 2015 Continuity Schedule'!CB33 -> 0 | BS34: 0.4082400001 | BT34: 0.2482400001 | BU34: ='[8]2. 2015 Continuity Schedule'!CD33 -> 286.74 | BV34: 0.4899999999 | CA34: 1595 (2010) | CB34: TRUE
A35: 10 | C35: Disposition and Recovery/Refund of Regulatory Balances (2011)8 | D35: 1595 | I35: 0 | N35: 0 | O35: =I35 -> 0 | S35: 0 | T35: =N35 -> 0 | X35: =T35+U35-V35+W35 -> 0 | Y35: 0 | Z35: ='[8]2. 2015 Continuity Schedule'!AJ34 -> 0 | AA35: ='[8]2. 2015 Continuity Schedule'!AK34 -> 0 | AB35: ='[8]2. 2015 Continuity Schedule'!AL34 -> 107728 | AC35: 107728 | AD35: 0 | AE35: ='[8]2. 2015 Continuity Schedule'!AO34 -> 0 | AF35: ='[8]2. 2015 Continuity Schedule'!AP34 -> 0 | AG35: ='[8]2. 2015 Continuity Schedule'!AQ34 -> 31988 | AH35: =AD35+AE35-AF35+AG35 -> 31988 | AI35: 107728 | AJ35: ='[8]2. 2015 Continuity Schedule'!AT34 -> 0 | AK35: ='[8]2. 2015 Continuity Schedule'!AU34 -> 0 | AL35: ='[8]2. 2015 Continuity Schedule'!AV34 -> 0 | AM35: 107728 | AN35: 31988 | AO35: ='[8]2. 2015 Continuity Schedule'!AY34 -> 1583.64 | AP35: ='[8]2. 2015 Continuity Schedule'!AZ34 -> 0 | AQ35: ='[8]2. 2015 Continuity Schedule'!BA34 -> 0 | AR35: =AN35+AO35-AP35+AQ35 -> 33571.64 | AS35: 107728 | AT35: ='[8]2. 2015 Continuity Schedule'!BD34 -> 0 | AU35: ='[8]2. 2015 Continuity Schedule'!BE34 -> 107728 | AV35: ='[8]2. 2015 Continuity Schedule'!BF34 -> 0 | AW35: 0 | AX35: 33571.64 | AY35: ='[8]2. 2015 Continuity Schedule'!BI34 -> 264 | AZ35: ='[8]2. 2015 Continuity Schedule'!BJ34 -> 32517.39 | BA35: ='[8]2. 2015 Continuity Schedule'!BK34 -> 0 | BB35: =AX35+AY35-AZ35+BA35 -> 1318.25 | BC35: 0 | BD35: ='[8]2. 2015 Continuity Schedule'!BN34 -> 0 | BE35: ='[8]2. 2015 Continuity Schedule'!BO34 -> 0 | BF35: ='[8]2. 2015 Continuity Schedule'!BP34 -> 0 | BG35: 0 | BH35: 1318.25 | BI35: ='[8]2. 2015 Continuity Schedule'!BS34 -> 0 | BJ35: ='[8]2. 2015 Continuity Schedule'!BT34 -> 1054.06 | BK35: ='[8]2. 2015 Continuity Schedule'!BU34 -> 0 | BL35: =BH35+BI35-BJ35+BK35 -> 264.19 | BM35: ='[8]2. 2015 Continuity Schedule'!BW34 -> 0 | BN35: ='[8]2. 2015 Continuity Schedule'!BX34 -> 264 | BO35: 0 | BP35: 0.19 | BQ35: ='[8]2. 2015 Continuity Schedule'!CA34 -> 0 | BR35: ='[8]2. 2015 Continuity Schedule'!CB34 -> 0 | BS35: 0.19 | BT35: 0.19 | BU35: ='[8]2. 2015 Continuity Schedule'!CD34 -> 263.94 | BV35: -0.25 | CA35: 1595 (2011) | CB35: TRUE
A36: 11 | C36: Disposition and Recovery/Refund of Regulatory Balances (2012)8 | D36: 1595 | I36: 0 | N36: 0 | O36: =I36 -> 0 | S36: =O36+P36-Q36+SUM(R36:R36) -> 0 | T36: =N36 -> 0 | X36: =T36+U36-V36+W36 -> 0 | Y36: 0 | Z36: ='[8]2. 2015 Continuity Schedule'!AJ35 -> 0 | AA36: ='[8]2. 2015 Continuity Schedule'!AK35 -> 0 | AB36: ='[8]2. 2015 Continuity Schedule'!AL35 -> -1297428 | AC36: =Y36+Z36-AA36+SUM(AB36:AB36) -> -1297428 | AD36: =X36 -> 0 | AE36: ='[8]2. 2015 Continuity Schedule'!AO35 -> 0 | AF36: ='[8]2. 2015 Continuity Schedule'!AP35 -> 0 | AG36: ='[8]2. 2015 Continuity Schedule'!AQ35 -> -485539 | AH36: =AD36+AE36-AF36+AG36 -> -485539 | AI36: -1297428 | AJ36: ='[8]2. 2015 Continuity Schedule'!AT35 -> 1297428.13 | AK36: ='[8]2. 2015 Continuity Schedule'!AU35 -> 0 | AL36: ='[8]2. 2015 Continuity Schedule'!AV35 -> 0 | AM36: 0.1299999999 | AN36: -485539 | AO36: ='[8]2. 2015 Continuity Schedule'!AY35 -> 651948.32 | AP36: ='[8]2. 2015 Continuity Schedule'!AZ35 -> 0 | AQ36: ='[8]2. 2015 Continuity Schedule'!BA35 -> 0 | AR36: =AN36+AO36-AP36+AQ36 -> 166409.32 | AS36: 0.1299999999 | AT36: ='[8]2. 2015 Continuity Schedule'!BD35 -> 0 | AU36: ='[8]2. 2015 Continuity Schedule'!BE35 -> 0 | AV36: ='[8]2. 2015 Continuity Schedule'!BF35 -> 0 | AW36: 0.1299999999 | AX36: 166409.32 | AY36: ='[8]2. 2015 Continuity Schedule'!BI35 -> -40690.06 | AZ36: ='[8]2. 2015 Continuity Schedule'!BJ35 -> 0 | BA36: ='[8]2. 2015 Continuity Schedule'!BK35 -> 0 | BB36: =AX36+AY36-AZ36+BA36 -> 125719.26 | BC36: 0.1299999999 | BD36: ='[8]2. 2015 Continuity Schedule'!BN35 -> 0 | BE36: ='[8]2. 2015 Continuity Schedule'!BO35 -> 0 | BF36: ='[8]2. 2015 Continuity Schedule'!BP35 -> 0 | BG36: 0.1299999999 | BH36: 125719.26 | BI36: ='[8]2. 2015 Continuity Schedule'!BS35 -> 0 | BJ36: ='[8]2. 2015 Continuity Schedule'!BT35 -> 126333.8 | BK36: ='[8]2. 2015 Continuity Schedule'!BU35 -> 0 | BL36: =BH36+BI36-BJ36+BK36 -> -614.54 | BM36: ='[8]2. 2015 Continuity Schedule'!BW35 -> 0 | BN36: ='[8]2. 2015 Continuity Schedule'!BX35 -> -615 | BO36: 0.1299999999 | BP36: 0.4600000001 | BQ36: ='[8]2. 2015 Continuity Schedule'!CA35 -> 0.001429999999 | BR36: ='[8]2. 2015 Continuity Schedule'!CB35 -> 0 | BS36: 0.4614300001 | BT36: 0.59143 | BU36: ='[8]2. 2015 Continuity Schedule'!CD35 -> -614.81 | BV36: -0.4 | CA36: 1595 (2012) | CB36: TRUE
A37: 12 | C37: Disposition and Recovery/Refund of Regulatory Balances (2013)8 | D37: 1595 | I37: 0 | N37: 0 | O37: =I37 -> 0 | S37: =O37+P37-Q37+SUM(R37:R37) -> 0 | T37: =N37 -> 0 | X37: =T37+U37-V37+W37 -> 0 | Y37: 0 | Z37: ='[8]2. 2015 Continuity Schedule'!AJ36 -> 0 | AA37: ='[8]2. 2015 Continuity Schedule'!AK36 -> 0 | AB37: ='[8]2. 2015 Continuity Schedule'!AL36 -> 0 | AC37: =Y37+Z37-AA37+SUM(AB37:AB37) -> 0 | AD37: =X37 -> 0 | AE37: ='[8]2. 2015 Continuity Schedule'!AO36 -> 0 | AF37: ='[8]2. 2015 Continuity Schedule'!AP36 -> 0 | AG37: ='[8]2. 2015 Continuity Schedule'!AQ36 -> 0 | AH37: =AD37+AE37-AF37+AG37 -> 0 | AI37: 0 | AJ37: ='[8]2. 2015 Continuity Schedule'!AT36 -> 0 | AK37: ='[8]2. 2015 Continuity Schedule'!AU36 -> 0 | AL37: ='[8]2. 2015 Continuity Schedule'!AV36 -> 0 | AM37: 0 | AN37: 0 | AO37: ='[8]2. 2015 Continuity Schedule'!AY36 -> 0 | AP37: ='[8]2. 2015 Continuity Schedule'!AZ36 -> 0 | AQ37: ='[8]2. 2015 Continuity Schedule'!BA36 -> 0 | AR37: =AN37+AO37-AP37+AQ37 -> 0 | AS37: 0 | AT37: ='[8]2. 2015 Continuity Schedule'!BD36 -> 2056876.79 | AU37: ='[8]2. 2015 Continuity Schedule'!BE36 -> 2056876.79 | AV37: ='[8]2. 2015 Continuity Schedule'!BF36 -> 0 | AW37: 0 | AX37: 0 | AY37: ='[8]2. 2015 Continuity Schedule'!BI36 -> 772788 | AZ37: ='[8]2. 2015 Continuity Schedule'!BJ36 -> 992123.68 | BA37: ='[8]2. 2015 Continuity Schedule'!BK36 -> 0 | BB37: =AX37+AY37-AZ37+BA37 -> -219335.68 | BC37: 0 | BD37: ='[8]2. 2015 Continuity Schedule'!BN36 -> 0 | BE37: ='[8]2. 2015 Continuity Schedule'!BO36 -> 0 | BF37: ='[8]2. 2015 Continuity Schedule'!BP36 -> 0 | BG37: 0 | BH37: -219335.68 | BI37: ='[8]2. 2015 Continuity Schedule'!BS36 -> 21325.54 | BJ37: ='[8]2. 2015 Continuity Schedule'!BT36 -> 0 | BK37: ='[8]2. 2015 Continuity Schedule'!BU36 -> 0 | BL37: =BH37+BI37-BJ37+BK37 -> -198010.14 | BM37: ='[8]2. 2015 Continuity Schedule'!BW36 -> 0 | BN37: ='[8]2. 2015 Continuity Schedule'!BX36 -> -219336 | BO37: 0 | BP37: 21325.86 | BQ37: ='[8]2. 2015 Continuity Schedule'!CA36 -> 0 | BR37: ='[8]2. 2015 Continuity Schedule'!CB36 -> 0 | BS37: 21325.86 | BT37: 21325.86 | BU37: ='[8]2. 2015 Continuity Schedule'!CD36 -> -198010.41 | BV37: -0.27 | CA37: 1595 (2013) | CB37: TRUE
A38: 13 | C38: Disposition and Recovery/Refund of Regulatory Balances (2014)8 | D38: 1595 | I38: 0 | N38: 0 | O38: =I38 -> 0 | S38: =O38+P38-Q38+SUM(R38:R38) -> 0 | T38: =N38 -> 0 | X38: =T38+U38-V38+W38 -> 0 | Y38: 0 | Z38: ='[8]2. 2015 Continuity Schedule'!AJ37 -> 0 | AA38: ='[8]2. 2015 Continuity Schedule'!AK37 -> 0 | AB38: ='[8]2. 2015 Continuity Schedule'!AL37 -> 0 | AC38: =Y38+Z38-AA38+SUM(AB38:AB38) -> 0 | AD38: =X38 -> 0 | AE38: ='[8]2. 2015 Continuity Schedule'!AO37 -> 0 | AF38: ='[8]2. 2015 Continuity Schedule'!AP37 -> 0 | AG38: ='[8]2. 2015 Continuity Schedule'!AQ37 -> 0 | AH38: =AD38+AE38-AF38+AG38 -> 0 | AI38: 0 | AJ38: ='[8]2. 2015 Continuity Schedule'!AT37 -> 0 | AK38: ='[8]2. 2015 Continuity Schedule'!AU37 -> 0 | AL38: ='[8]2. 2015 Continuity Schedule'!AV37 -> 0 | AM38: 0 | AN38: 0 | AO38: ='[8]2. 2015 Continuity Schedule'!AY37 -> 0 | AP38: ='[8]2. 2015 Continuity Schedule'!AZ37 -> 0 | AQ38: ='[8]2. 2015 Continuity Schedule'!BA37 -> 0 | AR38: =AN38+AO38-AP38+AQ38 -> 0 | AS38: 0 | AT38: ='[8]2. 2015 Continuity Schedule'!BD37 -> 0 | AU38: ='[8]2. 2015 Continuity Schedule'!BE37 -> 0 | AV38: ='[8]2. 2015 Continuity Schedule'!BF37 -> 0 | AW38: 0 | AX38: 0 | AY38: ='[8]2. 2015 Continuity Schedule'!BI37 -> 0 | AZ38: ='[8]2. 2015 Continuity Schedule'!BJ37 -> 0 | BA38: ='[8]2. 2015 Continuity Schedule'!BK37 -> 0 | BB38: =AX38+AY38-AZ38+BA38 -> 0 | BC38: 0 | BF38: ='[8]2. 2015 Continuity Schedule'!BP37 -> 0 | BG38: 0 | BH38: 0 | BK38: ='[8]2. 2015 Continuity Schedule'!BU37 -> 0 | BL38: =BH38+BI38-BJ38+BK38 -> 0 | BM38: ='[8]2. 2015 Continuity Schedule'!BW37 -> 0 | BN38: ='[8]2. 2015 Continuity Schedule'!BX37 -> 0 | BO38: 0 | BP38: 0 | BR38: ='[8]2. 2015 Continuity Schedule'!CB37 -> 0 | BS38: 0 | BT38: 0 | BV38: =BU38-SUM(BG38,BL38) -> 0 | CA38: 1595 (2014) | CB38: TRUE
A39: 14 | C39: Disposition and Recovery/Refund of Regulatory Balances (2015)8 | D39: 1595 | I39: 0 | N39: 0 | O39: =I39 -> 0 | S39: =O39+P39-Q39+SUM(R39:R39) -> 0 | T39: =N39 -> 0 | X39: =T39+U39-V39+W39 -> 0 | Y39: 0 | Z39: ='[8]2. 2015 Continuity Schedule'!AJ38 -> 0 | AA39: ='[8]2. 2015 Continuity Schedule'!AK38 -> 0 | AB39: ='[8]2. 2015 Continuity Schedule'!AL38 -> 0 | AC39: =Y39+Z39-AA39+SUM(AB39:AB39) -> 0 | AD39: =X39 -> 0 | AE39: ='[8]2. 2015 Continuity Schedule'!AO38 -> 0 | AF39: ='[8]2. 2015 Continuity Schedule'!AP38 -> 0 | AG39: ='[8]2. 2015 Continuity Schedule'!AQ38 -> 0 | AH39: =AD39+AE39-AF39+AG39 -> 0 | AI39: 0 | AJ39: ='[8]2. 2015 Continuity Schedule'!AT38 -> 0 | AK39: ='[8]2. 2015 Continuity Schedule'!AU38 -> 0 | AL39: ='[8]2. 2015 Continuity Schedule'!AV38 -> 0 | AM39: 0 | AN39: 0 | AO39: ='[8]2. 2015 Continuity Schedule'!AY38 -> 0 | AP39: ='[8]2. 2015 Continuity Schedule'!AZ38 -> 0 | AQ39: ='[8]2. 2015 Continuity Schedule'!BA38 -> 0 | AR39: =AN39+AO39-AP39+AQ39 -> 0 | AS39: 0 | AT39: ='[8]2. 2015 Continuity Schedule'!BD38 -> 0 | AU39: ='[8]2. 2015 Continuity Schedule'!BE38 -> 0 | AV39: ='[8]2. 2015 Continuity Schedule'!BF38 -> 0 | AW39: 0 | AX39: 0 | AY39: ='[8]2. 2015 Continuity Schedule'!BI38 -> 0 | AZ39: ='[8]2. 2015 Continuity Schedule'!BJ38 -> 0 | BA39: ='[8]2. 2015 Continuity Schedule'!BK38 -> 0 | BB39: =AX39+AY39-AZ39+BA39 -> 0 | BC39: 0 | BD39: ='[8]2. 2015 Continuity Schedule'!BN37 -> 1915934 | BE39: ='[8]2. 2015 Continuity Schedule'!BO37 -> 1984080 | BF39: ='[8]2. 2015 Continuity Schedule'!BP38 -> 0 | BG39: -68146 | BH39: 0 | BI39: ='[8]2. 2015 Continuity Schedule'!BS37 -> -69906 | BJ39: ='[8]2. 2015 Continuity Schedule'!BT37 -> -82410 | BK39: ='[8]2. 2015 Continuity Schedule'!BU38 -> 0 | BL39: =BH39+BI39-BJ39+BK39 -> 12504 | BM39: ='[8]2. 2015 Continuity Schedule'!BW38 -> 0 | BN39: ='[8]2. 2015 Continuity Schedule'!BX38 -> 0 | BO39: -68146 | BP39: 12504 | BQ39: ='[8]2. 2015 Continuity Schedule'!CA37 -> -749.606 | BR39: ='[8]2. 2015 Continuity Schedule'!CB38 -> 0 | BS39: =BP39+BQ39+BR39 -> 11754.394 | BT39: -56391.606 | BU39: ='[8]2. 2015 Continuity Schedule'!CD37 -> -55642.84 | BV39: =BU39-SUM(BG39,BL39) -> -0.8400000006 | CA39: 1595 (2015) | CB39: TRUE
C40: Not to be disposed of unless rate rider has expired and balance has been audited
C42: Group 1 Sub-Total (including Account 1589 - Global Adjustment) | E42: =SUM(E24:E39) -> 0 | F42: =SUM(F24:F39) -> 0 | G42: =SUM(G24:G39) -> 0 | H42: 0 | I42: 0 | J42: 0 | K42: 0 | L42: 0 | M42: 0 | N42: 0 | O42: 0 | P42: 0 | Q42: 0 | R42: 0 | S42: 0 | T42: 0 | U42: 0 | V42: 0 | W42: 0 | X42: 0 | Y42: 0 | Z42: 0 | AA42: 0 | AB42: -4293527 | AC42: -4293527 | AD42: 0 | AE42: 0 | AF42: 0 | AG42: -1557655 | AH42: -1557655 | AI42: -4293527 | AJ42: 740341.04 | AK42: =SUM(AK24:AK39) -> 0 | AL42: 0 | AM42: -3553185.96 | AN42: -1557655 | AO42: 605497.9 | AP42: 0 | AQ42: 0 | AR42: -952157.1 | AS42: -3553185.96 | AT42: 2856427.95 | AU42: -939222 | AV42: 0 | AW42: 242463.99 | AX42: -952157.1 | AY42: 720265.6 | AZ42: -94625.14 | BA42: 0 | BB42: -137266.36 | BC42: 242463.99 | BD42: -18737.01 | BE42: 1426992.75 | BF42: 0 | BG42: -1203265.77 | BH42: -137266.36 | BI42: 66900.43 | BJ42: 110586.79 | BK42: 0 | BL42: -180952.72 | BM42: 799550 | BN42: -214110 | BO42: -2002815.77 | BP42: 33157.28 | BQ42: -22030.97347 | BR42: =SUM(BR24:BR39) -> 0 | BS42: =SUM(BS24:BS39) -> 11126.30653 | BT42: =SUM(BT24:BT39) -> -1991689.463 | BU42: =SUM(BU24:BU39) -> -1384218.99 | BV42: -0.500000003
C43: Group 1 Sub-Total (excluding Account 1589 - Global Adjustment) | E43: =E42-E44 -> 0 | F43: =F42-F44 -> 0 | G43: 0 | H43: 0 | I43: 0 | J43: 0 | K43: 0 | L43: 0 | M43: 0 | N43: 0 | O43: 0 | P43: 0 | Q43: 0 | R43: 0 | S43: 0 | T43: 0 | U43: 0 | V43: 0 | W43: 0 | X43: 0 | Y43: 0 | Z43: 0 | AA43: 0 | AB43: -5077024 | AC43: -5077024 | AD43: 0 | AE43: 0 | AF43: 0 | AG43: -1580232 | AH43: -1580232 | AI43: =AI42-AI44 -> -5077024 | AJ43: -686652.12 | AK43: 0 | AL43: 0 | AM43: -5763676.12 | AN43: -1580232 | AO43: 576707.07 | AP43: 0 | AQ43: 0 | AR43: -1003524.93 | AS43: =AS42-AS44 -> -5763676.12 | AT43: 1295344.36 | AU43: -1722719.21 | AV43: 0 | AW43: -2745612.55 | AX43: -1003524.93 | AY43: 698872.6 | AZ43: -121040.93 | BA43: 0 | BB43: -183611.4 | BC43: =BC42-BC44 -> -2745612.55 | BD43: -1632676.61 | BE43: -0.25 | BF43: 0 | BG43: -4378288.91 | BH43: -183611.4 | BI43: 41697.18 | BJ43: 64657.79 | BK43: 0 | BL43: -206572.01 | BM43: =BM42-BM44 -> -761533 | BN43: -233142 | BO43: -3616755.91 | BP43: 26569.99 | BQ43: -39784.31501 | BR43: =BR42-BR44 -> 0 | BS43: =BS42-BS44 -> -13214.32501 | BT43: =BT42-BT44 -> -3629970.235 | BU43: =BU42-BU44 -> -4584861.44 | BV43: -0.5200000033
C44: =C32 -> RSVA - Global Adjustment | D44: 1589 | E44: =E32 -> 0 | F44: =F32 -> 0 | G44: 0 | H44: 0 | I44: 0 | J44: 0 | K44: 0 | L44: 0 | M44: 0 | N44: 0 | O44: 0 | P44: 0 | Q44: 0 | R44: 0 | S44: 0 | T44: 0 | U44: 0 | V44: 0 | W44: 0 | X44: 0 | Y44: 0 | Z44: 0 | AA44: 0 | AB44: 783497 | AC44: 783497 | AD44: 0 | AE44: 0 | AF44: 0 | AG44: 22577 | AH44: 22577 | AI44: 783497 | AJ44: 1426993.16 | AK44: =AK32 -> 0 | AL44: 0 | AM44: 2210490.16 | AN44: 22577 | AO44: 28790.83 | AP44: 0 | AQ44: 0 | AR44: 51367.83 | AS44: 2210490.16 | AT44: 1561083.59 | AU44: 783497.21 | AV44: 0 | AW44: 2988076.54 | AX44: 51367.83 | AY44: 21393 | AZ44: 26415.79 | BA44: 0 | BB44: 46345.04 | BC44: =BC32 -> 2988076.54 | BD44: =BD32 -> 1613939.6 | BE44: 1426993 | BF44: 0 | BG44: 3175023.14 | BH44: 46345.04 | BI44: 25203.25 | BJ44: 45929 | BK44: 0 | BL44: 25619.29 | BM44: 1561083 | BN44: 19032 | BO44: 1613940.14 | BP44: 6587.29 | BQ44: 17753.34154 | BR44: =BR32 -> 0 | BS44: =BS32 -> 24340.63154 | BT44: =SUM(BO44:BR44) -> 1638280.772 | BU44: =BU32 -> 3200642.45 | BV44: 0.02000000002
C46: Group 2 Accounts
A47: 15 | C47: Other Regulatory Assets - Sub-Account - Deferred IFRS Transition Costs | D47: 1508 | I47: =E47+F47-G47+H47 -> 0 | N47: =J47+K47-L47+M47 -> 0 | O47: =I47 -> 0 | S47: =O47+P47-Q47+SUM(R47:R47) -> 0 | T47: =N47 -> 0 | X47: =T47+U47-V47+W47 -> 0 | Y47: =S47 -> 0 | Z47: ='[8]2. 2015 Continuity Schedule'!AJ45 -> 216201.13 | AA47: ='[8]2. 2015 Continuity Schedule'!AK45 -> 0 | AB47: ='[8]2. 2015 Continuity Schedule'!AL45 -> 0 | AC47: =Y47+Z47-AA47+SUM(AB47:AB47) -> 216201.13 | AD47: =X47 -> 0 | AE47: ='[8]2. 2015 Continuity Schedule'!AO45 -> 6960.83 | AF47: ='[8]2. 2015 Continuity Schedule'!AP45 -> 0 | AG47: ='[8]2. 2015 Continuity Schedule'!AQ45 -> 0 | AH47: =AD47+AE47-AF47+AG47 -> 6960.83 | AI47: =AC47 -> 216201.13 | AJ47: ='[8]2. 2015 Continuity Schedule'!AT45 -> 0 | AK47: ='[8]2. 2015 Continuity Schedule'!AU45 -> 0 | AL47: ='[8]2. 2015 Continuity Schedule'!AV45 -> 0 | AM47: =AI47+AJ47-AK47+SUM(AL47:AL47) -> 216201.13 | AN47: =AH47 -> 6960.83 | AO47: ='[8]2. 2015 Continuity Schedule'!AY45 -> 3178.2 | AP47: ='[8]2. 2015 Continuity Schedule'!AZ45 -> 0 | AQ47: ='[8]2. 2015 Continuity Schedule'!BA45 -> 0 | AR47: =AN47+AO47-AP47+AQ47 -> 10139.03 | AS47: =AM47 -> 216201.13 | AT47: ='[8]2. 2015 Continuity Schedule'!BD45 -> 3493.8 | AU47: ='[8]2. 2015 Continuity Schedule'!BE45 -> 0 | AV47: ='[8]2. 2015 Continuity Schedule'!BF45 -> 0 | AW47: =AS47+AT47-AU47+SUM(AV47:AV47) -> 219694.93 | AX47: =AR47 -> 10139.03 | AY47: ='[8]2. 2015 Continuity Schedule'!BI45 -> 3178.27 | AZ47: ='[8]2. 2015 Continuity Schedule'!BJ45 -> 0 | BA47: ='[8]2. 2015 Continuity Schedule'!BK45 -> 0 | BB47: =AX47+AY47-AZ47+BA47 -> 13317.3 | BC47: =AW47 -> 219694.93 | BD47: ='[8]2. 2015 Continuity Schedule'!BN45 -> 17157.37 | BE47: ='[8]2. 2015 Continuity Schedule'!BO45 -> 0 | BF47: ='[8]2. 2015 Continuity Schedule'!BP45 -> 0 | BG47: =BC47+BD47-BE47+SUM(BF47:BF47) -> 236852.3 | BH47: =BB47 -> 13317.3 | BI47: ='[8]2. 2015 Continuity Schedule'!BS45 -> 2648.28 | BJ47: ='[8]2. 2015 Continuity Schedule'!BT45 -> 0 | BK47: ='[8]2. 2015 Continuity Schedule'!BU45 -> 0 | BL47: =BH47+BI47-BJ47+BK47 -> 15965.58 | BM47: ='[8]2. 2015 Continuity Schedule'!BW45 -> 0 | BN47: ='[8]2. 2015 Continuity Schedule'!BX45 -> 0 | BO47: =BG47-BM47 -> 236852.3 | BP47: =BL47-BN47 -> 15965.58 | BQ47: ='[8]2. 2015 Continuity Schedule'!CA45 -> 2605.3753 | BR47: ='[8]2. 2015 Continuity Schedule'!CB45 -> 0 | BS47: =BP47+BQ47+BR47 -> 18570.9553 | BT47: =SUM(BO47:BR47) -> 255423.2553 | BU47: ='[8]2. 2015 Continuity Schedule'!CD45 -> 252817.88 | BV47: =BU47-SUM(BG47,BL47) -> 0
A48: 16 | C48: Other Regulatory Assets - Sub-Account - Incremental Capital Charges | D48: 1508 | I48: =E48+F48-G48+H48 -> 0 | N48: =J48+K48-L48+M48 -> 0 | O48: =I48 -> 0 | S48: 0 | T48: 0 | X48: =T48+U48-V48+W48 -> 0 | Y48: 0 | Z48: ='[8]2. 2015 Continuity Schedule'!AJ46 -> 0 | AA48: ='[8]2. 2015 Continuity Schedule'!AK46 -> 0 | AB48: ='[8]2. 2015 Continuity Schedule'!AL46 -> 0 | AC48: 0 | AD48: 0 | AE48: ='[8]2. 2015 Continuity Schedule'!AO46 -> 0 | AF48: ='[8]2. 2015 Continuity Schedule'!AP46 -> 0 | AG48: ='[8]2. 2015 Continuity Schedule'!AQ46 -> 0 | AH48: 0 | AI48: 0 | AJ48: ='[8]2. 2015 Continuity Schedule'!AT46 -> 0 | AK48: ='[8]2. 2015 Continuity Schedule'!AU46 -> 0 | AL48: ='[8]2. 2015 Continuity Schedule'!AV46 -> 0 | AM48: 0 | AN48: 0 | AO48: ='[8]2. 2015 Continuity Schedule'!AY46 -> 0 | AP48: ='[8]2. 2015 Continuity Schedule'!AZ46 -> 0 | AQ48: ='[8]2. 2015 Continuity Schedule'!BA46 -> 0 | AR48: 0 | AS48: 0 | AT48: ='[8]2. 2015 Continuity Schedule'!BD46 -> 0 | AU48: ='[8]2. 2015 Continuity Schedule'!BE46 -> 0 | AV48: ='[8]2. 2015 Continuity Schedule'!BF46 -> 0 | AW48: 0 | AX48: 0 | AY48: ='[8]2. 2015 Continuity Schedule'!BI46 -> 0 | AZ48: ='[8]2. 2015 Continuity Schedule'!BJ46 -> 0 | BA48: ='[8]2. 2015 Continuity Schedule'!BK46 -> 0 | BB48: =AX48+AY48-AZ48+BA48 -> 0 | BC48: 0 | BD48: ='[8]2. 2015 Continuity Schedule'!BN46 -> 0 | BE48: ='[8]2. 2015 Continuity Schedule'!BO46 -> 0 | BF48: ='[8]2. 2015 Continuity Schedule'!BP46 -> 0 | BG48: 0 | BH48: 0 | BI48: ='[8]2. 2015 Continuity Schedule'!BS46 -> 0 | BJ48: ='[8]2. 2015 Continuity Schedule'!BT46 -> 0 | BK48: ='[8]2. 2015 Continuity Schedule'!BU46 -> 0 | BL48: 0 | BM48: ='[8]2. 2015 Continuity Schedule'!BW46 -> 0 | BN48: ='[8]2. 2015 Continuity Schedule'!BX46 -> 0 | BO48: =BG48-BM48 -> 0 | BP48: =BL48-BN48 -> 0 | BQ48: ='[8]2. 2015 Continuity Schedule'!CA46 -> 0 | BR48: ='[8]2. 2015 Continuity Schedule'!CB46 -> 0 | BS48: 0 | BT48: =SUM(BO48:BR48) -> 0 | BU48: ='[8]2. 2015 Continuity Schedule'!CD46 -> 0 | BV48: 0
A49: 17 | C49: Other Regulatory Assets - Sub-Account - Financial Assistance Payment and Recovery Variance - Ontario Clean Energy Benefit Act3 | D49: 1508 | O49: =I49 -> 0 | S49: =O49+P49-Q49+SUM(R49:R49) -> 0 | T49: =N49 -> 0 | X49: =T49+U49-V49+W49 -> 0 | Y49: =S49 -> 0 | Z49: ='[8]2. 2015 Continuity Schedule'!AJ48 -> 0 | AA49: ='[8]2. 2015 Continuity Schedule'!AK48 -> 0 | AB49: ='[8]2. 2015 Continuity Schedule'!AL48 -> 0 | AC49: 0 | AD49: 0 | AE49: ='[8]2. 2015 Continuity Schedule'!AO48 -> 946.31 | AF49: ='[8]2. 2015 Continuity Schedule'!AP48 -> 0 | AG49: ='[8]2. 2015 Continuity Schedule'!AQ48 -> 0 | AH49: 946.31 | AI49: 0 | AJ49: ='[8]2. 2015 Continuity Schedule'!AT48 -> 0 | AK49: ='[8]2. 2015 Continuity Schedule'!AU48 -> 0 | AL49: ='[8]2. 2015 Continuity Schedule'!AV48 -> 0 | AM49: 0 | AN49: 946.31 | AO49: ='[8]2. 2015 Continuity Schedule'!AY48 -> 0 | AP49: ='[8]2. 2015 Continuity Schedule'!AZ48 -> 0 | AQ49: ='[8]2. 2015 Continuity Schedule'!BA48 -> 0 | AR49: 946.31 | AS49: 0 | AT49: ='[8]2. 2015 Continuity Schedule'!BD48 -> 0 | AU49: ='[8]2. 2015 Continuity Schedule'!BE48 -> 0 | AV49: ='[8]2. 2015 Continuity Schedule'!BF48 -> 0 | AW49: 0 | AX49: 946.31 | AY49: ='[8]2. 2015 Continuity Schedule'!BI48 -> 0 | AZ49: ='[8]2. 2015 Continuity Schedule'!BJ48 -> 946.31 | BA49: ='[8]2. 2015 Continuity Schedule'!BK48 -> 0 | BB49: 0 | BC49: 0 | BD49: ='[8]2. 2015 Continuity Schedule'!BN48 -> 0 | BE49: ='[8]2. 2015 Continuity Schedule'!BO48 -> 0 | BF49: ='[8]2. 2015 Continuity Schedule'!BP48 -> 0 | BG49: 0 | BH49: 0 | BI49: ='[8]2. 2015 Continuity Schedule'!BS48 -> 0 | BJ49: ='[8]2. 2015 Continuity Schedule'!BT48 -> 0 | BK49: ='[8]2. 2015 Continuity Schedule'!BU48 -> 0 | BL49: 0 | BM49: ='[8]2. 2015 Continuity Schedule'!BW48 -> 0 | BN49: ='[8]2. 2015 Continuity Schedule'!BX48 -> 0 | BO49: 0 | BP49: 0 | BQ49: ='[8]2. 2015 Continuity Schedule'!CA48 -> 0 | BR49: ='[8]2. 2015 Continuity Schedule'!CB48 -> 0 | BS49: 0 | BT49: =SUM(BO49:BR49) -> 0 | BU49: ='[8]2. 2015 Continuity Schedule'!CD48 -> 0 | BV49: 0
A50: 18 | C50: Other Regulatory Assets - Sub-Account - Other 4 | D50: 1508 | I50: 0 | N50: 0 | O50: 0 | S50: 0 | T50: 0 | X50: 0 | Y50: 0 | Z50: ='[8]2. 2015 Continuity Schedule'!AJ49 -> 650855.44 | AA50: ='[8]2. 2015 Continuity Schedule'!AK49 -> 0 | AB50: ='[8]2. 2015 Continuity Schedule'!AL49 -> 0 | AC50: 650855.44 | AD50: 0 | AE50: ='[8]2. 2015 Continuity Schedule'!AO49 -> 16212.35 | AF50: ='[8]2. 2015 Continuity Schedule'!AP49 -> 0 | AG50: ='[8]2. 2015 Continuity Schedule'!AQ49 -> 0 | AH50: 16212.35 | AI50: 650855.44 | AJ50: ='[8]2. 2015 Continuity Schedule'!AT49 -> 136836.97 | AK50: ='[8]2. 2015 Continuity Schedule'!AU49 -> 0 | AL50: ='[8]2. 2015 Continuity Schedule'!AV49 -> 0 | AM50: 787692.41 | AN50: 16212.35 | AO50: ='[8]2. 2015 Continuity Schedule'!AY49 -> 10484.36 | AP50: ='[8]2. 2015 Continuity Schedule'!AZ49 -> 0 | AQ50: ='[8]2. 2015 Continuity Schedule'!BA49 -> 0 | AR50: 26696.71 | AS50: 787692.41 | AT50: ='[8]2. 2015 Continuity Schedule'!BD49 -> 23673.55 | AU50: ='[8]2. 2015 Continuity Schedule'!BE49 -> 650855.44 | AV50: ='[8]2. 2015 Continuity Schedule'!BF49 -> 0 | AW50: 160510.52 | AX50: 26696.71 | AY50: ='[8]2. 2015 Continuity Schedule'!BI49 -> 3910.75 | AZ50: ='[8]2. 2015 Continuity Schedule'!BJ49 -> 19401.56 | BA50: ='[8]2. 2015 Continuity Schedule'!BK49 -> 0 | BB50: 11205.9 | BC50: 160510.52 | BD50: ='[8]2. 2015 Continuity Schedule'!BN49 -> 0 | BE50: ='[8]2. 2015 Continuity Schedule'!BO49 -> 0 | BF50: ='[8]2. 2015 Continuity Schedule'!BP49 -> 0 | BG50: 160510.52 | BH50: 11205.9 | BI50: ='[8]2. 2015 Continuity Schedule'!BS49 -> 1914.06 | BJ50: ='[8]2. 2015 Continuity Schedule'!BT49 -> 0 | BK50: ='[8]2. 2015 Continuity Schedule'!BU49 -> 0 | BL50: 13119.96 | BM50: ='[8]2. 2015 Continuity Schedule'!BW49 -> 0 | BN50: ='[8]2. 2015 Continuity Schedule'!BX49 -> 0 | BO50: 160510.52 | BP50: 13119.96 | BQ50: ='[8]2. 2015 Continuity Schedule'!CA49 -> 1765.61572 | BR50: ='[8]2. 2015 Continuity Schedule'!CB49 -> 0 | BS50: 14885.57572 | BT50: =IF(CB50=TRUE, SUM(BO50:BR50), 0) -> 175396.0957 | BU50: ='[8]2. 2015 Continuity Schedule'!CD49 -> 173630.48 | BV50: 0 | CA50: 1508 | CB50: TRUE
A51: 19 | C51: Retail Cost Variance Account - Retail | D51: 1518 | I51: 0 | N51: 0 | O51: 0 | S51: 0 | T51: 0 | X51: 0 | Y51: 0 | Z51: ='[8]2. 2015 Continuity Schedule'!AJ50 -> 27097.33 | AA51: ='[8]2. 2015 Continuity Schedule'!AK50 -> 0 | AB51: ='[8]2. 2015 Continuity Schedule'!AL50 -> 0 | AC51: 27097.33 | AD51: 0 | AE51: ='[8]2. 2015 Continuity Schedule'!AO50 -> 1571.55 | AF51: ='[8]2. 2015 Continuity Schedule'!AP50 -> 0 | AG51: ='[8]2. 2015 Continuity Schedule'!AQ50 -> 0 | AH51: 1571.55 | AI51: 27097.33 | AJ51: ='[8]2. 2015 Continuity Schedule'!AT50 -> -237.72 | AK51: ='[8]2. 2015 Continuity Schedule'!AU50 -> 0 | AL51: ='[8]2. 2015 Continuity Schedule'!AV50 -> 0 | AM51: 26859.61 | AN51: 1571.55 | AO51: ='[8]2. 2015 Continuity Schedule'!AY50 -> 379.62 | AP51: ='[8]2. 2015 Continuity Schedule'!AZ50 -> 0 | AQ51: ='[8]2. 2015 Continuity Schedule'!BA50 -> 0 | AR51: 1951.17 | AS51: 26859.61 | AT51: ='[8]2. 2015 Continuity Schedule'!BD50 -> 12762.86 | AU51: ='[8]2. 2015 Continuity Schedule'!BE50 -> 27097.33 | AV51: ='[8]2. 2015 Continuity Schedule'!BF50 -> 0 | AW51: 12525.14 | AX51: 1951.17 | AY51: ='[8]2. 2015 Continuity Schedule'!BI50 -> 116.16 | AZ51: ='[8]2. 2015 Continuity Schedule'!BJ50 -> 1704.67 | BA51: ='[8]2. 2015 Continuity Schedule'!BK50 -> 0 | BB51: 362.66 | BC51: 12525.14 | BD51: ='[8]2. 2015 Continuity Schedule'!BN50 -> 12398.43 | BE51: ='[8]2. 2015 Continuity Schedule'!BO50 -> 0 | BF51: ='[8]2. 2015 Continuity Schedule'!BP50 -> 0 | BG51: =BC51+BD51-BE51+SUM(BF51:BF51) -> 24923.57 | BH51: 362.66 | BI51: ='[8]2. 2015 Continuity Schedule'!BS50 -> 221.43 | BJ51: ='[8]2. 2015 Continuity Schedule'!BT50 -> 0 | BK51: ='[8]2. 2015 Continuity Schedule'!BU50 -> 0 | BL51: 584.09 | BM51: ='[8]2. 2015 Continuity Schedule'!BW50 -> 0 | BN51: ='[8]2. 2015 Continuity Schedule'!BX50 -> 0 | BO51: 24923.57 | BP51: 584.09 | BQ51: ='[8]2. 2015 Continuity Schedule'!CA50 -> 274.15927 | BR51: ='[8]2. 2015 Continuity Schedule'!CB50 -> 0 | BS51: 858.24927 | BT51: =SUM(BO51:BR51) -> 25781.81927 | BU51: ='[8]2. 2015 Continuity Schedule'!CD50 -> 25507.66 | BV51: 0
A52: 20 | C52: Misc. Deferred Debits | D52: 1525 | I52: 0 | N52: 0 | O52: 0 | S52: 0 | T52: 0 | X52: 0 | Y52: 0 | Z52: ='[8]2. 2015 Continuity Schedule'!AJ51 -> 0 | AA52: ='[8]2. 2015 Continuity Schedule'!AK51 -> 0 | AB52: ='[8]2. 2015 Continuity Schedule'!AL51 -> 0 | AC52: 0 | AD52: 0 | AE52: ='[8]2. 2015 Continuity Schedule'!AO51 -> 81.65 | AF52: ='[8]2. 2015 Continuity Schedule'!AP51 -> 0 | AG52: ='[8]2. 2015 Continuity Schedule'!AQ51 -> 0 | AH52: 81.65 | AI52: 0 | AJ52: ='[8]2. 2015 Continuity Schedule'!AT51 -> 0 | AK52: ='[8]2. 2015 Continuity Schedule'!AU51 -> 0 | AL52: ='[8]2. 2015 Continuity Schedule'!AV51 -> 0 | AM52: 0 | AN52: 81.65 | AO52: ='[8]2. 2015 Continuity Schedule'!AY51 -> 0 | AP52: ='[8]2. 2015 Continuity Schedule'!AZ51 -> 0 | AQ52: ='[8]2. 2015 Continuity Schedule'!BA51 -> 0 | AR52: 81.65 | AS52: 0 | AT52: ='[8]2. 2015 Continuity Schedule'!BD51 -> 0 | AU52: ='[8]2. 2015 Continuity Schedule'!BE51 -> 0 | AV52: ='[8]2. 2015 Continuity Schedule'!BF51 -> 0 | AW52: 0 | AX52: 81.65 | AY52: ='[8]2. 2015 Continuity Schedule'!BI51 -> 0 | AZ52: ='[8]2. 2015 Continuity Schedule'!BJ51 -> 81.65 | BA52: ='[8]2. 2015 Continuity Schedule'!BK51 -> 0 | BB52: 0 | BC52: 0 | BD52: ='[8]2. 2015 Continuity Schedule'!BN51 -> 0 | BE52: ='[8]2. 2015 Continuity Schedule'!BO51 -> 0 | BF52: ='[8]2. 2015 Continuity Schedule'!BP51 -> 0 | BG52: =BC52+BD52-BE52+SUM(BF52:BF52) -> 0 | BH52: 0 | BI52: ='[8]2. 2015 Continuity Schedule'!BS51 -> 0 | BJ52: ='[8]2. 2015 Continuity Schedule'!BT51 -> 0 | BK52: ='[8]2. 2015 Continuity Schedule'!BU51 -> 0 | BL52: 0 | BM52: ='[8]2. 2015 Continuity Schedule'!BW51 -> 0 | BN52: ='[8]2. 2015 Continuity Schedule'!BX51 -> 0 | BO52: 0 | BP52: 0 | BQ52: ='[8]2. 2015 Continuity Schedule'!CA51 -> 0 | BR52: ='[8]2. 2015 Continuity Schedule'!CB51 -> 0 | BS52: 0 | BT52: =IF(CB52=TRUE, SUM(BO52:BR52), 0) -> 0 | BU52: ='[8]2. 2015 Continuity Schedule'!CD51 -> 0 | BV52: 0 | CA52: 1525 | CB52: TRUE
A53: 21 | C53: Retail Cost Variance Account - STR | D53: 1548 | I53: =E53+F53-G53+H53 -> 0 | N53: =J53+K53-L53+M53 -> 0 | O53: =I53 -> 0 | S53: =O53+P53-Q53+SUM(R53:R53) -> 0 | T53: =N53 -> 0 | X53: =T53+U53-V53+W53 -> 0 | Y53: =S53 -> 0 | Z53: ='[8]2. 2015 Continuity Schedule'!AJ77 -> 266366.37 | AA53: ='[8]2. 2015 Continuity Schedule'!AK77 -> 0 | AB53: ='[8]2. 2015 Continuity Schedule'!AL77 -> 0 | AC53: =Y53+Z53-AA53+SUM(AB53:AB53) -> 266366.37 | AD53: =X53 -> 0 | AE53: ='[8]2. 2015 Continuity Schedule'!AO77 -> 55957.52 | AF53: ='[8]2. 2015 Continuity Schedule'!AP77 -> 0 | AG53: ='[8]2. 2015 Continuity Schedule'!AQ77 -> 0 | AH53: =AD53+AE53-AF53+AG53 -> 55957.52 | AI53: =AC53 -> 266366.37 | AJ53: ='[8]2. 2015 Continuity Schedule'!AT77 -> 16104.85 | AK53: ='[8]2. 2015 Continuity Schedule'!AU77 -> 0 | AL53: ='[8]2. 2015 Continuity Schedule'!AV77 -> 0 | AM53: =AI53+AJ53-AK53+SUM(AL53:AL53) -> 282471.22 | AN53: =AH53 -> 55957.52 | AO53: ='[8]2. 2015 Continuity Schedule'!AY77 -> 4028.52 | AP53: ='[8]2. 2015 Continuity Schedule'!AZ77 -> 0 | AQ53: ='[8]2. 2015 Continuity Schedule'!BA77 -> 0 | AR53: =AN53+AO53-AP53+AQ53 -> 59986.04 | AS53: =AM53 -> 282471.22 | AT53: ='[8]2. 2015 Continuity Schedule'!BD77 -> 15390.34 | AU53: ='[8]2. 2015 Continuity Schedule'!BE77 -> 266366.37 | AV53: ='[8]2. 2015 Continuity Schedule'!BF77 -> 0 | AW53: =AS53+AT53-AU53+SUM(AV53:AV53) -> 31495.19 | AX53: =AR53 -> 59986.04 | AY53: ='[8]2. 2015 Continuity Schedule'!BI77 -> 997.08 | AZ53: ='[8]2. 2015 Continuity Schedule'!BJ77 -> 57262.63 | BA53: ='[8]2. 2015 Continuity Schedule'!BK77 -> 0 | BB53: =AX53+AY53-AZ53+BA53 -> 3720.49 | BC53: =AW53 -> 31495.19 | BD53: ='[8]2. 2015 Continuity Schedule'!BN77 -> 15146.66 | BE53: ='[8]2. 2015 Continuity Schedule'!BO77 -> 0 | BF53: ='[8]2. 2015 Continuity Schedule'!BP77 -> 0 | BG53: =BC53+BD53-BE53+SUM(BF53:BF53) -> 46641.85 | BH53: =BB53 -> 3720.49 | BI53: ='[8]2. 2015 Continuity Schedule'!BS77 -> 450.93 | BJ53: ='[8]2. 2015 Continuity Schedule'!BT77 -> 0 | BK53: ='[8]2. 2015 Continuity Schedule'!BU77 -> 0 | BL53: =BH53+BI53-BJ53+BK53 -> 4171.42 | BM53: ='[8]2. 2015 Continuity Schedule'!BW77 -> 0 | BN53: ='[8]2. 2015 Continuity Schedule'!BX77 -> 0 | BO53: =BG53-BM53 -> 46641.85 | BP53: =BL53-BN53 -> 4171.42 | BQ53: ='[8]2. 2015 Continuity Schedule'!CA77 -> 513.06035 | BR53: ='[8]2. 2015 Continuity Schedule'!CB77 -> 0 | BS53: 4684.48035 | BT53: =SUM(BO53:BR53) -> 51326.33035 | BU53: ='[8]2. 2015 Continuity Schedule'!CD77 -> 50813.27 | BV53: =BU53-SUM(BG53,BL53) -> 0
A54: 22 | C54: Board-Approved CDM Variance Account | D54: 1567 | I54: =E54+F54-G54+H54 -> 0 | N54: =J54+K54-L54+M54 -> 0 | O54: 0 | S54: 0 | T54: 0 | X54: =T54+U54-V54+W54 -> 0 | Y54: 0 | Z54: ='[8]2. 2015 Continuity Schedule'!AJ52 -> 0 | AA54: ='[8]2. 2015 Continuity Schedule'!AK52 -> 0 | AB54: ='[8]2. 2015 Continuity Schedule'!AL52 -> 0 | AC54: 0 | AD54: 0 | AE54: ='[8]2. 2015 Continuity Schedule'!AO52 -> 0 | AF54: ='[8]2. 2015 Continuity Schedule'!AP52 -> 0 | AG54: ='[8]2. 2015 Continuity Schedule'!AQ52 -> 0 | AH54: 0 | AI54: 0 | AJ54: ='[8]2. 2015 Continuity Schedule'!AT52 -> 0 | AK54: ='[8]2. 2015 Continuity Schedule'!AU52 -> 0 | AL54: ='[8]2. 2015 Continuity Schedule'!AV52 -> 0 | AM54: 0 | AN54: 0 | AO54: ='[8]2. 2015 Continuity Schedule'!AY52 -> 0 | AP54: ='[8]2. 2015 Continuity Schedule'!AZ52 -> 0 | AQ54: ='[8]2. 2015 Continuity Schedule'!BA52 -> 0 | AR54: 0 | AS54: 0 | AT54: ='[8]2. 2015 Continuity Schedule'!BD52 -> 0 | AU54: ='[8]2. 2015 Continuity Schedule'!BE52 -> 0 | AV54: ='[8]2. 2015 Continuity Schedule'!BF52 -> 0 | AW54: 0 | AX54: 0 | AY54: ='[8]2. 2015 Continuity Schedule'!BI52 -> 0 | AZ54: ='[8]2. 2015 Continuity Schedule'!BJ52 -> 0 | BA54: ='[8]2. 2015 Continuity Schedule'!BK52 -> 0 | BB54: 0 | BC54: 0 | BD54: ='[8]2. 2015 Continuity Schedule'!BN52 -> 0 | BE54: ='[8]2. 2015 Continuity Schedule'!BO52 -> 0 | BF54: ='[8]2. 2015 Continuity Schedule'!BP52 -> 0 | BG54: 0 | BH54: 0 | BI54: ='[8]2. 2015 Continuity Schedule'!BS52 -> 0 | BJ54: ='[8]2. 2015 Continuity Schedule'!BT52 -> 0 | BK54: ='[8]2. 2015 Continuity Schedule'!BU52 -> 0 | BL54: 0 | BM54: ='[8]2. 2015 Continuity Schedule'!BW52 -> 0 | BN54: ='[8]2. 2015 Continuity Schedule'!BX52 -> 0 | BO54: 0 | BP54: 0 | BQ54: ='[8]2. 2015 Continuity Schedule'!CA52 -> 0 | BR54: ='[8]2. 2015 Continuity Schedule'!CB52 -> 0 | BS54: 0 | BT54: =SUM(BO54:BR54) -> 0 | BU54: ='[8]2. 2015 Continuity Schedule'!CD52 -> 0 | BV54: 0
A55: 23 | C55: Extra-Ordinary Event Costs | D55: 1572 | I55: 0 | N55: 0 | O55: =I55 -> 0 | S55: 0 | T55: 0 | X55: 0 | Y55: 0 | Z55: ='[8]2. 2015 Continuity Schedule'!AJ53 -> 0 | AA55: ='[8]2. 2015 Continuity Schedule'!AK53 -> 0 | AB55: ='[8]2. 2015 Continuity Schedule'!AL53 -> 0 | AC55: 0 | AD55: 0 | AE55: ='[8]2. 2015 Continuity Schedule'!AO53 -> 0 | AF55: ='[8]2. 2015 Continuity Schedule'!AP53 -> 0 | AG55: ='[8]2. 2015 Continuity Schedule'!AQ53 -> 0 | AH55: 0 | AI55: =AC55 -> 0 | AJ55: ='[8]2. 2015 Continuity Schedule'!AT53 -> 0 | AK55: ='[8]2. 2015 Continuity Schedule'!AU53 -> 0 | AL55: ='[8]2. 2015 Continuity Schedule'!AV53 -> 0 | AM55: 0 | AN55: 0 | AO55: ='[8]2. 2015 Continuity Schedule'!AY53 -> 0 | AP55: ='[8]2. 2015 Continuity Schedule'!AZ53 -> 0 | AQ55: ='[8]2. 2015 Continuity Schedule'!BA53 -> 0 | AR55: 0 | AS55: =AM55 -> 0 | AT55: ='[8]2. 2015 Continuity Schedule'!BD53 -> 0 | AU55: ='[8]2. 2015 Continuity Schedule'!BE53 -> 0 | AV55: ='[8]2. 2015 Continuity Schedule'!BF53 -> 0 | AW55: 0 | AX55: 0 | AY55: ='[8]2. 2015 Continuity Schedule'!BI53 -> 0 | AZ55: ='[8]2. 2015 Continuity Schedule'!BJ53 -> 0 | BA55: ='[8]2. 2015 Continuity Schedule'!BK53 -> 0 | BB55: 0 | BC55: =AW55 -> 0 | BD55: ='[8]2. 2015 Continuity Schedule'!BN53 -> 0 | BE55: ='[8]2. 2015 Continuity Schedule'!BO53 -> 0 | BF55: ='[8]2. 2015 Continuity Schedule'!BP53 -> 0 | BG55: 0 | BH55: 0 | BI55: ='[8]2. 2015 Continuity Schedule'!BS53 -> 0 | BJ55: ='[8]2. 2015 Continuity Schedule'!BT53 -> 0 | BK55: ='[8]2. 2015 Continuity Schedule'!BU53 -> 0 | BL55: 0 | BM55: ='[8]2. 2015 Continuity Schedule'!BW53 -> 0 | BN55: ='[8]2. 2015 Continuity Schedule'!BX53 -> 0 | BO55: 0 | BP55: 0 | BQ55: ='[8]2. 2015 Continuity Schedule'!CA53 -> 0 | BR55: ='[8]2. 2015 Continuity Schedule'!CB53 -> 0 | BS55: 0 | BT55: =SUM(BO55:BR55) -> 0 | BU55: ='[8]2. 2015 Continuity Schedule'!CD53 -> 0 | BV55: 0
A56: 24 | C56: Deferred Rate Impact Amounts | D56: 1574 | I56: 0 | N56: 0 | O56: =I56 -> 0 | S56: 0 | T56: 0 | X56: 0 | Y56: 0 | Z56: ='[8]2. 2015 Continuity Schedule'!AJ54 -> 0 | AA56: ='[8]2. 2015 Continuity Schedule'!AK54 -> 0 | AB56: ='[8]2. 2015 Continuity Schedule'!AL54 -> 0 | AC56: 0 | AD56: 0 | AE56: ='[8]2. 2015 Continuity Schedule'!AO54 -> 0 | AF56: ='[8]2. 2015 Continuity Schedule'!AP54 -> 0 | AG56: ='[8]2. 2015 Continuity Schedule'!AQ54 -> 0 | AH56: 0 | AI56: =AC56 -> 0 | AJ56: ='[8]2. 2015 Continuity Schedule'!AT54 -> 0 | AK56: ='[8]2. 2015 Continuity Schedule'!AU54 -> 0 | AL56: ='[8]2. 2015 Continuity Schedule'!AV54 -> 0 | AM56: 0 | AN56: 0 | AO56: ='[8]2. 2015 Continuity Schedule'!AY54 -> 0 | AP56: ='[8]2. 2015 Continuity Schedule'!AZ54 -> 0 | AQ56: ='[8]2. 2015 Continuity Schedule'!BA54 -> 0 | AR56: 0 | AS56: =AM56 -> 0 | AT56: ='[8]2. 2015 Continuity Schedule'!BD54 -> 0 | AU56: ='[8]2. 2015 Continuity Schedule'!BE54 -> 0 | AV56: ='[8]2. 2015 Continuity Schedule'!BF54 -> 0 | AW56: 0 | AX56: 0 | AY56: ='[8]2. 2015 Continuity Schedule'!BI54 -> 0 | AZ56: ='[8]2. 2015 Continuity Schedule'!BJ54 -> 0 | BA56: ='[8]2. 2015 Continuity Schedule'!BK54 -> 0 | BB56: 0 | BC56: =AW56 -> 0 | BD56: ='[8]2. 2015 Continuity Schedule'!BN54 -> 0 | BE56: ='[8]2. 2015 Continuity Schedule'!BO54 -> 0 | BF56: ='[8]2. 2015 Continuity Schedule'!BP54 -> 0 | BG56: 0 | BH56: 0 | BI56: ='[8]2. 2015 Continuity Schedule'!BS54 -> 0 | BJ56: ='[8]2. 2015 Continuity Schedule'!BT54 -> 0 | BK56: ='[8]2. 2015 Continuity Schedule'!BU54 -> 0 | BL56: 0 | BM56: ='[8]2. 2015 Continuity Schedule'!BW54 -> 0 | BN56: ='[8]2. 2015 Continuity Schedule'!BX54 -> 0 | BO56: 0 | BP56: 0 | BQ56: ='[8]2. 2015 Continuity Schedule'!CA54 -> 0 | BR56: ='[8]2. 2015 Continuity Schedule'!CB54 -> 0 | BS56: 0 | BT56: =SUM(BO56:BR56) -> 0 | BU56: ='[8]2. 2015 Continuity Schedule'!CD54 -> 0 | BV56: 0
A57: 25 | C57: RSVA - One-time | D57: 1582 | I57: 0 | N57: 0 | O57: =I57 -> 0 | S57: 0 | T57: 0 | X57: 0 | Y57: 0 | Z57: ='[8]2. 2015 Continuity Schedule'!AJ55 -> 264944.63 | AA57: ='[8]2. 2015 Continuity Schedule'!AK55 -> 0 | AB57: ='[8]2. 2015 Continuity Schedule'!AL55 -> 0 | AC57: 264944.63 | AD57: 0 | AE57: ='[8]2. 2015 Continuity Schedule'!AO55 -> 87009.11 | AF57: ='[8]2. 2015 Continuity Schedule'!AP55 -> 0 | AG57: ='[8]2. 2015 Continuity Schedule'!AQ55 -> 0 | AH57: 87009.11 | AI57: =AC57 -> 264944.63 | AJ57: ='[8]2. 2015 Continuity Schedule'!AT55 -> 0 | AK57: ='[8]2. 2015 Continuity Schedule'!AU55 -> 0 | AL57: ='[8]2. 2015 Continuity Schedule'!AV55 -> 0 | AM57: 264944.63 | AN57: 87009.11 | AO57: ='[8]2. 2015 Continuity Schedule'!AY55 -> 3894.72 | AP57: ='[8]2. 2015 Continuity Schedule'!AZ55 -> 0 | AQ57: ='[8]2. 2015 Continuity Schedule'!BA55 -> 0 | AR57: 90903.83 | AS57: =AM57 -> 264944.63 | AT57: ='[8]2. 2015 Continuity Schedule'!BD55 -> 0 | AU57: ='[8]2. 2015 Continuity Schedule'!BE55 -> 53698.5 | AV57: ='[8]2. 2015 Continuity Schedule'!BF55 -> 0 | AW57: 211246.13 | AX57: 90903.83 | AY57: ='[8]2. 2015 Continuity Schedule'!BI55 -> 3236.92 | AZ57: ='[8]2. 2015 Continuity Schedule'!BJ55 -> 15151.32 | BA57: ='[8]2. 2015 Continuity Schedule'!BK55 -> 0 | BB57: 78989.43 | BC57: =AW57 -> 211246.13 | BD57: ='[8]2. 2015 Continuity Schedule'!BN55 -> 0 | BE57: ='[8]2. 2015 Continuity Schedule'!BO55 -> 0 | BF57: ='[8]2. 2015 Continuity Schedule'!BP55 -> 0 | BG57: 211246.13 | BH57: 78989.43 | BI57: ='[8]2. 2015 Continuity Schedule'!BS55 -> 2519.1 | BJ57: ='[8]2. 2015 Continuity Schedule'!BT55 -> 0 | BK57: ='[8]2. 2015 Continuity Schedule'!BU55 -> 0 | BL57: 81508.53 | BM57: ='[8]2. 2015 Continuity Schedule'!BW55 -> 0 | BN57: ='[8]2. 2015 Continuity Schedule'!BX55 -> 0 | BO57: 211246.13 | BP57: 81508.53 | BQ57: ='[8]2. 2015 Continuity Schedule'!CA55 -> 2323.70743 | BR57: ='[8]2. 2015 Continuity Schedule'!CB55 -> 0 | BS57: 83832.23743 | BT57: =SUM(BO57:BR57) -> 295078.3674 | BU57: ='[8]2. 2015 Continuity Schedule'!CD55 -> 292754.66 | BV57: 0
A58: 26 | C58: Other Deferred Credits | D58: 2425 | I58: 0 | N58: 0 | O58: =I58 -> 0 | S58: 0 | T58: 0 | X58: 0 | Y58: 0 | Z58: ='[8]2. 2015 Continuity Schedule'!AJ56 -> 0 | AA58: ='[8]2. 2015 Continuity Schedule'!AK56 -> 0 | AB58: ='[8]2. 2015 Continuity Schedule'!AL56 -> 0 | AC58: 0 | AD58: 0 | AE58: ='[8]2. 2015 Continuity Schedule'!AO56 -> 0 | AF58: ='[8]2. 2015 Continuity Schedule'!AP56 -> 0 | AG58: ='[8]2. 2015 Continuity Schedule'!AQ56 -> 0 | AH58: 0 | AI58: =AC58 -> 0 | AJ58: ='[8]2. 2015 Continuity Schedule'!AT56 -> 0 | AK58: ='[8]2. 2015 Continuity Schedule'!AU56 -> 0 | AL58: ='[8]2. 2015 Continuity Schedule'!AV56 -> 0 | AM58: 0 | AN58: 0 | AO58: ='[8]2. 2015 Continuity Schedule'!AY56 -> 0 | AP58: ='[8]2. 2015 Continuity Schedule'!AZ56 -> 0 | AQ58: ='[8]2. 2015 Continuity Schedule'!BA56 -> 0 | AR58: 0 | AS58: =AM58 -> 0 | AT58: ='[8]2. 2015 Continuity Schedule'!BD56 -> 0 | AU58: ='[8]2. 2015 Continuity Schedule'!BE56 -> 0 | AV58: ='[8]2. 2015 Continuity Schedule'!BF56 -> 0 | AW58: 0 | AX58: 0 | AY58: ='[8]2. 2015 Continuity Schedule'!BI56 -> 0 | AZ58: ='[8]2. 2015 Continuity Schedule'!BJ56 -> 0 | BA58: ='[8]2. 2015 Continuity Schedule'!BK56 -> 0 | BB58: 0 | BC58: =AW58 -> 0 | BD58: ='[8]2. 2015 Continuity Schedule'!BN56 -> 0 | BE58: ='[8]2. 2015 Continuity Schedule'!BO56 -> 0 | BF58: ='[8]2. 2015 Continuity Schedule'!BP56 -> 0 | BG58: 0 | BH58: 0 | BI58: ='[8]2. 2015 Continuity Schedule'!BS56 -> 0 | BJ58: ='[8]2. 2015 Continuity Schedule'!BT56 -> 0 | BK58: ='[8]2. 2015 Continuity Schedule'!BU56 -> 0 | BL58: 0 | BM58: ='[8]2. 2015 Continuity Schedule'!BW56 -> 0 | BN58: ='[8]2. 2015 Continuity Schedule'!BX56 -> 0 | BO58: 0 | BP58: 0 | BQ58: ='[8]2. 2015 Continuity Schedule'!CA56 -> 0 | BR58: ='[8]2. 2015 Continuity Schedule'!CB56 -> 0 | BS58: 0 | BT58: =IF(CB58=TRUE, SUM(BO58:BR58), 0) -> 0 | BU58: ='[8]2. 2015 Continuity Schedule'!CD56 -> 0 | BV58: 0 | CA58: 2425 | CB58: TRUE
C60: Group 2 Sub-Total | F60: =SUM(F47:F58) -> 0 | G60: 0 | H60: 0 | I60: 0 | J60: 0 | K60: 0 | L60: 0 | M60: 0 | N60: 0 | O60: 0 | P60: 0 | Q60: 0 | R60: 0 | S60: 0 | T60: 0 | U60: 0 | V60: 0 | W60: 0 | X60: 0 | Y60: 0 | Z60: 1425464.9 | AA60: 0 | AB60: 0 | AC60: 1425464.9 | AD60: 0 | AE60: 168739.32 | AF60: 0 | AG60: 0 | AH60: 168739.32 | AI60: 1425464.9 | AJ60: 152704.1 | AK60: 0 | AL60: =SUM(AL47:AL58) -> 0 | AM60: 1578169 | AN60: 168739.32 | AO60: 21965.42 | AP60: 0 | AQ60: 0 | AR60: 190704.74 | AS60: 1578169 | AT60: 55320.55 | AU60: 998017.64 | AV60: 0 | AW60: 635471.91 | AX60: 190704.74 | AY60: 11439.18 | AZ60: 94548.14 | BA60: 0 | BB60: 107595.78 | BC60: 635471.91 | BD60: 44702.46 | BE60: 0 | BF60: 0 | BG60: 680174.37 | BH60: 107595.78 | BI60: 7753.8 | BJ60: 0 | BK60: 0 | BL60: 115349.58 | BM60: 0 | BN60: 0 | BO60: 680174.37 | BP60: 115349.58 | BQ60: 7481.91807 | BR60: 0 | BS60: 122831.4981 | BT60: 803005.8681 | BU60: 795523.95 | BV60: =BU60-SUM(BG60,BL60) -> 0
A62: 27 | C62: PILs and Tax Variance for 2006 and Subsequent Years (excludes sub-account and contra account below) | D62: 1592 | I62: =E62+F62-G62+H62 -> 0 | N62: =J62+K62-L62+M62 -> 0 | O62: =I62 -> 0 | S62: =O62+P62-Q62+SUM(R62:R62) -> 0 | T62: =N62 -> 0 | X62: =T62+U62-V62+W62 -> 0 | Y62: =S62 -> 0 | Z62: ='[8]2. 2015 Continuity Schedule'!AJ60 -> 0 | AA62: ='[8]2. 2015 Continuity Schedule'!AK60 -> 0 | AB62: ='[8]2. 2015 Continuity Schedule'!AL60 -> 0 | AC62: =Y62+Z62-AA62+SUM(AB62:AB62) -> 0 | AD62: =X62 -> 0 | AE62: ='[8]2. 2015 Continuity Schedule'!AO60 -> 0 | AF62: ='[8]2. 2015 Continuity Schedule'!AP60 -> 0 | AG62: ='[8]2. 2015 Continuity Schedule'!AQ60 -> 0 | AH62: =AD62+AE62-AF62+AG62 -> 0 | AI62: =AC62 -> 0 | AJ62: ='[8]2. 2015 Continuity Schedule'!AT60 -> 18253 | AK62: ='[8]2. 2015 Continuity Schedule'!AU60 -> 0 | AL62: ='[8]2. 2015 Continuity Schedule'!AV60 -> 0 | AM62: =AI62+AJ62-AK62+SUM(AL62:AL62) -> 18253 | AN62: =AH62 -> 0 | AO62: ='[8]2. 2015 Continuity Schedule'!AY60 -> 181.14 | AP62: ='[8]2. 2015 Continuity Schedule'!AZ60 -> 0 | AQ62: ='[8]2. 2015 Continuity Schedule'!BA60 -> 0 | AR62: =AN62+AO62-AP62+AQ62 -> 181.14 | AS62: =AM62 -> 18253 | AT62: ='[8]2. 2015 Continuity Schedule'!BD60 -> 0 | AU62: ='[8]2. 2015 Continuity Schedule'!BE60 -> 0 | AV62: ='[8]2. 2015 Continuity Schedule'!BF60 -> 0 | AW62: =AS62+AT62-AU62+SUM(AV62:AV62) -> 18253 | AX62: =AR62 -> 181.14 | AY62: ='[8]2. 2015 Continuity Schedule'!BI60 -> 268.32 | AZ62: ='[8]2. 2015 Continuity Schedule'!BJ60 -> 0 | BA62: ='[8]2. 2015 Continuity Schedule'!BK60 -> 0 | BB62: =AX62+AY62-AZ62+BA62 -> 449.46 | BC62: =AW62 -> 18253 | BD62: ='[8]2. 2015 Continuity Schedule'!BN60 -> 0 | BE62: ='[8]2. 2015 Continuity Schedule'!BO60 -> 0 | BF62: ='[8]2. 2015 Continuity Schedule'!BP60 -> 0 | BG62: =BC62+BD62-BE62+SUM(BF62:BF62) -> 18253 | BH62: =BB62 -> 449.46 | BI62: ='[8]2. 2015 Continuity Schedule'!BS60 -> 217.65 | BJ62: ='[8]2. 2015 Continuity Schedule'!BT60 -> 0 | BK62: ='[8]2. 2015 Continuity Schedule'!BU60 -> 0 | BL62: =BH62+BI62-BJ62+BK62 -> 667.11 | BM62: ='[8]2. 2015 Continuity Schedule'!BW60 -> 0 | BN62: ='[8]2. 2015 Continuity Schedule'!BX60 -> 0 | BO62: =BG62-BM62 -> 18253 | BP62: =BL62-BN62 -> 667.11 | BQ62: ='[8]2. 2015 Continuity Schedule'!CA60 -> 200.783 | BR62: ='[8]2. 2015 Continuity Schedule'!CB60 -> 0 | BS62: =BP62+BQ62+BR62 -> 867.893 | BT62: 19120.893 | BU62: ='[8]2. 2015 Continuity Schedule'!CD60 -> 18920.11 | BV62: =BU62-SUM(BG62,BL62) -> 0
A63: 28 | C63: PILs and Tax Variance for 2006 and Subsequent Years - Sub-Account HST/OVAT Input Tax Credits (ITCs) | D63: 1592 | I63: =E63+F63-G63+H63 -> 0 | N63: =J63+K63-L63+M63 -> 0 | O63: =I63 -> 0 | S63: =O63+P63-Q63+SUM(R63:R63) -> 0 | T63: =N63 -> 0 | X63: =T63+U63-V63+W63 -> 0 | Y63: =S63 -> 0 | Z63: ='[8]2. 2015 Continuity Schedule'!AJ61 -> 131903.67 | AA63: ='[8]2. 2015 Continuity Schedule'!AK61 -> 0 | AB63: ='[8]2. 2015 Continuity Schedule'!AL61 -> 0 | AC63: =Y63+Z63-AA63+SUM(AB63:AB63) -> 131903.67 | AD63: =X63 -> 0 | AE63: ='[8]2. 2015 Continuity Schedule'!AO61 -> 2373.53 | AF63: ='[8]2. 2015 Continuity Schedule'!AP61 -> 0 | AG63: ='[8]2. 2015 Continuity Schedule'!AQ61 -> 0 | AH63: =AD63+AE63-AF63+AG63 -> 2373.53 | AI63: =AC63 -> 131903.67 | AJ63: ='[8]2. 2015 Continuity Schedule'!AT61 -> 33242.74 | AK63: ='[8]2. 2015 Continuity Schedule'!AU61 -> 0 | AL63: ='[8]2. 2015 Continuity Schedule'!AV61 -> 0 | AM63: =AI63+AJ63-AK63+SUM(AL63:AL63) -> 165146.41 | AN63: =AH63 -> 2373.53 | AO63: ='[8]2. 2015 Continuity Schedule'!AY61 -> 2132.51 | AP63: ='[8]2. 2015 Continuity Schedule'!AZ61 -> 0 | AQ63: ='[8]2. 2015 Continuity Schedule'!BA61 -> 0 | AR63: =AN63+AO63-AP63+AQ63 -> 4506.04 | AS63: =AM63 -> 165146.41 | AT63: ='[8]2. 2015 Continuity Schedule'!BD61 -> 4316.33 | AU63: ='[8]2. 2015 Continuity Schedule'!BE61 -> 65951.835 | AV63: ='[8]2. 2015 Continuity Schedule'!BF61 -> -65951.835 | AW63: =AS63+AT63-AU63+SUM(AV63:AV63) -> 37559.07 | AX63: =AR63 -> 4506.04 | AY63: ='[8]2. 2015 Continuity Schedule'!BI61 -> 811.8 | AZ63: ='[8]2. 2015 Continuity Schedule'!BJ61 -> 1509.165 | BA63: ='[8]2. 2015 Continuity Schedule'!BK61 -> -1509.165 | BB63: =AX63+AY63-AZ63+BA63 -> 2299.51 | BC63: =AW63 -> 37559.07 | BD63: ='[8]2. 2015 Continuity Schedule'!BN61 -> 0 | BE63: ='[8]2. 2015 Continuity Schedule'!BO61 -> 0 | BF63: ='[8]2. 2015 Continuity Schedule'!BP61 -> 0 | BG63: =BC63+BD63-BE63+SUM(BF63:BF63) -> 37559.07 | BH63: =BB63 -> 2299.51 | BI63: ='[8]2. 2015 Continuity Schedule'!BS61 -> 447.9 | BJ63: ='[8]2. 2015 Continuity Schedule'!BT61 -> 0 | BK63: ='[8]2. 2015 Continuity Schedule'!BU61 -> 0 | BL63: =BH63+BI63-BJ63+BK63 -> 2747.41 | BM63: ='[8]2. 2015 Continuity Schedule'!BW61 -> 0 | BN63: ='[8]2. 2015 Continuity Schedule'!BX61 -> 0 | BO63: =BG63-BM63 -> 37559.07 | BP63: =BL63-BN63 -> 2747.41 | BQ63: ='[8]2. 2015 Continuity Schedule'!CA61 -> 413.14977 | BR63: ='[8]2. 2015 Continuity Schedule'!CB61 -> 0 | BS63: 3160.55977 | BT63: 40719.62977 | BU63: ='[8]2. 2015 Continuity Schedule'!CD61 -> 0 | BV63: -40306.48
C65: Total of Group 1 and Group 2 Accounts (including 1592) | E65: =SUM(E62:E63,E60, E42) -> 0 | F65: 0 | G65: 0 | H65: 0 | I65: 0 | J65: 0 | K65: 0 | L65: 0 | M65: 0 | N65: 0 | O65: 0 | P65: 0 | Q65: 0 | R65: 0 | S65: 0 | T65: 0 | U65: 0 | V65: 0 | W65: 0 | X65: 0 | Y65: 0 | Z65: 1557368.57 | AA65: 0 | AB65: -4293527 | AC65: -2736158.43 | AD65: 0 | AE65: 171112.85 | AF65: 0 | AG65: -1557655 | AH65: -1386542.15 | AI65: -2736158.43 | AJ65: 944540.88 | AK65: =SUM(AK62:AK63,AK60, AK42) -> 0 | AL65: 0 | AM65: -1791617.55 | AN65: -1386542.15 | AO65: 629776.97 | AP65: 0 | AQ65: 0 | AR65: -756765.18 | AS65: -1791617.55 | AT65: 2916064.83 | AU65: 124747.475 | AV65: -65951.835 | AW65: 933747.97 | AX65: -756765.18 | AY65: 732784.9 | AZ65: 1432.165 | BA65: -1509.165 | BB65: -26921.61 | BC65: 933747.97 | BD65: 25965.45 | BE65: 1426992.75 | BF65: 0 | BG65: -467279.33 | BH65: -26921.61 | BI65: 75319.78 | BJ65: 110586.79 | BK65: 0 | BL65: -62188.62 | BM65: 799550 | BN65: -214110 | BO65: -1266829.33 | BP65: 151921.38 | BQ65: -13935.12263 | BR65: 0 | BS65: 137986.2574 | BT65: -1128843.073 | BU65: -569774.93 | BV65: =BU65-SUM(BG65,BL65) -> -40306.98
A68: 29 | C68: LRAM Variance Account12 | D68: 1568 | I68: =E68+F68-G68+H68 -> 0 | N68: =J68+K68-L68+M68 -> 0 | O68: =I68 -> 0 | S68: =O68+P68-Q68+SUM(R68:R68) -> 0 | T68: =N68 -> 0 | X68: =T68+U68-V68+W68 -> 0 | Y68: =S68 -> 0 | Z68: ='[8]2. 2015 Continuity Schedule'!AJ66 -> 94645.42 | AA68: ='[8]2. 2015 Continuity Schedule'!AK66 -> 0 | AB68: ='[8]2. 2015 Continuity Schedule'!AL66 -> 0 | AC68: =Y68+Z68-AA68+SUM(AB68:AB68) -> 94645.42 | AD68: =X68 -> 0 | AE68: ='[8]2. 2015 Continuity Schedule'!AO66 -> 857.33 | AF68: ='[8]2. 2015 Continuity Schedule'!AP66 -> 0 | AG68: ='[8]2. 2015 Continuity Schedule'!AQ66 -> 0 | AH68: =AD68+AE68-AF68+AG68 -> 857.33 | AI68: =AC68 -> 94645.42 | AJ68: ='[8]2. 2015 Continuity Schedule'!AT66 -> -2314.78 | AK68: ='[8]2. 2015 Continuity Schedule'!AU66 -> 0 | AL68: ='[8]2. 2015 Continuity Schedule'!AV66 -> 0 | AM68: =AI68+AJ68-AK68+SUM(AL68:AL68) -> 92330.64 | AN68: =AH68 -> 857.33 | AO68: ='[8]2. 2015 Continuity Schedule'!AY66 -> 1391.28 | AP68: ='[8]2. 2015 Continuity Schedule'!AZ66 -> 0 | AQ68: ='[8]2. 2015 Continuity Schedule'!BA66 -> 0 | AR68: =AN68+AO68-AP68+AQ68 -> 2248.61 | AS68: =AM68 -> 92330.64 | AT68: ='[8]2. 2015 Continuity Schedule'!BD66 -> 0 | AU68: ='[8]2. 2015 Continuity Schedule'!BE66 -> 0 | AV68: ='[8]2. 2015 Continuity Schedule'!BF66 -> 0 | AW68: =AS68+AT68-AU68+SUM(AV68:AV68) -> 92330.64 | AX68: =AR68 -> 2248.61 | AY68: ='[8]2. 2015 Continuity Schedule'!BI66 -> 1357.2 | AZ68: ='[8]2. 2015 Continuity Schedule'!BJ66 -> 0 | BA68: ='[8]2. 2015 Continuity Schedule'!BK66 -> 0 | BB68: =AX68+AY68-AZ68+BA68 -> 3605.81 | BC68: =AW68 -> 92330.64 | BD68: ='[8]2. 2015 Continuity Schedule'!BN66 -> 172762.94 | BE68: ='[8]2. 2015 Continuity Schedule'!BO66 -> 103767 | BF68: ='[8]2. 2015 Continuity Schedule'!BP66 -> 0 | BG68: =BC68+BD68-BE68+SUM(BF68:BF68) -> 161326.58 | BH68: =BB68 -> 3605.81 | BI68: ='[8]2. 2015 Continuity Schedule'!BS66 -> 658.12 | BJ68: ='[8]2. 2015 Continuity Schedule'!BT66 -> 3967 | BK68: ='[8]2. 2015 Continuity Schedule'!BU66 -> 0 | BL68: =BH68+BI68-BJ68+BK68 -> 296.93 | BM68: ='[8]2. 2015 Continuity Schedule'!BW66 -> 0 | BN68: ='[8]2. 2015 Continuity Schedule'!BX66 -> 0 | BO68: =BG68-BM68 -> 161326.58 | BP68: =BL68-BN68 -> 296.93 | BQ68: ='[8]2. 2015 Continuity Schedule'!CA66 -> 1774.59238 | BR68: ='[8]2. 2015 Continuity Schedule'!CB66 -> 0 | BS68: =BP68+BQ68+BR68 -> 2071.52238 | BT68: =SUM(BO68:BR68) -> 163398.1024 | BU68: ='[8]2. 2015 Continuity Schedule'!CD66 -> 161623.51 | BV68: =BU68-SUM(BG68,BL68) -> 0
C71: Total including Account 1568 | F71: =F65+F68 -> 0 | G71: 0 | H71: 0 | I71: 0 | J71: 0 | K71: 0 | L71: 0 | M71: 0 | N71: 0 | O71: 0 | P71: 0 | Q71: 0 | R71: 0 | S71: 0 | T71: 0 | U71: 0 | V71: 0 | W71: 0 | X71: 0 | Y71: 0 | Z71: 1652013.99 | AA71: 0 | AB71: -4293527 | AC71: =AC65+AC68 -> -2641513.01 | AD71: 0 | AE71: 171970.18 | AF71: 0 | AG71: -1557655 | AH71: -1385684.82 | AI71: -2641513.01 | AJ71: 942226.1 | AK71: 0 | AL71: 0 | AM71: -1699286.91 | AN71: -1385684.82 | AO71: 631168.25 | AP71: 0 | AQ71: 0 | AR71: -754516.57 | AS71: =AS65+AS68 -> -1699286.91 | AT71: 2916064.83 | AU71: 124747.475 | AV71: -65951.835 | AW71: 1026078.61 | AX71: -754516.57 | AY71: 734142.1 | AZ71: 1432.165 | BA71: -1509.165 | BB71: -23315.8 | BC71: =BC65+BC68 -> 1026078.61 | BD71: 198728.39 | BE71: 1530759.75 | BF71: 0 | BG71: -305952.75 | BH71: -23315.8 | BI71: 75977.9 | BJ71: 114553.79 | BK71: 0 | BL71: -61891.69 | BM71: 799550 | BN71: -214110 | BO71: -1105502.75 | BP71: 152218.31 | BQ71: -12160.53025 | BR71: 0 | BS71: 140057.7798 | BT71: =BT65+BT68 -> -965444.9702 | BU71: -408151.42 | BV71: =BU71-SUM(BG71,BL71) -> -40306.98
A73: 30 | C73: Renewable Generation Connection Capital Deferral Account9 | D73: 1531 | I73: =E73+F73-G73+H73 -> 0 | N73: =J73+K73-L73+M73 -> 0 | O73: =I73 -> 0 | S73: =O73+P73-Q73+SUM(R73:R73) -> 0 | T73: =N73 -> 0 | X73: =T73+U73-V73+W73 -> 0 | Y73: =S73 -> 0 | Z73: ='[8]2. 2015 Continuity Schedule'!AJ71 -> 8665.75 | AA73: ='[8]2. 2015 Continuity Schedule'!AK71 -> 0 | AB73: ='[8]2. 2015 Continuity Schedule'!AL71 -> 0 | AC73: =Y73+Z73-AA73+SUM(AB73:AB73) -> 8665.75 | AD73: =X73 -> 0 | AE73: ='[8]2. 2015 Continuity Schedule'!AO71 -> 254.88 | AF73: ='[8]2. 2015 Continuity Schedule'!AP71 -> 0 | AG73: ='[8]2. 2015 Continuity Schedule'!AQ71 -> 0 | AH73: =AD73+AE73-AF73+AG73 -> 254.88 | AI73: =AC73 -> 8665.75 | AJ73: ='[8]2. 2015 Continuity Schedule'!AT71 -> 0 | AK73: ='[8]2. 2015 Continuity Schedule'!AU71 -> 0 | AL73: ='[8]2. 2015 Continuity Schedule'!AV71 -> 0 | AM73: =AI73+AJ73-AK73+SUM(AL73:AL73) -> 8665.75 | AN73: =AH73 -> 254.88 | AO73: ='[8]2. 2015 Continuity Schedule'!AY71 -> 127.44 | AP73: ='[8]2. 2015 Continuity Schedule'!AZ71 -> 0 | AQ73: ='[8]2. 2015 Continuity Schedule'!BA71 -> 0 | AR73: =AN73+AO73-AP73+AQ73 -> 382.32 | AS73: =AM73 -> 8665.75 | AT73: ='[8]2. 2015 Continuity Schedule'!BD71 -> 0 | AU73: ='[8]2. 2015 Continuity Schedule'!BE71 -> 8665.75 | AV73: ='[8]2. 2015 Continuity Schedule'!BF71 -> 0 | AW73: =AS73+AT73-AU73+SUM(AV73:AV73) -> 0 | AX73: =AR73 -> 382.32 | AY73: ='[8]2. 2015 Continuity Schedule'!BI71 -> 21.24 | AZ73: ='[8]2. 2015 Continuity Schedule'!BJ71 -> 127 | BA73: ='[8]2. 2015 Continuity Schedule'!BK71 -> 0 | BB73: =AX73+AY73-AZ73+BA73 -> 276.56 | BC73: =AW73 -> 0 | BD73: ='[8]2. 2015 Continuity Schedule'!BN71 -> 0 | BE73: ='[8]2. 2015 Continuity Schedule'!BO71 -> 0 | BF73: ='[8]2. 2015 Continuity Schedule'!BP71 -> 0 | BG73: =BC73+BD73-BE73+SUM(BF73:BF73) -> 0 | BH73: =BB73 -> 276.56 | BI73: ='[8]2. 2015 Continuity Schedule'!BS71 -> 0 | BJ73: ='[8]2. 2015 Continuity Schedule'!BT71 -> 0 | BK73: ='[8]2. 2015 Continuity Schedule'!BU71 -> 0 | BL73: =BH73+BI73-BJ73+BK73 -> 276.56 | BM73: ='[8]2. 2015 Continuity Schedule'!BW71 -> 0 | BN73: ='[8]2. 2015 Continuity Schedule'!BX71 -> 0 | BO73: =BG73-BM73 -> 0 | BP73: =BL73-BN73 -> 276.56 | BQ73: ='[8]2. 2015 Continuity Schedule'!CA71 -> 0 | BR73: ='[8]2. 2015 Continuity Schedule'!CB71 -> 0 | BS73: =BP73+BQ73+BR73 -> 276.56 | BT73: =SUM(BO73:BR73) -> 276.56 | BU73: ='[8]2. 2015 Continuity Schedule'!CD71 -> 276.56 | BV73: =BU73-SUM(BG73,BL73) -> 0
A74: 31 | C74: Renewable Generation Connection OM&A Deferral Account9 | D74: 1532 | I74: 0 | N74: 0 | O74: 0 | S74: 0 | T74: 0 | X74: 0 | Y74: 0 | Z74: ='[8]2. 2015 Continuity Schedule'!AJ72 -> 0 | AA74: ='[8]2. 2015 Continuity Schedule'!AK72 -> 0 | AB74: ='[8]2. 2015 Continuity Schedule'!AL72 -> 0 | AC74: 0 | AD74: 0 | AE74: ='[8]2. 2015 Continuity Schedule'!AO72 -> 0 | AF74: ='[8]2. 2015 Continuity Schedule'!AP72 -> 0 | AG74: ='[8]2. 2015 Continuity Schedule'!AQ72 -> 0 | AH74: 0 | AI74: 0 | AJ74: ='[8]2. 2015 Continuity Schedule'!AT72 -> 0 | AK74: ='[8]2. 2015 Continuity Schedule'!AU72 -> 0 | AL74: ='[8]2. 2015 Continuity Schedule'!AV72 -> 0 | AM74: 0 | AN74: 0 | AO74: ='[8]2. 2015 Continuity Schedule'!AY72 -> 0 | AP74: ='[8]2. 2015 Continuity Schedule'!AZ72 -> 0 | AQ74: ='[8]2. 2015 Continuity Schedule'!BA72 -> 0 | AR74: 0 | AS74: 0 | AT74: ='[8]2. 2015 Continuity Schedule'!BD72 -> 0 | AU74: ='[8]2. 2015 Continuity Schedule'!BE72 -> 0 | AV74: ='[8]2. 2015 Continuity Schedule'!BF72 -> 0 | AW74: 0 | AX74: 0 | AY74: ='[8]2. 2015 Continuity Schedule'!BI72 -> 0 | AZ74: ='[8]2. 2015 Continuity Schedule'!BJ72 -> 0 | BA74: ='[8]2. 2015 Continuity Schedule'!BK72 -> 0 | BB74: 0 | BC74: 0 | BD74: ='[8]2. 2015 Continuity Schedule'!BN72 -> 0 | BE74: ='[8]2. 2015 Continuity Schedule'!BO72 -> 0 | BF74: ='[8]2. 2015 Continuity Schedule'!BP72 -> 0 | BG74: 0 | BH74: 0 | BI74: ='[8]2. 2015 Continuity Schedule'!BS72 -> 0 | BJ74: ='[8]2. 2015 Continuity Schedule'!BT72 -> 0 | BK74: ='[8]2. 2015 Continuity Schedule'!BU72 -> 0 | BL74: 0 | BM74: ='[8]2. 2015 Continuity Schedule'!BW72 -> 0 | BN74: ='[8]2. 2015 Continuity Schedule'!BX72 -> 0 | BO74: 0 | BP74: 0 | BQ74: ='[8]2. 2015 Continuity Schedule'!CA72 -> 0 | BR74: ='[8]2. 2015 Continuity Schedule'!CB72 -> 0 | BS74: 0 | BT74: 0 | BU74: ='[8]2. 2015 Continuity Schedule'!CD72 -> 0 | BV74: =BU74-SUM(BG74,BL74) -> 0
A75: 32 | C75: Renewable Generation Connection Funding Adder Deferral Account | D75: 1533 | I75: 0 | N75: 0 | O75: 0 | S75: 0 | T75: 0 | X75: 0 | Y75: 0 | Z75: ='[8]2. 2015 Continuity Schedule'!AJ73 -> 0 | AA75: ='[8]2. 2015 Continuity Schedule'!AK73 -> 0 | AB75: ='[8]2. 2015 Continuity Schedule'!AL73 -> 0 | AC75: 0 | AD75: 0 | AE75: ='[8]2. 2015 Continuity Schedule'!AO73 -> 0 | AF75: ='[8]2. 2015 Continuity Schedule'!AP73 -> 0 | AG75: ='[8]2. 2015 Continuity Schedule'!AQ73 -> 0 | AH75: 0 | AI75: 0 | AJ75: ='[8]2. 2015 Continuity Schedule'!AT73 -> 0 | AK75: ='[8]2. 2015 Continuity Schedule'!AU73 -> 0 | AL75: ='[8]2. 2015 Continuity Schedule'!AV73 -> 0 | AM75: 0 | AN75: 0 | AO75: ='[8]2. 2015 Continuity Schedule'!AY73 -> 0 | AP75: ='[8]2. 2015 Continuity Schedule'!AZ73 -> 0 | AQ75: ='[8]2. 2015 Continuity Schedule'!BA73 -> 0 | AR75: 0 | AS75: 0 | AT75: ='[8]2. 2015 Continuity Schedule'!BD73 -> 0 | AU75: ='[8]2. 2015 Continuity Schedule'!BE73 -> 0 | AV75: ='[8]2. 2015 Continuity Schedule'!BF73 -> 0 | AW75: 0 | AX75: 0 | AY75: ='[8]2. 2015 Continuity Schedule'!BI73 -> 0 | AZ75: ='[8]2. 2015 Continuity Schedule'!BJ73 -> 0 | BA75: ='[8]2. 2015 Continuity Schedule'!BK73 -> 0 | BB75: 0 | BC75: 0 | BD75: ='[8]2. 2015 Continuity Schedule'!BN73 -> 0 | BE75: ='[8]2. 2015 Continuity Schedule'!BO73 -> 0 | BF75: ='[8]2. 2015 Continuity Schedule'!BP73 -> 0 | BG75: 0 | BH75: 0 | BI75: ='[8]2. 2015 Continuity Schedule'!BS73 -> 0 | BJ75: ='[8]2. 2015 Continuity Schedule'!BT73 -> 0 | BK75: ='[8]2. 2015 Continuity Schedule'!BU73 -> 0 | BL75: 0 | BM75: ='[8]2. 2015 Continuity Schedule'!BW73 -> 0 | BN75: ='[8]2. 2015 Continuity Schedule'!BX73 -> 0 | BO75: 0 | BP75: 0 | BQ75: ='[8]2. 2015 Continuity Schedule'!CA73 -> 0 | BR75: ='[8]2. 2015 Continuity Schedule'!CB73 -> 0 | BS75: 0 | BT75: 0 | BU75: ='[8]2. 2015 Continuity Schedule'!CD73 -> 0 | BV75: 0
A76: 33 | C76: Smart Grid Capital Deferral Account | D76: 1534 | I76: 0 | N76: 0 | O76: 0 | S76: 0 | T76: 0 | X76: 0 | Y76: 0 | Z76: ='[8]2. 2015 Continuity Schedule'!AJ74 -> 0 | AA76: ='[8]2. 2015 Continuity Schedule'!AK74 -> 0 | AB76: ='[8]2. 2015 Continuity Schedule'!AL74 -> 0 | AC76: 0 | AD76: 0 | AE76: ='[8]2. 2015 Continuity Schedule'!AO74 -> 0 | AF76: ='[8]2. 2015 Continuity Schedule'!AP74 -> 0 | AG76: ='[8]2. 2015 Continuity Schedule'!AQ74 -> 0 | AH76: 0 | AI76: 0 | AJ76: ='[8]2. 2015 Continuity Schedule'!AT74 -> 0 | AK76: ='[8]2. 2015 Continuity Schedule'!AU74 -> 0 | AL76: ='[8]2. 2015 Continuity Schedule'!AV74 -> 0 | AM76: 0 | AN76: 0 | AO76: ='[8]2. 2015 Continuity Schedule'!AY74 -> 0 | AP76: ='[8]2. 2015 Continuity Schedule'!AZ74 -> 0 | AQ76: ='[8]2. 2015 Continuity Schedule'!BA74 -> 0 | AR76: 0 | AS76: 0 | AT76: ='[8]2. 2015 Continuity Schedule'!BD74 -> 0 | AU76: ='[8]2. 2015 Continuity Schedule'!BE74 -> 0 | AV76: ='[8]2. 2015 Continuity Schedule'!BF74 -> 0 | AW76: 0 | AX76: 0 | AY76: ='[8]2. 2015 Continuity Schedule'!BI74 -> 0 | AZ76: ='[8]2. 2015 Continuity Schedule'!BJ74 -> 0 | BA76: ='[8]2. 2015 Continuity Schedule'!BK74 -> 0 | BB76: 0 | BC76: 0 | BD76: ='[8]2. 2015 Continuity Schedule'!BN74 -> 0 | BE76: ='[8]2. 2015 Continuity Schedule'!BO74 -> 0 | BF76: ='[8]2. 2015 Continuity Schedule'!BP74 -> 0 | BG76: 0 | BH76: 0 | BI76: ='[8]2. 2015 Continuity Schedule'!BS74 -> 0 | BJ76: ='[8]2. 2015 Continuity Schedule'!BT74 -> 0 | BK76: ='[8]2. 2015 Continuity Schedule'!BU74 -> 0 | BL76: 0 | BM76: ='[8]2. 2015 Continuity Schedule'!BW74 -> 0 | BN76: ='[8]2. 2015 Continuity Schedule'!BX74 -> 0 | BO76: 0 | BP76: 0 | BQ76: ='[8]2. 2015 Continuity Schedule'!CA74 -> 0 | BR76: ='[8]2. 2015 Continuity Schedule'!CB74 -> 0 | BS76: 0 | BT76: 0 | BU76: ='[8]2. 2015 Continuity Schedule'!CD74 -> 0 | BV76: 0
A77: 34 | C77: Smart Grid OM&A Deferral Account | D77: 1535 | I77: 0 | N77: 0 | O77: 0 | S77: 0 | T77: 0 | X77: 0 | Y77: 0 | Z77: ='[8]2. 2015 Continuity Schedule'!AJ75 -> 0 | AA77: ='[8]2. 2015 Continuity Schedule'!AK75 -> 0 | AB77: ='[8]2. 2015 Continuity Schedule'!AL75 -> 0 | AC77: 0 | AD77: 0 | AE77: ='[8]2. 2015 Continuity Schedule'!AO75 -> 0 | AF77: ='[8]2. 2015 Continuity Schedule'!AP75 -> 0 | AG77: ='[8]2. 2015 Continuity Schedule'!AQ75 -> 0 | AH77: 0 | AI77: 0 | AJ77: ='[8]2. 2015 Continuity Schedule'!AT75 -> 0 | AK77: ='[8]2. 2015 Continuity Schedule'!AU75 -> 0 | AL77: ='[8]2. 2015 Continuity Schedule'!AV75 -> 0 | AM77: 0 | AN77: 0 | AO77: ='[8]2. 2015 Continuity Schedule'!AY75 -> 0 | AP77: ='[8]2. 2015 Continuity Schedule'!AZ75 -> 0 | AQ77: ='[8]2. 2015 Continuity Schedule'!BA75 -> 0 | AR77: 0 | AS77: 0 | AT77: ='[8]2. 2015 Continuity Schedule'!BD75 -> 0 | AU77: ='[8]2. 2015 Continuity Schedule'!BE75 -> 0 | AV77: ='[8]2. 2015 Continuity Schedule'!BF75 -> 0 | AW77: 0 | AX77: 0 | AY77: ='[8]2. 2015 Continuity Schedule'!BI75 -> 0 | AZ77: ='[8]2. 2015 Continuity Schedule'!BJ75 -> 0 | BA77: ='[8]2. 2015 Continuity Schedule'!BK75 -> 0 | BB77: 0 | BC77: 0 | BD77: ='[8]2. 2015 Continuity Schedule'!BN75 -> 0 | BE77: ='[8]2. 2015 Continuity Schedule'!BO75 -> 0 | BF77: ='[8]2. 2015 Continuity Schedule'!BP75 -> 0 | BG77: 0 | BH77: 0 | BI77: ='[8]2. 2015 Continuity Schedule'!BS75 -> 0 | BJ77: ='[8]2. 2015 Continuity Schedule'!BT75 -> 0 | BK77: ='[8]2. 2015 Continuity Schedule'!BU75 -> 0 | BL77: 0 | BM77: ='[8]2. 2015 Continuity Schedule'!BW75 -> 0 | BN77: ='[8]2. 2015 Continuity Schedule'!BX75 -> 0 | BO77: 0 | BP77: 0 | BQ77: ='[8]2. 2015 Continuity Schedule'!CA75 -> 0 | BR77: ='[8]2. 2015 Continuity Schedule'!CB75 -> 0 | BS77: 0 | BT77: 0 | BU77: ='[8]2. 2015 Continuity Schedule'!CD75 -> 0 | BV77: 0
A78: 35 | C78: Smart Grid Funding Adder Deferral Account | D78: 1536 | I78: 0 | N78: 0 | O78: 0 | S78: 0 | T78: 0 | X78: 0 | Y78: 0 | Z78: ='[8]2. 2015 Continuity Schedule'!AJ76 -> 0 | AA78: ='[8]2. 2015 Continuity Schedule'!AK76 -> 0 | AB78: ='[8]2. 2015 Continuity Schedule'!AL76 -> 0 | AC78: 0 | AD78: 0 | AE78: ='[8]2. 2015 Continuity Schedule'!AO76 -> 0 | AF78: ='[8]2. 2015 Continuity Schedule'!AP76 -> 0 | AG78: ='[8]2. 2015 Continuity Schedule'!AQ76 -> 0 | AH78: 0 | AI78: 0 | AJ78: ='[8]2. 2015 Continuity Schedule'!AT76 -> 0 | AK78: ='[8]2. 2015 Continuity Schedule'!AU76 -> 0 | AL78: ='[8]2. 2015 Continuity Schedule'!AV76 -> 0 | AM78: 0 | AN78: 0 | AO78: ='[8]2. 2015 Continuity Schedule'!AY76 -> 0 | AP78: ='[8]2. 2015 Continuity Schedule'!AZ76 -> 0 | AQ78: ='[8]2. 2015 Continuity Schedule'!BA76 -> 0 | AR78: 0 | AS78: 0 | AT78: ='[8]2. 2015 Continuity Schedule'!BD76 -> 0 | AU78: ='[8]2. 2015 Continuity Schedule'!BE76 -> 0 | AV78: ='[8]2. 2015 Continuity Schedule'!BF76 -> 0 | AW78: 0 | AX78: 0 | AY78: ='[8]2. 2015 Continuity Schedule'!BI76 -> 0 | AZ78: ='[8]2. 2015 Continuity Schedule'!BJ76 -> 0 | BA78: ='[8]2. 2015 Continuity Schedule'!BK76 -> 0 | BB78: 0 | BC78: 0 | BD78: ='[8]2. 2015 Continuity Schedule'!BN76 -> 0 | BE78: ='[8]2. 2015 Continuity Schedule'!BO76 -> 0 | BF78: ='[8]2. 2015 Continuity Schedule'!BP76 -> 0 | BG78: 0 | BH78: 0 | BI78: ='[8]2. 2015 Continuity Schedule'!BS76 -> 0 | BJ78: ='[8]2. 2015 Continuity Schedule'!BT76 -> 0 | BK78: ='[8]2. 2015 Continuity Schedule'!BU76 -> 0 | BL78: 0 | BM78: ='[8]2. 2015 Continuity Schedule'!BW76 -> 0 | BN78: ='[8]2. 2015 Continuity Schedule'!BX76 -> 0 | BO78: 0 | BP78: 0 | BQ78: ='[8]2. 2015 Continuity Schedule'!CA76 -> 0 | BR78: ='[8]2. 2015 Continuity Schedule'!CB76 -> 0 | BS78: 0 | BT78: 0 | BU78: ='[8]2. 2015 Continuity Schedule'!CD76 -> 0 | BV78: 0
A79: 36 | C79: Smart Meter Capital and Recovery Offset Variance - Sub-Account - Capital5 | D79: 1555 | I79: 0 | N79: 0 | O79: 0 | S79: 0 | T79: 0 | X79: 0 | Y79: 0 | Z79: ='[8]2. 2015 Continuity Schedule'!AJ78 -> 4366088.37 | AA79: ='[8]2. 2015 Continuity Schedule'!AK78 -> 0 | AB79: ='[8]2. 2015 Continuity Schedule'!AL78 -> 0 | AC79: 4366088.37 | AD79: 0 | AE79: ='[8]2. 2015 Continuity Schedule'!AO78 -> 167335.22 | AF79: ='[8]2. 2015 Continuity Schedule'!AP78 -> 0 | AG79: ='[8]2. 2015 Continuity Schedule'!AQ78 -> 0 | AH79: 167335.22 | AI79: 4366088.37 | AJ79: ='[8]2. 2015 Continuity Schedule'!AT78 -> -361961 | AK79: ='[8]2. 2015 Continuity Schedule'!AU78 -> 0 | AL79: ='[8]2. 2015 Continuity Schedule'!AV78 -> 0 | AM79: 4004127.37 | AN79: 167335.22 | AO79: ='[8]2. 2015 Continuity Schedule'!AY78 -> 64181.52 | AP79: ='[8]2. 2015 Continuity Schedule'!AZ78 -> 0 | AQ79: ='[8]2. 2015 Continuity Schedule'!BA78 -> 0 | AR79: 231516.74 | AS79: 4004127.37 | AT79: ='[8]2. 2015 Continuity Schedule'!BD78 -> 0 | AU79: ='[8]2. 2015 Continuity Schedule'!BE78 -> 4004127.37 | AV79: ='[8]2. 2015 Continuity Schedule'!BF78 -> 0 | AW79: 1.862645149e-09 | AX79: 231516.74 | AY79: ='[8]2. 2015 Continuity Schedule'!BI78 -> 9810.12 | AZ79: ='[8]2. 2015 Continuity Schedule'!BJ78 -> 241326.86 | BA79: ='[8]2. 2015 Continuity Schedule'!BK78 -> 0 | BB79: 0 | BC79: 1.862645149e-09 | BD79: ='[8]2. 2015 Continuity Schedule'!BN78 -> 0 | BE79: ='[8]2. 2015 Continuity Schedule'!BO78 -> 0 | BF79: ='[8]2. 2015 Continuity Schedule'!BP78 -> 0 | BG79: 1.862645149e-09 | BH79: 0 | BI79: ='[8]2. 2015 Continuity Schedule'!BS78 -> 0 | BJ79: ='[8]2. 2015 Continuity Schedule'!BT78 -> 0 | BK79: ='[8]2. 2015 Continuity Schedule'!BU78 -> 0 | BL79: 0 | BM79: ='[8]2. 2015 Continuity Schedule'!BW78 -> 0 | BN79: ='[8]2. 2015 Continuity Schedule'!BX78 -> 0 | BO79: 1.862645149e-09 | BP79: 0 | BQ79: ='[8]2. 2015 Continuity Schedule'!CA78 -> 2.048909664e-11 | BR79: ='[8]2. 2015 Continuity Schedule'!CB78 -> 0 | BS79: 2.048909664e-11 | BT79: 1.883134246e-09 | BU79: ='[8]2. 2015 Continuity Schedule'!CD78 -> 0 | BV79: -1.862645149e-09
A80: 37 | C80: Smart Meter Capital and Recovery Offset Variance - Sub-Account - Recoveries5 | D80: 1555 | I80: 0 | N80: 0 | O80: 0 | S80: 0 | T80: 0 | X80: 0 | Y80: 0 | Z80: ='[8]2. 2015 Continuity Schedule'!AJ79 -> -2683668.98 | AA80: ='[8]2. 2015 Continuity Schedule'!AK79 -> 0 | AB80: ='[8]2. 2015 Continuity Schedule'!AL79 -> 0 | AC80: -2683668.98 | AD80: 0 | AE80: ='[8]2. 2015 Continuity Schedule'!AO79 -> -96149.39 | AF80: ='[8]2. 2015 Continuity Schedule'!AP79 -> 0 | AG80: ='[8]2. 2015 Continuity Schedule'!AQ79 -> 0 | AH80: -96149.39 | AI80: -2683668.98 | AJ80: ='[8]2. 2015 Continuity Schedule'!AT79 -> 0 | AK80: ='[8]2. 2015 Continuity Schedule'!AU79 -> 0 | AL80: ='[8]2. 2015 Continuity Schedule'!AV79 -> 0 | AM80: -2683668.98 | AN80: -96149.39 | AO80: ='[8]2. 2015 Continuity Schedule'!AY79 -> -39449.88 | AP80: ='[8]2. 2015 Continuity Schedule'!AZ79 -> 0 | AQ80: ='[8]2. 2015 Continuity Schedule'!BA79 -> 0 | AR80: -135599.27 | AS80: -2683668.98 | AT80: ='[8]2. 2015 Continuity Schedule'!BD79 -> 0 | AU80: ='[8]2. 2015 Continuity Schedule'!BE79 -> -2683668.98 | AV80: ='[8]2. 2015 Continuity Schedule'!BF79 -> 0 | AW80: 0 | AX80: -135599.27 | AY80: ='[8]2. 2015 Continuity Schedule'!BI79 -> -6574.98 | AZ80: ='[8]2. 2015 Continuity Schedule'!BJ79 -> -142174.25 | BA80: ='[8]2. 2015 Continuity Schedule'!BK79 -> 0 | BB80: 0 | BC80: 0 | BD80: ='[8]2. 2015 Continuity Schedule'!BN79 -> 0 | BE80: ='[8]2. 2015 Continuity Schedule'!BO79 -> 0 | BF80: ='[8]2. 2015 Continuity Schedule'!BP79 -> 0 | BG80: 0 | BH80: 0 | BI80: ='[8]2. 2015 Continuity Schedule'!BS79 -> 0 | BJ80: ='[8]2. 2015 Continuity Schedule'!BT79 -> 0 | BK80: ='[8]2. 2015 Continuity Schedule'!BU79 -> 0 | BL80: 0 | BM80: ='[8]2. 2015 Continuity Schedule'!BW79 -> 0 | BN80: ='[8]2. 2015 Continuity Schedule'!BX79 -> 0 | BO80: 0 | BP80: 0 | BQ80: ='[8]2. 2015 Continuity Schedule'!CA79 -> 0 | BR80: ='[8]2. 2015 Continuity Schedule'!CB79 -> 0 | BS80: 0 | BT80: 0 | BU80: ='[8]2. 2015 Continuity Schedule'!CD79 -> 0 | BV80: 0
A81: 38 | C81: Smart Meter Capital and Recovery Offset Variance - Sub-Account - Stranded Meter Costs5 | D81: 1555 | I81: 0 | N81: 0 | O81: 0 | S81: 0 | T81: 0 | X81: 0 | Y81: 0 | Z81: ='[8]2. 2015 Continuity Schedule'!AJ80 -> 0 | AA81: ='[8]2. 2015 Continuity Schedule'!AK80 -> 0 | AB81: ='[8]2. 2015 Continuity Schedule'!AL80 -> 0 | AC81: 0 | AD81: 0 | AE81: ='[8]2. 2015 Continuity Schedule'!AO80 -> 0 | AF81: ='[8]2. 2015 Continuity Schedule'!AP80 -> 0 | AG81: ='[8]2. 2015 Continuity Schedule'!AQ80 -> 0 | AH81: 0 | AI81: 0 | AJ81: ='[8]2. 2015 Continuity Schedule'!AT80 -> 0 | AK81: ='[8]2. 2015 Continuity Schedule'!AU80 -> 0 | AL81: ='[8]2. 2015 Continuity Schedule'!AV80 -> 0 | AM81: 0 | AN81: 0 | AO81: ='[8]2. 2015 Continuity Schedule'!AY80 -> 0 | AP81: ='[8]2. 2015 Continuity Schedule'!AZ80 -> 0 | AQ81: ='[8]2. 2015 Continuity Schedule'!BA80 -> 0 | AR81: 0 | AS81: 0 | AT81: ='[8]2. 2015 Continuity Schedule'!BD80 -> -651048.1 | AU81: ='[8]2. 2015 Continuity Schedule'!BE80 -> -2950474 | AV81: ='[8]2. 2015 Continuity Schedule'!BF80 -> 0 | AW81: 2299425.9 | AX81: 0 | AY81: ='[8]2. 2015 Continuity Schedule'!BI80 -> 32623.94 | AZ81: ='[8]2. 2015 Continuity Schedule'!BJ80 -> 0 | BA81: ='[8]2. 2015 Continuity Schedule'!BK80 -> 0 | BB81: 32623.94 | BC81: 2299425.9 | BD81: ='[8]2. 2015 Continuity Schedule'!BN80 -> -719752.77 | BE81: ='[8]2. 2015 Continuity Schedule'!BO80 -> 0 | BF81: ='[8]2. 2015 Continuity Schedule'!BP80 -> 0 | BG81: 1579673.13 | BH81: 32623.94 | BI81: ='[8]2. 2015 Continuity Schedule'!BS80 -> 23848.89 | BJ81: ='[8]2. 2015 Continuity Schedule'!BT80 -> 0 | BK81: ='[8]2. 2015 Continuity Schedule'!BU80 -> 0 | BL81: 56472.83 | BM81: ='[8]2. 2015 Continuity Schedule'!BW80 -> 0 | BN81: ='[8]2. 2015 Continuity Schedule'!BX80 -> 0 | BO81: 1579673.13 | BP81: 56472.83 | BQ81: ='[8]2. 2015 Continuity Schedule'!CA80 -> 17376.40443 | BR81: ='[8]2. 2015 Continuity Schedule'!CB80 -> 0 | BS81: 73849.23443 | BT81: 1653522.364 | BU81: ='[8]2. 2015 Continuity Schedule'!CD80 -> 1636145.96 | BV81: 0
A82: 39 | C82: Smart Meter OM&A Variance5 | D82: 1556 | I82: 0 | N82: 0 | O82: 0 | S82: 0 | T82: 0 | X82: 0 | Y82: 0 | Z82: ='[8]2. 2015 Continuity Schedule'!AJ81 -> 1282663.95 | AA82: ='[8]2. 2015 Continuity Schedule'!AK81 -> 0 | AB82: ='[8]2. 2015 Continuity Schedule'!AL81 -> 0 | AC82: 1282663.95 | AD82: 0 | AE82: ='[8]2. 2015 Continuity Schedule'!AO81 -> 2308.11 | AF82: ='[8]2. 2015 Continuity Schedule'!AP81 -> 0 | AG82: ='[8]2. 2015 Continuity Schedule'!AQ81 -> 0 | AH82: 2308.11 | AI82: 1282663.95 | AJ82: ='[8]2. 2015 Continuity Schedule'!AT81 -> 536035.18 | AK82: ='[8]2. 2015 Continuity Schedule'!AU81 -> 0 | AL82: ='[8]2. 2015 Continuity Schedule'!AV81 -> 0 | AM82: 1818699.13 | AN82: 2308.11 | AO82: ='[8]2. 2015 Continuity Schedule'!AY81 -> 40003.71 | AP82: ='[8]2. 2015 Continuity Schedule'!AZ81 -> 0 | AQ82: ='[8]2. 2015 Continuity Schedule'!BA81 -> 0 | AR82: 42311.82 | AS82: 1818699.13 | AT82: ='[8]2. 2015 Continuity Schedule'!BD81 -> 0 | AU82: ='[8]2. 2015 Continuity Schedule'!BE81 -> 1818699.13 | AV82: ='[8]2. 2015 Continuity Schedule'!BF81 -> 0 | AW82: 0 | AX82: 42311.82 | AY82: ='[8]2. 2015 Continuity Schedule'!BI81 -> 0 | AZ82: ='[8]2. 2015 Continuity Schedule'!BJ81 -> 42311.82 | BA82: ='[8]2. 2015 Continuity Schedule'!BK81 -> 0 | BB82: 0 | BC82: 0 | BD82: ='[8]2. 2015 Continuity Schedule'!BN81 -> 0 | BE82: ='[8]2. 2015 Continuity Schedule'!BO81 -> 0 | BF82: ='[8]2. 2015 Continuity Schedule'!BP81 -> 0 | BG82: 0 | BH82: 0 | BI82: ='[8]2. 2015 Continuity Schedule'!BS81 -> 0 | BJ82: ='[8]2. 2015 Continuity Schedule'!BT81 -> 0 | BK82: ='[8]2. 2015 Continuity Schedule'!BU81 -> 0 | BL82: 0 | BM82: ='[8]2. 2015 Continuity Schedule'!BW81 -> 0 | BN82: ='[8]2. 2015 Continuity Schedule'!BX81 -> 0 | BO82: 0 | BP82: 0 | BQ82: ='[8]2. 2015 Continuity Schedule'!CA81 -> 0 | BR82: ='[8]2. 2015 Continuity Schedule'!CB81 -> 0 | BS82: 0 | BT82: 0 | BU82: ='[8]2. 2015 Continuity Schedule'!CD81 -> 0 | BV82: 0
A83: 40 | C83: Meter Cost Deferral Account (MIST Meters)11 | D83: 1557 | AS83: 0 | AW83: 0 | AX83: 0 | BB83: 0 | BC83: 0 | BG83: 0 | BH83: 0 | BL83: 0 | BO83: 0 | BP83: 0 | BS83: 0 | BT83: 0 | BV83: 0
A85: 41 | C85: IFRS-CGAAP Transition PP&E Amounts Balance + Return Component6 | D85: 1575 | S85: =O85+P85-Q85+SUM(R85:R85) -> 0 | Y85: =S85 -> 0 | Z85: ='[8]2. 2015 Continuity Schedule'!AJ83 -> 0 | AA85: ='[8]2. 2015 Continuity Schedule'!AK83 -> 0 | AB85: ='[8]2. 2015 Continuity Schedule'!AL83 -> 0 | AC85: =Y85+Z85-AA85+SUM(AB85:AB85) -> 0 | AI85: 0 | AJ85: ='[8]2. 2015 Continuity Schedule'!AT83 -> 0 | AK85: ='[8]2. 2015 Continuity Schedule'!AU83 -> 0 | AL85: ='[8]2. 2015 Continuity Schedule'!AV83 -> 0 | AM85: =AI85+AJ85-AK85+SUM(AL85:AL85) -> 0 | AS85: =AM85 -> 0 | AT85: ='[8]2. 2015 Continuity Schedule'!BD83 -> 0 | AU85: ='[8]2. 2015 Continuity Schedule'!BE83 -> 0 | AV85: ='[8]2. 2015 Continuity Schedule'!BF83 -> 0 | AW85: =AS85+AT85-AU85+SUM(AV85:AV85) -> 0 | BC85: =AW85 -> 0 | BD85: ='[8]2. 2015 Continuity Schedule'!BN83 -> 0 | BE85: ='[8]2. 2015 Continuity Schedule'!BO83 -> 0 | BF85: ='[8]2. 2015 Continuity Schedule'!BP83 -> 227206 | BG85: =BC85+BD85-BE85+SUM(BF85:BF85) -> 227206 | BM85: ='[8]2. 2015 Continuity Schedule'!BW83 -> 0 | BO85: =BG85-BM85 -> 227206 | BT85: =IF(CB85=TRUE, SUM(BO85:BR85), 0) -> 227206 | BU85: ='[8]2. 2015 Continuity Schedule'!CD83 -> 0 | BV85: =BU85-SUM(BG85,BL85) -> -227206 | CA85: 1575 | CB85: TRUE
A86: 42 | C86: Accounting Changes Under CGAAP Balance + Return Component6 | D86: 1576 | Z86: ='[8]2. 2015 Continuity Schedule'!AJ84 -> 0 | AA86: ='[8]2. 2015 Continuity Schedule'!AK84 -> 0 | AB86: ='[8]2. 2015 Continuity Schedule'!AL84 -> 0 | AC86: =Y86+Z86-AA86+SUM(AB86:AB86) -> 0 | AI86: 0 | AJ86: ='[8]2. 2015 Continuity Schedule'!AT84 -> 0 | AK86: ='[8]2. 2015 Continuity Schedule'!AU84 -> 0 | AL86: ='[8]2. 2015 Continuity Schedule'!AV84 -> 0 | AM86: =AI86+AJ86-AK86+SUM(AL86:AL86) -> 0 | AS86: =AM86 -> 0 | AT86: ='[8]2. 2015 Continuity Schedule'!BD84 -> 0 | AU86: ='[8]2. 2015 Continuity Schedule'!BE84 -> 0 | AV86: ='[8]2. 2015 Continuity Schedule'!BF84 -> 0 | AW86: =AS86+AT86-AU86+SUM(AV86:AV86) -> 0 | BC86: =AW86 -> 0 | BD86: ='[8]2. 2015 Continuity Schedule'!BN84 -> 0 | BE86: ='[8]2. 2015 Continuity Schedule'!BO84 -> 0 | BF86: ='[8]2. 2015 Continuity Schedule'!BP84 -> 0 | BG86: =BC86+BD86-BE86+SUM(BF86:BF86) -> 0 | BM86: ='[8]2. 2015 Continuity Schedule'!BW84 -> 0 | BO86: 0 | BT86: =IF(CB86=TRUE, SUM(BO86:BR86), 0) -> 0 | BU86: ='[8]2. 2015 Continuity Schedule'!CD84 -> 0 | BV86: 0 | CA86: 1576 | CB86: TRUE
C90: For all OEB-Approved dispositions, please ensure that the disposition amount has the same sign (e.g: debit balances are to have a positive figure and credit balance are to have a negative figure) as per the related OEB decision.
B91: 1 | C91: For RSVA accounts only, report the net variance to the account during the year. For all other accounts, record the transactions during the year. Do not include interest, adjustments, or OEB approved dispositions in this column.
B92: 2 | C92: Please provide explanations for the nature of the adjustments. If the adjustment relates to previously OEB Approved disposed balances, please provide amounts for adjustments and include supporting documentations.
B93: 3 | C93: As per the January 6, 2011 Letter from the OEB regarding the implementation of the Ontario Clean Energy Benefit:
C94: "By way of exception... The Board does anticipate that licensed distributors that cannot adapt their invoices as of January 1, 2011 will require a variance account for OCEB purposes... The Board expects that any principal balances in "Sub account Financial Assistance Payment and Recovery Variance - Ontario Clean Energy Benefit Act" will be addressed through the monthly settlement process with the IESO or the host distributor, as applicable."
B95: 4 | C95: Please describe "other" components of 1508 and add more component lines if necessary.
B96: 5 | C96: Deferral accounts related to Smart Meter deployment are not to be recovered/refunded through the Deferral and Variance Account rate rider. For details on how to dispose of balances in Smart Meter accounts see the OEB's Guideline: Smart Meter Disposition and Cost Recovery (G-2011-0001)
B97: 6 | C97: The OEB requires that disposition of Account 1575 and Account 1576 shall require the use of separate rate riders. In the "Adjustments during 2015" column of the continuity schedule, please enter the amounts to be included in the Account 1575 and 1576 rate rider calculation from the applicable Chapter 2 appendices. For Account 1575, please provide the value in cell F39 from Chapter 2 Appendix 2-EA. For Account 1576, please provide the value in cell H39 and G39 from the relevant Chapter 2 Appendix 2-EB or 2-EC, respectively.
C98: Depending on the disposition period, balances may exist in Account 1575 and Account 1576 even if the accounts have been approved for disposition in a previous decision. Report these account balances in the continuity schedule if this is the case and leave the checkbox "Check to Dispose of Account" in the Total Claim column unchecked.
B99: 7 | C99: If the LDC’s rate year begins on January 1, 2017, the projected interest is recorded from January 1, 2016 to December 31, 2016 on the December 31, 2015 balances adjusted for the disposed balances approved by the OEB in the 2016 rate decision. If the LDC’s rate year begins on May 1, 2017, the projected interest is recorded from January 1, 2016 to April 30, 2017 on the December 31, 2015 balances adjusted for the disposed interest balances approved by the OEB in the 2016 rate decision.
B100: 8 | C100: Include Account 1595 as part of Group 1 accounts for review and disposition if the recovery (or refund) period has been completed. Check the "Check to Dispose Account" checkbox if disposition is requested. If the recovery (or refund) period has not been completed, do not include the respective balance in Account 1595 for disposition at this time.
B101: 9 | C101: Per the APH March 2015 Guidance, the Direct Benefits portion of Account 1531 should be transferred to rate base. The Direct Benefits portion of Account 1532 should be included in the DVA continuity schedule to be requested for disposition. In this continuity schedule, Account 1531 is listed for reference only. Account 1532 is included in the Group 2 allocation of balances that are used to calculate the rate riders. Only input the Direct Benefits portion of the account balances in this continuity schedule.
B102: 10 | C102: When inputting balances in the continuity schedule, Account 1580 RSVA - Wholesale Market Service Charge is to exclude any amounts relating to CBR. The CBR amounts are to be entered separately in the Class A and Class B 1580 sub-accounts. Only Class B amounts are to be disposed. Class A amounts are not to be disposed.
B103: 11 | C103: Account 1557 is to be recovered in a manner similar to the Smart Meter accounts. Distributors should request for disposition upon completion of the MIST meter deployment. A prudence review and disposition should be done in the application, outside of this continuity schedule.
B104: 12 | C104: Input the LRAMVA balance in the continuity schedule as calculated from the LRAMVA model. The associated rate riders will be calculated in the DVA continuity schedule.

Sheet 3. Appendix A
B16: Accounts that produced a variance on the continuity schedule are listed below. Please provide a detailed explanation for each variance below.
C20: Account Descriptions | D20: Account Number | E20: Variance RRR vs. 2015 Balance (Principal + Interest) | F20: Explanation
A24: 1 | C24: =VLOOKUP(A24, '2. 2016 Continuity Schedule'!$A$24:$BV$87,3,FALSE) -> LV Variance Account | D24: =VLOOKUP(A24, '2. 2016 Continuity Schedule'!$A$24:$BV$87,4,FALSE) -> 1550 | E24: =IF(ISERROR(VLOOKUP($A24, '2. 2016 Continuity Schedule'!$A$20:$BV$89, MATCH('3. Appendix A'!$E$20, '2. 2016 Continuity Schedule'!$A$20:$BV$20,0),FALSE)), 0, VLOOKUP($A24, '2. 2016 Continuity Schedule'!$A$20:$BV$89, MATCH('3. Appendix A'!$E$20, '2. 2016 Continuity Schedule'!$A$20:$BV$20,0),FALSE)) -> 0
A25: 2 | C25: =VLOOKUP(A25, '2. 2016 Continuity Schedule'!$A$24:$BV$87,3,FALSE) -> Smart Metering Entity Charge Variance Account | D25: =VLOOKUP(A25, '2. 2016 Continuity Schedule'!$A$24:$BV$87,4,FALSE) -> 1551 | E25: =IF(ISERROR(VLOOKUP($A25, '2. 2016 Continuity Schedule'!$A$20:$BV$89, MATCH('3. Appendix A'!$E$20, '2. 2016 Continuity Schedule'!$A$20:$BV$20,0),FALSE)), 0, VLOOKUP($A25, '2. 2016 Continuity Schedule'!$A$20:$BV$89, MATCH('3. Appendix A'!$E$20, '2. 2016 Continuity Schedule'!$A$20:$BV$20,0),FALSE)) -> 0
A26: 3 | C26: =VLOOKUP(A26, '2. 2016 Continuity Schedule'!$A$24:$BV$87,3,FALSE) -> RSVA - Wholesale Market Service Charge10 | D26: =VLOOKUP(A26, '2. 2016 Continuity Schedule'!$A$24:$BV$87,4,FALSE) -> 1580 | E26: =IF(ISERROR(VLOOKUP($A26, '2. 2016 Continuity Schedule'!$A$20:$BV$89, MATCH('3. Appendix A'!$E$20, '2. 2016 Continuity Schedule'!$A$20:$BV$20,0),FALSE)), 0, VLOOKUP($A26, '2. 2016 Continuity Schedule'!$A$20:$BV$89, MATCH('3. Appendix A'!$E$20, '2. 2016 Continuity Schedule'!$A$20:$BV$20,0),FALSE)) -> 244089.75 | F26: All three 1580 account lines net to zero
A27: 3.1 | C27: =VLOOKUP(A27, '2. 2016 Continuity Schedule'!$A$24:$BV$87,3,FALSE) -> Variance WMS – Sub-account CBR Class A10 | D27: =VLOOKUP(A27, '2. 2016 Continuity Schedule'!$A$24:$BV$87,4,FALSE) -> 1580 | E27: =IF(ISERROR(VLOOKUP($A27, '2. 2016 Continuity Schedule'!$A$20:$BV$89, MATCH('3. Appendix A'!$E$20, '2. 2016 Continuity Schedule'!$A$20:$BV$20,0),FALSE)), 0, VLOOKUP($A27, '2. 2016 Continuity Schedule'!$A$20:$BV$89, MATCH('3. Appendix A'!$E$20, '2. 2016 Continuity Schedule'!$A$20:$BV$20,0),FALSE)) -> -17242.54 | F27: All three 1580 account lines net to zero
A28: 3.2 | C28: =VLOOKUP(A28, '2. 2016 Continuity Schedule'!$A$24:$BV$87,3,FALSE) -> Variance WMS – Sub-account CBR Class B10 | D28: =VLOOKUP(A28, '2. 2016 Continuity Schedule'!$A$24:$BV$87,4,FALSE) -> 1580 | E28: =IF(ISERROR(VLOOKUP($A28, '2. 2016 Continuity Schedule'!$A$20:$BV$89, MATCH('3. Appendix A'!$E$20, '2. 2016 Continuity Schedule'!$A$20:$BV$20,0),FALSE)), 0, VLOOKUP($A28, '2. 2016 Continuity Schedule'!$A$20:$BV$89, MATCH('3. Appendix A'!$E$20, '2. 2016 Continuity Schedule'!$A$20:$BV$20,0),FALSE)) -> -226847.54 | F28: All three 1580 account lines net to zero
A29: 4 | C29: =VLOOKUP(A29, '2. 2016 Continuity Schedule'!$A$24:$BV$87,3,FALSE) -> RSVA - Retail Transmission Network Charge | D29: =VLOOKUP(A29, '2. 2016 Continuity Schedule'!$A$24:$BV$87,4,FALSE) -> 1584 | E29: =IF(ISERROR(VLOOKUP($A29, '2. 2016 Continuity Schedule'!$A$20:$BV$89, MATCH('3. Appendix A'!$E$20, '2. 2016 Continuity Schedule'!$A$20:$BV$20,0),FALSE)), 0, VLOOKUP($A29, '2. 2016 Continuity Schedule'!$A$20:$BV$89, MATCH('3. Appendix A'!$E$20, '2. 2016 Continuity Schedule'!$A$20:$BV$20,0),FALSE)) -> 0.09000000026 | F29: Rounding
A30: 5 | C30: =VLOOKUP(A30, '2. 2016 Continuity Schedule'!$A$24:$BV$87,3,FALSE) -> RSVA - Retail Transmission Connection Charge | D30: =VLOOKUP(A30, '2. 2016 Continuity Schedule'!$A$24:$BV$87,4,FALSE) -> 1586 | E30: =IF(ISERROR(VLOOKUP($A30, '2. 2016 Continuity Schedule'!$A$20:$BV$89, MATCH('3. Appendix A'!$E$20, '2. 2016 Continuity Schedule'!$A$20:$BV$20,0),FALSE)), 0, VLOOKUP($A30, '2. 2016 Continuity Schedule'!$A$20:$BV$89, MATCH('3. Appendix A'!$E$20, '2. 2016 Continuity Schedule'!$A$20:$BV$20,0),FALSE)) -> 1.13 | F30: Rounding
A31: 6 | C31: =VLOOKUP(A31, '2. 2016 Continuity Schedule'!$A$24:$BV$87,3,FALSE) -> RSVA - Power (excluding Global Adjustment) | D31: =VLOOKUP(A31, '2. 2016 Continuity Schedule'!$A$24:$BV$87,4,FALSE) -> 1588 | E31: =IF(ISERROR(VLOOKUP($A31, '2. 2016 Continuity Schedule'!$A$20:$BV$89, MATCH('3. Appendix A'!$E$20, '2. 2016 Continuity Schedule'!$A$20:$BV$20,0),FALSE)), 0, VLOOKUP($A31, '2. 2016 Continuity Schedule'!$A$20:$BV$89, MATCH('3. Appendix A'!$E$20, '2. 2016 Continuity Schedule'!$A$20:$BV$20,0),FALSE)) -> -0.140000002 | F31: Rounding
A32: 7 | C32: =VLOOKUP(A32, '2. 2016 Continuity Schedule'!$A$24:$BV$87,3,FALSE) -> RSVA - Global Adjustment | D32: =VLOOKUP(A32, '2. 2016 Continuity Schedule'!$A$24:$BV$87,4,FALSE) -> 1589 | E32: =IF(ISERROR(VLOOKUP($A32, '2. 2016 Continuity Schedule'!$A$20:$BV$89, MATCH('3. Appendix A'!$E$20, '2. 2016 Continuity Schedule'!$A$20:$BV$20,0),FALSE)), 0, VLOOKUP($A32, '2. 2016 Continuity Schedule'!$A$20:$BV$89, MATCH('3. Appendix A'!$E$20, '2. 2016 Continuity Schedule'!$A$20:$BV$20,0),FALSE)) -> 0.02000000002 | F32: Rounding
A33: 8 | C33: =VLOOKUP(A33, '2. 2016 Continuity Schedule'!$A$24:$BV$87,3,FALSE) -> Disposition and Recovery/Refund of Regulatory Balances (2009)8 | D33: =VLOOKUP(A33, '2. 2016 Continuity Schedule'!$A$24:$BV$87,4,FALSE) -> 1595 | E33: =IF(ISERROR(VLOOKUP($A33, '2. 2016 Continuity Schedule'!$A$20:$BV$89, MATCH('3. Appendix A'!$E$20, '2. 2016 Continuity Schedule'!$A$20:$BV$20,0),FALSE)), 0, VLOOKUP($A33, '2. 2016 Continuity Schedule'!$A$20:$BV$89, MATCH('3. Appendix A'!$E$20, '2. 2016 Continuity Schedule'!$A$20:$BV$20,0),FALSE)) -> 0 | F33: Rounding
A34: 9 | C34: =VLOOKUP(A34, '2. 2016 Continuity Schedule'!$A$24:$BV$87,3,FALSE) -> Disposition and Recovery/Refund of Regulatory Balances (2010)8 | D34: =VLOOKUP(A34, '2. 2016 Continuity Schedule'!$A$24:$BV$87,4,FALSE) -> 1595 | E34: =IF(ISERROR(VLOOKUP($A34, '2. 2016 Continuity Schedule'!$A$20:$BV$89, MATCH('3. Appendix A'!$E$20, '2. 2016 Continuity Schedule'!$A$20:$BV$20,0),FALSE)), 0, VLOOKUP($A34, '2. 2016 Continuity Schedule'!$A$20:$BV$89, MATCH('3. Appendix A'!$E$20, '2. 2016 Continuity Schedule'!$A$20:$BV$20,0),FALSE)) -> 0.4899999999 | F34: Rounding
A35: 10 | C35: =VLOOKUP(A35, '2. 2016 Continuity Schedule'!$A$24:$BV$87,3,FALSE) -> Disposition and Recovery/Refund of Regulatory Balances (2011)8 | D35: =VLOOKUP(A35, '2. 2016 Continuity Schedule'!$A$24:$BV$87,4,FALSE) -> 1595 | E35: =IF(ISERROR(VLOOKUP($A35, '2. 2016 Continuity Schedule'!$A$20:$BV$89, MATCH('3. Appendix A'!$E$20, '2. 2016 Continuity Schedule'!$A$20:$BV$20,0),FALSE)), 0, VLOOKUP($A35, '2. 2016 Continuity Schedule'!$A$20:$BV$89, MATCH('3. Appendix A'!$E$20, '2. 2016 Continuity Schedule'!$A$20:$BV$20,0),FALSE)) -> -0.25 | F35: Rounding
A36: 11 | C36: =VLOOKUP(A36, '2. 2016 Continuity Schedule'!$A$24:$BV$87,3,FALSE) -> Disposition and Recovery/Refund of Regulatory Balances (2012)8 | D36: =VLOOKUP(A36, '2. 2016 Continuity Schedule'!$A$24:$BV$87,4,FALSE) -> 1595 | E36: =IF(ISERROR(VLOOKUP($A36, '2. 2016 Continuity Schedule'!$A$20:$BV$89, MATCH('3. Appendix A'!$E$20, '2. 2016 Continuity Schedule'!$A$20:$BV$20,0),FALSE)), 0, VLOOKUP($A36, '2. 2016 Continuity Schedule'!$A$20:$BV$89, MATCH('3. Appendix A'!$E$20, '2. 2016 Continuity Schedule'!$A$20:$BV$20,0),FALSE)) -> -0.4 | F36: Rounding
A37: 12 | C37: =VLOOKUP(A37, '2. 2016 Continuity Schedule'!$A$24:$BV$87,3,FALSE) -> Disposition and Recovery/Refund of Regulatory Balances (2013)8 | D37: =VLOOKUP(A37, '2. 2016 Continuity Schedule'!$A$24:$BV$87,4,FALSE) -> 1595 | E37: =IF(ISERROR(VLOOKUP($A37, '2. 2016 Continuity Schedule'!$A$20:$BV$89, MATCH('3. Appendix A'!$E$20, '2. 2016 Continuity Schedule'!$A$20:$BV$20,0),FALSE)), 0, VLOOKUP($A37, '2. 2016 Continuity Schedule'!$A$20:$BV$89, MATCH('3. Appendix A'!$E$20, '2. 2016 Continuity Schedule'!$A$20:$BV$20,0),FALSE)) -> -0.27 | F37: Rounding
A38: 13 | C38: =VLOOKUP(A38, '2. 2016 Continuity Schedule'!$A$24:$BV$87,3,FALSE) -> Disposition and Recovery/Refund of Regulatory Balances (2014)8 | D38: =VLOOKUP(A38, '2. 2016 Continuity Schedule'!$A$24:$BV$87,4,FALSE) -> 1595 | E38: =IF(ISERROR(VLOOKUP($A38, '2. 2016 Continuity Schedule'!$A$20:$BV$89, MATCH('3. Appendix A'!$E$20, '2. 2016 Continuity Schedule'!$A$20:$BV$20,0),FALSE)), 0, VLOOKUP($A38, '2. 2016 Continuity Schedule'!$A$20:$BV$89, MATCH('3. Appendix A'!$E$20, '2. 2016 Continuity Schedule'!$A$20:$BV$20,0),FALSE)) -> 0 | F38: Rounding
A39: 14 | C39: =VLOOKUP(A39, '2. 2016 Continuity Schedule'!$A$24:$BV$87,3,FALSE) -> Disposition and Recovery/Refund of Regulatory Balances (2015)8 | D39: =VLOOKUP(A39, '2. 2016 Continuity Schedule'!$A$24:$BV$87,4,FALSE) -> 1595 | E39: =IF(ISERROR(VLOOKUP($A39, '2. 2016 Continuity Schedule'!$A$20:$BV$89, MATCH('3. Appendix A'!$E$20, '2. 2016 Continuity Schedule'!$A$20:$BV$20,0),FALSE)), 0, VLOOKUP($A39, '2. 2016 Continuity Schedule'!$A$20:$BV$89, MATCH('3. Appendix A'!$E$20, '2. 2016 Continuity Schedule'!$A$20:$BV$20,0),FALSE)) -> -0.8400000006 | F39: Rounding
C41: Group 2 Accounts
A42: 15 | C42: =VLOOKUP(A42, '2. 2016 Continuity Schedule'!$A$24:$BV$87,3,FALSE) -> Other Regulatory Assets - Sub-Account - Deferred IFRS Transition Costs | D42: =VLOOKUP(A42, '2. 2016 Continuity Schedule'!$A$24:$BV$87,4,FALSE) -> 1508 | E42: =IF(ISERROR(VLOOKUP($A42, '2. 2016 Continuity Schedule'!$A$20:$BV$89, MATCH('3. Appendix A'!$E$20, '2. 2016 Continuity Schedule'!$A$20:$BV$20,0),FALSE)), 0, VLOOKUP($A42, '2. 2016 Continuity Schedule'!$A$20:$BV$89, MATCH('3. Appendix A'!$E$20, '2. 2016 Continuity Schedule'!$A$20:$BV$20,0),FALSE)) -> 0
A43: 16 | C43: =VLOOKUP(A43, '2. 2016 Continuity Schedule'!$A$24:$BV$87,3,FALSE) -> Other Regulatory Assets - Sub-Account - Incremental Capital Charges | D43: =VLOOKUP(A43, '2. 2016 Continuity Schedule'!$A$24:$BV$87,4,FALSE) -> 1508 | E43: =IF(ISERROR(VLOOKUP($A43, '2. 2016 Continuity Schedule'!$A$20:$BV$89, MATCH('3. Appendix A'!$E$20, '2. 2016 Continuity Schedule'!$A$20:$BV$20,0),FALSE)), 0, VLOOKUP($A43, '2. 2016 Continuity Schedule'!$A$20:$BV$89, MATCH('3. Appendix A'!$E$20, '2. 2016 Continuity Schedule'!$A$20:$BV$20,0),FALSE)) -> 0
A44: 17 | C44: =VLOOKUP(A44, '2. 2016 Continuity Schedule'!$A$24:$BV$87,3,FALSE) -> Other Regulatory Assets - Sub-Account - Financial Assistance Payment and Recovery Variance - Ontario Clean Energy Benefit Act3 | D44: =VLOOKUP(A44, '2. 2016 Continuity Schedule'!$A$24:$BV$87,4,FALSE) -> 1508 | E44: =IF(ISERROR(VLOOKUP($A44, '2. 2016 Continuity Schedule'!$A$20:$BV$89, MATCH('3. Appendix A'!$E$20, '2. 2016 Continuity Schedule'!$A$20:$BV$20,0),FALSE)), 0, VLOOKUP($A44, '2. 2016 Continuity Schedule'!$A$20:$BV$89, MATCH('3. Appendix A'!$E$20, '2. 2016 Continuity Schedule'!$A$20:$BV$20,0),FALSE)) -> 0
A45: 18 | C45: =VLOOKUP(A45, '2. 2016 Continuity Schedule'!$A$24:$BV$87,3,FALSE) -> Other Regulatory Assets - Sub-Account - Other 4 | D45: =VLOOKUP(A45, '2. 2016 Continuity Schedule'!$A$24:$BV$87,4,FALSE) -> 1508 | E45: =IF(ISERROR(VLOOKUP($A45, '2. 2016 Continuity Schedule'!$A$20:$BV$89, MATCH('3. Appendix A'!$E$20, '2. 2016 Continuity Schedule'!$A$20:$BV$20,0),FALSE)), 0, VLOOKUP($A45, '2. 2016 Continuity Schedule'!$A$20:$BV$89, MATCH('3. Appendix A'!$E$20, '2. 2016 Continuity Schedule'!$A$20:$BV$20,0),FALSE)) -> 0
A46: 19 | C46: =VLOOKUP(A46, '2. 2016 Continuity Schedule'!$A$24:$BV$87,3,FALSE) -> Retail Cost Variance Account - Retail | D46: =VLOOKUP(A46, '2. 2016 Continuity Schedule'!$A$24:$BV$87,4,FALSE) -> 1518 | E46: =IF(ISERROR(VLOOKUP($A46, '2. 2016 Continuity Schedule'!$A$20:$BV$89, MATCH('3. Appendix A'!$E$20, '2. 2016 Continuity Schedule'!$A$20:$BV$20,0),FALSE)), 0, VLOOKUP($A46, '2. 2016 Continuity Schedule'!$A$20:$BV$89, MATCH('3. Appendix A'!$E$20, '2. 2016 Continuity Schedule'!$A$20:$BV$20,0),FALSE)) -> 0
A47: 20 | C47: =VLOOKUP(A47, '2. 2016 Continuity Schedule'!$A$24:$BV$87,3,FALSE) -> Misc. Deferred Debits | D47: =VLOOKUP(A47, '2. 2016 Continuity Schedule'!$A$24:$BV$87,4,FALSE) -> 1525 | E47: =IF(ISERROR(VLOOKUP($A47, '2. 2016 Continuity Schedule'!$A$20:$BV$89, MATCH('3. Appendix A'!$E$20, '2. 2016 Continuity Schedule'!$A$20:$BV$20,0),FALSE)), 0, VLOOKUP($A47, '2. 2016 Continuity Schedule'!$A$20:$BV$89, MATCH('3. Appendix A'!$E$20, '2. 2016 Continuity Schedule'!$A$20:$BV$20,0),FALSE)) -> 0
A48: 21 | C48: =VLOOKUP(A48, '2. 2016 Continuity Schedule'!$A$24:$BV$87,3,FALSE) -> Retail Cost Variance Account - STR | D48: =VLOOKUP(A48, '2. 2016 Continuity Schedule'!$A$24:$BV$87,4,FALSE) -> 1548 | E48: =IF(ISERROR(VLOOKUP($A48, '2. 2016 Continuity Schedule'!$A$20:$BV$89, MATCH('3. Appendix A'!$E$20, '2. 2016 Continuity Schedule'!$A$20:$BV$20,0),FALSE)), 0, VLOOKUP($A48, '2. 2016 Continuity Schedule'!$A$20:$BV$89, MATCH('3. Appendix A'!$E$20, '2. 2016 Continuity Schedule'!$A$20:$BV$20,0),FALSE)) -> 0
A49: 22 | C49: =VLOOKUP(A49, '2. 2016 Continuity Schedule'!$A$24:$BV$87,3,FALSE) -> Board-Approved CDM Variance Account | D49: =VLOOKUP(A49, '2. 2016 Continuity Schedule'!$A$24:$BV$87,4,FALSE) -> 1567 | E49: =IF(ISERROR(VLOOKUP($A49, '2. 2016 Continuity Schedule'!$A$20:$BV$89, MATCH('3. Appendix A'!$E$20, '2. 2016 Continuity Schedule'!$A$20:$BV$20,0),FALSE)), 0, VLOOKUP($A49, '2. 2016 Continuity Schedule'!$A$20:$BV$89, MATCH('3. Appendix A'!$E$20, '2. 2016 Continuity Schedule'!$A$20:$BV$20,0),FALSE)) -> 0
A50: 23 | C50: =VLOOKUP(A50, '2. 2016 Continuity Schedule'!$A$24:$BV$87,3,FALSE) -> Extra-Ordinary Event Costs | D50: =VLOOKUP(A50, '2. 2016 Continuity Schedule'!$A$24:$BV$87,4,FALSE) -> 1572 | E50: =IF(ISERROR(VLOOKUP($A50, '2. 2016 Continuity Schedule'!$A$20:$BV$89, MATCH('3. Appendix A'!$E$20, '2. 2016 Continuity Schedule'!$A$20:$BV$20,0),FALSE)), 0, VLOOKUP($A50, '2. 2016 Continuity Schedule'!$A$20:$BV$89, MATCH('3. Appendix A'!$E$20, '2. 2016 Continuity Schedule'!$A$20:$BV$20,0),FALSE)) -> 0
A51: 24 | C51: =VLOOKUP(A51, '2. 2016 Continuity Schedule'!$A$24:$BV$87,3,FALSE) -> Deferred Rate Impact Amounts | D51: =VLOOKUP(A51, '2. 2016 Continuity Schedule'!$A$24:$BV$87,4,FALSE) -> 1574 | E51: =IF(ISERROR(VLOOKUP($A51, '2. 2016 Continuity Schedule'!$A$20:$BV$89, MATCH('3. Appendix A'!$E$20, '2. 2016 Continuity Schedule'!$A$20:$BV$20,0),FALSE)), 0, VLOOKUP($A51, '2. 2016 Continuity Schedule'!$A$20:$BV$89, MATCH('3. Appendix A'!$E$20, '2. 2016 Continuity Schedule'!$A$20:$BV$20,0),FALSE)) -> 0
A52: 25 | C52: =VLOOKUP(A52, '2. 2016 Continuity Schedule'!$A$24:$BV$87,3,FALSE) -> RSVA - One-time | D52: =VLOOKUP(A52, '2. 2016 Continuity Schedule'!$A$24:$BV$87,4,FALSE) -> 1582 | E52: =IF(ISERROR(VLOOKUP($A52, '2. 2016 Continuity Schedule'!$A$20:$BV$89, MATCH('3. Appendix A'!$E$20, '2. 2016 Continuity Schedule'!$A$20:$BV$20,0),FALSE)), 0, VLOOKUP($A52, '2. 2016 Continuity Schedule'!$A$20:$BV$89, MATCH('3. Appendix A'!$E$20, '2. 2016 Continuity Schedule'!$A$20:$BV$20,0),FALSE)) -> 0
A53: 26 | C53: =VLOOKUP(A53, '2. 2016 Continuity Schedule'!$A$24:$BV$87,3,FALSE) -> Other Deferred Credits | D53: =VLOOKUP(A53, '2. 2016 Continuity Schedule'!$A$24:$BV$87,4,FALSE) -> 2425 | E53: =IF(ISERROR(VLOOKUP($A53, '2. 2016 Continuity Schedule'!$A$20:$BV$89, MATCH('3. Appendix A'!$E$20, '2. 2016 Continuity Schedule'!$A$20:$BV$20,0),FALSE)), 0, VLOOKUP($A53, '2. 2016 Continuity Schedule'!$A$20:$BV$89, MATCH('3. Appendix A'!$E$20, '2. 2016 Continuity Schedule'!$A$20:$BV$20,0),FALSE)) -> 0
A54: 27 | C54: =VLOOKUP(A54, '2. 2016 Continuity Schedule'!$A$24:$BV$87,3,FALSE) -> PILs and Tax Variance for 2006 and Subsequent Years (excludes sub-account and contra account below) | D54: =VLOOKUP(A54, '2. 2016 Continuity Schedule'!$A$24:$BV$87,4,FALSE) -> 1592 | E54: =IF(ISERROR(VLOOKUP($A54, '2. 2016 Continuity Schedule'!$A$20:$BV$89, MATCH('3. Appendix A'!$E$20, '2. 2016 Continuity Schedule'!$A$20:$BV$20,0),FALSE)), 0, VLOOKUP($A54, '2. 2016 Continuity Schedule'!$A$20:$BV$89, MATCH('3. Appendix A'!$E$20, '2. 2016 Continuity Schedule'!$A$20:$BV$20,0),FALSE)) -> 0
A55: 28 | C55: =VLOOKUP(A55, '2. 2016 Continuity Schedule'!$A$24:$BV$87,3,FALSE) -> PILs and Tax Variance for 2006 and Subsequent Years - Sub-Account HST/OVAT Input Tax Credits (ITCs) | D55: =VLOOKUP(A55, '2. 2016 Continuity Schedule'!$A$24:$BV$87,4,FALSE) -> 1592 | E55: =IF(ISERROR(VLOOKUP($A55, '2. 2016 Continuity Schedule'!$A$20:$BV$89, MATCH('3. Appendix A'!$E$20, '2. 2016 Continuity Schedule'!$A$20:$BV$20,0),FALSE)), 0, VLOOKUP($A55, '2. 2016 Continuity Schedule'!$A$20:$BV$89, MATCH('3. Appendix A'!$E$20, '2. 2016 Continuity Schedule'!$A$20:$BV$20,0),FALSE)) -> -40306.48
A56: 29 | C56: =VLOOKUP(A56, '2. 2016 Continuity Schedule'!$A$24:$BV$87,3,FALSE) -> LRAM Variance Account12 | D56: =VLOOKUP(A56, '2. 2016 Continuity Schedule'!$A$24:$BV$87,4,FALSE) -> 1568 | E56: =IF(ISERROR(VLOOKUP($A56, '2. 2016 Continuity Schedule'!$A$20:$BV$89, MATCH('3. Appendix A'!$E$20, '2. 2016 Continuity Schedule'!$A$20:$BV$20,0),FALSE)), 0, VLOOKUP($A56, '2. 2016 Continuity Schedule'!$A$20:$BV$89, MATCH('3. Appendix A'!$E$20, '2. 2016 Continuity Schedule'!$A$20:$BV$20,0),FALSE)) -> 0
A57: 30 | C57: =VLOOKUP(A57, '2. 2016 Continuity Schedule'!$A$24:$BV$87,3,FALSE) -> Renewable Generation Connection Capital Deferral Account9 | D57: =VLOOKUP(A57, '2. 2016 Continuity Schedule'!$A$24:$BV$87,4,FALSE) -> 1531 | E57: =IF(ISERROR(VLOOKUP($A57, '2. 2016 Continuity Schedule'!$A$20:$BV$89, MATCH('3. Appendix A'!$E$20, '2. 2016 Continuity Schedule'!$A$20:$BV$20,0),FALSE)), 0, VLOOKUP($A57, '2. 2016 Continuity Schedule'!$A$20:$BV$89, MATCH('3. Appendix A'!$E$20, '2. 2016 Continuity Schedule'!$A$20:$BV$20,0),FALSE)) -> 0
A58: 31 | C58: =VLOOKUP(A58, '2. 2016 Continuity Schedule'!$A$24:$BV$87,3,FALSE) -> Renewable Generation Connection OM&A Deferral Account9 | D58: =VLOOKUP(A58, '2. 2016 Continuity Schedule'!$A$24:$BV$87,4,FALSE) -> 1532 | E58: =IF(ISERROR(VLOOKUP($A58, '2. 2016 Continuity Schedule'!$A$20:$BV$89, MATCH('3. Appendix A'!$E$20, '2. 2016 Continuity Schedule'!$A$20:$BV$20,0),FALSE)), 0, VLOOKUP($A58, '2. 2016 Continuity Schedule'!$A$20:$BV$89, MATCH('3. Appendix A'!$E$20, '2. 2016 Continuity Schedule'!$A$20:$BV$20,0),FALSE)) -> 0
A59: 32 | C59: =VLOOKUP(A59, '2. 2016 Continuity Schedule'!$A$24:$BV$87,3,FALSE) -> Renewable Generation Connection Funding Adder Deferral Account | D59: =VLOOKUP(A59, '2. 2016 Continuity Schedule'!$A$24:$BV$87,4,FALSE) -> 1533 | E59: =IF(ISERROR(VLOOKUP($A59, '2. 2016 Continuity Schedule'!$A$20:$BV$89, MATCH('3. Appendix A'!$E$20, '2. 2016 Continuity Schedule'!$A$20:$BV$20,0),FALSE)), 0, VLOOKUP($A59, '2. 2016 Continuity Schedule'!$A$20:$BV$89, MATCH('3. Appendix A'!$E$20, '2. 2016 Continuity Schedule'!$A$20:$BV$20,0),FALSE)) -> 0
A60: 33 | C60: =VLOOKUP(A60, '2. 2016 Continuity Schedule'!$A$24:$BV$87,3,FALSE) -> Smart Grid Capital Deferral Account | D60: =VLOOKUP(A60, '2. 2016 Continuity Schedule'!$A$24:$BV$87,4,FALSE) -> 1534 | E60: =IF(ISERROR(VLOOKUP($A60, '2. 2016 Continuity Schedule'!$A$20:$BV$89, MATCH('3. Appendix A'!$E$20, '2. 2016 Continuity Schedule'!$A$20:$BV$20,0),FALSE)), 0, VLOOKUP($A60, '2. 2016 Continuity Schedule'!$A$20:$BV$89, MATCH('3. Appendix A'!$E$20, '2. 2016 Continuity Schedule'!$A$20:$BV$20,0),FALSE)) -> 0
A61: 34 | C61: =VLOOKUP(A61, '2. 2016 Continuity Schedule'!$A$24:$BV$87,3,FALSE) -> Smart Grid OM&A Deferral Account | D61: =VLOOKUP(A61, '2. 2016 Continuity Schedule'!$A$24:$BV$87,4,FALSE) -> 1535 | E61: =IF(ISERROR(VLOOKUP($A61, '2. 2016 Continuity Schedule'!$A$20:$BV$89, MATCH('3. Appendix A'!$E$20, '2. 2016 Continuity Schedule'!$A$20:$BV$20,0),FALSE)), 0, VLOOKUP($A61, '2. 2016 Continuity Schedule'!$A$20:$BV$89, MATCH('3. Appendix A'!$E$20, '2. 2016 Continuity Schedule'!$A$20:$BV$20,0),FALSE)) -> 0
A62: 35 | C62: =VLOOKUP(A62, '2. 2016 Continuity Schedule'!$A$24:$BV$87,3,FALSE) -> Smart Grid Funding Adder Deferral Account | D62: =VLOOKUP(A62, '2. 2016 Continuity Schedule'!$A$24:$BV$87,4,FALSE) -> 1536 | E62: =IF(ISERROR(VLOOKUP($A62, '2. 2016 Continuity Schedule'!$A$20:$BV$89, MATCH('3. Appendix A'!$E$20, '2. 2016 Continuity Schedule'!$A$20:$BV$20,0),FALSE)), 0, VLOOKUP($A62, '2. 2016 Continuity Schedule'!$A$20:$BV$89, MATCH('3. Appendix A'!$E$20, '2. 2016 Continuity Schedule'!$A$20:$BV$20,0),FALSE)) -> 0
A63: 36 | C63: =VLOOKUP(A63, '2. 2016 Continuity Schedule'!$A$24:$BV$87,3,FALSE) -> Smart Meter Capital and Recovery Offset Variance - Sub-Account - Capital5 | D63: =VLOOKUP(A63, '2. 2016 Continuity Schedule'!$A$24:$BV$87,4,FALSE) -> 1555 | E63: =IF(ISERROR(VLOOKUP($A63, '2. 2016 Continuity Schedule'!$A$20:$BV$89, MATCH('3. Appendix A'!$E$20, '2. 2016 Continuity Schedule'!$A$20:$BV$20,0),FALSE)), 0, VLOOKUP($A63, '2. 2016 Continuity Schedule'!$A$20:$BV$89, MATCH('3. Appendix A'!$E$20, '2. 2016 Continuity Schedule'!$A$20:$BV$20,0),FALSE)) -> -1.862645149e-09
A64: 37 | C64: =VLOOKUP(A64, '2. 2016 Continuity Schedule'!$A$24:$BV$87,3,FALSE) -> Smart Meter Capital and Recovery Offset Variance - Sub-Account - Recoveries5 | D64: =VLOOKUP(A64, '2. 2016 Continuity Schedule'!$A$24:$BV$87,4,FALSE) -> 1555 | E64: =IF(ISERROR(VLOOKUP($A64, '2. 2016 Continuity Schedule'!$A$20:$BV$89, MATCH('3. Appendix A'!$E$20, '2. 2016 Continuity Schedule'!$A$20:$BV$20,0),FALSE)), 0, VLOOKUP($A64, '2. 2016 Continuity Schedule'!$A$20:$BV$89, MATCH('3. Appendix A'!$E$20, '2. 2016 Continuity Schedule'!$A$20:$BV$20,0),FALSE)) -> 0
A65: 38 | C65: =VLOOKUP(A65, '2. 2016 Continuity Schedule'!$A$24:$BV$87,3,FALSE) -> Smart Meter Capital and Recovery Offset Variance - Sub-Account - Stranded Meter Costs5 | D65: =VLOOKUP(A65, '2. 2016 Continuity Schedule'!$A$24:$BV$87,4,FALSE) -> 1555 | E65: =IF(ISERROR(VLOOKUP($A65, '2. 2016 Continuity Schedule'!$A$20:$BV$89, MATCH('3. Appendix A'!$E$20, '2. 2016 Continuity Schedule'!$A$20:$BV$20,0),FALSE)), 0, VLOOKUP($A65, '2. 2016 Continuity Schedule'!$A$20:$BV$89, MATCH('3. Appendix A'!$E$20, '2. 2016 Continuity Schedule'!$A$20:$BV$20,0),FALSE)) -> 0
A66: 39 | C66: =VLOOKUP(A66, '2. 2016 Continuity Schedule'!$A$24:$BV$87,3,FALSE) -> Smart Meter OM&A Variance5 | D66: =VLOOKUP(A66, '2. 2016 Continuity Schedule'!$A$24:$BV$87,4,FALSE) -> 1556 | E66: =IF(ISERROR(VLOOKUP($A66, '2. 2016 Continuity Schedule'!$A$20:$BV$89, MATCH('3. Appendix A'!$E$20, '2. 2016 Continuity Schedule'!$A$20:$BV$20,0),FALSE)), 0, VLOOKUP($A66, '2. 2016 Continuity Schedule'!$A$20:$BV$89, MATCH('3. Appendix A'!$E$20, '2. 2016 Continuity Schedule'!$A$20:$BV$20,0),FALSE)) -> 0
A67: 40 | C67: =VLOOKUP(A67, '2. 2016 Continuity Schedule'!$A$24:$BV$87,3,FALSE) -> Meter Cost Deferral Account (MIST Meters)11 | D67: =VLOOKUP(A67, '2. 2016 Continuity Schedule'!$A$24:$BV$87,4,FALSE) -> 1557 | E67: =IF(ISERROR(VLOOKUP($A67, '2. 2016 Continuity Schedule'!$A$20:$BV$89, MATCH('3. Appendix A'!$E$20, '2. 2016 Continuity Schedule'!$A$20:$BV$20,0),FALSE)), 0, VLOOKUP($A67, '2. 2016 Continuity Schedule'!$A$20:$BV$89, MATCH('3. Appendix A'!$E$20, '2. 2016 Continuity Schedule'!$A$20:$BV$20,0),FALSE)) -> 0
A68: 41 | C68: =VLOOKUP(A68, '2. 2016 Continuity Schedule'!$A$24:$BV$87,3,FALSE) -> IFRS-CGAAP Transition PP&E Amounts Balance + Return Component6 | D68: =VLOOKUP(A68, '2. 2016 Continuity Schedule'!$A$24:$BV$87,4,FALSE) -> 1575 | E68: =IF(ISERROR(VLOOKUP($A68, '2. 2016 Continuity Schedule'!$A$20:$BV$89, MATCH('3. Appendix A'!$E$20, '2. 2016 Continuity Schedule'!$A$20:$BV$20,0),FALSE)), 0, VLOOKUP($A68, '2. 2016 Continuity Schedule'!$A$20:$BV$89, MATCH('3. Appendix A'!$E$20, '2. 2016 Continuity Schedule'!$A$20:$BV$20,0),FALSE)) -> -227206 | F68: RRR 2.1.7 is filed under CGAAP in accordance with OEB requirements therefore this account is not reflected in the Annual 2015 RRR Trial balance filing.
A69: 42 | C69: =VLOOKUP(A69, '2. 2016 Continuity Schedule'!$A$24:$BV$87,3,FALSE) -> Accounting Changes Under CGAAP Balance + Return Component6 | D69: =VLOOKUP(A69, '2. 2016 Continuity Schedule'!$A$24:$BV$87,4,FALSE) -> 1576 | E69: =IF(ISERROR(VLOOKUP($A69, '2. 2016 Continuity Schedule'!$A$20:$BV$89, MATCH('3. Appendix A'!$E$20, '2. 2016 Continuity Schedule'!$A$20:$BV$20,0),FALSE)), 0, VLOOKUP($A69, '2. 2016 Continuity Schedule'!$A$20:$BV$89, MATCH('3. Appendix A'!$E$20, '2. 2016 Continuity Schedule'!$A$20:$BV$20,0),FALSE)) -> 0

Sheet 4. Billing Determinants
B2: TRUE
B16: In the green shaded cells, enter the data related to the proposed load forecast. Do not enter data for the MicroFit class.
E18: A | G18: B | J18: C | L18: D=A-C | O18: E | S18: F =B-C-E
B19: Rate Class (Enter Rate Classes in cells below as they appear on your current tariff of rates and charges) | C19: Units | D19: # of Customers | E19: Total Metered kWh | F19: Total Metered kW | G19: Metered kWh for Non-RPP Customers | H19: Estimated Metered kW for Non-RPP Customers | I19: Distribution Revenue | J19: Metered kWh for Wholesale Market Participants (WMP) | K19: Metered kW for Wholesale Market Participants (WMP) | L19: Total Metered kWh less WMP consumption (if applicable) | M19: Total Metered kW less WMP consumption (if applicable) | N19: GA Allocator for Class A, Non-WMP Customers (if applicable)2 | O19: Metered kWh for any Class A Customers in 2015 (partial or full year) (if applicable)* | P19: Metered kW for any Class A Customers in 2015 (partial or full year) (if applicable) | Q19: Metered kWh Consumption for New Class A customer(s) in the period prior to becoming Class A (i.e. Jan. 1 - June 30, 2015) | R19: Metered kW Consumption for New Class A customer(s) in the period prior to becoming Class A (i.e. Jan. 1 - June 30, 2015) | S19: Metered Consumption kWh for Current Class B Customers (Non-RPP consumption LESS WMP, Class A and new Class A's former Class B consumption, if applicable) | T19: Total Metered kW for Non-RPP Customers less WMP and Class A Consumption | U19: 1595 Recovery Share Proportion (2009) 1 | V19: 1595 Recovery Share Proportion (2010) 1 | W19: 1595 Recovery Share Proportion (2011) 1 | X19: 1595 Recovery Share Proportion (2012) 1 | Y19: 1595 Recovery Share Proportion (2013) 1 | Z19: 1595 Recovery Share Proportion (2014) 1 | AA19: 1595 Recovery Share Proportion (2015) 1 | AB19: 1568 LRAM Variance Account Class Allocation3 ($ amounts) | AC19: Number of Customers for Residential and GS<50 classes2
B21: RESIDENTIAL | C21: kWh | D21: =[9]Summary!$M$12 -> 36432.68073 | E21: =+[9]Summary!$M$13 -> 300579328 | G21: =E21*0.0686 -> 20619741.9 | H21: =IF(ISERROR(F21/E21*G21), 0, F21/E21*G21) -> 0 | I21: ='[10]Cost Allocation Study'!K5 -> 11153627.35 | L21: =E21-J21 -> 300579328 | M21: =F21-K21 -> 0 | S21: =IF(OR(G21=0, ISBLANK(G21)), 0, G21-J21-O21-Q21) -> 20619741.9 | T21: =IF(OR(H21=0, ISBLANK(H21)), 0, H21-K21-P21-R21) -> 0 | V21: 0.2934 | W21: =80/264 -> 0.303030303 | X21: =194/615 -> 0.3154471545 | Y21: =80159/219336 -> 0.365462122 | AA21: 0.3255 | AB21: =[11]Sheet1!$F$5 -> 11933.2238 | AC21: =D21 -> 36432.68073
B22: GS<50 KW | C22: kWh | D22: =[9]Summary!$M$16 -> 2839.839922 | E22: =+[9]Summary!$M$17 -> 102906031.5 | G22: =E22*0.139 -> 14303938.38 | H22: =IF(ISERROR(F22/E22*G22), 0, F22/E22*G22) -> 0 | I22: ='[10]Cost Allocation Study'!$K$6 -> 1845882.692 | L22: =E22-J22 -> 102906031.5 | M22: =F22-K22 -> 0 | S22: =IF(OR(G22=0, ISBLANK(G22)), 0, G22-J22-O22-Q22) -> 14303938.38 | T22: =IF(OR(H22=0, ISBLANK(H22)), 0, H22-K22-P22-R22) -> 0 | V22: 0.1099 | W22: =29/264 -> 0.1098484848 | X22: =66/615 -> 0.1073170732 | Y22: =28217/219336 -> 0.1286473721 | AA22: 0.1144 | AB22: =[11]Sheet1!$F$6 -> 8717.635389 | AC22: =D22 -> 2839.839922
B23: GS>50 KW | C23: kW | D23: =[9]Summary!$M$20+[9]Summary!$M$44 -> 448.6723904 | E23: =+[9]Summary!$M$21+[9]Summary!$M$45 -> 491047934.4 | F23: =+[9]Summary!$M$22+[9]Summary!$M$46 -> 1259313.004 | G23: =E23*0.9309 -> 457116522.1 | H23: 1172294.476 | I23: ='[10]Cost Allocation Study'!$K$7 -> 5282238.241 | J23: =+[9]Summary!$M$45/1.0326 -> 6577936.858 | K23: =[9]Summary!$M$46 -> 12397.7 | L23: 484469997.5 | M23: 1246915.304 | N23: 0.1072797382 | O23: =10728358+16546202 -> 27274560 | P23: =53642+19537 -> 73179 | S23: 423264025.3 | T23: 1086717.776 | V23: 0.585 | W23: =152/264 -> 0.5757575758 | X23: =349/615 -> 0.5674796748 | Y23: =109341/219336 -> 0.4985091367 | AA23: 0.5499 | AB23: =[11]Sheet1!$F$7 -> 141120.7508 | AC23: 448.6723904
B24: STREET LIGHT | C24: kW | D24: =+[9]Summary!$M$35 -> 6351 | E24: =+[9]Summary!$M$36 -> 7460329.303 | F24: =+[9]Summary!$M$37 -> 22796.27692 | G24: =E24 -> 7460329.303 | H24: 22796.27692 | I24: ='[10]Cost Allocation Study'!$K$8 -> 228441.086 | L24: 7460329.303 | M24: 22796.27692 | S24: 7460329.303 | T24: 22796.27692 | V24: =2/287 -> 0.006968641115 | W24: =2/264 -> 0.007575757576 | X24: =5/615 -> 0.008130081301 | Y24: =1294/219336 -> 0.005899624321 | AA24: 0.008
B25: SENTINEL LIGHTING | C25: kW | D25: =+[9]Summary!$M$30 -> 597.177372 | E25: =+[9]Summary!$M$31 -> 382297.1618 | F25: =+[9]Summary!$M$32 -> 1181.28493 | G25: =E25*0.1765 -> 67475.44907 | H25: 208.4967902 | I25: ='[10]Cost Allocation Study'!$K$10 -> 60319.76438 | L25: 382297.1618 | M25: 1181.28493 | N25: 0 | S25: 67475.44907 | T25: 208.4967902 | V25: 0 | W25: 0 | X25: 0 | Y25: =76/219336 -> 0.0003465003465 | AA25: 0.0005
B26: UNMETERED SCATTER LOAD | C26: kWh | D26: =+[9]Summary!$M$40 -> 425.1334997 | E26: =+[9]Summary!$M$41 -> 1405153.92 | G26: 0 | H26: 0 | I26: ='[10]Cost Allocation Study'!$K$11 -> 88441.71689 | L26: 1405153.92 | M26: 0 | N26: 0 | S26: 0 | T26: 0 | V26: =1/287 -> 0.003484320557 | W26: 0 | X26: =1/615 -> 0.00162601626 | Y26: =249/219336 -> 0.001135244556 | AA26: 0.0017
B27: EMBEDDED DISTRIBUTOR | C27: kW | D27: =+[9]Summary!$M$25 -> 2 | E27: =+[9]Summary!$M$26 -> 51013084.14 | F27: =+[9]Summary!$M$27 -> 139437.4964 | G27: =E27 -> 51013084.14 | H27: 139437.4964 | I27: ='[10]Cost Allocation Study'!$K$12 -> 251881.3453 | J27: =E27 -> 51013084.14 | K27: =F27 -> 139437.4964 | L27: 0 | M27: 0 | S27: 0 | T27: 0 | W27: 0 | X27: 0 | Y27: 0 | AA27: 0
H28: 0 | L28: 0 | M28: 0 | S28: 0 | T28: 0
H29: 0 | L29: 0 | M29: 0 | S29: 0 | T29: 0
H30: 0 | L30: 0 | M30: 0 | S30: 0 | T30: 0
H31: 0 | L31: 0 | M31: 0 | S31: 0 | T31: 0
H32: 0 | L32: 0 | M32: 0 | S32: 0 | T32: 0
H33: 0 | L33: 0 | M33: 0 | S33: 0 | T33: 0
H34: 0 | L34: 0 | M34: 0 | S34: 0 | T34: 0
H35: 0 | L35: 0 | M35: 0 | S35: 0 | T35: 0
H36: 0 | L36: 0 | M36: 0 | S36: 0 | T36: 0
H37: 0 | L37: 0 | M37: 0 | S37: 0 | T37: 0
H38: 0 | L38: 0 | M38: 0 | S38: 0 | T38: 0
H39: 0 | L39: 0 | M39: 0 | S39: 0 | T39: 0
H40: 0 | L40: 0 | M40: 0 | S40: 0 | T40: 0
B41: Total | D41: =SUM(D21:D40) -> 47096.50392 | E41: 954794158.4 | F41: 1422728.063 | G41: 550581091.3 | H41: 1334736.746 | I41: 18910832.2 | J41: 57591021 | K41: =SUM(K21:K40) -> 151835.1964 | L41: 897203137.4 | M41: 1270892.866 | N41: 0.1072797382 | O41: 27274560 | P41: 73179 | S41: =SUM(S21:S40) -> 465715510.3 | T41: 1109722.549 | U41: =SUM(U21:U40) -> 0 | V41: =SUM(V21:V40) -> 0.9987529617 | W41: =SUM(W21:W40) -> 0.9962121212 | X41: =SUM(X21:X40) -> 1 | Y41: =SUM(Y21:Y40) -> 1 | AA41: =SUM(AA21:AA40) -> 1 | AB41: =SUM(AB21:AB40) -> 161771.61
AA42: Balance as per Sheet 2 | AB42: ='2. 2016 Continuity Schedule'!CE68 -> 0
AA43: Variance | AB43: =AB41-AB42 -> 161771.61
B44: *For new Class A customers (who became Class A in 2015), add their consumption only related to July to December period.
A47: 1 Residual Account balance to be allocated to rate classes in proportion to the recovery share as established when rate riders were implemented.
A49: 2 The proportion of customers for the Residential and GS<50 Classes will be used to allocate Account 1551.
A51: 3 Input the allocation as determined in the LRAMVA model. The associated rate riders will be calculated in the EDDVAR model.

Sheet 5. Allocation of Balances
AA1: 21
AA2: 22
A4: 1 | D4: Amounts from Sheet 2 | E4: Allocator | F4: =IF(LEN(TRIM('4. Billing Determinants'!$B21))=0, "", UPPER('4. Billing Determinants'!$B21)) -> RESIDENTIAL | G4: =IF(LEN(TRIM('4. Billing Determinants'!$B22))=0, "", '4. Billing Determinants'!$B22) -> GS<50 KW | H4: =IF(LEN(TRIM('4. Billing Determinants'!$B23))=0, "", '4. Billing Determinants'!$B23) -> GS>50 KW | I4: =IF(LEN(TRIM('4. Billing Determinants'!$B24))=0, "", '4. Billing Determinants'!$B24) -> STREET LIGHT | J4: =IF(LEN(TRIM('4. Billing Determinants'!$B25))=0, "", '4. Billing Determinants'!$B25) -> SENTINEL LIGHTING | K4: =IF(LEN(TRIM('4. Billing Determinants'!$B26))=0, "", '4. Billing Determinants'!$B26) -> UNMETERED SCATTER LOAD | L4: =IF(LEN(TRIM('4. Billing Determinants'!$B27))=0, "", '4. Billing Determinants'!$B27) -> EMBEDDED DISTRIBUTOR | M4: =IF(LEN(TRIM('4. Billing Determinants'!$B28))=0, "", '4. Billing Determinants'!$B28) ->  | N4: =IF(LEN(TRIM('4. Billing Determinants'!$B29))=0, "", '4. Billing Determinants'!$B29) ->  | O4: =IF(LEN(TRIM('4. Billing Determinants'!$B30))=0, "", '4. Billing Determinants'!$B30) ->  | P4: =IF(LEN(TRIM('4. Billing Determinants'!$B31))=0, "", '4. Billing Determinants'!$B31) ->  | Q4: =IF(LEN(TRIM('4. Billing Determinants'!$B32))=0, "", '4. Billing Determinants'!$B32) ->  | R4: =IF(LEN(TRIM('4. Billing Determinants'!$B33))=0, "", '4. Billing Determinants'!$B33) ->  | S4: =IF(LEN(TRIM('4. Billing Determinants'!$B34))=0, "", '4. Billing Determinants'!$B34) ->  | T4: =IF(LEN(TRIM('4. Billing Determinants'!$B35))=0, "", '4. Billing Determinants'!$B35) ->  | U4: =IF(LEN(TRIM('4. Billing Determinants'!$B36))=0, "", '4. Billing Determinants'!$B36) ->  | V4: =IF(LEN(TRIM('4. Billing Determinants'!$B37))=0, "", '4. Billing Determinants'!$B37) ->  | W4: =IF(LEN(TRIM('4. Billing Determinants'!$B38))=0, "", '4. Billing Determinants'!$B38) ->  | X4: =IF(LEN(TRIM('4. Billing Determinants'!$B39))=0, "", '4. Billing Determinants'!$B39) ->  | Y4: =IF(LEN(TRIM('4. Billing Determinants'!$B40))=0, "", '4. Billing Determinants'!$B40) -> 
A5: 2 | B5: LV Variance Account | C5: 1550 | D5: ='2. 2016 Continuity Schedule'!BT24 -> 0 | E5: kWh | F5: =IFERROR(IF(F$4="",0,IF($E5="kWh",VLOOKUP(F$4,'4. Billing Determinants'!$B$19:$R$41,4,0)/'4. Billing Determinants'!$E$41*$D5,IF($E5="kW",VLOOKUP(F$4,'4. Billing Determinants'!$B$19:$R$41,5,0)/'4. Billing Determinants'!$F$41*$D5,IF($E5="Non-RPP kWh",VLOOKUP(F$4,'4. Billing Determinants'!$B$19:$R$41,6,0)/'4. Billing Determinants'!$G$41*$D5,IF($E5="Distribution Rev.",VLOOKUP(F$4,'4. Billing Determinants'!$B$19:$R$41,8,0)/'4. Billing Determinants'!$I$41*$D5, VLOOKUP(F$4,'4. Billing Determinants'!$B$19:$R$41,3,0)/'4. Billing Determinants'!$D$41*$D5))))),0) -> 0 | G5: =IFERROR(IF(G$4="",0,IF($E5="kWh",VLOOKUP(G$4,'4. Billing Determinants'!$B$19:$R$41,4,0)/'4. Billing Determinants'!$E$41*$D5,IF($E5="kW",VLOOKUP(G$4,'4. Billing Determinants'!$B$19:$R$41,5,0)/'4. Billing Determinants'!$F$41*$D5,IF($E5="Non-RPP kWh",VLOOKUP(G$4,'4. Billing Determinants'!$B$19:$R$41,6,0)/'4. Billing Determinants'!$G$41*$D5,IF($E5="Distribution Rev.",VLOOKUP(G$4,'4. Billing Determinants'!$B$19:$R$41,8,0)/'4. Billing Determinants'!$I$41*$D5, VLOOKUP(G$4,'4. Billing Determinants'!$B$19:$R$41,3,0)/'4. Billing Determinants'!$D$41*$D5))))),0) -> 0 | H5: =IFERROR(IF(H$4="",0,IF($E5="kWh",VLOOKUP(H$4,'4. Billing Determinants'!$B$19:$R$41,4,0)/'4. Billing Determinants'!$E$41*$D5,IF($E5="kW",VLOOKUP(H$4,'4. Billing Determinants'!$B$19:$R$41,5,0)/'4. Billing Determinants'!$F$41*$D5,IF($E5="Non-RPP kWh",VLOOKUP(H$4,'4. Billing Determinants'!$B$19:$R$41,6,0)/'4. Billing Determinants'!$G$41*$D5,IF($E5="Distribution Rev.",VLOOKUP(H$4,'4. Billing Determinants'!$B$19:$R$41,8,0)/'4. Billing Determinants'!$I$41*$D5, VLOOKUP(H$4,'4. Billing Determinants'!$B$19:$R$41,3,0)/'4. Billing Determinants'!$D$41*$D5))))),0) -> 0 | I5: =IFERROR(IF(I$4="",0,IF($E5="kWh",VLOOKUP(I$4,'4. Billing Determinants'!$B$19:$R$41,4,0)/'4. Billing Determinants'!$E$41*$D5,IF($E5="kW",VLOOKUP(I$4,'4. Billing Determinants'!$B$19:$R$41,5,0)/'4. Billing Determinants'!$F$41*$D5,IF($E5="Non-RPP kWh",VLOOKUP(I$4,'4. Billing Determinants'!$B$19:$R$41,6,0)/'4. Billing Determinants'!$G$41*$D5,IF($E5="Distribution Rev.",VLOOKUP(I$4,'4. Billing Determinants'!$B$19:$R$41,8,0)/'4. Billing Determinants'!$I$41*$D5, VLOOKUP(I$4,'4. Billing Determinants'!$B$19:$R$41,3,0)/'4. Billing Determinants'!$D$41*$D5))))),0) -> 0 | J5: =IFERROR(IF(J$4="",0,IF($E5="kWh",VLOOKUP(J$4,'4. Billing Determinants'!$B$19:$R$41,4,0)/'4. Billing Determinants'!$E$41*$D5,IF($E5="kW",VLOOKUP(J$4,'4. Billing Determinants'!$B$19:$R$41,5,0)/'4. Billing Determinants'!$F$41*$D5,IF($E5="Non-RPP kWh",VLOOKUP(J$4,'4. Billing Determinants'!$B$19:$R$41,6,0)/'4. Billing Determinants'!$G$41*$D5,IF($E5="Distribution Rev.",VLOOKUP(J$4,'4. Billing Determinants'!$B$19:$R$41,8,0)/'4. Billing Determinants'!$I$41*$D5, VLOOKUP(J$4,'4. Billing Determinants'!$B$19:$R$41,3,0)/'4. Billing Determinants'!$D$41*$D5))))),0) -> 0 | K5: =IFERROR(IF(K$4="",0,IF($E5="kWh",VLOOKUP(K$4,'4. Billing Determinants'!$B$19:$R$41,4,0)/'4. Billing Determinants'!$E$41*$D5,IF($E5="kW",VLOOKUP(K$4,'4. Billing Determinants'!$B$19:$R$41,5,0)/'4. Billing Determinants'!$F$41*$D5,IF($E5="Non-RPP kWh",VLOOKUP(K$4,'4. Billing Determinants'!$B$19:$R$41,6,0)/'4. Billing Determinants'!$G$41*$D5,IF($E5="Distribution Rev.",VLOOKUP(K$4,'4. Billing Determinants'!$B$19:$R$41,8,0)/'4. Billing Determinants'!$I$41*$D5, VLOOKUP(K$4,'4. Billing Determinants'!$B$19:$R$41,3,0)/'4. Billing Determinants'!$D$41*$D5))))),0) -> 0 | L5: =IFERROR(IF(L$4="",0,IF($E5="kWh",VLOOKUP(L$4,'4. Billing Determinants'!$B$19:$R$41,4,0)/'4. Billing Determinants'!$E$41*$D5,IF($E5="kW",VLOOKUP(L$4,'4. Billing Determinants'!$B$19:$R$41,5,0)/'4. Billing Determinants'!$F$41*$D5,IF($E5="Non-RPP kWh",VLOOKUP(L$4,'4. Billing Determinants'!$B$19:$R$41,6,0)/'4. Billing Determinants'!$G$41*$D5,IF($E5="Distribution Rev.",VLOOKUP(L$4,'4. Billing Determinants'!$B$19:$R$41,8,0)/'4. Billing Determinants'!$I$41*$D5, VLOOKUP(L$4,'4. Billing Determinants'!$B$19:$R$41,3,0)/'4. Billing Determinants'!$D$41*$D5))))),0) -> 0 | M5: =IFERROR(IF(M$4="",0,IF($E5="kWh",VLOOKUP(M$4,'4. Billing Determinants'!$B$19:$R$41,4,0)/'4. Billing Determinants'!$E$41*$D5,IF($E5="kW",VLOOKUP(M$4,'4. Billing Determinants'!$B$19:$R$41,5,0)/'4. Billing Determinants'!$F$41*$D5,IF($E5="Non-RPP kWh",VLOOKUP(M$4,'4. Billing Determinants'!$B$19:$R$41,6,0)/'4. Billing Determinants'!$G$41*$D5,IF($E5="Distribution Rev.",VLOOKUP(M$4,'4. Billing Determinants'!$B$19:$R$41,8,0)/'4. Billing Determinants'!$I$41*$D5, VLOOKUP(M$4,'4. Billing Determinants'!$B$19:$R$41,3,0)/'4. Billing Determinants'!$D$41*$D5))))),0) -> 0 | N5: =IFERROR(IF(N$4="",0,IF($E5="kWh",VLOOKUP(N$4,'4. Billing Determinants'!$B$19:$R$41,4,0)/'4. Billing Determinants'!$E$41*$D5,IF($E5="kW",VLOOKUP(N$4,'4. Billing Determinants'!$B$19:$R$41,5,0)/'4. Billing Determinants'!$F$41*$D5,IF($E5="Non-RPP kWh",VLOOKUP(N$4,'4. Billing Determinants'!$B$19:$R$41,6,0)/'4. Billing Determinants'!$G$41*$D5,IF($E5="Distribution Rev.",VLOOKUP(N$4,'4. Billing Determinants'!$B$19:$R$41,8,0)/'4. Billing Determinants'!$I$41*$D5, VLOOKUP(N$4,'4. Billing Determinants'!$B$19:$R$41,3,0)/'4. Billing Determinants'!$D$41*$D5))))),0) -> 0 | O5: =IFERROR(IF(O$4="",0,IF($E5="kWh",VLOOKUP(O$4,'4. Billing Determinants'!$B$19:$R$41,4,0)/'4. Billing Determinants'!$E$41*$D5,IF($E5="kW",VLOOKUP(O$4,'4. Billing Determinants'!$B$19:$R$41,5,0)/'4. Billing Determinants'!$F$41*$D5,IF($E5="Non-RPP kWh",VLOOKUP(O$4,'4. Billing Determinants'!$B$19:$R$41,6,0)/'4. Billing Determinants'!$G$41*$D5,IF($E5="Distribution Rev.",VLOOKUP(O$4,'4. Billing Determinants'!$B$19:$R$41,8,0)/'4. Billing Determinants'!$I$41*$D5, VLOOKUP(O$4,'4. Billing Determinants'!$B$19:$R$41,3,0)/'4. Billing Determinants'!$D$41*$D5))))),0) -> 0 | P5: =IFERROR(IF(P$4="",0,IF($E5="kWh",VLOOKUP(P$4,'4. Billing Determinants'!$B$19:$R$41,4,0)/'4. Billing Determinants'!$E$41*$D5,IF($E5="kW",VLOOKUP(P$4,'4. Billing Determinants'!$B$19:$R$41,5,0)/'4. Billing Determinants'!$F$41*$D5,IF($E5="Non-RPP kWh",VLOOKUP(P$4,'4. Billing Determinants'!$B$19:$R$41,6,0)/'4. Billing Determinants'!$G$41*$D5,IF($E5="Distribution Rev.",VLOOKUP(P$4,'4. Billing Determinants'!$B$19:$R$41,8,0)/'4. Billing Determinants'!$I$41*$D5, VLOOKUP(P$4,'4. Billing Determinants'!$B$19:$R$41,3,0)/'4. Billing Determinants'!$D$41*$D5))))),0) -> 0 | Q5: =IFERROR(IF(Q$4="",0,IF($E5="kWh",VLOOKUP(Q$4,'4. Billing Determinants'!$B$19:$R$41,4,0)/'4. Billing Determinants'!$E$41*$D5,IF($E5="kW",VLOOKUP(Q$4,'4. Billing Determinants'!$B$19:$R$41,5,0)/'4. Billing Determinants'!$F$41*$D5,IF($E5="Non-RPP kWh",VLOOKUP(Q$4,'4. Billing Determinants'!$B$19:$R$41,6,0)/'4. Billing Determinants'!$G$41*$D5,IF($E5="Distribution Rev.",VLOOKUP(Q$4,'4. Billing Determinants'!$B$19:$R$41,8,0)/'4. Billing Determinants'!$I$41*$D5, VLOOKUP(Q$4,'4. Billing Determinants'!$B$19:$R$41,3,0)/'4. Billing Determinants'!$D$41*$D5))))),0) -> 0 | R5: =IFERROR(IF(R$4="",0,IF($E5="kWh",VLOOKUP(R$4,'4. Billing Determinants'!$B$19:$R$41,4,0)/'4. Billing Determinants'!$E$41*$D5,IF($E5="kW",VLOOKUP(R$4,'4. Billing Determinants'!$B$19:$R$41,5,0)/'4. Billing Determinants'!$F$41*$D5,IF($E5="Non-RPP kWh",VLOOKUP(R$4,'4. Billing Determinants'!$B$19:$R$41,6,0)/'4. Billing Determinants'!$G$41*$D5,IF($E5="Distribution Rev.",VLOOKUP(R$4,'4. Billing Determinants'!$B$19:$R$41,8,0)/'4. Billing Determinants'!$I$41*$D5, VLOOKUP(R$4,'4. Billing Determinants'!$B$19:$R$41,3,0)/'4. Billing Determinants'!$D$41*$D5))))),0) -> 0 | S5: =IFERROR(IF(S$4="",0,IF($E5="kWh",VLOOKUP(S$4,'4. Billing Determinants'!$B$19:$R$41,4,0)/'4. Billing Determinants'!$E$41*$D5,IF($E5="kW",VLOOKUP(S$4,'4. Billing Determinants'!$B$19:$R$41,5,0)/'4. Billing Determinants'!$F$41*$D5,IF($E5="Non-RPP kWh",VLOOKUP(S$4,'4. Billing Determinants'!$B$19:$R$41,6,0)/'4. Billing Determinants'!$G$41*$D5,IF($E5="Distribution Rev.",VLOOKUP(S$4,'4. Billing Determinants'!$B$19:$R$41,8,0)/'4. Billing Determinants'!$I$41*$D5, VLOOKUP(S$4,'4. Billing Determinants'!$B$19:$R$41,3,0)/'4. Billing Determinants'!$D$41*$D5))))),0) -> 0 | T5: =IFERROR(IF(T$4="",0,IF($E5="kWh",VLOOKUP(T$4,'4. Billing Determinants'!$B$19:$R$41,4,0)/'4. Billing Determinants'!$E$41*$D5,IF($E5="kW",VLOOKUP(T$4,'4. Billing Determinants'!$B$19:$R$41,5,0)/'4. Billing Determinants'!$F$41*$D5,IF($E5="Non-RPP kWh",VLOOKUP(T$4,'4. Billing Determinants'!$B$19:$R$41,6,0)/'4. Billing Determinants'!$G$41*$D5,IF($E5="Distribution Rev.",VLOOKUP(T$4,'4. Billing Determinants'!$B$19:$R$41,8,0)/'4. Billing Determinants'!$I$41*$D5, VLOOKUP(T$4,'4. Billing Determinants'!$B$19:$R$41,3,0)/'4. Billing Determinants'!$D$41*$D5))))),0) -> 0 | U5: =IFERROR(IF(U$4="",0,IF($E5="kWh",VLOOKUP(U$4,'4. Billing Determinants'!$B$19:$R$41,4,0)/'4. Billing Determinants'!$E$41*$D5,IF($E5="kW",VLOOKUP(U$4,'4. Billing Determinants'!$B$19:$R$41,5,0)/'4. Billing Determinants'!$F$41*$D5,IF($E5="Non-RPP kWh",VLOOKUP(U$4,'4. Billing Determinants'!$B$19:$R$41,6,0)/'4. Billing Determinants'!$G$41*$D5,IF($E5="Distribution Rev.",VLOOKUP(U$4,'4. Billing Determinants'!$B$19:$R$41,8,0)/'4. Billing Determinants'!$I$41*$D5, VLOOKUP(U$4,'4. Billing Determinants'!$B$19:$R$41,3,0)/'4. Billing Determinants'!$D$41*$D5))))),0) -> 0 | V5: =IFERROR(IF(V$4="",0,IF($E5="kWh",VLOOKUP(V$4,'4. Billing Determinants'!$B$19:$R$41,4,0)/'4. Billing Determinants'!$E$41*$D5,IF($E5="kW",VLOOKUP(V$4,'4. Billing Determinants'!$B$19:$R$41,5,0)/'4. Billing Determinants'!$F$41*$D5,IF($E5="Non-RPP kWh",VLOOKUP(V$4,'4. Billing Determinants'!$B$19:$R$41,6,0)/'4. Billing Determinants'!$G$41*$D5,IF($E5="Distribution Rev.",VLOOKUP(V$4,'4. Billing Determinants'!$B$19:$R$41,8,0)/'4. Billing Determinants'!$I$41*$D5, VLOOKUP(V$4,'4. Billing Determinants'!$B$19:$R$41,3,0)/'4. Billing Determinants'!$D$41*$D5))))),0) -> 0 | W5: =IFERROR(IF(W$4="",0,IF($E5="kWh",VLOOKUP(W$4,'4. Billing Determinants'!$B$19:$R$41,4,0)/'4. Billing Determinants'!$E$41*$D5,IF($E5="kW",VLOOKUP(W$4,'4. Billing Determinants'!$B$19:$R$41,5,0)/'4. Billing Determinants'!$F$41*$D5,IF($E5="Non-RPP kWh",VLOOKUP(W$4,'4. Billing Determinants'!$B$19:$R$41,6,0)/'4. Billing Determinants'!$G$41*$D5,IF($E5="Distribution Rev.",VLOOKUP(W$4,'4. Billing Determinants'!$B$19:$R$41,8,0)/'4. Billing Determinants'!$I$41*$D5, VLOOKUP(W$4,'4. Billing Determinants'!$B$19:$R$41,3,0)/'4. Billing Determinants'!$D$41*$D5))))),0) -> 0 | X5: =IFERROR(IF(X$4="",0,IF($E5="kWh",VLOOKUP(X$4,'4. Billing Determinants'!$B$19:$R$41,4,0)/'4. Billing Determinants'!$E$41*$D5,IF($E5="kW",VLOOKUP(X$4,'4. Billing Determinants'!$B$19:$R$41,5,0)/'4. Billing Determinants'!$F$41*$D5,IF($E5="Non-RPP kWh",VLOOKUP(X$4,'4. Billing Determinants'!$B$19:$R$41,6,0)/'4. Billing Determinants'!$G$41*$D5,IF($E5="Distribution Rev.",VLOOKUP(X$4,'4. Billing Determinants'!$B$19:$R$41,8,0)/'4. Billing Determinants'!$I$41*$D5, VLOOKUP(X$4,'4. Billing Determinants'!$B$19:$R$41,3,0)/'4. Billing Determinants'!$D$41*$D5))))),0) -> 0 | Y5: =IFERROR(IF(Y$4="",0,IF($E5="kWh",VLOOKUP(Y$4,'4. Billing Determinants'!$B$19:$R$41,4,0)/'4. Billing Determinants'!$E$41*$D5,IF($E5="kW",VLOOKUP(Y$4,'4. Billing Determinants'!$B$19:$R$41,5,0)/'4. Billing Determinants'!$F$41*$D5,IF($E5="Non-RPP kWh",VLOOKUP(Y$4,'4. Billing Determinants'!$B$19:$R$41,6,0)/'4. Billing Determinants'!$G$41*$D5,IF($E5="Distribution Rev.",VLOOKUP(Y$4,'4. Billing Determinants'!$B$19:$R$41,8,0)/'4. Billing Determinants'!$I$41*$D5, VLOOKUP(Y$4,'4. Billing Determinants'!$B$19:$R$41,3,0)/'4. Billing Determinants'!$D$41*$D5))))),0) -> 0
A6: 3 | B6: Smart Metering Entity Charge Variance Account | C6: 1551 | D6: ='2. 2016 Continuity Schedule'!BT25 -> -4794.81827 | E6: # of Customers | F6: =(36432.6807343423/(36432.6807343423+2839.8399223469))*D6 -> -4448.099595 | G6: 0 | H6: 0 | I6: 0 | J6: 0 | K6: 0 | L6: 0 | M6: 0 | N6: 0 | O6: 0 | P6: 0 | Q6: 0 | R6: 0 | S6: 0 | T6: 0 | U6: 0 | V6: 0 | W6: 0 | X6: 0 | Y6: 0
A7: 4 | B7: RSVA - Wholesale Market Service Charge | C7: 1580 | D7: =IF('2. 2016 Continuity Schedule'!CA11,'2. 2016 Continuity Schedule'!BT26,'2. 2016 Continuity Schedule'!BT26+'2. 2016 Continuity Schedule'!BT28) -> -1821671.047 | E7: kWh | F7: =IFERROR(IF(F$4="",0,IF($E7="kWh",VLOOKUP(F$4,'4. Billing Determinants'!$B$19:$R$41,11,0)/'4. Billing Determinants'!$L$41*$D7,IF($E7="kW",VLOOKUP(F$4,'4. Billing Determinants'!$B$19:$R$41,12,0)/'4. Billing Determinants'!$M$41*$D7,))),0) -> -610292.8493 | G7: =IFERROR(IF(G$4="",0,IF($E7="kWh",VLOOKUP(G$4,'4. Billing Determinants'!$B$19:$R$41,11,0)/'4. Billing Determinants'!$L$41*$D7,IF($E7="kW",VLOOKUP(G$4,'4. Billing Determinants'!$B$19:$R$41,12,0)/'4. Billing Determinants'!$M$41*$D7,))),0) -> -208939.2361 | H7: =IFERROR(IF(H$4="",0,IF($E7="kWh",VLOOKUP(H$4,'4. Billing Determinants'!$B$19:$R$41,11,0)/'4. Billing Determinants'!$L$41*$D7,IF($E7="kW",VLOOKUP(H$4,'4. Billing Determinants'!$B$19:$R$41,12,0)/'4. Billing Determinants'!$M$41*$D7,))),0) -> -983662.3734 | I7: =IFERROR(IF(I$4="",0,IF($E7="kWh",VLOOKUP(I$4,'4. Billing Determinants'!$B$19:$R$41,11,0)/'4. Billing Determinants'!$L$41*$D7,IF($E7="kW",VLOOKUP(I$4,'4. Billing Determinants'!$B$19:$R$41,12,0)/'4. Billing Determinants'!$M$41*$D7,))),0) -> -15147.36777 | J7: =IFERROR(IF(J$4="",0,IF($E7="kWh",VLOOKUP(J$4,'4. Billing Determinants'!$B$19:$R$41,11,0)/'4. Billing Determinants'!$L$41*$D7,IF($E7="kW",VLOOKUP(J$4,'4. Billing Determinants'!$B$19:$R$41,12,0)/'4. Billing Determinants'!$M$41*$D7,))),0) -> -776.2118098 | K7: =IFERROR(IF(K$4="",0,IF($E7="kWh",VLOOKUP(K$4,'4. Billing Determinants'!$B$19:$R$41,11,0)/'4. Billing Determinants'!$L$41*$D7,IF($E7="kW",VLOOKUP(K$4,'4. Billing Determinants'!$B$19:$R$41,12,0)/'4. Billing Determinants'!$M$41*$D7,))),0) -> -2853.008538 | L7: =IFERROR(IF(L$4="",0,IF($E7="kWh",VLOOKUP(L$4,'4. Billing Determinants'!$B$19:$R$41,11,0)/'4. Billing Determinants'!$L$41*$D7,IF($E7="kW",VLOOKUP(L$4,'4. Billing Determinants'!$B$19:$R$41,12,0)/'4. Billing Determinants'!$M$41*$D7,))),0) -> 0 | M7: =IFERROR(IF(M$4="",0,IF($E7="kWh",VLOOKUP(M$4,'4. Billing Determinants'!$B$19:$R$41,11,0)/'4. Billing Determinants'!$L$41*$D7,IF($E7="kW",VLOOKUP(M$4,'4. Billing Determinants'!$B$19:$R$41,12,0)/'4. Billing Determinants'!$M$41*$D7,))),0) -> 0 | N7: =IFERROR(IF(N$4="",0,IF($E7="kWh",VLOOKUP(N$4,'4. Billing Determinants'!$B$19:$R$41,11,0)/'4. Billing Determinants'!$L$41*$D7,IF($E7="kW",VLOOKUP(N$4,'4. Billing Determinants'!$B$19:$R$41,12,0)/'4. Billing Determinants'!$M$41*$D7,))),0) -> 0 | O7: =IFERROR(IF(O$4="",0,IF($E7="kWh",VLOOKUP(O$4,'4. Billing Determinants'!$B$19:$R$41,11,0)/'4. Billing Determinants'!$L$41*$D7,IF($E7="kW",VLOOKUP(O$4,'4. Billing Determinants'!$B$19:$R$41,12,0)/'4. Billing Determinants'!$M$41*$D7,))),0) -> 0 | P7: =IFERROR(IF(P$4="",0,IF($E7="kWh",VLOOKUP(P$4,'4. Billing Determinants'!$B$19:$R$41,11,0)/'4. Billing Determinants'!$L$41*$D7,IF($E7="kW",VLOOKUP(P$4,'4. Billing Determinants'!$B$19:$R$41,12,0)/'4. Billing Determinants'!$M$41*$D7,))),0) -> 0 | Q7: =IFERROR(IF(Q$4="",0,IF($E7="kWh",VLOOKUP(Q$4,'4. Billing Determinants'!$B$19:$R$41,11,0)/'4. Billing Determinants'!$L$41*$D7,IF($E7="kW",VLOOKUP(Q$4,'4. Billing Determinants'!$B$19:$R$41,12,0)/'4. Billing Determinants'!$M$41*$D7,))),0) -> 0 | R7: =IFERROR(IF(R$4="",0,IF($E7="kWh",VLOOKUP(R$4,'4. Billing Determinants'!$B$19:$R$41,11,0)/'4. Billing Determinants'!$L$41*$D7,IF($E7="kW",VLOOKUP(R$4,'4. Billing Determinants'!$B$19:$R$41,12,0)/'4. Billing Determinants'!$M$41*$D7,))),0) -> 0 | S7: =IFERROR(IF(S$4="",0,IF($E7="kWh",VLOOKUP(S$4,'4. Billing Determinants'!$B$19:$R$41,11,0)/'4. Billing Determinants'!$L$41*$D7,IF($E7="kW",VLOOKUP(S$4,'4. Billing Determinants'!$B$19:$R$41,12,0)/'4. Billing Determinants'!$M$41*$D7,))),0) -> 0 | T7: =IFERROR(IF(T$4="",0,IF($E7="kWh",VLOOKUP(T$4,'4. Billing Determinants'!$B$19:$R$41,11,0)/'4. Billing Determinants'!$L$41*$D7,IF($E7="kW",VLOOKUP(T$4,'4. Billing Determinants'!$B$19:$R$41,12,0)/'4. Billing Determinants'!$M$41*$D7,))),0) -> 0 | U7: =IFERROR(IF(U$4="",0,IF($E7="kWh",VLOOKUP(U$4,'4. Billing Determinants'!$B$19:$R$41,11,0)/'4. Billing Determinants'!$L$41*$D7,IF($E7="kW",VLOOKUP(U$4,'4. Billing Determinants'!$B$19:$R$41,12,0)/'4. Billing Determinants'!$M$41*$D7,))),0) -> 0 | V7: =IFERROR(IF(V$4="",0,IF($E7="kWh",VLOOKUP(V$4,'4. Billing Determinants'!$B$19:$R$41,11,0)/'4. Billing Determinants'!$L$41*$D7,IF($E7="kW",VLOOKUP(V$4,'4. Billing Determinants'!$B$19:$R$41,12,0)/'4. Billing Determinants'!$M$41*$D7,))),0) -> 0 | W7: =IFERROR(IF(W$4="",0,IF($E7="kWh",VLOOKUP(W$4,'4. Billing Determinants'!$B$19:$R$41,11,0)/'4. Billing Determinants'!$L$41*$D7,IF($E7="kW",VLOOKUP(W$4,'4. Billing Determinants'!$B$19:$R$41,12,0)/'4. Billing Determinants'!$M$41*$D7,))),0) -> 0 | X7: =IFERROR(IF(X$4="",0,IF($E7="kWh",VLOOKUP(X$4,'4. Billing Determinants'!$B$19:$R$41,11,0)/'4. Billing Determinants'!$L$41*$D7,IF($E7="kW",VLOOKUP(X$4,'4. Billing Determinants'!$B$19:$R$41,12,0)/'4. Billing Determinants'!$M$41*$D7,))),0) -> 0 | Y7: =IFERROR(IF(Y$4="",0,IF($E7="kWh",VLOOKUP(Y$4,'4. Billing Determinants'!$B$19:$R$41,11,0)/'4. Billing Determinants'!$L$41*$D7,IF($E7="kW",VLOOKUP(Y$4,'4. Billing Determinants'!$B$19:$R$41,12,0)/'4. Billing Determinants'!$M$41*$D7,))),0) -> 0
A8: 5 | B8: RSVA - Retail Transmission Network Charge | C8: 1584 | D8: ='2. 2016 Continuity Schedule'!BT29 -> -252666.9518 | E8: kWh | F8: =IFERROR(IF(F$4="",0,IF($E8="kWh",VLOOKUP(F$4,'4. Billing Determinants'!$B$19:$R$41,4,0)/'4. Billing Determinants'!$E$41*$D8,IF($E8="kW",VLOOKUP(F$4,'4. Billing Determinants'!$B$19:$R$41,5,0)/'4. Billing Determinants'!$F$41*$D8,IF($E8="Non-RPP kWh",VLOOKUP(F$4,'4. Billing Determinants'!$B$19:$R$41,6,0)/'4. Billing Determinants'!$G$41*$D8,IF($E8="Distribution Rev.",VLOOKUP(F$4,'4. Billing Determinants'!$B$19:$R$41,8,0)/'4. Billing Determinants'!$I$41*$D8, VLOOKUP(F$4,'4. Billing Determinants'!$B$19:$R$41,3,0)/'4. Billing Determinants'!$D$41*$D8))))),0) -> -79542.23632 | G8: =IFERROR(IF(G$4="",0,IF($E8="kWh",VLOOKUP(G$4,'4. Billing Determinants'!$B$19:$R$41,4,0)/'4. Billing Determinants'!$E$41*$D8,IF($E8="kW",VLOOKUP(G$4,'4. Billing Determinants'!$B$19:$R$41,5,0)/'4. Billing Determinants'!$F$41*$D8,IF($E8="Non-RPP kWh",VLOOKUP(G$4,'4. Billing Determinants'!$B$19:$R$41,6,0)/'4. Billing Determinants'!$G$41*$D8,IF($E8="Distribution Rev.",VLOOKUP(G$4,'4. Billing Determinants'!$B$19:$R$41,8,0)/'4. Billing Determinants'!$I$41*$D8, VLOOKUP(G$4,'4. Billing Determinants'!$B$19:$R$41,3,0)/'4. Billing Determinants'!$D$41*$D8))))),0) -> -27231.99873 | H8: =IFERROR(IF(H$4="",0,IF($E8="kWh",VLOOKUP(H$4,'4. Billing Determinants'!$B$19:$R$41,4,0)/'4. Billing Determinants'!$E$41*$D8,IF($E8="kW",VLOOKUP(H$4,'4. Billing Determinants'!$B$19:$R$41,5,0)/'4. Billing Determinants'!$F$41*$D8,IF($E8="Non-RPP kWh",VLOOKUP(H$4,'4. Billing Determinants'!$B$19:$R$41,6,0)/'4. Billing Determinants'!$G$41*$D8,IF($E8="Distribution Rev.",VLOOKUP(H$4,'4. Billing Determinants'!$B$19:$R$41,8,0)/'4. Billing Determinants'!$I$41*$D8, VLOOKUP(H$4,'4. Billing Determinants'!$B$19:$R$41,3,0)/'4. Billing Determinants'!$D$41*$D8))))),0) -> -129945.8985 | I8: =IFERROR(IF(I$4="",0,IF($E8="kWh",VLOOKUP(I$4,'4. Billing Determinants'!$B$19:$R$41,4,0)/'4. Billing Determinants'!$E$41*$D8,IF($E8="kW",VLOOKUP(I$4,'4. Billing Determinants'!$B$19:$R$41,5,0)/'4. Billing Determinants'!$F$41*$D8,IF($E8="Non-RPP kWh",VLOOKUP(I$4,'4. Billing Determinants'!$B$19:$R$41,6,0)/'4. Billing Determinants'!$G$41*$D8,IF($E8="Distribution Rev.",VLOOKUP(I$4,'4. Billing Determinants'!$B$19:$R$41,8,0)/'4. Billing Determinants'!$I$41*$D8, VLOOKUP(I$4,'4. Billing Determinants'!$B$19:$R$41,3,0)/'4. Billing Determinants'!$D$41*$D8))))),0) -> -1974.225175 | J8: =IFERROR(IF(J$4="",0,IF($E8="kWh",VLOOKUP(J$4,'4. Billing Determinants'!$B$19:$R$41,4,0)/'4. Billing Determinants'!$E$41*$D8,IF($E8="kW",VLOOKUP(J$4,'4. Billing Determinants'!$B$19:$R$41,5,0)/'4. Billing Determinants'!$F$41*$D8,IF($E8="Non-RPP kWh",VLOOKUP(J$4,'4. Billing Determinants'!$B$19:$R$41,6,0)/'4. Billing Determinants'!$G$41*$D8,IF($E8="Distribution Rev.",VLOOKUP(J$4,'4. Billing Determinants'!$B$19:$R$41,8,0)/'4. Billing Determinants'!$I$41*$D8, VLOOKUP(J$4,'4. Billing Determinants'!$B$19:$R$41,3,0)/'4. Billing Determinants'!$D$41*$D8))))),0) -> -101.1672073 | K8: =IFERROR(IF(K$4="",0,IF($E8="kWh",VLOOKUP(K$4,'4. Billing Determinants'!$B$19:$R$41,4,0)/'4. Billing Determinants'!$E$41*$D8,IF($E8="kW",VLOOKUP(K$4,'4. Billing Determinants'!$B$19:$R$41,5,0)/'4. Billing Determinants'!$F$41*$D8,IF($E8="Non-RPP kWh",VLOOKUP(K$4,'4. Billing Determinants'!$B$19:$R$41,6,0)/'4. Billing Determinants'!$G$41*$D8,IF($E8="Distribution Rev.",VLOOKUP(K$4,'4. Billing Determinants'!$B$19:$R$41,8,0)/'4. Billing Determinants'!$I$41*$D8, VLOOKUP(K$4,'4. Billing Determinants'!$B$19:$R$41,3,0)/'4. Billing Determinants'!$D$41*$D8))))),0) -> -371.8455487 | L8: =IFERROR(IF(L$4="",0,IF($E8="kWh",VLOOKUP(L$4,'4. Billing Determinants'!$B$19:$R$41,4,0)/'4. Billing Determinants'!$E$41*$D8,IF($E8="kW",VLOOKUP(L$4,'4. Billing Determinants'!$B$19:$R$41,5,0)/'4. Billing Determinants'!$F$41*$D8,IF($E8="Non-RPP kWh",VLOOKUP(L$4,'4. Billing Determinants'!$B$19:$R$41,6,0)/'4. Billing Determinants'!$G$41*$D8,IF($E8="Distribution Rev.",VLOOKUP(L$4,'4. Billing Determinants'!$B$19:$R$41,8,0)/'4. Billing Determinants'!$I$41*$D8, VLOOKUP(L$4,'4. Billing Determinants'!$B$19:$R$41,3,0)/'4. Billing Determinants'!$D$41*$D8))))),0) -> -13499.58036 | M8: =IFERROR(IF(M$4="",0,IF($E8="kWh",VLOOKUP(M$4,'4. Billing Determinants'!$B$19:$R$41,4,0)/'4. Billing Determinants'!$E$41*$D8,IF($E8="kW",VLOOKUP(M$4,'4. Billing Determinants'!$B$19:$R$41,5,0)/'4. Billing Determinants'!$F$41*$D8,IF($E8="Non-RPP kWh",VLOOKUP(M$4,'4. Billing Determinants'!$B$19:$R$41,6,0)/'4. Billing Determinants'!$G$41*$D8,IF($E8="Distribution Rev.",VLOOKUP(M$4,'4. Billing Determinants'!$B$19:$R$41,8,0)/'4. Billing Determinants'!$I$41*$D8, VLOOKUP(M$4,'4. Billing Determinants'!$B$19:$R$41,3,0)/'4. Billing Determinants'!$D$41*$D8))))),0) -> 0 | N8: =IFERROR(IF(N$4="",0,IF($E8="kWh",VLOOKUP(N$4,'4. Billing Determinants'!$B$19:$R$41,4,0)/'4. Billing Determinants'!$E$41*$D8,IF($E8="kW",VLOOKUP(N$4,'4. Billing Determinants'!$B$19:$R$41,5,0)/'4. Billing Determinants'!$F$41*$D8,IF($E8="Non-RPP kWh",VLOOKUP(N$4,'4. Billing Determinants'!$B$19:$R$41,6,0)/'4. Billing Determinants'!$G$41*$D8,IF($E8="Distribution Rev.",VLOOKUP(N$4,'4. Billing Determinants'!$B$19:$R$41,8,0)/'4. Billing Determinants'!$I$41*$D8, VLOOKUP(N$4,'4. Billing Determinants'!$B$19:$R$41,3,0)/'4. Billing Determinants'!$D$41*$D8))))),0) -> 0 | O8: =IFERROR(IF(O$4="",0,IF($E8="kWh",VLOOKUP(O$4,'4. Billing Determinants'!$B$19:$R$41,4,0)/'4. Billing Determinants'!$E$41*$D8,IF($E8="kW",VLOOKUP(O$4,'4. Billing Determinants'!$B$19:$R$41,5,0)/'4. Billing Determinants'!$F$41*$D8,IF($E8="Non-RPP kWh",VLOOKUP(O$4,'4. Billing Determinants'!$B$19:$R$41,6,0)/'4. Billing Determinants'!$G$41*$D8,IF($E8="Distribution Rev.",VLOOKUP(O$4,'4. Billing Determinants'!$B$19:$R$41,8,0)/'4. Billing Determinants'!$I$41*$D8, VLOOKUP(O$4,'4. Billing Determinants'!$B$19:$R$41,3,0)/'4. Billing Determinants'!$D$41*$D8))))),0) -> 0 | P8: =IFERROR(IF(P$4="",0,IF($E8="kWh",VLOOKUP(P$4,'4. Billing Determinants'!$B$19:$R$41,4,0)/'4. Billing Determinants'!$E$41*$D8,IF($E8="kW",VLOOKUP(P$4,'4. Billing Determinants'!$B$19:$R$41,5,0)/'4. Billing Determinants'!$F$41*$D8,IF($E8="Non-RPP kWh",VLOOKUP(P$4,'4. Billing Determinants'!$B$19:$R$41,6,0)/'4. Billing Determinants'!$G$41*$D8,IF($E8="Distribution Rev.",VLOOKUP(P$4,'4. Billing Determinants'!$B$19:$R$41,8,0)/'4. Billing Determinants'!$I$41*$D8, VLOOKUP(P$4,'4. Billing Determinants'!$B$19:$R$41,3,0)/'4. Billing Determinants'!$D$41*$D8))))),0) -> 0 | Q8: =IFERROR(IF(Q$4="",0,IF($E8="kWh",VLOOKUP(Q$4,'4. Billing Determinants'!$B$19:$R$41,4,0)/'4. Billing Determinants'!$E$41*$D8,IF($E8="kW",VLOOKUP(Q$4,'4. Billing Determinants'!$B$19:$R$41,5,0)/'4. Billing Determinants'!$F$41*$D8,IF($E8="Non-RPP kWh",VLOOKUP(Q$4,'4. Billing Determinants'!$B$19:$R$41,6,0)/'4. Billing Determinants'!$G$41*$D8,IF($E8="Distribution Rev.",VLOOKUP(Q$4,'4. Billing Determinants'!$B$19:$R$41,8,0)/'4. Billing Determinants'!$I$41*$D8, VLOOKUP(Q$4,'4. Billing Determinants'!$B$19:$R$41,3,0)/'4. Billing Determinants'!$D$41*$D8))))),0) -> 0 | R8: =IFERROR(IF(R$4="",0,IF($E8="kWh",VLOOKUP(R$4,'4. Billing Determinants'!$B$19:$R$41,4,0)/'4. Billing Determinants'!$E$41*$D8,IF($E8="kW",VLOOKUP(R$4,'4. Billing Determinants'!$B$19:$R$41,5,0)/'4. Billing Determinants'!$F$41*$D8,IF($E8="Non-RPP kWh",VLOOKUP(R$4,'4. Billing Determinants'!$B$19:$R$41,6,0)/'4. Billing Determinants'!$G$41*$D8,IF($E8="Distribution Rev.",VLOOKUP(R$4,'4. Billing Determinants'!$B$19:$R$41,8,0)/'4. Billing Determinants'!$I$41*$D8, VLOOKUP(R$4,'4. Billing Determinants'!$B$19:$R$41,3,0)/'4. Billing Determinants'!$D$41*$D8))))),0) -> 0 | S8: =IFERROR(IF(S$4="",0,IF($E8="kWh",VLOOKUP(S$4,'4. Billing Determinants'!$B$19:$R$41,4,0)/'4. Billing Determinants'!$E$41*$D8,IF($E8="kW",VLOOKUP(S$4,'4. Billing Determinants'!$B$19:$R$41,5,0)/'4. Billing Determinants'!$F$41*$D8,IF($E8="Non-RPP kWh",VLOOKUP(S$4,'4. Billing Determinants'!$B$19:$R$41,6,0)/'4. Billing Determinants'!$G$41*$D8,IF($E8="Distribution Rev.",VLOOKUP(S$4,'4. Billing Determinants'!$B$19:$R$41,8,0)/'4. Billing Determinants'!$I$41*$D8, VLOOKUP(S$4,'4. Billing Determinants'!$B$19:$R$41,3,0)/'4. Billing Determinants'!$D$41*$D8))))),0) -> 0 | T8: =IFERROR(IF(T$4="",0,IF($E8="kWh",VLOOKUP(T$4,'4. Billing Determinants'!$B$19:$R$41,4,0)/'4. Billing Determinants'!$E$41*$D8,IF($E8="kW",VLOOKUP(T$4,'4. Billing Determinants'!$B$19:$R$41,5,0)/'4. Billing Determinants'!$F$41*$D8,IF($E8="Non-RPP kWh",VLOOKUP(T$4,'4. Billing Determinants'!$B$19:$R$41,6,0)/'4. Billing Determinants'!$G$41*$D8,IF($E8="Distribution Rev.",VLOOKUP(T$4,'4. Billing Determinants'!$B$19:$R$41,8,0)/'4. Billing Determinants'!$I$41*$D8, VLOOKUP(T$4,'4. Billing Determinants'!$B$19:$R$41,3,0)/'4. Billing Determinants'!$D$41*$D8))))),0) -> 0 | U8: =IFERROR(IF(U$4="",0,IF($E8="kWh",VLOOKUP(U$4,'4. Billing Determinants'!$B$19:$R$41,4,0)/'4. Billing Determinants'!$E$41*$D8,IF($E8="kW",VLOOKUP(U$4,'4. Billing Determinants'!$B$19:$R$41,5,0)/'4. Billing Determinants'!$F$41*$D8,IF($E8="Non-RPP kWh",VLOOKUP(U$4,'4. Billing Determinants'!$B$19:$R$41,6,0)/'4. Billing Determinants'!$G$41*$D8,IF($E8="Distribution Rev.",VLOOKUP(U$4,'4. Billing Determinants'!$B$19:$R$41,8,0)/'4. Billing Determinants'!$I$41*$D8, VLOOKUP(U$4,'4. Billing Determinants'!$B$19:$R$41,3,0)/'4. Billing Determinants'!$D$41*$D8))))),0) -> 0 | V8: =IFERROR(IF(V$4="",0,IF($E8="kWh",VLOOKUP(V$4,'4. Billing Determinants'!$B$19:$R$41,4,0)/'4. Billing Determinants'!$E$41*$D8,IF($E8="kW",VLOOKUP(V$4,'4. Billing Determinants'!$B$19:$R$41,5,0)/'4. Billing Determinants'!$F$41*$D8,IF($E8="Non-RPP kWh",VLOOKUP(V$4,'4. Billing Determinants'!$B$19:$R$41,6,0)/'4. Billing Determinants'!$G$41*$D8,IF($E8="Distribution Rev.",VLOOKUP(V$4,'4. Billing Determinants'!$B$19:$R$41,8,0)/'4. Billing Determinants'!$I$41*$D8, VLOOKUP(V$4,'4. Billing Determinants'!$B$19:$R$41,3,0)/'4. Billing Determinants'!$D$41*$D8))))),0) -> 0 | W8: =IFERROR(IF(W$4="",0,IF($E8="kWh",VLOOKUP(W$4,'4. Billing Determinants'!$B$19:$R$41,4,0)/'4. Billing Determinants'!$E$41*$D8,IF($E8="kW",VLOOKUP(W$4,'4. Billing Determinants'!$B$19:$R$41,5,0)/'4. Billing Determinants'!$F$41*$D8,IF($E8="Non-RPP kWh",VLOOKUP(W$4,'4. Billing Determinants'!$B$19:$R$41,6,0)/'4. Billing Determinants'!$G$41*$D8,IF($E8="Distribution Rev.",VLOOKUP(W$4,'4. Billing Determinants'!$B$19:$R$41,8,0)/'4. Billing Determinants'!$I$41*$D8, VLOOKUP(W$4,'4. Billing Determinants'!$B$19:$R$41,3,0)/'4. Billing Determinants'!$D$41*$D8))))),0) -> 0 | X8: =IFERROR(IF(X$4="",0,IF($E8="kWh",VLOOKUP(X$4,'4. Billing Determinants'!$B$19:$R$41,4,0)/'4. Billing Determinants'!$E$41*$D8,IF($E8="kW",VLOOKUP(X$4,'4. Billing Determinants'!$B$19:$R$41,5,0)/'4. Billing Determinants'!$F$41*$D8,IF($E8="Non-RPP kWh",VLOOKUP(X$4,'4. Billing Determinants'!$B$19:$R$41,6,0)/'4. Billing Determinants'!$G$41*$D8,IF($E8="Distribution Rev.",VLOOKUP(X$4,'4. Billing Determinants'!$B$19:$R$41,8,0)/'4. Billing Determinants'!$I$41*$D8, VLOOKUP(X$4,'4. Billing Determinants'!$B$19:$R$41,3,0)/'4. Billing Determinants'!$D$41*$D8))))),0) -> 0 | Y8: =IFERROR(IF(Y$4="",0,IF($E8="kWh",VLOOKUP(Y$4,'4. Billing Determinants'!$B$19:$R$41,4,0)/'4. Billing Determinants'!$E$41*$D8,IF($E8="kW",VLOOKUP(Y$4,'4. Billing Determinants'!$B$19:$R$41,5,0)/'4. Billing Determinants'!$F$41*$D8,IF($E8="Non-RPP kWh",VLOOKUP(Y$4,'4. Billing Determinants'!$B$19:$R$41,6,0)/'4. Billing Determinants'!$G$41*$D8,IF($E8="Distribution Rev.",VLOOKUP(Y$4,'4. Billing Determinants'!$B$19:$R$41,8,0)/'4. Billing Determinants'!$I$41*$D8, VLOOKUP(Y$4,'4. Billing Determinants'!$B$19:$R$41,3,0)/'4. Billing Determinants'!$D$41*$D8))))),0) -> 0
A9: 6 | B9: RSVA - Retail Transmission Connection Charge | C9: 1586 | D9: ='2. 2016 Continuity Schedule'!BT30 -> 31220.16547 | E9: kWh | F9: =IFERROR(IF(F$4="",0,IF($E9="kWh",VLOOKUP(F$4,'4. Billing Determinants'!$B$19:$R$41,4,0)/'4. Billing Determinants'!$E$41*$D9,IF($E9="kW",VLOOKUP(F$4,'4. Billing Determinants'!$B$19:$R$41,5,0)/'4. Billing Determinants'!$F$41*$D9,IF($E9="Non-RPP kWh",VLOOKUP(F$4,'4. Billing Determinants'!$B$19:$R$41,6,0)/'4. Billing Determinants'!$G$41*$D9,IF($E9="Distribution Rev.",VLOOKUP(F$4,'4. Billing Determinants'!$B$19:$R$41,8,0)/'4. Billing Determinants'!$I$41*$D9, VLOOKUP(F$4,'4. Billing Determinants'!$B$19:$R$41,3,0)/'4. Billing Determinants'!$D$41*$D9))))),0) -> 9828.439223 | G9: =IFERROR(IF(G$4="",0,IF($E9="kWh",VLOOKUP(G$4,'4. Billing Determinants'!$B$19:$R$41,4,0)/'4. Billing Determinants'!$E$41*$D9,IF($E9="kW",VLOOKUP(G$4,'4. Billing Determinants'!$B$19:$R$41,5,0)/'4. Billing Determinants'!$F$41*$D9,IF($E9="Non-RPP kWh",VLOOKUP(G$4,'4. Billing Determinants'!$B$19:$R$41,6,0)/'4. Billing Determinants'!$G$41*$D9,IF($E9="Distribution Rev.",VLOOKUP(G$4,'4. Billing Determinants'!$B$19:$R$41,8,0)/'4. Billing Determinants'!$I$41*$D9, VLOOKUP(G$4,'4. Billing Determinants'!$B$19:$R$41,3,0)/'4. Billing Determinants'!$D$41*$D9))))),0) -> 3364.854407 | H9: =IFERROR(IF(H$4="",0,IF($E9="kWh",VLOOKUP(H$4,'4. Billing Determinants'!$B$19:$R$41,4,0)/'4. Billing Determinants'!$E$41*$D9,IF($E9="kW",VLOOKUP(H$4,'4. Billing Determinants'!$B$19:$R$41,5,0)/'4. Billing Determinants'!$F$41*$D9,IF($E9="Non-RPP kWh",VLOOKUP(H$4,'4. Billing Determinants'!$B$19:$R$41,6,0)/'4. Billing Determinants'!$G$41*$D9,IF($E9="Distribution Rev.",VLOOKUP(H$4,'4. Billing Determinants'!$B$19:$R$41,8,0)/'4. Billing Determinants'!$I$41*$D9, VLOOKUP(H$4,'4. Billing Determinants'!$B$19:$R$41,3,0)/'4. Billing Determinants'!$D$41*$D9))))),0) -> 16056.44277 | I9: =IFERROR(IF(I$4="",0,IF($E9="kWh",VLOOKUP(I$4,'4. Billing Determinants'!$B$19:$R$41,4,0)/'4. Billing Determinants'!$E$41*$D9,IF($E9="kW",VLOOKUP(I$4,'4. Billing Determinants'!$B$19:$R$41,5,0)/'4. Billing Determinants'!$F$41*$D9,IF($E9="Non-RPP kWh",VLOOKUP(I$4,'4. Billing Determinants'!$B$19:$R$41,6,0)/'4. Billing Determinants'!$G$41*$D9,IF($E9="Distribution Rev.",VLOOKUP(I$4,'4. Billing Determinants'!$B$19:$R$41,8,0)/'4. Billing Determinants'!$I$41*$D9, VLOOKUP(I$4,'4. Billing Determinants'!$B$19:$R$41,3,0)/'4. Billing Determinants'!$D$41*$D9))))),0) -> 243.9402391 | J9: =IFERROR(IF(J$4="",0,IF($E9="kWh",VLOOKUP(J$4,'4. Billing Determinants'!$B$19:$R$41,4,0)/'4. Billing Determinants'!$E$41*$D9,IF($E9="kW",VLOOKUP(J$4,'4. Billing Determinants'!$B$19:$R$41,5,0)/'4. Billing Determinants'!$F$41*$D9,IF($E9="Non-RPP kWh",VLOOKUP(J$4,'4. Billing Determinants'!$B$19:$R$41,6,0)/'4. Billing Determinants'!$G$41*$D9,IF($E9="Distribution Rev.",VLOOKUP(J$4,'4. Billing Determinants'!$B$19:$R$41,8,0)/'4. Billing Determinants'!$I$41*$D9, VLOOKUP(J$4,'4. Billing Determinants'!$B$19:$R$41,3,0)/'4. Billing Determinants'!$D$41*$D9))))),0) -> 12.50047515 | K9: =IFERROR(IF(K$4="",0,IF($E9="kWh",VLOOKUP(K$4,'4. Billing Determinants'!$B$19:$R$41,4,0)/'4. Billing Determinants'!$E$41*$D9,IF($E9="kW",VLOOKUP(K$4,'4. Billing Determinants'!$B$19:$R$41,5,0)/'4. Billing Determinants'!$F$41*$D9,IF($E9="Non-RPP kWh",VLOOKUP(K$4,'4. Billing Determinants'!$B$19:$R$41,6,0)/'4. Billing Determinants'!$G$41*$D9,IF($E9="Distribution Rev.",VLOOKUP(K$4,'4. Billing Determinants'!$B$19:$R$41,8,0)/'4. Billing Determinants'!$I$41*$D9, VLOOKUP(K$4,'4. Billing Determinants'!$B$19:$R$41,3,0)/'4. Billing Determinants'!$D$41*$D9))))),0) -> 45.94617331 | L9: =IFERROR(IF(L$4="",0,IF($E9="kWh",VLOOKUP(L$4,'4. Billing Determinants'!$B$19:$R$41,4,0)/'4. Billing Determinants'!$E$41*$D9,IF($E9="kW",VLOOKUP(L$4,'4. Billing Determinants'!$B$19:$R$41,5,0)/'4. Billing Determinants'!$F$41*$D9,IF($E9="Non-RPP kWh",VLOOKUP(L$4,'4. Billing Determinants'!$B$19:$R$41,6,0)/'4. Billing Determinants'!$G$41*$D9,IF($E9="Distribution Rev.",VLOOKUP(L$4,'4. Billing Determinants'!$B$19:$R$41,8,0)/'4. Billing Determinants'!$I$41*$D9, VLOOKUP(L$4,'4. Billing Determinants'!$B$19:$R$41,3,0)/'4. Billing Determinants'!$D$41*$D9))))),0) -> 1668.042179 | M9: =IFERROR(IF(M$4="",0,IF($E9="kWh",VLOOKUP(M$4,'4. Billing Determinants'!$B$19:$R$41,4,0)/'4. Billing Determinants'!$E$41*$D9,IF($E9="kW",VLOOKUP(M$4,'4. Billing Determinants'!$B$19:$R$41,5,0)/'4. Billing Determinants'!$F$41*$D9,IF($E9="Non-RPP kWh",VLOOKUP(M$4,'4. Billing Determinants'!$B$19:$R$41,6,0)/'4. Billing Determinants'!$G$41*$D9,IF($E9="Distribution Rev.",VLOOKUP(M$4,'4. Billing Determinants'!$B$19:$R$41,8,0)/'4. Billing Determinants'!$I$41*$D9, VLOOKUP(M$4,'4. Billing Determinants'!$B$19:$R$41,3,0)/'4. Billing Determinants'!$D$41*$D9))))),0) -> 0 | N9: =IFERROR(IF(N$4="",0,IF($E9="kWh",VLOOKUP(N$4,'4. Billing Determinants'!$B$19:$R$41,4,0)/'4. Billing Determinants'!$E$41*$D9,IF($E9="kW",VLOOKUP(N$4,'4. Billing Determinants'!$B$19:$R$41,5,0)/'4. Billing Determinants'!$F$41*$D9,IF($E9="Non-RPP kWh",VLOOKUP(N$4,'4. Billing Determinants'!$B$19:$R$41,6,0)/'4. Billing Determinants'!$G$41*$D9,IF($E9="Distribution Rev.",VLOOKUP(N$4,'4. Billing Determinants'!$B$19:$R$41,8,0)/'4. Billing Determinants'!$I$41*$D9, VLOOKUP(N$4,'4. Billing Determinants'!$B$19:$R$41,3,0)/'4. Billing Determinants'!$D$41*$D9))))),0) -> 0 | O9: =IFERROR(IF(O$4="",0,IF($E9="kWh",VLOOKUP(O$4,'4. Billing Determinants'!$B$19:$R$41,4,0)/'4. Billing Determinants'!$E$41*$D9,IF($E9="kW",VLOOKUP(O$4,'4. Billing Determinants'!$B$19:$R$41,5,0)/'4. Billing Determinants'!$F$41*$D9,IF($E9="Non-RPP kWh",VLOOKUP(O$4,'4. Billing Determinants'!$B$19:$R$41,6,0)/'4. Billing Determinants'!$G$41*$D9,IF($E9="Distribution Rev.",VLOOKUP(O$4,'4. Billing Determinants'!$B$19:$R$41,8,0)/'4. Billing Determinants'!$I$41*$D9, VLOOKUP(O$4,'4. Billing Determinants'!$B$19:$R$41,3,0)/'4. Billing Determinants'!$D$41*$D9))))),0) -> 0 | P9: =IFERROR(IF(P$4="",0,IF($E9="kWh",VLOOKUP(P$4,'4. Billing Determinants'!$B$19:$R$41,4,0)/'4. Billing Determinants'!$E$41*$D9,IF($E9="kW",VLOOKUP(P$4,'4. Billing Determinants'!$B$19:$R$41,5,0)/'4. Billing Determinants'!$F$41*$D9,IF($E9="Non-RPP kWh",VLOOKUP(P$4,'4. Billing Determinants'!$B$19:$R$41,6,0)/'4. Billing Determinants'!$G$41*$D9,IF($E9="Distribution Rev.",VLOOKUP(P$4,'4. Billing Determinants'!$B$19:$R$41,8,0)/'4. Billing Determinants'!$I$41*$D9, VLOOKUP(P$4,'4. Billing Determinants'!$B$19:$R$41,3,0)/'4. Billing Determinants'!$D$41*$D9))))),0) -> 0 | Q9: =IFERROR(IF(Q$4="",0,IF($E9="kWh",VLOOKUP(Q$4,'4. Billing Determinants'!$B$19:$R$41,4,0)/'4. Billing Determinants'!$E$41*$D9,IF($E9="kW",VLOOKUP(Q$4,'4. Billing Determinants'!$B$19:$R$41,5,0)/'4. Billing Determinants'!$F$41*$D9,IF($E9="Non-RPP kWh",VLOOKUP(Q$4,'4. Billing Determinants'!$B$19:$R$41,6,0)/'4. Billing Determinants'!$G$41*$D9,IF($E9="Distribution Rev.",VLOOKUP(Q$4,'4. Billing Determinants'!$B$19:$R$41,8,0)/'4. Billing Determinants'!$I$41*$D9, VLOOKUP(Q$4,'4. Billing Determinants'!$B$19:$R$41,3,0)/'4. Billing Determinants'!$D$41*$D9))))),0) -> 0 | R9: =IFERROR(IF(R$4="",0,IF($E9="kWh",VLOOKUP(R$4,'4. Billing Determinants'!$B$19:$R$41,4,0)/'4. Billing Determinants'!$E$41*$D9,IF($E9="kW",VLOOKUP(R$4,'4. Billing Determinants'!$B$19:$R$41,5,0)/'4. Billing Determinants'!$F$41*$D9,IF($E9="Non-RPP kWh",VLOOKUP(R$4,'4. Billing Determinants'!$B$19:$R$41,6,0)/'4. Billing Determinants'!$G$41*$D9,IF($E9="Distribution Rev.",VLOOKUP(R$4,'4. Billing Determinants'!$B$19:$R$41,8,0)/'4. Billing Determinants'!$I$41*$D9, VLOOKUP(R$4,'4. Billing Determinants'!$B$19:$R$41,3,0)/'4. Billing Determinants'!$D$41*$D9))))),0) -> 0 | S9: =IFERROR(IF(S$4="",0,IF($E9="kWh",VLOOKUP(S$4,'4. Billing Determinants'!$B$19:$R$41,4,0)/'4. Billing Determinants'!$E$41*$D9,IF($E9="kW",VLOOKUP(S$4,'4. Billing Determinants'!$B$19:$R$41,5,0)/'4. Billing Determinants'!$F$41*$D9,IF($E9="Non-RPP kWh",VLOOKUP(S$4,'4. Billing Determinants'!$B$19:$R$41,6,0)/'4. Billing Determinants'!$G$41*$D9,IF($E9="Distribution Rev.",VLOOKUP(S$4,'4. Billing Determinants'!$B$19:$R$41,8,0)/'4. Billing Determinants'!$I$41*$D9, VLOOKUP(S$4,'4. Billing Determinants'!$B$19:$R$41,3,0)/'4. Billing Determinants'!$D$41*$D9))))),0) -> 0 | T9: =IFERROR(IF(T$4="",0,IF($E9="kWh",VLOOKUP(T$4,'4. Billing Determinants'!$B$19:$R$41,4,0)/'4. Billing Determinants'!$E$41*$D9,IF($E9="kW",VLOOKUP(T$4,'4. Billing Determinants'!$B$19:$R$41,5,0)/'4. Billing Determinants'!$F$41*$D9,IF($E9="Non-RPP kWh",VLOOKUP(T$4,'4. Billing Determinants'!$B$19:$R$41,6,0)/'4. Billing Determinants'!$G$41*$D9,IF($E9="Distribution Rev.",VLOOKUP(T$4,'4. Billing Determinants'!$B$19:$R$41,8,0)/'4. Billing Determinants'!$I$41*$D9, VLOOKUP(T$4,'4. Billing Determinants'!$B$19:$R$41,3,0)/'4. Billing Determinants'!$D$41*$D9))))),0) -> 0 | U9: =IFERROR(IF(U$4="",0,IF($E9="kWh",VLOOKUP(U$4,'4. Billing Determinants'!$B$19:$R$41,4,0)/'4. Billing Determinants'!$E$41*$D9,IF($E9="kW",VLOOKUP(U$4,'4. Billing Determinants'!$B$19:$R$41,5,0)/'4. Billing Determinants'!$F$41*$D9,IF($E9="Non-RPP kWh",VLOOKUP(U$4,'4. Billing Determinants'!$B$19:$R$41,6,0)/'4. Billing Determinants'!$G$41*$D9,IF($E9="Distribution Rev.",VLOOKUP(U$4,'4. Billing Determinants'!$B$19:$R$41,8,0)/'4. Billing Determinants'!$I$41*$D9, VLOOKUP(U$4,'4. Billing Determinants'!$B$19:$R$41,3,0)/'4. Billing Determinants'!$D$41*$D9))))),0) -> 0 | V9: =IFERROR(IF(V$4="",0,IF($E9="kWh",VLOOKUP(V$4,'4. Billing Determinants'!$B$19:$R$41,4,0)/'4. Billing Determinants'!$E$41*$D9,IF($E9="kW",VLOOKUP(V$4,'4. Billing Determinants'!$B$19:$R$41,5,0)/'4. Billing Determinants'!$F$41*$D9,IF($E9="Non-RPP kWh",VLOOKUP(V$4,'4. Billing Determinants'!$B$19:$R$41,6,0)/'4. Billing Determinants'!$G$41*$D9,IF($E9="Distribution Rev.",VLOOKUP(V$4,'4. Billing Determinants'!$B$19:$R$41,8,0)/'4. Billing Determinants'!$I$41*$D9, VLOOKUP(V$4,'4. Billing Determinants'!$B$19:$R$41,3,0)/'4. Billing Determinants'!$D$41*$D9))))),0) -> 0 | W9: =IFERROR(IF(W$4="",0,IF($E9="kWh",VLOOKUP(W$4,'4. Billing Determinants'!$B$19:$R$41,4,0)/'4. Billing Determinants'!$E$41*$D9,IF($E9="kW",VLOOKUP(W$4,'4. Billing Determinants'!$B$19:$R$41,5,0)/'4. Billing Determinants'!$F$41*$D9,IF($E9="Non-RPP kWh",VLOOKUP(W$4,'4. Billing Determinants'!$B$19:$R$41,6,0)/'4. Billing Determinants'!$G$41*$D9,IF($E9="Distribution Rev.",VLOOKUP(W$4,'4. Billing Determinants'!$B$19:$R$41,8,0)/'4. Billing Determinants'!$I$41*$D9, VLOOKUP(W$4,'4. Billing Determinants'!$B$19:$R$41,3,0)/'4. Billing Determinants'!$D$41*$D9))))),0) -> 0 | X9: =IFERROR(IF(X$4="",0,IF($E9="kWh",VLOOKUP(X$4,'4. Billing Determinants'!$B$19:$R$41,4,0)/'4. Billing Determinants'!$E$41*$D9,IF($E9="kW",VLOOKUP(X$4,'4. Billing Determinants'!$B$19:$R$41,5,0)/'4. Billing Determinants'!$F$41*$D9,IF($E9="Non-RPP kWh",VLOOKUP(X$4,'4. Billing Determinants'!$B$19:$R$41,6,0)/'4. Billing Determinants'!$G$41*$D9,IF($E9="Distribution Rev.",VLOOKUP(X$4,'4. Billing Determinants'!$B$19:$R$41,8,0)/'4. Billing Determinants'!$I$41*$D9, VLOOKUP(X$4,'4. Billing Determinants'!$B$19:$R$41,3,0)/'4. Billing Determinants'!$D$41*$D9))))),0) -> 0 | Y9: =IFERROR(IF(Y$4="",0,IF($E9="kWh",VLOOKUP(Y$4,'4. Billing Determinants'!$B$19:$R$41,4,0)/'4. Billing Determinants'!$E$41*$D9,IF($E9="kW",VLOOKUP(Y$4,'4. Billing Determinants'!$B$19:$R$41,5,0)/'4. Billing Determinants'!$F$41*$D9,IF($E9="Non-RPP kWh",VLOOKUP(Y$4,'4. Billing Determinants'!$B$19:$R$41,6,0)/'4. Billing Determinants'!$G$41*$D9,IF($E9="Distribution Rev.",VLOOKUP(Y$4,'4. Billing Determinants'!$B$19:$R$41,8,0)/'4. Billing Determinants'!$I$41*$D9, VLOOKUP(Y$4,'4. Billing Determinants'!$B$19:$R$41,3,0)/'4. Billing Determinants'!$D$41*$D9))))),0) -> 0
A10: 7 | B10: RSVA - Power (excluding Global Adjustment) | C10: 1588 | D10: ='2. 2016 Continuity Schedule'!BT31 -> -1564235.407 | E10: kWh | F10: =IFERROR(IF(F$4="",0,IF($E10="kWh",VLOOKUP(F$4,'4. Billing Determinants'!$B$19:$R$41,11,0)/'4. Billing Determinants'!$L$41*$D10,IF($E10="kW",VLOOKUP(F$4,'4. Billing Determinants'!$B$19:$R$41,12,0)/'4. Billing Determinants'!$M$41*$D10,))),0) -> -524047.2396 | G10: =IFERROR(IF(G$4="",0,IF($E10="kWh",VLOOKUP(G$4,'4. Billing Determinants'!$B$19:$R$41,11,0)/'4. Billing Determinants'!$L$41*$D10,IF($E10="kW",VLOOKUP(G$4,'4. Billing Determinants'!$B$19:$R$41,12,0)/'4. Billing Determinants'!$M$41*$D10,))),0) -> -179412.2773 | H10: =IFERROR(IF(H$4="",0,IF($E10="kWh",VLOOKUP(H$4,'4. Billing Determinants'!$B$19:$R$41,11,0)/'4. Billing Determinants'!$L$41*$D10,IF($E10="kW",VLOOKUP(H$4,'4. Billing Determinants'!$B$19:$R$41,12,0)/'4. Billing Determinants'!$M$41*$D10,))),0) -> -844652.7795 | I10: =IFERROR(IF(I$4="",0,IF($E10="kWh",VLOOKUP(I$4,'4. Billing Determinants'!$B$19:$R$41,11,0)/'4. Billing Determinants'!$L$41*$D10,IF($E10="kW",VLOOKUP(I$4,'4. Billing Determinants'!$B$19:$R$41,12,0)/'4. Billing Determinants'!$M$41*$D10,))),0) -> -13006.76598 | J10: =IFERROR(IF(J$4="",0,IF($E10="kWh",VLOOKUP(J$4,'4. Billing Determinants'!$B$19:$R$41,11,0)/'4. Billing Determinants'!$L$41*$D10,IF($E10="kW",VLOOKUP(J$4,'4. Billing Determinants'!$B$19:$R$41,12,0)/'4. Billing Determinants'!$M$41*$D10,))),0) -> -666.5187979 | K10: =IFERROR(IF(K$4="",0,IF($E10="kWh",VLOOKUP(K$4,'4. Billing Determinants'!$B$19:$R$41,11,0)/'4. Billing Determinants'!$L$41*$D10,IF($E10="kW",VLOOKUP(K$4,'4. Billing Determinants'!$B$19:$R$41,12,0)/'4. Billing Determinants'!$M$41*$D10,))),0) -> -2449.825933 | L10: =IFERROR(IF(L$4="",0,IF($E10="kWh",VLOOKUP(L$4,'4. Billing Determinants'!$B$19:$R$41,11,0)/'4. Billing Determinants'!$L$41*$D10,IF($E10="kW",VLOOKUP(L$4,'4. Billing Determinants'!$B$19:$R$41,12,0)/'4. Billing Determinants'!$M$41*$D10,))),0) -> 0 | M10: =IFERROR(IF(M$4="",0,IF($E10="kWh",VLOOKUP(M$4,'4. Billing Determinants'!$B$19:$R$41,11,0)/'4. Billing Determinants'!$L$41*$D10,IF($E10="kW",VLOOKUP(M$4,'4. Billing Determinants'!$B$19:$R$41,12,0)/'4. Billing Determinants'!$M$41*$D10,))),0) -> 0 | N10: =IFERROR(IF(N$4="",0,IF($E10="kWh",VLOOKUP(N$4,'4. Billing Determinants'!$B$19:$R$41,11,0)/'4. Billing Determinants'!$L$41*$D10,IF($E10="kW",VLOOKUP(N$4,'4. Billing Determinants'!$B$19:$R$41,12,0)/'4. Billing Determinants'!$M$41*$D10,))),0) -> 0 | O10: =IFERROR(IF(O$4="",0,IF($E10="kWh",VLOOKUP(O$4,'4. Billing Determinants'!$B$19:$R$41,11,0)/'4. Billing Determinants'!$L$41*$D10,IF($E10="kW",VLOOKUP(O$4,'4. Billing Determinants'!$B$19:$R$41,12,0)/'4. Billing Determinants'!$M$41*$D10,))),0) -> 0 | P10: =IFERROR(IF(P$4="",0,IF($E10="kWh",VLOOKUP(P$4,'4. Billing Determinants'!$B$19:$R$41,11,0)/'4. Billing Determinants'!$L$41*$D10,IF($E10="kW",VLOOKUP(P$4,'4. Billing Determinants'!$B$19:$R$41,12,0)/'4. Billing Determinants'!$M$41*$D10,))),0) -> 0 | Q10: =IFERROR(IF(Q$4="",0,IF($E10="kWh",VLOOKUP(Q$4,'4. Billing Determinants'!$B$19:$R$41,11,0)/'4. Billing Determinants'!$L$41*$D10,IF($E10="kW",VLOOKUP(Q$4,'4. Billing Determinants'!$B$19:$R$41,12,0)/'4. Billing Determinants'!$M$41*$D10,))),0) -> 0 | R10: =IFERROR(IF(R$4="",0,IF($E10="kWh",VLOOKUP(R$4,'4. Billing Determinants'!$B$19:$R$41,11,0)/'4. Billing Determinants'!$L$41*$D10,IF($E10="kW",VLOOKUP(R$4,'4. Billing Determinants'!$B$19:$R$41,12,0)/'4. Billing Determinants'!$M$41*$D10,))),0) -> 0 | S10: =IFERROR(IF(S$4="",0,IF($E10="kWh",VLOOKUP(S$4,'4. Billing Determinants'!$B$19:$R$41,11,0)/'4. Billing Determinants'!$L$41*$D10,IF($E10="kW",VLOOKUP(S$4,'4. Billing Determinants'!$B$19:$R$41,12,0)/'4. Billing Determinants'!$M$41*$D10,))),0) -> 0 | T10: =IFERROR(IF(T$4="",0,IF($E10="kWh",VLOOKUP(T$4,'4. Billing Determinants'!$B$19:$R$41,11,0)/'4. Billing Determinants'!$L$41*$D10,IF($E10="kW",VLOOKUP(T$4,'4. Billing Determinants'!$B$19:$R$41,12,0)/'4. Billing Determinants'!$M$41*$D10,))),0) -> 0 | U10: =IFERROR(IF(U$4="",0,IF($E10="kWh",VLOOKUP(U$4,'4. Billing Determinants'!$B$19:$R$41,11,0)/'4. Billing Determinants'!$L$41*$D10,IF($E10="kW",VLOOKUP(U$4,'4. Billing Determinants'!$B$19:$R$41,12,0)/'4. Billing Determinants'!$M$41*$D10,))),0) -> 0 | V10: =IFERROR(IF(V$4="",0,IF($E10="kWh",VLOOKUP(V$4,'4. Billing Determinants'!$B$19:$R$41,11,0)/'4. Billing Determinants'!$L$41*$D10,IF($E10="kW",VLOOKUP(V$4,'4. Billing Determinants'!$B$19:$R$41,12,0)/'4. Billing Determinants'!$M$41*$D10,))),0) -> 0 | W10: =IFERROR(IF(W$4="",0,IF($E10="kWh",VLOOKUP(W$4,'4. Billing Determinants'!$B$19:$R$41,11,0)/'4. Billing Determinants'!$L$41*$D10,IF($E10="kW",VLOOKUP(W$4,'4. Billing Determinants'!$B$19:$R$41,12,0)/'4. Billing Determinants'!$M$41*$D10,))),0) -> 0 | X10: =IFERROR(IF(X$4="",0,IF($E10="kWh",VLOOKUP(X$4,'4. Billing Determinants'!$B$19:$R$41,11,0)/'4. Billing Determinants'!$L$41*$D10,IF($E10="kW",VLOOKUP(X$4,'4. Billing Determinants'!$B$19:$R$41,12,0)/'4. Billing Determinants'!$M$41*$D10,))),0) -> 0 | Y10: =IFERROR(IF(Y$4="",0,IF($E10="kWh",VLOOKUP(Y$4,'4. Billing Determinants'!$B$19:$R$41,11,0)/'4. Billing Determinants'!$L$41*$D10,IF($E10="kW",VLOOKUP(Y$4,'4. Billing Determinants'!$B$19:$R$41,12,0)/'4. Billing Determinants'!$M$41*$D10,))),0) -> 0
A11: 8 | B11: RSVA - Global Adjustment | C11: 1589 | D11: =IF('4. Billing Determinants'!B2=TRUE, '5a. GA Allocation Class A'!C29, '2. 2016 Continuity Schedule'!BT32) -> 1560754.37 | E11: Non-RPP kWh | F11: =IFERROR(IF(F$4="",0,IF($E11="kWh",VLOOKUP(F$4,'4. Billing Determinants'!$B$19:$R$41,4,0)/'4. Billing Determinants'!$E$41*$D11,IF($E11="kW",VLOOKUP(F$4,'4. Billing Determinants'!$B$19:$R$41,5,0)/'4. Billing Determinants'!$F$41*$D11,IF($E11="Non-RPP kWh",VLOOKUP(F$4,'4. Billing Determinants'!$B$19:$T$41,18,0)/'4. Billing Determinants'!$S$41*$D11,IF($E11="Distribution Rev.",VLOOKUP(F$4,'4. Billing Determinants'!$B$19:$R$41,8,0)/'4. Billing Determinants'!$I$41*$D11, VLOOKUP(F$4,'4. Billing Determinants'!$B$19:$R$41,3,0)/'4. Billing Determinants'!$D$41*$D11))))),0) -> 69103.02873 | G11: =IFERROR(IF(G$4="",0,IF($E11="kWh",VLOOKUP(G$4,'4. Billing Determinants'!$B$19:$R$41,4,0)/'4. Billing Determinants'!$E$41*$D11,IF($E11="kW",VLOOKUP(G$4,'4. Billing Determinants'!$B$19:$R$41,5,0)/'4. Billing Determinants'!$F$41*$D11,IF($E11="Non-RPP kWh",VLOOKUP(G$4,'4. Billing Determinants'!$B$19:$T$41,18,0)/'4. Billing Determinants'!$S$41*$D11,IF($E11="Distribution Rev.",VLOOKUP(G$4,'4. Billing Determinants'!$B$19:$R$41,8,0)/'4. Billing Determinants'!$I$41*$D11, VLOOKUP(G$4,'4. Billing Determinants'!$B$19:$R$41,3,0)/'4. Billing Determinants'!$D$41*$D11))))),0) -> 47936.84953 | H11: =IFERROR(IF(H$4="",0,IF($E11="kWh",VLOOKUP(H$4,'4. Billing Determinants'!$B$19:$R$41,4,0)/'4. Billing Determinants'!$E$41*$D11,IF($E11="kW",VLOOKUP(H$4,'4. Billing Determinants'!$B$19:$R$41,5,0)/'4. Billing Determinants'!$F$41*$D11,IF($E11="Non-RPP kWh",VLOOKUP(H$4,'4. Billing Determinants'!$B$19:$T$41,18,0)/'4. Billing Determinants'!$S$41*$D11,IF($E11="Distribution Rev.",VLOOKUP(H$4,'4. Billing Determinants'!$B$19:$R$41,8,0)/'4. Billing Determinants'!$I$41*$D11, VLOOKUP(H$4,'4. Billing Determinants'!$B$19:$R$41,3,0)/'4. Billing Determinants'!$D$41*$D11))))),0) -> 1418486.528 | I11: =IFERROR(IF(I$4="",0,IF($E11="kWh",VLOOKUP(I$4,'4. Billing Determinants'!$B$19:$R$41,4,0)/'4. Billing Determinants'!$E$41*$D11,IF($E11="kW",VLOOKUP(I$4,'4. Billing Determinants'!$B$19:$R$41,5,0)/'4. Billing Determinants'!$F$41*$D11,IF($E11="Non-RPP kWh",VLOOKUP(I$4,'4. Billing Determinants'!$B$19:$T$41,18,0)/'4. Billing Determinants'!$S$41*$D11,IF($E11="Distribution Rev.",VLOOKUP(I$4,'4. Billing Determinants'!$B$19:$R$41,8,0)/'4. Billing Determinants'!$I$41*$D11, VLOOKUP(I$4,'4. Billing Determinants'!$B$19:$R$41,3,0)/'4. Billing Determinants'!$D$41*$D11))))),0) -> 25001.83332 | J11: =IFERROR(IF(J$4="",0,IF($E11="kWh",VLOOKUP(J$4,'4. Billing Determinants'!$B$19:$R$41,4,0)/'4. Billing Determinants'!$E$41*$D11,IF($E11="kW",VLOOKUP(J$4,'4. Billing Determinants'!$B$19:$R$41,5,0)/'4. Billing Determinants'!$F$41*$D11,IF($E11="Non-RPP kWh",VLOOKUP(J$4,'4. Billing Determinants'!$B$19:$T$41,18,0)/'4. Billing Determinants'!$S$41*$D11,IF($E11="Distribution Rev.",VLOOKUP(J$4,'4. Billing Determinants'!$B$19:$R$41,8,0)/'4. Billing Determinants'!$I$41*$D11, VLOOKUP(J$4,'4. Billing Determinants'!$B$19:$R$41,3,0)/'4. Billing Determinants'!$D$41*$D11))))),0) -> 226.1307594 | K11: =IFERROR(IF(K$4="",0,IF($E11="kWh",VLOOKUP(K$4,'4. Billing Determinants'!$B$19:$R$41,4,0)/'4. Billing Determinants'!$E$41*$D11,IF($E11="kW",VLOOKUP(K$4,'4. Billing Determinants'!$B$19:$R$41,5,0)/'4. Billing Determinants'!$F$41*$D11,IF($E11="Non-RPP kWh",VLOOKUP(K$4,'4. Billing Determinants'!$B$19:$T$41,18,0)/'4. Billing Determinants'!$S$41*$D11,IF($E11="Distribution Rev.",VLOOKUP(K$4,'4. Billing Determinants'!$B$19:$R$41,8,0)/'4. Billing Determinants'!$I$41*$D11, VLOOKUP(K$4,'4. Billing Determinants'!$B$19:$R$41,3,0)/'4. Billing Determinants'!$D$41*$D11))))),0) -> 0 | L11: =IFERROR(IF(L$4="",0,IF($E11="kWh",VLOOKUP(L$4,'4. Billing Determinants'!$B$19:$R$41,4,0)/'4. Billing Determinants'!$E$41*$D11,IF($E11="kW",VLOOKUP(L$4,'4. Billing Determinants'!$B$19:$R$41,5,0)/'4. Billing Determinants'!$F$41*$D11,IF($E11="Non-RPP kWh",VLOOKUP(L$4,'4. Billing Determinants'!$B$19:$T$41,18,0)/'4. Billing Determinants'!$S$41*$D11,IF($E11="Distribution Rev.",VLOOKUP(L$4,'4. Billing Determinants'!$B$19:$R$41,8,0)/'4. Billing Determinants'!$I$41*$D11, VLOOKUP(L$4,'4. Billing Determinants'!$B$19:$R$41,3,0)/'4. Billing Determinants'!$D$41*$D11))))),0) -> 0 | M11: =IFERROR(IF(M$4="",0,IF($E11="kWh",VLOOKUP(M$4,'4. Billing Determinants'!$B$19:$R$41,4,0)/'4. Billing Determinants'!$E$41*$D11,IF($E11="kW",VLOOKUP(M$4,'4. Billing Determinants'!$B$19:$R$41,5,0)/'4. Billing Determinants'!$F$41*$D11,IF($E11="Non-RPP kWh",VLOOKUP(M$4,'4. Billing Determinants'!$B$19:$T$41,18,0)/'4. Billing Determinants'!$S$41*$D11,IF($E11="Distribution Rev.",VLOOKUP(M$4,'4. Billing Determinants'!$B$19:$R$41,8,0)/'4. Billing Determinants'!$I$41*$D11, VLOOKUP(M$4,'4. Billing Determinants'!$B$19:$R$41,3,0)/'4. Billing Determinants'!$D$41*$D11))))),0) -> 0 | N11: =IFERROR(IF(N$4="",0,IF($E11="kWh",VLOOKUP(N$4,'4. Billing Determinants'!$B$19:$R$41,4,0)/'4. Billing Determinants'!$E$41*$D11,IF($E11="kW",VLOOKUP(N$4,'4. Billing Determinants'!$B$19:$R$41,5,0)/'4. Billing Determinants'!$F$41*$D11,IF($E11="Non-RPP kWh",VLOOKUP(N$4,'4. Billing Determinants'!$B$19:$T$41,18,0)/'4. Billing Determinants'!$S$41*$D11,IF($E11="Distribution Rev.",VLOOKUP(N$4,'4. Billing Determinants'!$B$19:$R$41,8,0)/'4. Billing Determinants'!$I$41*$D11, VLOOKUP(N$4,'4. Billing Determinants'!$B$19:$R$41,3,0)/'4. Billing Determinants'!$D$41*$D11))))),0) -> 0 | O11: =IFERROR(IF(O$4="",0,IF($E11="kWh",VLOOKUP(O$4,'4. Billing Determinants'!$B$19:$R$41,4,0)/'4. Billing Determinants'!$E$41*$D11,IF($E11="kW",VLOOKUP(O$4,'4. Billing Determinants'!$B$19:$R$41,5,0)/'4. Billing Determinants'!$F$41*$D11,IF($E11="Non-RPP kWh",VLOOKUP(O$4,'4. Billing Determinants'!$B$19:$T$41,18,0)/'4. Billing Determinants'!$S$41*$D11,IF($E11="Distribution Rev.",VLOOKUP(O$4,'4. Billing Determinants'!$B$19:$R$41,8,0)/'4. Billing Determinants'!$I$41*$D11, VLOOKUP(O$4,'4. Billing Determinants'!$B$19:$R$41,3,0)/'4. Billing Determinants'!$D$41*$D11))))),0) -> 0 | P11: =IFERROR(IF(P$4="",0,IF($E11="kWh",VLOOKUP(P$4,'4. Billing Determinants'!$B$19:$R$41,4,0)/'4. Billing Determinants'!$E$41*$D11,IF($E11="kW",VLOOKUP(P$4,'4. Billing Determinants'!$B$19:$R$41,5,0)/'4. Billing Determinants'!$F$41*$D11,IF($E11="Non-RPP kWh",VLOOKUP(P$4,'4. Billing Determinants'!$B$19:$T$41,18,0)/'4. Billing Determinants'!$S$41*$D11,IF($E11="Distribution Rev.",VLOOKUP(P$4,'4. Billing Determinants'!$B$19:$R$41,8,0)/'4. Billing Determinants'!$I$41*$D11, VLOOKUP(P$4,'4. Billing Determinants'!$B$19:$R$41,3,0)/'4. Billing Determinants'!$D$41*$D11))))),0) -> 0 | Q11: =IFERROR(IF(Q$4="",0,IF($E11="kWh",VLOOKUP(Q$4,'4. Billing Determinants'!$B$19:$R$41,4,0)/'4. Billing Determinants'!$E$41*$D11,IF($E11="kW",VLOOKUP(Q$4,'4. Billing Determinants'!$B$19:$R$41,5,0)/'4. Billing Determinants'!$F$41*$D11,IF($E11="Non-RPP kWh",VLOOKUP(Q$4,'4. Billing Determinants'!$B$19:$T$41,18,0)/'4. Billing Determinants'!$S$41*$D11,IF($E11="Distribution Rev.",VLOOKUP(Q$4,'4. Billing Determinants'!$B$19:$R$41,8,0)/'4. Billing Determinants'!$I$41*$D11, VLOOKUP(Q$4,'4. Billing Determinants'!$B$19:$R$41,3,0)/'4. Billing Determinants'!$D$41*$D11))))),0) -> 0 | R11: =IFERROR(IF(R$4="",0,IF($E11="kWh",VLOOKUP(R$4,'4. Billing Determinants'!$B$19:$R$41,4,0)/'4. Billing Determinants'!$E$41*$D11,IF($E11="kW",VLOOKUP(R$4,'4. Billing Determinants'!$B$19:$R$41,5,0)/'4. Billing Determinants'!$F$41*$D11,IF($E11="Non-RPP kWh",VLOOKUP(R$4,'4. Billing Determinants'!$B$19:$T$41,18,0)/'4. Billing Determinants'!$S$41*$D11,IF($E11="Distribution Rev.",VLOOKUP(R$4,'4. Billing Determinants'!$B$19:$R$41,8,0)/'4. Billing Determinants'!$I$41*$D11, VLOOKUP(R$4,'4. Billing Determinants'!$B$19:$R$41,3,0)/'4. Billing Determinants'!$D$41*$D11))))),0) -> 0 | S11: =IFERROR(IF(S$4="",0,IF($E11="kWh",VLOOKUP(S$4,'4. Billing Determinants'!$B$19:$R$41,4,0)/'4. Billing Determinants'!$E$41*$D11,IF($E11="kW",VLOOKUP(S$4,'4. Billing Determinants'!$B$19:$R$41,5,0)/'4. Billing Determinants'!$F$41*$D11,IF($E11="Non-RPP kWh",VLOOKUP(S$4,'4. Billing Determinants'!$B$19:$T$41,18,0)/'4. Billing Determinants'!$S$41*$D11,IF($E11="Distribution Rev.",VLOOKUP(S$4,'4. Billing Determinants'!$B$19:$R$41,8,0)/'4. Billing Determinants'!$I$41*$D11, VLOOKUP(S$4,'4. Billing Determinants'!$B$19:$R$41,3,0)/'4. Billing Determinants'!$D$41*$D11))))),0) -> 0 | T11: =IFERROR(IF(T$4="",0,IF($E11="kWh",VLOOKUP(T$4,'4. Billing Determinants'!$B$19:$R$41,4,0)/'4. Billing Determinants'!$E$41*$D11,IF($E11="kW",VLOOKUP(T$4,'4. Billing Determinants'!$B$19:$R$41,5,0)/'4. Billing Determinants'!$F$41*$D11,IF($E11="Non-RPP kWh",VLOOKUP(T$4,'4. Billing Determinants'!$B$19:$T$41,18,0)/'4. Billing Determinants'!$S$41*$D11,IF($E11="Distribution Rev.",VLOOKUP(T$4,'4. Billing Determinants'!$B$19:$R$41,8,0)/'4. Billing Determinants'!$I$41*$D11, VLOOKUP(T$4,'4. Billing Determinants'!$B$19:$R$41,3,0)/'4. Billing Determinants'!$D$41*$D11))))),0) -> 0 | U11: =IFERROR(IF(U$4="",0,IF($E11="kWh",VLOOKUP(U$4,'4. Billing Determinants'!$B$19:$R$41,4,0)/'4. Billing Determinants'!$E$41*$D11,IF($E11="kW",VLOOKUP(U$4,'4. Billing Determinants'!$B$19:$R$41,5,0)/'4. Billing Determinants'!$F$41*$D11,IF($E11="Non-RPP kWh",VLOOKUP(U$4,'4. Billing Determinants'!$B$19:$T$41,18,0)/'4. Billing Determinants'!$S$41*$D11,IF($E11="Distribution Rev.",VLOOKUP(U$4,'4. Billing Determinants'!$B$19:$R$41,8,0)/'4. Billing Determinants'!$I$41*$D11, VLOOKUP(U$4,'4. Billing Determinants'!$B$19:$R$41,3,0)/'4. Billing Determinants'!$D$41*$D11))))),0) -> 0 | V11: =IFERROR(IF(V$4="",0,IF($E11="kWh",VLOOKUP(V$4,'4. Billing Determinants'!$B$19:$R$41,4,0)/'4. Billing Determinants'!$E$41*$D11,IF($E11="kW",VLOOKUP(V$4,'4. Billing Determinants'!$B$19:$R$41,5,0)/'4. Billing Determinants'!$F$41*$D11,IF($E11="Non-RPP kWh",VLOOKUP(V$4,'4. Billing Determinants'!$B$19:$T$41,18,0)/'4. Billing Determinants'!$S$41*$D11,IF($E11="Distribution Rev.",VLOOKUP(V$4,'4. Billing Determinants'!$B$19:$R$41,8,0)/'4. Billing Determinants'!$I$41*$D11, VLOOKUP(V$4,'4. Billing Determinants'!$B$19:$R$41,3,0)/'4. Billing Determinants'!$D$41*$D11))))),0) -> 0 | W11: =IFERROR(IF(W$4="",0,IF($E11="kWh",VLOOKUP(W$4,'4. Billing Determinants'!$B$19:$R$41,4,0)/'4. Billing Determinants'!$E$41*$D11,IF($E11="kW",VLOOKUP(W$4,'4. Billing Determinants'!$B$19:$R$41,5,0)/'4. Billing Determinants'!$F$41*$D11,IF($E11="Non-RPP kWh",VLOOKUP(W$4,'4. Billing Determinants'!$B$19:$T$41,18,0)/'4. Billing Determinants'!$S$41*$D11,IF($E11="Distribution Rev.",VLOOKUP(W$4,'4. Billing Determinants'!$B$19:$R$41,8,0)/'4. Billing Determinants'!$I$41*$D11, VLOOKUP(W$4,'4. Billing Determinants'!$B$19:$R$41,3,0)/'4. Billing Determinants'!$D$41*$D11))))),0) -> 0 | X11: =IFERROR(IF(X$4="",0,IF($E11="kWh",VLOOKUP(X$4,'4. Billing Determinants'!$B$19:$R$41,4,0)/'4. Billing Determinants'!$E$41*$D11,IF($E11="kW",VLOOKUP(X$4,'4. Billing Determinants'!$B$19:$R$41,5,0)/'4. Billing Determinants'!$F$41*$D11,IF($E11="Non-RPP kWh",VLOOKUP(X$4,'4. Billing Determinants'!$B$19:$T$41,18,0)/'4. Billing Determinants'!$S$41*$D11,IF($E11="Distribution Rev.",VLOOKUP(X$4,'4. Billing Determinants'!$B$19:$R$41,8,0)/'4. Billing Determinants'!$I$41*$D11, VLOOKUP(X$4,'4. Billing Determinants'!$B$19:$R$41,3,0)/'4. Billing Determinants'!$D$41*$D11))))),0) -> 0 | Y11: =IFERROR(IF(Y$4="",0,IF($E11="kWh",VLOOKUP(Y$4,'4. Billing Determinants'!$B$19:$R$41,4,0)/'4. Billing Determinants'!$E$41*$D11,IF($E11="kW",VLOOKUP(Y$4,'4. Billing Determinants'!$B$19:$R$41,5,0)/'4. Billing Determinants'!$F$41*$D11,IF($E11="Non-RPP kWh",VLOOKUP(Y$4,'4. Billing Determinants'!$B$19:$T$41,18,0)/'4. Billing Determinants'!$S$41*$D11,IF($E11="Distribution Rev.",VLOOKUP(Y$4,'4. Billing Determinants'!$B$19:$R$41,8,0)/'4. Billing Determinants'!$I$41*$D11, VLOOKUP(Y$4,'4. Billing Determinants'!$B$19:$R$41,3,0)/'4. Billing Determinants'!$D$41*$D11))))),0) -> 0
A12: 9 | B12: Disposition and Recovery/Refund of Regulatory Balances (2009) | C12: 1595 | D12: ='2. 2016 Continuity Schedule'!BT33 -> 0 | E12: % | F12: =IFERROR(IF(F$4="",0,IF($E12="kWh",VLOOKUP(F$4,'4. Billing Determinants'!$B$19:$R$41,4,0)/'4. Billing Determinants'!$E$41*$D12,IF($E12="kW",VLOOKUP(F$4,'4. Billing Determinants'!$B$19:$R$41,5,0)/'4. Billing Determinants'!$F$41*$D12,IF($E12="Non-RPP kWh",VLOOKUP(F$4,'4. Billing Determinants'!$B$19:$R$41,6,0)/'4. Billing Determinants'!$G$41*$D12, VLOOKUP(F$4,'4. Billing Determinants'!$B$19:$AA$41,20,0)*$D12)))),0) -> 0 | G12: =IFERROR(IF(G$4="",0,IF($E12="kWh",VLOOKUP(G$4,'4. Billing Determinants'!$B$19:$R$41,4,0)/'4. Billing Determinants'!$E$41*$D12,IF($E12="kW",VLOOKUP(G$4,'4. Billing Determinants'!$B$19:$R$41,5,0)/'4. Billing Determinants'!$F$41*$D12,IF($E12="Non-RPP kWh",VLOOKUP(G$4,'4. Billing Determinants'!$B$19:$R$41,6,0)/'4. Billing Determinants'!$G$41*$D12, VLOOKUP(G$4,'4. Billing Determinants'!$B$19:$AA$41,20,0)*$D12)))),0) -> 0 | H12: =IFERROR(IF(H$4="",0,IF($E12="kWh",VLOOKUP(H$4,'4. Billing Determinants'!$B$19:$R$41,4,0)/'4. Billing Determinants'!$E$41*$D12,IF($E12="kW",VLOOKUP(H$4,'4. Billing Determinants'!$B$19:$R$41,5,0)/'4. Billing Determinants'!$F$41*$D12,IF($E12="Non-RPP kWh",VLOOKUP(H$4,'4. Billing Determinants'!$B$19:$R$41,6,0)/'4. Billing Determinants'!$G$41*$D12, VLOOKUP(H$4,'4. Billing Determinants'!$B$19:$AA$41,20,0)*$D12)))),0) -> 0 | I12: =IFERROR(IF(I$4="",0,IF($E12="kWh",VLOOKUP(I$4,'4. Billing Determinants'!$B$19:$R$41,4,0)/'4. Billing Determinants'!$E$41*$D12,IF($E12="kW",VLOOKUP(I$4,'4. Billing Determinants'!$B$19:$R$41,5,0)/'4. Billing Determinants'!$F$41*$D12,IF($E12="Non-RPP kWh",VLOOKUP(I$4,'4. Billing Determinants'!$B$19:$R$41,6,0)/'4. Billing Determinants'!$G$41*$D12, VLOOKUP(I$4,'4. Billing Determinants'!$B$19:$AA$41,20,0)*$D12)))),0) -> 0 | J12: =IFERROR(IF(J$4="",0,IF($E12="kWh",VLOOKUP(J$4,'4. Billing Determinants'!$B$19:$R$41,4,0)/'4. Billing Determinants'!$E$41*$D12,IF($E12="kW",VLOOKUP(J$4,'4. Billing Determinants'!$B$19:$R$41,5,0)/'4. Billing Determinants'!$F$41*$D12,IF($E12="Non-RPP kWh",VLOOKUP(J$4,'4. Billing Determinants'!$B$19:$R$41,6,0)/'4. Billing Determinants'!$G$41*$D12, VLOOKUP(J$4,'4. Billing Determinants'!$B$19:$AA$41,20,0)*$D12)))),0) -> 0 | K12: =IFERROR(IF(K$4="",0,IF($E12="kWh",VLOOKUP(K$4,'4. Billing Determinants'!$B$19:$R$41,4,0)/'4. Billing Determinants'!$E$41*$D12,IF($E12="kW",VLOOKUP(K$4,'4. Billing Determinants'!$B$19:$R$41,5,0)/'4. Billing Determinants'!$F$41*$D12,IF($E12="Non-RPP kWh",VLOOKUP(K$4,'4. Billing Determinants'!$B$19:$R$41,6,0)/'4. Billing Determinants'!$G$41*$D12, VLOOKUP(K$4,'4. Billing Determinants'!$B$19:$AA$41,20,0)*$D12)))),0) -> 0 | L12: =IFERROR(IF(L$4="",0,IF($E12="kWh",VLOOKUP(L$4,'4. Billing Determinants'!$B$19:$R$41,4,0)/'4. Billing Determinants'!$E$41*$D12,IF($E12="kW",VLOOKUP(L$4,'4. Billing Determinants'!$B$19:$R$41,5,0)/'4. Billing Determinants'!$F$41*$D12,IF($E12="Non-RPP kWh",VLOOKUP(L$4,'4. Billing Determinants'!$B$19:$R$41,6,0)/'4. Billing Determinants'!$G$41*$D12, VLOOKUP(L$4,'4. Billing Determinants'!$B$19:$AA$41,20,0)*$D12)))),0) -> 0 | M12: =IFERROR(IF(M$4="",0,IF($E12="kWh",VLOOKUP(M$4,'4. Billing Determinants'!$B$19:$R$41,4,0)/'4. Billing Determinants'!$E$41*$D12,IF($E12="kW",VLOOKUP(M$4,'4. Billing Determinants'!$B$19:$R$41,5,0)/'4. Billing Determinants'!$F$41*$D12,IF($E12="Non-RPP kWh",VLOOKUP(M$4,'4. Billing Determinants'!$B$19:$R$41,6,0)/'4. Billing Determinants'!$G$41*$D12, VLOOKUP(M$4,'4. Billing Determinants'!$B$19:$AA$41,20,0)*$D12)))),0) -> 0 | N12: =IFERROR(IF(N$4="",0,IF($E12="kWh",VLOOKUP(N$4,'4. Billing Determinants'!$B$19:$R$41,4,0)/'4. Billing Determinants'!$E$41*$D12,IF($E12="kW",VLOOKUP(N$4,'4. Billing Determinants'!$B$19:$R$41,5,0)/'4. Billing Determinants'!$F$41*$D12,IF($E12="Non-RPP kWh",VLOOKUP(N$4,'4. Billing Determinants'!$B$19:$R$41,6,0)/'4. Billing Determinants'!$G$41*$D12, VLOOKUP(N$4,'4. Billing Determinants'!$B$19:$AA$41,20,0)*$D12)))),0) -> 0 | O12: =IFERROR(IF(O$4="",0,IF($E12="kWh",VLOOKUP(O$4,'4. Billing Determinants'!$B$19:$R$41,4,0)/'4. Billing Determinants'!$E$41*$D12,IF($E12="kW",VLOOKUP(O$4,'4. Billing Determinants'!$B$19:$R$41,5,0)/'4. Billing Determinants'!$F$41*$D12,IF($E12="Non-RPP kWh",VLOOKUP(O$4,'4. Billing Determinants'!$B$19:$R$41,6,0)/'4. Billing Determinants'!$G$41*$D12, VLOOKUP(O$4,'4. Billing Determinants'!$B$19:$AA$41,20,0)*$D12)))),0) -> 0 | P12: =IFERROR(IF(P$4="",0,IF($E12="kWh",VLOOKUP(P$4,'4. Billing Determinants'!$B$19:$R$41,4,0)/'4. Billing Determinants'!$E$41*$D12,IF($E12="kW",VLOOKUP(P$4,'4. Billing Determinants'!$B$19:$R$41,5,0)/'4. Billing Determinants'!$F$41*$D12,IF($E12="Non-RPP kWh",VLOOKUP(P$4,'4. Billing Determinants'!$B$19:$R$41,6,0)/'4. Billing Determinants'!$G$41*$D12, VLOOKUP(P$4,'4. Billing Determinants'!$B$19:$AA$41,20,0)*$D12)))),0) -> 0 | Q12: =IFERROR(IF(Q$4="",0,IF($E12="kWh",VLOOKUP(Q$4,'4. Billing Determinants'!$B$19:$R$41,4,0)/'4. Billing Determinants'!$E$41*$D12,IF($E12="kW",VLOOKUP(Q$4,'4. Billing Determinants'!$B$19:$R$41,5,0)/'4. Billing Determinants'!$F$41*$D12,IF($E12="Non-RPP kWh",VLOOKUP(Q$4,'4. Billing Determinants'!$B$19:$R$41,6,0)/'4. Billing Determinants'!$G$41*$D12, VLOOKUP(Q$4,'4. Billing Determinants'!$B$19:$AA$41,20,0)*$D12)))),0) -> 0 | R12: =IFERROR(IF(R$4="",0,IF($E12="kWh",VLOOKUP(R$4,'4. Billing Determinants'!$B$19:$R$41,4,0)/'4. Billing Determinants'!$E$41*$D12,IF($E12="kW",VLOOKUP(R$4,'4. Billing Determinants'!$B$19:$R$41,5,0)/'4. Billing Determinants'!$F$41*$D12,IF($E12="Non-RPP kWh",VLOOKUP(R$4,'4. Billing Determinants'!$B$19:$R$41,6,0)/'4. Billing Determinants'!$G$41*$D12, VLOOKUP(R$4,'4. Billing Determinants'!$B$19:$AA$41,20,0)*$D12)))),0) -> 0 | S12: =IFERROR(IF(S$4="",0,IF($E12="kWh",VLOOKUP(S$4,'4. Billing Determinants'!$B$19:$R$41,4,0)/'4. Billing Determinants'!$E$41*$D12,IF($E12="kW",VLOOKUP(S$4,'4. Billing Determinants'!$B$19:$R$41,5,0)/'4. Billing Determinants'!$F$41*$D12,IF($E12="Non-RPP kWh",VLOOKUP(S$4,'4. Billing Determinants'!$B$19:$R$41,6,0)/'4. Billing Determinants'!$G$41*$D12, VLOOKUP(S$4,'4. Billing Determinants'!$B$19:$AA$41,20,0)*$D12)))),0) -> 0 | T12: =IFERROR(IF(T$4="",0,IF($E12="kWh",VLOOKUP(T$4,'4. Billing Determinants'!$B$19:$R$41,4,0)/'4. Billing Determinants'!$E$41*$D12,IF($E12="kW",VLOOKUP(T$4,'4. Billing Determinants'!$B$19:$R$41,5,0)/'4. Billing Determinants'!$F$41*$D12,IF($E12="Non-RPP kWh",VLOOKUP(T$4,'4. Billing Determinants'!$B$19:$R$41,6,0)/'4. Billing Determinants'!$G$41*$D12, VLOOKUP(T$4,'4. Billing Determinants'!$B$19:$AA$41,20,0)*$D12)))),0) -> 0 | U12: =IFERROR(IF(U$4="",0,IF($E12="kWh",VLOOKUP(U$4,'4. Billing Determinants'!$B$19:$R$41,4,0)/'4. Billing Determinants'!$E$41*$D12,IF($E12="kW",VLOOKUP(U$4,'4. Billing Determinants'!$B$19:$R$41,5,0)/'4. Billing Determinants'!$F$41*$D12,IF($E12="Non-RPP kWh",VLOOKUP(U$4,'4. Billing Determinants'!$B$19:$R$41,6,0)/'4. Billing Determinants'!$G$41*$D12, VLOOKUP(U$4,'4. Billing Determinants'!$B$19:$AA$41,20,0)*$D12)))),0) -> 0 | V12: =IFERROR(IF(V$4="",0,IF($E12="kWh",VLOOKUP(V$4,'4. Billing Determinants'!$B$19:$R$41,4,0)/'4. Billing Determinants'!$E$41*$D12,IF($E12="kW",VLOOKUP(V$4,'4. Billing Determinants'!$B$19:$R$41,5,0)/'4. Billing Determinants'!$F$41*$D12,IF($E12="Non-RPP kWh",VLOOKUP(V$4,'4. Billing Determinants'!$B$19:$R$41,6,0)/'4. Billing Determinants'!$G$41*$D12, VLOOKUP(V$4,'4. Billing Determinants'!$B$19:$AA$41,20,0)*$D12)))),0) -> 0 | W12: =IFERROR(IF(W$4="",0,IF($E12="kWh",VLOOKUP(W$4,'4. Billing Determinants'!$B$19:$R$41,4,0)/'4. Billing Determinants'!$E$41*$D12,IF($E12="kW",VLOOKUP(W$4,'4. Billing Determinants'!$B$19:$R$41,5,0)/'4. Billing Determinants'!$F$41*$D12,IF($E12="Non-RPP kWh",VLOOKUP(W$4,'4. Billing Determinants'!$B$19:$R$41,6,0)/'4. Billing Determinants'!$G$41*$D12, VLOOKUP(W$4,'4. Billing Determinants'!$B$19:$AA$41,20,0)*$D12)))),0) -> 0 | X12: =IFERROR(IF(X$4="",0,IF($E12="kWh",VLOOKUP(X$4,'4. Billing Determinants'!$B$19:$R$41,4,0)/'4. Billing Determinants'!$E$41*$D12,IF($E12="kW",VLOOKUP(X$4,'4. Billing Determinants'!$B$19:$R$41,5,0)/'4. Billing Determinants'!$F$41*$D12,IF($E12="Non-RPP kWh",VLOOKUP(X$4,'4. Billing Determinants'!$B$19:$R$41,6,0)/'4. Billing Determinants'!$G$41*$D12, VLOOKUP(X$4,'4. Billing Determinants'!$B$19:$AA$41,20,0)*$D12)))),0) -> 0 | Y12: =IFERROR(IF(Y$4="",0,IF($E12="kWh",VLOOKUP(Y$4,'4. Billing Determinants'!$B$19:$R$41,4,0)/'4. Billing Determinants'!$E$41*$D12,IF($E12="kW",VLOOKUP(Y$4,'4. Billing Determinants'!$B$19:$R$41,5,0)/'4. Billing Determinants'!$F$41*$D12,IF($E12="Non-RPP kWh",VLOOKUP(Y$4,'4. Billing Determinants'!$B$19:$R$41,6,0)/'4. Billing Determinants'!$G$41*$D12, VLOOKUP(Y$4,'4. Billing Determinants'!$B$19:$AA$41,20,0)*$D12)))),0) -> 0
A13: 10 | B13: Disposition and Recovery/Refund of Regulatory Balances (2010) | C13: 1595 | D13: ='2. 2016 Continuity Schedule'!BT34 -> 0.2482400001 | E13: % | F13: =IFERROR(IF(F$4="",0,IF($E13="kWh",VLOOKUP(F$4,'4. Billing Determinants'!$B$19:$R$41,4,0)/'4. Billing Determinants'!$E$41*$D13,IF($E13="kW",VLOOKUP(F$4,'4. Billing Determinants'!$B$19:$R$41,5,0)/'4. Billing Determinants'!$F$41*$D13,IF($E13="Non-RPP kWh",VLOOKUP(F$4,'4. Billing Determinants'!$B$19:$R$41,6,0)/'4. Billing Determinants'!$G$41*$D13,VLOOKUP(F$4,'4. Billing Determinants'!$B$19:$AA$41,21,0)*$D13)))),0) -> 0.07283361602 | G13: =IFERROR(IF(G$4="",0,IF($E13="kWh",VLOOKUP(G$4,'4. Billing Determinants'!$B$19:$R$41,4,0)/'4. Billing Determinants'!$E$41*$D13,IF($E13="kW",VLOOKUP(G$4,'4. Billing Determinants'!$B$19:$R$41,5,0)/'4. Billing Determinants'!$F$41*$D13,IF($E13="Non-RPP kWh",VLOOKUP(G$4,'4. Billing Determinants'!$B$19:$R$41,6,0)/'4. Billing Determinants'!$G$41*$D13,VLOOKUP(G$4,'4. Billing Determinants'!$B$19:$AA$41,21,0)*$D13)))),0) -> 0.02728157601 | H13: =IFERROR(IF(H$4="",0,IF($E13="kWh",VLOOKUP(H$4,'4. Billing Determinants'!$B$19:$R$41,4,0)/'4. Billing Determinants'!$E$41*$D13,IF($E13="kW",VLOOKUP(H$4,'4. Billing Determinants'!$B$19:$R$41,5,0)/'4. Billing Determinants'!$F$41*$D13,IF($E13="Non-RPP kWh",VLOOKUP(H$4,'4. Billing Determinants'!$B$19:$R$41,6,0)/'4. Billing Determinants'!$G$41*$D13,VLOOKUP(H$4,'4. Billing Determinants'!$B$19:$AA$41,21,0)*$D13)))),0) -> 0.1452204 | I13: =IFERROR(IF(I$4="",0,IF($E13="kWh",VLOOKUP(I$4,'4. Billing Determinants'!$B$19:$R$41,4,0)/'4. Billing Determinants'!$E$41*$D13,IF($E13="kW",VLOOKUP(I$4,'4. Billing Determinants'!$B$19:$R$41,5,0)/'4. Billing Determinants'!$F$41*$D13,IF($E13="Non-RPP kWh",VLOOKUP(I$4,'4. Billing Determinants'!$B$19:$R$41,6,0)/'4. Billing Determinants'!$G$41*$D13,VLOOKUP(I$4,'4. Billing Determinants'!$B$19:$AA$41,21,0)*$D13)))),0) -> 0.001729895471 | J13: =IFERROR(IF(J$4="",0,IF($E13="kWh",VLOOKUP(J$4,'4. Billing Determinants'!$B$19:$R$41,4,0)/'4. Billing Determinants'!$E$41*$D13,IF($E13="kW",VLOOKUP(J$4,'4. Billing Determinants'!$B$19:$R$41,5,0)/'4. Billing Determinants'!$F$41*$D13,IF($E13="Non-RPP kWh",VLOOKUP(J$4,'4. Billing Determinants'!$B$19:$R$41,6,0)/'4. Billing Determinants'!$G$41*$D13,VLOOKUP(J$4,'4. Billing Determinants'!$B$19:$AA$41,21,0)*$D13)))),0) -> 0 | K13: =IFERROR(IF(K$4="",0,IF($E13="kWh",VLOOKUP(K$4,'4. Billing Determinants'!$B$19:$R$41,4,0)/'4. Billing Determinants'!$E$41*$D13,IF($E13="kW",VLOOKUP(K$4,'4. Billing Determinants'!$B$19:$R$41,5,0)/'4. Billing Determinants'!$F$41*$D13,IF($E13="Non-RPP kWh",VLOOKUP(K$4,'4. Billing Determinants'!$B$19:$R$41,6,0)/'4. Billing Determinants'!$G$41*$D13,VLOOKUP(K$4,'4. Billing Determinants'!$B$19:$AA$41,21,0)*$D13)))),0) -> 0.0008649477355 | L13: =IFERROR(IF(L$4="",0,IF($E13="kWh",VLOOKUP(L$4,'4. Billing Determinants'!$B$19:$R$41,4,0)/'4. Billing Determinants'!$E$41*$D13,IF($E13="kW",VLOOKUP(L$4,'4. Billing Determinants'!$B$19:$R$41,5,0)/'4. Billing Determinants'!$F$41*$D13,IF($E13="Non-RPP kWh",VLOOKUP(L$4,'4. Billing Determinants'!$B$19:$R$41,6,0)/'4. Billing Determinants'!$G$41*$D13,VLOOKUP(L$4,'4. Billing Determinants'!$B$19:$AA$41,21,0)*$D13)))),0) -> 0 | M13: =IFERROR(IF(M$4="",0,IF($E13="kWh",VLOOKUP(M$4,'4. Billing Determinants'!$B$19:$R$41,4,0)/'4. Billing Determinants'!$E$41*$D13,IF($E13="kW",VLOOKUP(M$4,'4. Billing Determinants'!$B$19:$R$41,5,0)/'4. Billing Determinants'!$F$41*$D13,IF($E13="Non-RPP kWh",VLOOKUP(M$4,'4. Billing Determinants'!$B$19:$R$41,6,0)/'4. Billing Determinants'!$G$41*$D13,VLOOKUP(M$4,'4. Billing Determinants'!$B$19:$AA$41,21,0)*$D13)))),0) -> 0 | N13: =IFERROR(IF(N$4="",0,IF($E13="kWh",VLOOKUP(N$4,'4. Billing Determinants'!$B$19:$R$41,4,0)/'4. Billing Determinants'!$E$41*$D13,IF($E13="kW",VLOOKUP(N$4,'4. Billing Determinants'!$B$19:$R$41,5,0)/'4. Billing Determinants'!$F$41*$D13,IF($E13="Non-RPP kWh",VLOOKUP(N$4,'4. Billing Determinants'!$B$19:$R$41,6,0)/'4. Billing Determinants'!$G$41*$D13,VLOOKUP(N$4,'4. Billing Determinants'!$B$19:$AA$41,21,0)*$D13)))),0) -> 0 | O13: =IFERROR(IF(O$4="",0,IF($E13="kWh",VLOOKUP(O$4,'4. Billing Determinants'!$B$19:$R$41,4,0)/'4. Billing Determinants'!$E$41*$D13,IF($E13="kW",VLOOKUP(O$4,'4. Billing Determinants'!$B$19:$R$41,5,0)/'4. Billing Determinants'!$F$41*$D13,IF($E13="Non-RPP kWh",VLOOKUP(O$4,'4. Billing Determinants'!$B$19:$R$41,6,0)/'4. Billing Determinants'!$G$41*$D13,VLOOKUP(O$4,'4. Billing Determinants'!$B$19:$AA$41,21,0)*$D13)))),0) -> 0 | P13: =IFERROR(IF(P$4="",0,IF($E13="kWh",VLOOKUP(P$4,'4. Billing Determinants'!$B$19:$R$41,4,0)/'4. Billing Determinants'!$E$41*$D13,IF($E13="kW",VLOOKUP(P$4,'4. Billing Determinants'!$B$19:$R$41,5,0)/'4. Billing Determinants'!$F$41*$D13,IF($E13="Non-RPP kWh",VLOOKUP(P$4,'4. Billing Determinants'!$B$19:$R$41,6,0)/'4. Billing Determinants'!$G$41*$D13,VLOOKUP(P$4,'4. Billing Determinants'!$B$19:$AA$41,21,0)*$D13)))),0) -> 0 | Q13: =IFERROR(IF(Q$4="",0,IF($E13="kWh",VLOOKUP(Q$4,'4. Billing Determinants'!$B$19:$R$41,4,0)/'4. Billing Determinants'!$E$41*$D13,IF($E13="kW",VLOOKUP(Q$4,'4. Billing Determinants'!$B$19:$R$41,5,0)/'4. Billing Determinants'!$F$41*$D13,IF($E13="Non-RPP kWh",VLOOKUP(Q$4,'4. Billing Determinants'!$B$19:$R$41,6,0)/'4. Billing Determinants'!$G$41*$D13,VLOOKUP(Q$4,'4. Billing Determinants'!$B$19:$AA$41,21,0)*$D13)))),0) -> 0 | R13: =IFERROR(IF(R$4="",0,IF($E13="kWh",VLOOKUP(R$4,'4. Billing Determinants'!$B$19:$R$41,4,0)/'4. Billing Determinants'!$E$41*$D13,IF($E13="kW",VLOOKUP(R$4,'4. Billing Determinants'!$B$19:$R$41,5,0)/'4. Billing Determinants'!$F$41*$D13,IF($E13="Non-RPP kWh",VLOOKUP(R$4,'4. Billing Determinants'!$B$19:$R$41,6,0)/'4. Billing Determinants'!$G$41*$D13,VLOOKUP(R$4,'4. Billing Determinants'!$B$19:$AA$41,21,0)*$D13)))),0) -> 0 | S13: =IFERROR(IF(S$4="",0,IF($E13="kWh",VLOOKUP(S$4,'4. Billing Determinants'!$B$19:$R$41,4,0)/'4. Billing Determinants'!$E$41*$D13,IF($E13="kW",VLOOKUP(S$4,'4. Billing Determinants'!$B$19:$R$41,5,0)/'4. Billing Determinants'!$F$41*$D13,IF($E13="Non-RPP kWh",VLOOKUP(S$4,'4. Billing Determinants'!$B$19:$R$41,6,0)/'4. Billing Determinants'!$G$41*$D13,VLOOKUP(S$4,'4. Billing Determinants'!$B$19:$AA$41,21,0)*$D13)))),0) -> 0 | T13: =IFERROR(IF(T$4="",0,IF($E13="kWh",VLOOKUP(T$4,'4. Billing Determinants'!$B$19:$R$41,4,0)/'4. Billing Determinants'!$E$41*$D13,IF($E13="kW",VLOOKUP(T$4,'4. Billing Determinants'!$B$19:$R$41,5,0)/'4. Billing Determinants'!$F$41*$D13,IF($E13="Non-RPP kWh",VLOOKUP(T$4,'4. Billing Determinants'!$B$19:$R$41,6,0)/'4. Billing Determinants'!$G$41*$D13,VLOOKUP(T$4,'4. Billing Determinants'!$B$19:$AA$41,21,0)*$D13)))),0) -> 0 | U13: =IFERROR(IF(U$4="",0,IF($E13="kWh",VLOOKUP(U$4,'4. Billing Determinants'!$B$19:$R$41,4,0)/'4. Billing Determinants'!$E$41*$D13,IF($E13="kW",VLOOKUP(U$4,'4. Billing Determinants'!$B$19:$R$41,5,0)/'4. Billing Determinants'!$F$41*$D13,IF($E13="Non-RPP kWh",VLOOKUP(U$4,'4. Billing Determinants'!$B$19:$R$41,6,0)/'4. Billing Determinants'!$G$41*$D13,VLOOKUP(U$4,'4. Billing Determinants'!$B$19:$AA$41,21,0)*$D13)))),0) -> 0 | V13: =IFERROR(IF(V$4="",0,IF($E13="kWh",VLOOKUP(V$4,'4. Billing Determinants'!$B$19:$R$41,4,0)/'4. Billing Determinants'!$E$41*$D13,IF($E13="kW",VLOOKUP(V$4,'4. Billing Determinants'!$B$19:$R$41,5,0)/'4. Billing Determinants'!$F$41*$D13,IF($E13="Non-RPP kWh",VLOOKUP(V$4,'4. Billing Determinants'!$B$19:$R$41,6,0)/'4. Billing Determinants'!$G$41*$D13,VLOOKUP(V$4,'4. Billing Determinants'!$B$19:$AA$41,21,0)*$D13)))),0) -> 0 | W13: =IFERROR(IF(W$4="",0,IF($E13="kWh",VLOOKUP(W$4,'4. Billing Determinants'!$B$19:$R$41,4,0)/'4. Billing Determinants'!$E$41*$D13,IF($E13="kW",VLOOKUP(W$4,'4. Billing Determinants'!$B$19:$R$41,5,0)/'4. Billing Determinants'!$F$41*$D13,IF($E13="Non-RPP kWh",VLOOKUP(W$4,'4. Billing Determinants'!$B$19:$R$41,6,0)/'4. Billing Determinants'!$G$41*$D13,VLOOKUP(W$4,'4. Billing Determinants'!$B$19:$AA$41,21,0)*$D13)))),0) -> 0 | X13: =IFERROR(IF(X$4="",0,IF($E13="kWh",VLOOKUP(X$4,'4. Billing Determinants'!$B$19:$R$41,4,0)/'4. Billing Determinants'!$E$41*$D13,IF($E13="kW",VLOOKUP(X$4,'4. Billing Determinants'!$B$19:$R$41,5,0)/'4. Billing Determinants'!$F$41*$D13,IF($E13="Non-RPP kWh",VLOOKUP(X$4,'4. Billing Determinants'!$B$19:$R$41,6,0)/'4. Billing Determinants'!$G$41*$D13,VLOOKUP(X$4,'4. Billing Determinants'!$B$19:$AA$41,21,0)*$D13)))),0) -> 0 | Y13: =IFERROR(IF(Y$4="",0,IF($E13="kWh",VLOOKUP(Y$4,'4. Billing Determinants'!$B$19:$R$41,4,0)/'4. Billing Determinants'!$E$41*$D13,IF($E13="kW",VLOOKUP(Y$4,'4. Billing Determinants'!$B$19:$R$41,5,0)/'4. Billing Determinants'!$F$41*$D13,IF($E13="Non-RPP kWh",VLOOKUP(Y$4,'4. Billing Determinants'!$B$19:$R$41,6,0)/'4. Billing Determinants'!$G$41*$D13,VLOOKUP(Y$4,'4. Billing Determinants'!$B$19:$AA$41,21,0)*$D13)))),0) -> 0
A14: 11 | B14: Disposition and Recovery/Refund of Regulatory Balances (2011) | C14: 1595 | D14: ='2. 2016 Continuity Schedule'!BT35 -> 0.19 | E14: kWh | F14: =IFERROR(IF(F$4="",0,IF($E14="kWh",VLOOKUP(F$4,'4. Billing Determinants'!$B$19:$R$41,4,0)/'4. Billing Determinants'!$E$41*$D14,IF($E14="kW",VLOOKUP(F$4,'4. Billing Determinants'!$B$19:$R$41,5,0)/'4. Billing Determinants'!$F$41*$D14,IF($E14="Non-RPP kWh",VLOOKUP(F$4,'4. Billing Determinants'!$B$19:$R$41,6,0)/'4. Billing Determinants'!$G$41*$D14, VLOOKUP(F$4,'4. Billing Determinants'!$B$19:$AA$41,22,0)*$D14)))),0) -> 0.05981401522 | G14: =IFERROR(IF(G$4="",0,IF($E14="kWh",VLOOKUP(G$4,'4. Billing Determinants'!$B$19:$R$41,4,0)/'4. Billing Determinants'!$E$41*$D14,IF($E14="kW",VLOOKUP(G$4,'4. Billing Determinants'!$B$19:$R$41,5,0)/'4. Billing Determinants'!$F$41*$D14,IF($E14="Non-RPP kWh",VLOOKUP(G$4,'4. Billing Determinants'!$B$19:$R$41,6,0)/'4. Billing Determinants'!$G$41*$D14, VLOOKUP(G$4,'4. Billing Determinants'!$B$19:$AA$41,22,0)*$D14)))),0) -> 0.02047786511 | H14: =IFERROR(IF(H$4="",0,IF($E14="kWh",VLOOKUP(H$4,'4. Billing Determinants'!$B$19:$R$41,4,0)/'4. Billing Determinants'!$E$41*$D14,IF($E14="kW",VLOOKUP(H$4,'4. Billing Determinants'!$B$19:$R$41,5,0)/'4. Billing Determinants'!$F$41*$D14,IF($E14="Non-RPP kWh",VLOOKUP(H$4,'4. Billing Determinants'!$B$19:$R$41,6,0)/'4. Billing Determinants'!$G$41*$D14, VLOOKUP(H$4,'4. Billing Determinants'!$B$19:$AA$41,22,0)*$D14)))),0) -> 0.09771646245 | I14: =IFERROR(IF(I$4="",0,IF($E14="kWh",VLOOKUP(I$4,'4. Billing Determinants'!$B$19:$R$41,4,0)/'4. Billing Determinants'!$E$41*$D14,IF($E14="kW",VLOOKUP(I$4,'4. Billing Determinants'!$B$19:$R$41,5,0)/'4. Billing Determinants'!$F$41*$D14,IF($E14="Non-RPP kWh",VLOOKUP(I$4,'4. Billing Determinants'!$B$19:$R$41,6,0)/'4. Billing Determinants'!$G$41*$D14, VLOOKUP(I$4,'4. Billing Determinants'!$B$19:$AA$41,22,0)*$D14)))),0) -> 0.001484573984 | J14: =IFERROR(IF(J$4="",0,IF($E14="kWh",VLOOKUP(J$4,'4. Billing Determinants'!$B$19:$R$41,4,0)/'4. Billing Determinants'!$E$41*$D14,IF($E14="kW",VLOOKUP(J$4,'4. Billing Determinants'!$B$19:$R$41,5,0)/'4. Billing Determinants'!$F$41*$D14,IF($E14="Non-RPP kWh",VLOOKUP(J$4,'4. Billing Determinants'!$B$19:$R$41,6,0)/'4. Billing Determinants'!$G$41*$D14, VLOOKUP(J$4,'4. Billing Determinants'!$B$19:$AA$41,22,0)*$D14)))),0) -> 7.607551859e-05 | K14: =IFERROR(IF(K$4="",0,IF($E14="kWh",VLOOKUP(K$4,'4. Billing Determinants'!$B$19:$R$41,4,0)/'4. Billing Determinants'!$E$41*$D14,IF($E14="kW",VLOOKUP(K$4,'4. Billing Determinants'!$B$19:$R$41,5,0)/'4. Billing Determinants'!$F$41*$D14,IF($E14="Non-RPP kWh",VLOOKUP(K$4,'4. Billing Determinants'!$B$19:$R$41,6,0)/'4. Billing Determinants'!$G$41*$D14, VLOOKUP(K$4,'4. Billing Determinants'!$B$19:$AA$41,22,0)*$D14)))),0) -> 0.000279619688 | L14: =IFERROR(IF(L$4="",0,IF($E14="kWh",VLOOKUP(L$4,'4. Billing Determinants'!$B$19:$R$41,4,0)/'4. Billing Determinants'!$E$41*$D14,IF($E14="kW",VLOOKUP(L$4,'4. Billing Determinants'!$B$19:$R$41,5,0)/'4. Billing Determinants'!$F$41*$D14,IF($E14="Non-RPP kWh",VLOOKUP(L$4,'4. Billing Determinants'!$B$19:$R$41,6,0)/'4. Billing Determinants'!$G$41*$D14, VLOOKUP(L$4,'4. Billing Determinants'!$B$19:$AA$41,22,0)*$D14)))),0) -> 0.01015138803 | M14: =IFERROR(IF(M$4="",0,IF($E14="kWh",VLOOKUP(M$4,'4. Billing Determinants'!$B$19:$R$41,4,0)/'4. Billing Determinants'!$E$41*$D14,IF($E14="kW",VLOOKUP(M$4,'4. Billing Determinants'!$B$19:$R$41,5,0)/'4. Billing Determinants'!$F$41*$D14,IF($E14="Non-RPP kWh",VLOOKUP(M$4,'4. Billing Determinants'!$B$19:$R$41,6,0)/'4. Billing Determinants'!$G$41*$D14, VLOOKUP(M$4,'4. Billing Determinants'!$B$19:$AA$41,22,0)*$D14)))),0) -> 0 | N14: =IFERROR(IF(N$4="",0,IF($E14="kWh",VLOOKUP(N$4,'4. Billing Determinants'!$B$19:$R$41,4,0)/'4. Billing Determinants'!$E$41*$D14,IF($E14="kW",VLOOKUP(N$4,'4. Billing Determinants'!$B$19:$R$41,5,0)/'4. Billing Determinants'!$F$41*$D14,IF($E14="Non-RPP kWh",VLOOKUP(N$4,'4. Billing Determinants'!$B$19:$R$41,6,0)/'4. Billing Determinants'!$G$41*$D14, VLOOKUP(N$4,'4. Billing Determinants'!$B$19:$AA$41,22,0)*$D14)))),0) -> 0 | O14: =IFERROR(IF(O$4="",0,IF($E14="kWh",VLOOKUP(O$4,'4. Billing Determinants'!$B$19:$R$41,4,0)/'4. Billing Determinants'!$E$41*$D14,IF($E14="kW",VLOOKUP(O$4,'4. Billing Determinants'!$B$19:$R$41,5,0)/'4. Billing Determinants'!$F$41*$D14,IF($E14="Non-RPP kWh",VLOOKUP(O$4,'4. Billing Determinants'!$B$19:$R$41,6,0)/'4. Billing Determinants'!$G$41*$D14, VLOOKUP(O$4,'4. Billing Determinants'!$B$19:$AA$41,22,0)*$D14)))),0) -> 0 | P14: =IFERROR(IF(P$4="",0,IF($E14="kWh",VLOOKUP(P$4,'4. Billing Determinants'!$B$19:$R$41,4,0)/'4. Billing Determinants'!$E$41*$D14,IF($E14="kW",VLOOKUP(P$4,'4. Billing Determinants'!$B$19:$R$41,5,0)/'4. Billing Determinants'!$F$41*$D14,IF($E14="Non-RPP kWh",VLOOKUP(P$4,'4. Billing Determinants'!$B$19:$R$41,6,0)/'4. Billing Determinants'!$G$41*$D14, VLOOKUP(P$4,'4. Billing Determinants'!$B$19:$AA$41,22,0)*$D14)))),0) -> 0 | Q14: =IFERROR(IF(Q$4="",0,IF($E14="kWh",VLOOKUP(Q$4,'4. Billing Determinants'!$B$19:$R$41,4,0)/'4. Billing Determinants'!$E$41*$D14,IF($E14="kW",VLOOKUP(Q$4,'4. Billing Determinants'!$B$19:$R$41,5,0)/'4. Billing Determinants'!$F$41*$D14,IF($E14="Non-RPP kWh",VLOOKUP(Q$4,'4. Billing Determinants'!$B$19:$R$41,6,0)/'4. Billing Determinants'!$G$41*$D14, VLOOKUP(Q$4,'4. Billing Determinants'!$B$19:$AA$41,22,0)*$D14)))),0) -> 0 | R14: =IFERROR(IF(R$4="",0,IF($E14="kWh",VLOOKUP(R$4,'4. Billing Determinants'!$B$19:$R$41,4,0)/'4. Billing Determinants'!$E$41*$D14,IF($E14="kW",VLOOKUP(R$4,'4. Billing Determinants'!$B$19:$R$41,5,0)/'4. Billing Determinants'!$F$41*$D14,IF($E14="Non-RPP kWh",VLOOKUP(R$4,'4. Billing Determinants'!$B$19:$R$41,6,0)/'4. Billing Determinants'!$G$41*$D14, VLOOKUP(R$4,'4. Billing Determinants'!$B$19:$AA$41,22,0)*$D14)))),0) -> 0 | S14: =IFERROR(IF(S$4="",0,IF($E14="kWh",VLOOKUP(S$4,'4. Billing Determinants'!$B$19:$R$41,4,0)/'4. Billing Determinants'!$E$41*$D14,IF($E14="kW",VLOOKUP(S$4,'4. Billing Determinants'!$B$19:$R$41,5,0)/'4. Billing Determinants'!$F$41*$D14,IF($E14="Non-RPP kWh",VLOOKUP(S$4,'4. Billing Determinants'!$B$19:$R$41,6,0)/'4. Billing Determinants'!$G$41*$D14, VLOOKUP(S$4,'4. Billing Determinants'!$B$19:$AA$41,22,0)*$D14)))),0) -> 0 | T14: =IFERROR(IF(T$4="",0,IF($E14="kWh",VLOOKUP(T$4,'4. Billing Determinants'!$B$19:$R$41,4,0)/'4. Billing Determinants'!$E$41*$D14,IF($E14="kW",VLOOKUP(T$4,'4. Billing Determinants'!$B$19:$R$41,5,0)/'4. Billing Determinants'!$F$41*$D14,IF($E14="Non-RPP kWh",VLOOKUP(T$4,'4. Billing Determinants'!$B$19:$R$41,6,0)/'4. Billing Determinants'!$G$41*$D14, VLOOKUP(T$4,'4. Billing Determinants'!$B$19:$AA$41,22,0)*$D14)))),0) -> 0 | U14: =IFERROR(IF(U$4="",0,IF($E14="kWh",VLOOKUP(U$4,'4. Billing Determinants'!$B$19:$R$41,4,0)/'4. Billing Determinants'!$E$41*$D14,IF($E14="kW",VLOOKUP(U$4,'4. Billing Determinants'!$B$19:$R$41,5,0)/'4. Billing Determinants'!$F$41*$D14,IF($E14="Non-RPP kWh",VLOOKUP(U$4,'4. Billing Determinants'!$B$19:$R$41,6,0)/'4. Billing Determinants'!$G$41*$D14, VLOOKUP(U$4,'4. Billing Determinants'!$B$19:$AA$41,22,0)*$D14)))),0) -> 0 | V14: =IFERROR(IF(V$4="",0,IF($E14="kWh",VLOOKUP(V$4,'4. Billing Determinants'!$B$19:$R$41,4,0)/'4. Billing Determinants'!$E$41*$D14,IF($E14="kW",VLOOKUP(V$4,'4. Billing Determinants'!$B$19:$R$41,5,0)/'4. Billing Determinants'!$F$41*$D14,IF($E14="Non-RPP kWh",VLOOKUP(V$4,'4. Billing Determinants'!$B$19:$R$41,6,0)/'4. Billing Determinants'!$G$41*$D14, VLOOKUP(V$4,'4. Billing Determinants'!$B$19:$AA$41,22,0)*$D14)))),0) -> 0 | W14: =IFERROR(IF(W$4="",0,IF($E14="kWh",VLOOKUP(W$4,'4. Billing Determinants'!$B$19:$R$41,4,0)/'4. Billing Determinants'!$E$41*$D14,IF($E14="kW",VLOOKUP(W$4,'4. Billing Determinants'!$B$19:$R$41,5,0)/'4. Billing Determinants'!$F$41*$D14,IF($E14="Non-RPP kWh",VLOOKUP(W$4,'4. Billing Determinants'!$B$19:$R$41,6,0)/'4. Billing Determinants'!$G$41*$D14, VLOOKUP(W$4,'4. Billing Determinants'!$B$19:$AA$41,22,0)*$D14)))),0) -> 0 | X14: =IFERROR(IF(X$4="",0,IF($E14="kWh",VLOOKUP(X$4,'4. Billing Determinants'!$B$19:$R$41,4,0)/'4. Billing Determinants'!$E$41*$D14,IF($E14="kW",VLOOKUP(X$4,'4. Billing Determinants'!$B$19:$R$41,5,0)/'4. Billing Determinants'!$F$41*$D14,IF($E14="Non-RPP kWh",VLOOKUP(X$4,'4. Billing Determinants'!$B$19:$R$41,6,0)/'4. Billing Determinants'!$G$41*$D14, VLOOKUP(X$4,'4. Billing Determinants'!$B$19:$AA$41,22,0)*$D14)))),0) -> 0 | Y14: =IFERROR(IF(Y$4="",0,IF($E14="kWh",VLOOKUP(Y$4,'4. Billing Determinants'!$B$19:$R$41,4,0)/'4. Billing Determinants'!$E$41*$D14,IF($E14="kW",VLOOKUP(Y$4,'4. Billing Determinants'!$B$19:$R$41,5,0)/'4. Billing Determinants'!$F$41*$D14,IF($E14="Non-RPP kWh",VLOOKUP(Y$4,'4. Billing Determinants'!$B$19:$R$41,6,0)/'4. Billing Determinants'!$G$41*$D14, VLOOKUP(Y$4,'4. Billing Determinants'!$B$19:$AA$41,22,0)*$D14)))),0) -> 0
A15: 12 | B15: Disposition and Recovery/Refund of Regulatory Balances (2012) | C15: 1595 | D15: ='2. 2016 Continuity Schedule'!BT36 -> 0.59143 | E15: kWh | F15: =IFERROR(IF(F$4="",0,IF($E15="kWh",VLOOKUP(F$4,'4. Billing Determinants'!$B$19:$R$41,4,0)/'4. Billing Determinants'!$E$41*$D15,IF($E15="kW",VLOOKUP(F$4,'4. Billing Determinants'!$B$19:$R$41,5,0)/'4. Billing Determinants'!$F$41*$D15,IF($E15="Non-RPP kWh",VLOOKUP(F$4,'4. Billing Determinants'!$B$19:$R$41,6,0)/'4. Billing Determinants'!$G$41*$D15, VLOOKUP(F$4,'4. Billing Determinants'!$B$19:$AA$41,23,0)*$D15)))),0) -> 0.1861884369 | G15: =IFERROR(IF(G$4="",0,IF($E15="kWh",VLOOKUP(G$4,'4. Billing Determinants'!$B$19:$R$41,4,0)/'4. Billing Determinants'!$E$41*$D15,IF($E15="kW",VLOOKUP(G$4,'4. Billing Determinants'!$B$19:$R$41,5,0)/'4. Billing Determinants'!$F$41*$D15,IF($E15="Non-RPP kWh",VLOOKUP(G$4,'4. Billing Determinants'!$B$19:$R$41,6,0)/'4. Billing Determinants'!$G$41*$D15, VLOOKUP(G$4,'4. Billing Determinants'!$B$19:$AA$41,23,0)*$D15)))),0) -> 0.06374328297 | H15: =IFERROR(IF(H$4="",0,IF($E15="kWh",VLOOKUP(H$4,'4. Billing Determinants'!$B$19:$R$41,4,0)/'4. Billing Determinants'!$E$41*$D15,IF($E15="kW",VLOOKUP(H$4,'4. Billing Determinants'!$B$19:$R$41,5,0)/'4. Billing Determinants'!$F$41*$D15,IF($E15="Non-RPP kWh",VLOOKUP(H$4,'4. Billing Determinants'!$B$19:$R$41,6,0)/'4. Billing Determinants'!$G$41*$D15, VLOOKUP(H$4,'4. Billing Determinants'!$B$19:$AA$41,23,0)*$D15)))),0) -> 0.3041707757 | I15: =IFERROR(IF(I$4="",0,IF($E15="kWh",VLOOKUP(I$4,'4. Billing Determinants'!$B$19:$R$41,4,0)/'4. Billing Determinants'!$E$41*$D15,IF($E15="kW",VLOOKUP(I$4,'4. Billing Determinants'!$B$19:$R$41,5,0)/'4. Billing Determinants'!$F$41*$D15,IF($E15="Non-RPP kWh",VLOOKUP(I$4,'4. Billing Determinants'!$B$19:$R$41,6,0)/'4. Billing Determinants'!$G$41*$D15, VLOOKUP(I$4,'4. Billing Determinants'!$B$19:$AA$41,23,0)*$D15)))),0) -> 0.00462116627 | J15: =IFERROR(IF(J$4="",0,IF($E15="kWh",VLOOKUP(J$4,'4. Billing Determinants'!$B$19:$R$41,4,0)/'4. Billing Determinants'!$E$41*$D15,IF($E15="kW",VLOOKUP(J$4,'4. Billing Determinants'!$B$19:$R$41,5,0)/'4. Billing Determinants'!$F$41*$D15,IF($E15="Non-RPP kWh",VLOOKUP(J$4,'4. Billing Determinants'!$B$19:$R$41,6,0)/'4. Billing Determinants'!$G$41*$D15, VLOOKUP(J$4,'4. Billing Determinants'!$B$19:$AA$41,23,0)*$D15)))),0) -> 0.0002368070735 | K15: =IFERROR(IF(K$4="",0,IF($E15="kWh",VLOOKUP(K$4,'4. Billing Determinants'!$B$19:$R$41,4,0)/'4. Billing Determinants'!$E$41*$D15,IF($E15="kW",VLOOKUP(K$4,'4. Billing Determinants'!$B$19:$R$41,5,0)/'4. Billing Determinants'!$F$41*$D15,IF($E15="Non-RPP kWh",VLOOKUP(K$4,'4. Billing Determinants'!$B$19:$R$41,6,0)/'4. Billing Determinants'!$G$41*$D15, VLOOKUP(K$4,'4. Billing Determinants'!$B$19:$AA$41,23,0)*$D15)))),0) -> 0.0008703972215 | L15: =IFERROR(IF(L$4="",0,IF($E15="kWh",VLOOKUP(L$4,'4. Billing Determinants'!$B$19:$R$41,4,0)/'4. Billing Determinants'!$E$41*$D15,IF($E15="kW",VLOOKUP(L$4,'4. Billing Determinants'!$B$19:$R$41,5,0)/'4. Billing Determinants'!$F$41*$D15,IF($E15="Non-RPP kWh",VLOOKUP(L$4,'4. Billing Determinants'!$B$19:$R$41,6,0)/'4. Billing Determinants'!$G$41*$D15, VLOOKUP(L$4,'4. Billing Determinants'!$B$19:$AA$41,23,0)*$D15)))),0) -> 0.03159913379 | M15: =IFERROR(IF(M$4="",0,IF($E15="kWh",VLOOKUP(M$4,'4. Billing Determinants'!$B$19:$R$41,4,0)/'4. Billing Determinants'!$E$41*$D15,IF($E15="kW",VLOOKUP(M$4,'4. Billing Determinants'!$B$19:$R$41,5,0)/'4. Billing Determinants'!$F$41*$D15,IF($E15="Non-RPP kWh",VLOOKUP(M$4,'4. Billing Determinants'!$B$19:$R$41,6,0)/'4. Billing Determinants'!$G$41*$D15, VLOOKUP(M$4,'4. Billing Determinants'!$B$19:$AA$41,23,0)*$D15)))),0) -> 0 | N15: =IFERROR(IF(N$4="",0,IF($E15="kWh",VLOOKUP(N$4,'4. Billing Determinants'!$B$19:$R$41,4,0)/'4. Billing Determinants'!$E$41*$D15,IF($E15="kW",VLOOKUP(N$4,'4. Billing Determinants'!$B$19:$R$41,5,0)/'4. Billing Determinants'!$F$41*$D15,IF($E15="Non-RPP kWh",VLOOKUP(N$4,'4. Billing Determinants'!$B$19:$R$41,6,0)/'4. Billing Determinants'!$G$41*$D15, VLOOKUP(N$4,'4. Billing Determinants'!$B$19:$AA$41,23,0)*$D15)))),0) -> 0 | O15: =IFERROR(IF(O$4="",0,IF($E15="kWh",VLOOKUP(O$4,'4. Billing Determinants'!$B$19:$R$41,4,0)/'4. Billing Determinants'!$E$41*$D15,IF($E15="kW",VLOOKUP(O$4,'4. Billing Determinants'!$B$19:$R$41,5,0)/'4. Billing Determinants'!$F$41*$D15,IF($E15="Non-RPP kWh",VLOOKUP(O$4,'4. Billing Determinants'!$B$19:$R$41,6,0)/'4. Billing Determinants'!$G$41*$D15, VLOOKUP(O$4,'4. Billing Determinants'!$B$19:$AA$41,23,0)*$D15)))),0) -> 0 | P15: =IFERROR(IF(P$4="",0,IF($E15="kWh",VLOOKUP(P$4,'4. Billing Determinants'!$B$19:$R$41,4,0)/'4. Billing Determinants'!$E$41*$D15,IF($E15="kW",VLOOKUP(P$4,'4. Billing Determinants'!$B$19:$R$41,5,0)/'4. Billing Determinants'!$F$41*$D15,IF($E15="Non-RPP kWh",VLOOKUP(P$4,'4. Billing Determinants'!$B$19:$R$41,6,0)/'4. Billing Determinants'!$G$41*$D15, VLOOKUP(P$4,'4. Billing Determinants'!$B$19:$AA$41,23,0)*$D15)))),0) -> 0 | Q15: =IFERROR(IF(Q$4="",0,IF($E15="kWh",VLOOKUP(Q$4,'4. Billing Determinants'!$B$19:$R$41,4,0)/'4. Billing Determinants'!$E$41*$D15,IF($E15="kW",VLOOKUP(Q$4,'4. Billing Determinants'!$B$19:$R$41,5,0)/'4. Billing Determinants'!$F$41*$D15,IF($E15="Non-RPP kWh",VLOOKUP(Q$4,'4. Billing Determinants'!$B$19:$R$41,6,0)/'4. Billing Determinants'!$G$41*$D15, VLOOKUP(Q$4,'4. Billing Determinants'!$B$19:$AA$41,23,0)*$D15)))),0) -> 0 | R15: =IFERROR(IF(R$4="",0,IF($E15="kWh",VLOOKUP(R$4,'4. Billing Determinants'!$B$19:$R$41,4,0)/'4. Billing Determinants'!$E$41*$D15,IF($E15="kW",VLOOKUP(R$4,'4. Billing Determinants'!$B$19:$R$41,5,0)/'4. Billing Determinants'!$F$41*$D15,IF($E15="Non-RPP kWh",VLOOKUP(R$4,'4. Billing Determinants'!$B$19:$R$41,6,0)/'4. Billing Determinants'!$G$41*$D15, VLOOKUP(R$4,'4. Billing Determinants'!$B$19:$AA$41,23,0)*$D15)))),0) -> 0 | S15: =IFERROR(IF(S$4="",0,IF($E15="kWh",VLOOKUP(S$4,'4. Billing Determinants'!$B$19:$R$41,4,0)/'4. Billing Determinants'!$E$41*$D15,IF($E15="kW",VLOOKUP(S$4,'4. Billing Determinants'!$B$19:$R$41,5,0)/'4. Billing Determinants'!$F$41*$D15,IF($E15="Non-RPP kWh",VLOOKUP(S$4,'4. Billing Determinants'!$B$19:$R$41,6,0)/'4. Billing Determinants'!$G$41*$D15, VLOOKUP(S$4,'4. Billing Determinants'!$B$19:$AA$41,23,0)*$D15)))),0) -> 0 | T15: =IFERROR(IF(T$4="",0,IF($E15="kWh",VLOOKUP(T$4,'4. Billing Determinants'!$B$19:$R$41,4,0)/'4. Billing Determinants'!$E$41*$D15,IF($E15="kW",VLOOKUP(T$4,'4. Billing Determinants'!$B$19:$R$41,5,0)/'4. Billing Determinants'!$F$41*$D15,IF($E15="Non-RPP kWh",VLOOKUP(T$4,'4. Billing Determinants'!$B$19:$R$41,6,0)/'4. Billing Determinants'!$G$41*$D15, VLOOKUP(T$4,'4. Billing Determinants'!$B$19:$AA$41,23,0)*$D15)))),0) -> 0 | U15: =IFERROR(IF(U$4="",0,IF($E15="kWh",VLOOKUP(U$4,'4. Billing Determinants'!$B$19:$R$41,4,0)/'4. Billing Determinants'!$E$41*$D15,IF($E15="kW",VLOOKUP(U$4,'4. Billing Determinants'!$B$19:$R$41,5,0)/'4. Billing Determinants'!$F$41*$D15,IF($E15="Non-RPP kWh",VLOOKUP(U$4,'4. Billing Determinants'!$B$19:$R$41,6,0)/'4. Billing Determinants'!$G$41*$D15, VLOOKUP(U$4,'4. Billing Determinants'!$B$19:$AA$41,23,0)*$D15)))),0) -> 0 | V15: =IFERROR(IF(V$4="",0,IF($E15="kWh",VLOOKUP(V$4,'4. Billing Determinants'!$B$19:$R$41,4,0)/'4. Billing Determinants'!$E$41*$D15,IF($E15="kW",VLOOKUP(V$4,'4. Billing Determinants'!$B$19:$R$41,5,0)/'4. Billing Determinants'!$F$41*$D15,IF($E15="Non-RPP kWh",VLOOKUP(V$4,'4. Billing Determinants'!$B$19:$R$41,6,0)/'4. Billing Determinants'!$G$41*$D15, VLOOKUP(V$4,'4. Billing Determinants'!$B$19:$AA$41,23,0)*$D15)))),0) -> 0 | W15: =IFERROR(IF(W$4="",0,IF($E15="kWh",VLOOKUP(W$4,'4. Billing Determinants'!$B$19:$R$41,4,0)/'4. Billing Determinants'!$E$41*$D15,IF($E15="kW",VLOOKUP(W$4,'4. Billing Determinants'!$B$19:$R$41,5,0)/'4. Billing Determinants'!$F$41*$D15,IF($E15="Non-RPP kWh",VLOOKUP(W$4,'4. Billing Determinants'!$B$19:$R$41,6,0)/'4. Billing Determinants'!$G$41*$D15, VLOOKUP(W$4,'4. Billing Determinants'!$B$19:$AA$41,23,0)*$D15)))),0) -> 0 | X15: =IFERROR(IF(X$4="",0,IF($E15="kWh",VLOOKUP(X$4,'4. Billing Determinants'!$B$19:$R$41,4,0)/'4. Billing Determinants'!$E$41*$D15,IF($E15="kW",VLOOKUP(X$4,'4. Billing Determinants'!$B$19:$R$41,5,0)/'4. Billing Determinants'!$F$41*$D15,IF($E15="Non-RPP kWh",VLOOKUP(X$4,'4. Billing Determinants'!$B$19:$R$41,6,0)/'4. Billing Determinants'!$G$41*$D15, VLOOKUP(X$4,'4. Billing Determinants'!$B$19:$AA$41,23,0)*$D15)))),0) -> 0 | Y15: =IFERROR(IF(Y$4="",0,IF($E15="kWh",VLOOKUP(Y$4,'4. Billing Determinants'!$B$19:$R$41,4,0)/'4. Billing Determinants'!$E$41*$D15,IF($E15="kW",VLOOKUP(Y$4,'4. Billing Determinants'!$B$19:$R$41,5,0)/'4. Billing Determinants'!$F$41*$D15,IF($E15="Non-RPP kWh",VLOOKUP(Y$4,'4. Billing Determinants'!$B$19:$R$41,6,0)/'4. Billing Determinants'!$G$41*$D15, VLOOKUP(Y$4,'4. Billing Determinants'!$B$19:$AA$41,23,0)*$D15)))),0) -> 0
A16: 13 | B16: Disposition and Recovery/Refund of Regulatory Balances (2013) | C16: 1595 | D16: ='2. 2016 Continuity Schedule'!BT37 -> 21325.86 | E16: kWh | F16: =IFERROR(IF(F$4="",0,IF($E16="kWh",VLOOKUP(F$4,'4. Billing Determinants'!$B$19:$R$41,4,0)/'4. Billing Determinants'!$E$41*$D16,IF($E16="kW",VLOOKUP(F$4,'4. Billing Determinants'!$B$19:$R$41,5,0)/'4. Billing Determinants'!$F$41*$D16,IF($E16="Non-RPP kWh",VLOOKUP(F$4,'4. Billing Determinants'!$B$19:$R$41,6,0)/'4. Billing Determinants'!$G$41*$D16, VLOOKUP(F$4,'4. Billing Determinants'!$B$19:$AA$41,24,0)*$D16)))),0) -> 6713.606919 | G16: =IFERROR(IF(G$4="",0,IF($E16="kWh",VLOOKUP(G$4,'4. Billing Determinants'!$B$19:$R$41,4,0)/'4. Billing Determinants'!$E$41*$D16,IF($E16="kW",VLOOKUP(G$4,'4. Billing Determinants'!$B$19:$R$41,5,0)/'4. Billing Determinants'!$F$41*$D16,IF($E16="Non-RPP kWh",VLOOKUP(G$4,'4. Billing Determinants'!$B$19:$R$41,6,0)/'4. Billing Determinants'!$G$41*$D16, VLOOKUP(G$4,'4. Billing Determinants'!$B$19:$AA$41,24,0)*$D16)))),0) -> 2298.463603 | H16: =IFERROR(IF(H$4="",0,IF($E16="kWh",VLOOKUP(H$4,'4. Billing Determinants'!$B$19:$R$41,4,0)/'4. Billing Determinants'!$E$41*$D16,IF($E16="kW",VLOOKUP(H$4,'4. Billing Determinants'!$B$19:$R$41,5,0)/'4. Billing Determinants'!$F$41*$D16,IF($E16="Non-RPP kWh",VLOOKUP(H$4,'4. Billing Determinants'!$B$19:$R$41,6,0)/'4. Billing Determinants'!$G$41*$D16, VLOOKUP(H$4,'4. Billing Determinants'!$B$19:$AA$41,24,0)*$D16)))),0) -> 10967.82946 | I16: =IFERROR(IF(I$4="",0,IF($E16="kWh",VLOOKUP(I$4,'4. Billing Determinants'!$B$19:$R$41,4,0)/'4. Billing Determinants'!$E$41*$D16,IF($E16="kW",VLOOKUP(I$4,'4. Billing Determinants'!$B$19:$R$41,5,0)/'4. Billing Determinants'!$F$41*$D16,IF($E16="Non-RPP kWh",VLOOKUP(I$4,'4. Billing Determinants'!$B$19:$R$41,6,0)/'4. Billing Determinants'!$G$41*$D16, VLOOKUP(I$4,'4. Billing Determinants'!$B$19:$AA$41,24,0)*$D16)))),0) -> 166.6306155 | J16: =IFERROR(IF(J$4="",0,IF($E16="kWh",VLOOKUP(J$4,'4. Billing Determinants'!$B$19:$R$41,4,0)/'4. Billing Determinants'!$E$41*$D16,IF($E16="kW",VLOOKUP(J$4,'4. Billing Determinants'!$B$19:$R$41,5,0)/'4. Billing Determinants'!$F$41*$D16,IF($E16="Non-RPP kWh",VLOOKUP(J$4,'4. Billing Determinants'!$B$19:$R$41,6,0)/'4. Billing Determinants'!$G$41*$D16, VLOOKUP(J$4,'4. Billing Determinants'!$B$19:$AA$41,24,0)*$D16)))),0) -> 8.53882031 | K16: =IFERROR(IF(K$4="",0,IF($E16="kWh",VLOOKUP(K$4,'4. Billing Determinants'!$B$19:$R$41,4,0)/'4. Billing Determinants'!$E$41*$D16,IF($E16="kW",VLOOKUP(K$4,'4. Billing Determinants'!$B$19:$R$41,5,0)/'4. Billing Determinants'!$F$41*$D16,IF($E16="Non-RPP kWh",VLOOKUP(K$4,'4. Billing Determinants'!$B$19:$R$41,6,0)/'4. Billing Determinants'!$G$41*$D16, VLOOKUP(K$4,'4. Billing Determinants'!$B$19:$AA$41,24,0)*$D16)))),0) -> 31.38489642 | L16: =IFERROR(IF(L$4="",0,IF($E16="kWh",VLOOKUP(L$4,'4. Billing Determinants'!$B$19:$R$41,4,0)/'4. Billing Determinants'!$E$41*$D16,IF($E16="kW",VLOOKUP(L$4,'4. Billing Determinants'!$B$19:$R$41,5,0)/'4. Billing Determinants'!$F$41*$D16,IF($E16="Non-RPP kWh",VLOOKUP(L$4,'4. Billing Determinants'!$B$19:$R$41,6,0)/'4. Billing Determinants'!$G$41*$D16, VLOOKUP(L$4,'4. Billing Determinants'!$B$19:$AA$41,24,0)*$D16)))),0) -> 1139.405683 | M16: =IFERROR(IF(M$4="",0,IF($E16="kWh",VLOOKUP(M$4,'4. Billing Determinants'!$B$19:$R$41,4,0)/'4. Billing Determinants'!$E$41*$D16,IF($E16="kW",VLOOKUP(M$4,'4. Billing Determinants'!$B$19:$R$41,5,0)/'4. Billing Determinants'!$F$41*$D16,IF($E16="Non-RPP kWh",VLOOKUP(M$4,'4. Billing Determinants'!$B$19:$R$41,6,0)/'4. Billing Determinants'!$G$41*$D16, VLOOKUP(M$4,'4. Billing Determinants'!$B$19:$AA$41,24,0)*$D16)))),0) -> 0 | N16: =IFERROR(IF(N$4="",0,IF($E16="kWh",VLOOKUP(N$4,'4. Billing Determinants'!$B$19:$R$41,4,0)/'4. Billing Determinants'!$E$41*$D16,IF($E16="kW",VLOOKUP(N$4,'4. Billing Determinants'!$B$19:$R$41,5,0)/'4. Billing Determinants'!$F$41*$D16,IF($E16="Non-RPP kWh",VLOOKUP(N$4,'4. Billing Determinants'!$B$19:$R$41,6,0)/'4. Billing Determinants'!$G$41*$D16, VLOOKUP(N$4,'4. Billing Determinants'!$B$19:$AA$41,24,0)*$D16)))),0) -> 0 | O16: =IFERROR(IF(O$4="",0,IF($E16="kWh",VLOOKUP(O$4,'4. Billing Determinants'!$B$19:$R$41,4,0)/'4. Billing Determinants'!$E$41*$D16,IF($E16="kW",VLOOKUP(O$4,'4. Billing Determinants'!$B$19:$R$41,5,0)/'4. Billing Determinants'!$F$41*$D16,IF($E16="Non-RPP kWh",VLOOKUP(O$4,'4. Billing Determinants'!$B$19:$R$41,6,0)/'4. Billing Determinants'!$G$41*$D16, VLOOKUP(O$4,'4. Billing Determinants'!$B$19:$AA$41,24,0)*$D16)))),0) -> 0 | P16: =IFERROR(IF(P$4="",0,IF($E16="kWh",VLOOKUP(P$4,'4. Billing Determinants'!$B$19:$R$41,4,0)/'4. Billing Determinants'!$E$41*$D16,IF($E16="kW",VLOOKUP(P$4,'4. Billing Determinants'!$B$19:$R$41,5,0)/'4. Billing Determinants'!$F$41*$D16,IF($E16="Non-RPP kWh",VLOOKUP(P$4,'4. Billing Determinants'!$B$19:$R$41,6,0)/'4. Billing Determinants'!$G$41*$D16, VLOOKUP(P$4,'4. Billing Determinants'!$B$19:$AA$41,24,0)*$D16)))),0) -> 0 | Q16: =IFERROR(IF(Q$4="",0,IF($E16="kWh",VLOOKUP(Q$4,'4. Billing Determinants'!$B$19:$R$41,4,0)/'4. Billing Determinants'!$E$41*$D16,IF($E16="kW",VLOOKUP(Q$4,'4. Billing Determinants'!$B$19:$R$41,5,0)/'4. Billing Determinants'!$F$41*$D16,IF($E16="Non-RPP kWh",VLOOKUP(Q$4,'4. Billing Determinants'!$B$19:$R$41,6,0)/'4. Billing Determinants'!$G$41*$D16, VLOOKUP(Q$4,'4. Billing Determinants'!$B$19:$AA$41,24,0)*$D16)))),0) -> 0 | R16: =IFERROR(IF(R$4="",0,IF($E16="kWh",VLOOKUP(R$4,'4. Billing Determinants'!$B$19:$R$41,4,0)/'4. Billing Determinants'!$E$41*$D16,IF($E16="kW",VLOOKUP(R$4,'4. Billing Determinants'!$B$19:$R$41,5,0)/'4. Billing Determinants'!$F$41*$D16,IF($E16="Non-RPP kWh",VLOOKUP(R$4,'4. Billing Determinants'!$B$19:$R$41,6,0)/'4. Billing Determinants'!$G$41*$D16, VLOOKUP(R$4,'4. Billing Determinants'!$B$19:$AA$41,24,0)*$D16)))),0) -> 0 | S16: =IFERROR(IF(S$4="",0,IF($E16="kWh",VLOOKUP(S$4,'4. Billing Determinants'!$B$19:$R$41,4,0)/'4. Billing Determinants'!$E$41*$D16,IF($E16="kW",VLOOKUP(S$4,'4. Billing Determinants'!$B$19:$R$41,5,0)/'4. Billing Determinants'!$F$41*$D16,IF($E16="Non-RPP kWh",VLOOKUP(S$4,'4. Billing Determinants'!$B$19:$R$41,6,0)/'4. Billing Determinants'!$G$41*$D16, VLOOKUP(S$4,'4. Billing Determinants'!$B$19:$AA$41,24,0)*$D16)))),0) -> 0 | T16: =IFERROR(IF(T$4="",0,IF($E16="kWh",VLOOKUP(T$4,'4. Billing Determinants'!$B$19:$R$41,4,0)/'4. Billing Determinants'!$E$41*$D16,IF($E16="kW",VLOOKUP(T$4,'4. Billing Determinants'!$B$19:$R$41,5,0)/'4. Billing Determinants'!$F$41*$D16,IF($E16="Non-RPP kWh",VLOOKUP(T$4,'4. Billing Determinants'!$B$19:$R$41,6,0)/'4. Billing Determinants'!$G$41*$D16, VLOOKUP(T$4,'4. Billing Determinants'!$B$19:$AA$41,24,0)*$D16)))),0) -> 0 | U16: =IFERROR(IF(U$4="",0,IF($E16="kWh",VLOOKUP(U$4,'4. Billing Determinants'!$B$19:$R$41,4,0)/'4. Billing Determinants'!$E$41*$D16,IF($E16="kW",VLOOKUP(U$4,'4. Billing Determinants'!$B$19:$R$41,5,0)/'4. Billing Determinants'!$F$41*$D16,IF($E16="Non-RPP kWh",VLOOKUP(U$4,'4. Billing Determinants'!$B$19:$R$41,6,0)/'4. Billing Determinants'!$G$41*$D16, VLOOKUP(U$4,'4. Billing Determinants'!$B$19:$AA$41,24,0)*$D16)))),0) -> 0 | V16: =IFERROR(IF(V$4="",0,IF($E16="kWh",VLOOKUP(V$4,'4. Billing Determinants'!$B$19:$R$41,4,0)/'4. Billing Determinants'!$E$41*$D16,IF($E16="kW",VLOOKUP(V$4,'4. Billing Determinants'!$B$19:$R$41,5,0)/'4. Billing Determinants'!$F$41*$D16,IF($E16="Non-RPP kWh",VLOOKUP(V$4,'4. Billing Determinants'!$B$19:$R$41,6,0)/'4. Billing Determinants'!$G$41*$D16, VLOOKUP(V$4,'4. Billing Determinants'!$B$19:$AA$41,24,0)*$D16)))),0) -> 0 | W16: =IFERROR(IF(W$4="",0,IF($E16="kWh",VLOOKUP(W$4,'4. Billing Determinants'!$B$19:$R$41,4,0)/'4. Billing Determinants'!$E$41*$D16,IF($E16="kW",VLOOKUP(W$4,'4. Billing Determinants'!$B$19:$R$41,5,0)/'4. Billing Determinants'!$F$41*$D16,IF($E16="Non-RPP kWh",VLOOKUP(W$4,'4. Billing Determinants'!$B$19:$R$41,6,0)/'4. Billing Determinants'!$G$41*$D16, VLOOKUP(W$4,'4. Billing Determinants'!$B$19:$AA$41,24,0)*$D16)))),0) -> 0 | X16: =IFERROR(IF(X$4="",0,IF($E16="kWh",VLOOKUP(X$4,'4. Billing Determinants'!$B$19:$R$41,4,0)/'4. Billing Determinants'!$E$41*$D16,IF($E16="kW",VLOOKUP(X$4,'4. Billing Determinants'!$B$19:$R$41,5,0)/'4. Billing Determinants'!$F$41*$D16,IF($E16="Non-RPP kWh",VLOOKUP(X$4,'4. Billing Determinants'!$B$19:$R$41,6,0)/'4. Billing Determinants'!$G$41*$D16, VLOOKUP(X$4,'4. Billing Determinants'!$B$19:$AA$41,24,0)*$D16)))),0) -> 0 | Y16: =IFERROR(IF(Y$4="",0,IF($E16="kWh",VLOOKUP(Y$4,'4. Billing Determinants'!$B$19:$R$41,4,0)/'4. Billing Determinants'!$E$41*$D16,IF($E16="kW",VLOOKUP(Y$4,'4. Billing Determinants'!$B$19:$R$41,5,0)/'4. Billing Determinants'!$F$41*$D16,IF($E16="Non-RPP kWh",VLOOKUP(Y$4,'4. Billing Determinants'!$B$19:$R$41,6,0)/'4. Billing Determinants'!$G$41*$D16, VLOOKUP(Y$4,'4. Billing Determinants'!$B$19:$AA$41,24,0)*$D16)))),0) -> 0
A17: 14 | B17: Disposition and Recovery/Refund of Regulatory Balances (2014) | C17: 1595 | D17: ='2. 2016 Continuity Schedule'!BT38 -> 0 | E17: kWh | F17: =IFERROR(IF(F$4="",0,IF($E17="kWh",VLOOKUP(F$4,'4. Billing Determinants'!$B$19:$R$41,4,0)/'4. Billing Determinants'!$E$41*$D17,IF($E17="kW",VLOOKUP(F$4,'4. Billing Determinants'!$B$19:$R$41,5,0)/'4. Billing Determinants'!$F$41*$D17,IF($E17="Non-RPP kWh",VLOOKUP(F$4,'4. Billing Determinants'!$B$19:$R$41,6,0)/'4. Billing Determinants'!$G$41*$D17, VLOOKUP(F$4,'4. Billing Determinants'!$B$19:$AA$41,25,0)*$D17)))),0) -> 0 | G17: =IFERROR(IF(G$4="",0,IF($E17="kWh",VLOOKUP(G$4,'4. Billing Determinants'!$B$19:$R$41,4,0)/'4. Billing Determinants'!$E$41*$D17,IF($E17="kW",VLOOKUP(G$4,'4. Billing Determinants'!$B$19:$R$41,5,0)/'4. Billing Determinants'!$F$41*$D17,IF($E17="Non-RPP kWh",VLOOKUP(G$4,'4. Billing Determinants'!$B$19:$R$41,6,0)/'4. Billing Determinants'!$G$41*$D17, VLOOKUP(G$4,'4. Billing Determinants'!$B$19:$AA$41,25,0)*$D17)))),0) -> 0 | H17: =IFERROR(IF(H$4="",0,IF($E17="kWh",VLOOKUP(H$4,'4. Billing Determinants'!$B$19:$R$41,4,0)/'4. Billing Determinants'!$E$41*$D17,IF($E17="kW",VLOOKUP(H$4,'4. Billing Determinants'!$B$19:$R$41,5,0)/'4. Billing Determinants'!$F$41*$D17,IF($E17="Non-RPP kWh",VLOOKUP(H$4,'4. Billing Determinants'!$B$19:$R$41,6,0)/'4. Billing Determinants'!$G$41*$D17, VLOOKUP(H$4,'4. Billing Determinants'!$B$19:$AA$41,25,0)*$D17)))),0) -> 0 | I17: =IFERROR(IF(I$4="",0,IF($E17="kWh",VLOOKUP(I$4,'4. Billing Determinants'!$B$19:$R$41,4,0)/'4. Billing Determinants'!$E$41*$D17,IF($E17="kW",VLOOKUP(I$4,'4. Billing Determinants'!$B$19:$R$41,5,0)/'4. Billing Determinants'!$F$41*$D17,IF($E17="Non-RPP kWh",VLOOKUP(I$4,'4. Billing Determinants'!$B$19:$R$41,6,0)/'4. Billing Determinants'!$G$41*$D17, VLOOKUP(I$4,'4. Billing Determinants'!$B$19:$AA$41,25,0)*$D17)))),0) -> 0 | J17: =IFERROR(IF(J$4="",0,IF($E17="kWh",VLOOKUP(J$4,'4. Billing Determinants'!$B$19:$R$41,4,0)/'4. Billing Determinants'!$E$41*$D17,IF($E17="kW",VLOOKUP(J$4,'4. Billing Determinants'!$B$19:$R$41,5,0)/'4. Billing Determinants'!$F$41*$D17,IF($E17="Non-RPP kWh",VLOOKUP(J$4,'4. Billing Determinants'!$B$19:$R$41,6,0)/'4. Billing Determinants'!$G$41*$D17, VLOOKUP(J$4,'4. Billing Determinants'!$B$19:$AA$41,25,0)*$D17)))),0) -> 0 | K17: =IFERROR(IF(K$4="",0,IF($E17="kWh",VLOOKUP(K$4,'4. Billing Determinants'!$B$19:$R$41,4,0)/'4. Billing Determinants'!$E$41*$D17,IF($E17="kW",VLOOKUP(K$4,'4. Billing Determinants'!$B$19:$R$41,5,0)/'4. Billing Determinants'!$F$41*$D17,IF($E17="Non-RPP kWh",VLOOKUP(K$4,'4. Billing Determinants'!$B$19:$R$41,6,0)/'4. Billing Determinants'!$G$41*$D17, VLOOKUP(K$4,'4. Billing Determinants'!$B$19:$AA$41,25,0)*$D17)))),0) -> 0 | L17: =IFERROR(IF(L$4="",0,IF($E17="kWh",VLOOKUP(L$4,'4. Billing Determinants'!$B$19:$R$41,4,0)/'4. Billing Determinants'!$E$41*$D17,IF($E17="kW",VLOOKUP(L$4,'4. Billing Determinants'!$B$19:$R$41,5,0)/'4. Billing Determinants'!$F$41*$D17,IF($E17="Non-RPP kWh",VLOOKUP(L$4,'4. Billing Determinants'!$B$19:$R$41,6,0)/'4. Billing Determinants'!$G$41*$D17, VLOOKUP(L$4,'4. Billing Determinants'!$B$19:$AA$41,25,0)*$D17)))),0) -> 0 | M17: =IFERROR(IF(M$4="",0,IF($E17="kWh",VLOOKUP(M$4,'4. Billing Determinants'!$B$19:$R$41,4,0)/'4. Billing Determinants'!$E$41*$D17,IF($E17="kW",VLOOKUP(M$4,'4. Billing Determinants'!$B$19:$R$41,5,0)/'4. Billing Determinants'!$F$41*$D17,IF($E17="Non-RPP kWh",VLOOKUP(M$4,'4. Billing Determinants'!$B$19:$R$41,6,0)/'4. Billing Determinants'!$G$41*$D17, VLOOKUP(M$4,'4. Billing Determinants'!$B$19:$AA$41,25,0)*$D17)))),0) -> 0 | N17: =IFERROR(IF(N$4="",0,IF($E17="kWh",VLOOKUP(N$4,'4. Billing Determinants'!$B$19:$R$41,4,0)/'4. Billing Determinants'!$E$41*$D17,IF($E17="kW",VLOOKUP(N$4,'4. Billing Determinants'!$B$19:$R$41,5,0)/'4. Billing Determinants'!$F$41*$D17,IF($E17="Non-RPP kWh",VLOOKUP(N$4,'4. Billing Determinants'!$B$19:$R$41,6,0)/'4. Billing Determinants'!$G$41*$D17, VLOOKUP(N$4,'4. Billing Determinants'!$B$19:$AA$41,25,0)*$D17)))),0) -> 0 | O17: =IFERROR(IF(O$4="",0,IF($E17="kWh",VLOOKUP(O$4,'4. Billing Determinants'!$B$19:$R$41,4,0)/'4. Billing Determinants'!$E$41*$D17,IF($E17="kW",VLOOKUP(O$4,'4. Billing Determinants'!$B$19:$R$41,5,0)/'4. Billing Determinants'!$F$41*$D17,IF($E17="Non-RPP kWh",VLOOKUP(O$4,'4. Billing Determinants'!$B$19:$R$41,6,0)/'4. Billing Determinants'!$G$41*$D17, VLOOKUP(O$4,'4. Billing Determinants'!$B$19:$AA$41,25,0)*$D17)))),0) -> 0 | P17: =IFERROR(IF(P$4="",0,IF($E17="kWh",VLOOKUP(P$4,'4. Billing Determinants'!$B$19:$R$41,4,0)/'4. Billing Determinants'!$E$41*$D17,IF($E17="kW",VLOOKUP(P$4,'4. Billing Determinants'!$B$19:$R$41,5,0)/'4. Billing Determinants'!$F$41*$D17,IF($E17="Non-RPP kWh",VLOOKUP(P$4,'4. Billing Determinants'!$B$19:$R$41,6,0)/'4. Billing Determinants'!$G$41*$D17, VLOOKUP(P$4,'4. Billing Determinants'!$B$19:$AA$41,25,0)*$D17)))),0) -> 0 | Q17: =IFERROR(IF(Q$4="",0,IF($E17="kWh",VLOOKUP(Q$4,'4. Billing Determinants'!$B$19:$R$41,4,0)/'4. Billing Determinants'!$E$41*$D17,IF($E17="kW",VLOOKUP(Q$4,'4. Billing Determinants'!$B$19:$R$41,5,0)/'4. Billing Determinants'!$F$41*$D17,IF($E17="Non-RPP kWh",VLOOKUP(Q$4,'4. Billing Determinants'!$B$19:$R$41,6,0)/'4. Billing Determinants'!$G$41*$D17, VLOOKUP(Q$4,'4. Billing Determinants'!$B$19:$AA$41,25,0)*$D17)))),0) -> 0 | R17: =IFERROR(IF(R$4="",0,IF($E17="kWh",VLOOKUP(R$4,'4. Billing Determinants'!$B$19:$R$41,4,0)/'4. Billing Determinants'!$E$41*$D17,IF($E17="kW",VLOOKUP(R$4,'4. Billing Determinants'!$B$19:$R$41,5,0)/'4. Billing Determinants'!$F$41*$D17,IF($E17="Non-RPP kWh",VLOOKUP(R$4,'4. Billing Determinants'!$B$19:$R$41,6,0)/'4. Billing Determinants'!$G$41*$D17, VLOOKUP(R$4,'4. Billing Determinants'!$B$19:$AA$41,25,0)*$D17)))),0) -> 0 | S17: =IFERROR(IF(S$4="",0,IF($E17="kWh",VLOOKUP(S$4,'4. Billing Determinants'!$B$19:$R$41,4,0)/'4. Billing Determinants'!$E$41*$D17,IF($E17="kW",VLOOKUP(S$4,'4. Billing Determinants'!$B$19:$R$41,5,0)/'4. Billing Determinants'!$F$41*$D17,IF($E17="Non-RPP kWh",VLOOKUP(S$4,'4. Billing Determinants'!$B$19:$R$41,6,0)/'4. Billing Determinants'!$G$41*$D17, VLOOKUP(S$4,'4. Billing Determinants'!$B$19:$AA$41,25,0)*$D17)))),0) -> 0 | T17: =IFERROR(IF(T$4="",0,IF($E17="kWh",VLOOKUP(T$4,'4. Billing Determinants'!$B$19:$R$41,4,0)/'4. Billing Determinants'!$E$41*$D17,IF($E17="kW",VLOOKUP(T$4,'4. Billing Determinants'!$B$19:$R$41,5,0)/'4. Billing Determinants'!$F$41*$D17,IF($E17="Non-RPP kWh",VLOOKUP(T$4,'4. Billing Determinants'!$B$19:$R$41,6,0)/'4. Billing Determinants'!$G$41*$D17, VLOOKUP(T$4,'4. Billing Determinants'!$B$19:$AA$41,25,0)*$D17)))),0) -> 0 | U17: =IFERROR(IF(U$4="",0,IF($E17="kWh",VLOOKUP(U$4,'4. Billing Determinants'!$B$19:$R$41,4,0)/'4. Billing Determinants'!$E$41*$D17,IF($E17="kW",VLOOKUP(U$4,'4. Billing Determinants'!$B$19:$R$41,5,0)/'4. Billing Determinants'!$F$41*$D17,IF($E17="Non-RPP kWh",VLOOKUP(U$4,'4. Billing Determinants'!$B$19:$R$41,6,0)/'4. Billing Determinants'!$G$41*$D17, VLOOKUP(U$4,'4. Billing Determinants'!$B$19:$AA$41,25,0)*$D17)))),0) -> 0 | V17: =IFERROR(IF(V$4="",0,IF($E17="kWh",VLOOKUP(V$4,'4. Billing Determinants'!$B$19:$R$41,4,0)/'4. Billing Determinants'!$E$41*$D17,IF($E17="kW",VLOOKUP(V$4,'4. Billing Determinants'!$B$19:$R$41,5,0)/'4. Billing Determinants'!$F$41*$D17,IF($E17="Non-RPP kWh",VLOOKUP(V$4,'4. Billing Determinants'!$B$19:$R$41,6,0)/'4. Billing Determinants'!$G$41*$D17, VLOOKUP(V$4,'4. Billing Determinants'!$B$19:$AA$41,25,0)*$D17)))),0) -> 0 | W17: =IFERROR(IF(W$4="",0,IF($E17="kWh",VLOOKUP(W$4,'4. Billing Determinants'!$B$19:$R$41,4,0)/'4. Billing Determinants'!$E$41*$D17,IF($E17="kW",VLOOKUP(W$4,'4. Billing Determinants'!$B$19:$R$41,5,0)/'4. Billing Determinants'!$F$41*$D17,IF($E17="Non-RPP kWh",VLOOKUP(W$4,'4. Billing Determinants'!$B$19:$R$41,6,0)/'4. Billing Determinants'!$G$41*$D17, VLOOKUP(W$4,'4. Billing Determinants'!$B$19:$AA$41,25,0)*$D17)))),0) -> 0 | X17: =IFERROR(IF(X$4="",0,IF($E17="kWh",VLOOKUP(X$4,'4. Billing Determinants'!$B$19:$R$41,4,0)/'4. Billing Determinants'!$E$41*$D17,IF($E17="kW",VLOOKUP(X$4,'4. Billing Determinants'!$B$19:$R$41,5,0)/'4. Billing Determinants'!$F$41*$D17,IF($E17="Non-RPP kWh",VLOOKUP(X$4,'4. Billing Determinants'!$B$19:$R$41,6,0)/'4. Billing Determinants'!$G$41*$D17, VLOOKUP(X$4,'4. Billing Determinants'!$B$19:$AA$41,25,0)*$D17)))),0) -> 0 | Y17: =IFERROR(IF(Y$4="",0,IF($E17="kWh",VLOOKUP(Y$4,'4. Billing Determinants'!$B$19:$R$41,4,0)/'4. Billing Determinants'!$E$41*$D17,IF($E17="kW",VLOOKUP(Y$4,'4. Billing Determinants'!$B$19:$R$41,5,0)/'4. Billing Determinants'!$F$41*$D17,IF($E17="Non-RPP kWh",VLOOKUP(Y$4,'4. Billing Determinants'!$B$19:$R$41,6,0)/'4. Billing Determinants'!$G$41*$D17, VLOOKUP(Y$4,'4. Billing Determinants'!$B$19:$AA$41,25,0)*$D17)))),0) -> 0
A18: 15 | B18: Disposition and Recovery/Refund of Regulatory Balances (2015) | C18: 1595 | D18: ='2. 2016 Continuity Schedule'!BT39 -> -56391.606 | E18: kWh | F18: =IFERROR(IF(F$4="",0,IF($E18="kWh",VLOOKUP(F$4,'4. Billing Determinants'!$B$19:$R$41,4,0)/'4. Billing Determinants'!$E$41*$D18,IF($E18="kW",VLOOKUP(F$4,'4. Billing Determinants'!$B$19:$R$41,5,0)/'4. Billing Determinants'!$F$41*$D18,IF($E18="Non-RPP kWh",VLOOKUP(F$4,'4. Billing Determinants'!$B$19:$R$41,6,0)/'4. Billing Determinants'!$G$41*$D18, VLOOKUP(F$4,'4. Billing Determinants'!$B$19:$AA$41,26,0)*$D18)))),0) -> -17752.67568 | G18: =IFERROR(IF(G$4="",0,IF($E18="kWh",VLOOKUP(G$4,'4. Billing Determinants'!$B$19:$R$41,4,0)/'4. Billing Determinants'!$E$41*$D18,IF($E18="kW",VLOOKUP(G$4,'4. Billing Determinants'!$B$19:$R$41,5,0)/'4. Billing Determinants'!$F$41*$D18,IF($E18="Non-RPP kWh",VLOOKUP(G$4,'4. Billing Determinants'!$B$19:$R$41,6,0)/'4. Billing Determinants'!$G$41*$D18, VLOOKUP(G$4,'4. Billing Determinants'!$B$19:$AA$41,26,0)*$D18)))),0) -> -6077.787901 | H18: =IFERROR(IF(H$4="",0,IF($E18="kWh",VLOOKUP(H$4,'4. Billing Determinants'!$B$19:$R$41,4,0)/'4. Billing Determinants'!$E$41*$D18,IF($E18="kW",VLOOKUP(H$4,'4. Billing Determinants'!$B$19:$R$41,5,0)/'4. Billing Determinants'!$F$41*$D18,IF($E18="Non-RPP kWh",VLOOKUP(H$4,'4. Billing Determinants'!$B$19:$R$41,6,0)/'4. Billing Determinants'!$G$41*$D18, VLOOKUP(H$4,'4. Billing Determinants'!$B$19:$AA$41,26,0)*$D18)))),0) -> -29002.04342 | I18: =IFERROR(IF(I$4="",0,IF($E18="kWh",VLOOKUP(I$4,'4. Billing Determinants'!$B$19:$R$41,4,0)/'4. Billing Determinants'!$E$41*$D18,IF($E18="kW",VLOOKUP(I$4,'4. Billing Determinants'!$B$19:$R$41,5,0)/'4. Billing Determinants'!$F$41*$D18,IF($E18="Non-RPP kWh",VLOOKUP(I$4,'4. Billing Determinants'!$B$19:$R$41,6,0)/'4. Billing Determinants'!$G$41*$D18, VLOOKUP(I$4,'4. Billing Determinants'!$B$19:$AA$41,26,0)*$D18)))),0) -> -440.6184799 | J18: =IFERROR(IF(J$4="",0,IF($E18="kWh",VLOOKUP(J$4,'4. Billing Determinants'!$B$19:$R$41,4,0)/'4. Billing Determinants'!$E$41*$D18,IF($E18="kW",VLOOKUP(J$4,'4. Billing Determinants'!$B$19:$R$41,5,0)/'4. Billing Determinants'!$F$41*$D18,IF($E18="Non-RPP kWh",VLOOKUP(J$4,'4. Billing Determinants'!$B$19:$R$41,6,0)/'4. Billing Determinants'!$G$41*$D18, VLOOKUP(J$4,'4. Billing Determinants'!$B$19:$AA$41,26,0)*$D18)))),0) -> -22.57905616 | K18: =IFERROR(IF(K$4="",0,IF($E18="kWh",VLOOKUP(K$4,'4. Billing Determinants'!$B$19:$R$41,4,0)/'4. Billing Determinants'!$E$41*$D18,IF($E18="kW",VLOOKUP(K$4,'4. Billing Determinants'!$B$19:$R$41,5,0)/'4. Billing Determinants'!$F$41*$D18,IF($E18="Non-RPP kWh",VLOOKUP(K$4,'4. Billing Determinants'!$B$19:$R$41,6,0)/'4. Billing Determinants'!$G$41*$D18, VLOOKUP(K$4,'4. Billing Determinants'!$B$19:$AA$41,26,0)*$D18)))),0) -> -82.99054357 | L18: =IFERROR(IF(L$4="",0,IF($E18="kWh",VLOOKUP(L$4,'4. Billing Determinants'!$B$19:$R$41,4,0)/'4. Billing Determinants'!$E$41*$D18,IF($E18="kW",VLOOKUP(L$4,'4. Billing Determinants'!$B$19:$R$41,5,0)/'4. Billing Determinants'!$F$41*$D18,IF($E18="Non-RPP kWh",VLOOKUP(L$4,'4. Billing Determinants'!$B$19:$R$41,6,0)/'4. Billing Determinants'!$G$41*$D18, VLOOKUP(L$4,'4. Billing Determinants'!$B$19:$AA$41,26,0)*$D18)))),0) -> -3012.910915 | M18: =IFERROR(IF(M$4="",0,IF($E18="kWh",VLOOKUP(M$4,'4. Billing Determinants'!$B$19:$R$41,4,0)/'4. Billing Determinants'!$E$41*$D18,IF($E18="kW",VLOOKUP(M$4,'4. Billing Determinants'!$B$19:$R$41,5,0)/'4. Billing Determinants'!$F$41*$D18,IF($E18="Non-RPP kWh",VLOOKUP(M$4,'4. Billing Determinants'!$B$19:$R$41,6,0)/'4. Billing Determinants'!$G$41*$D18, VLOOKUP(M$4,'4. Billing Determinants'!$B$19:$AA$41,26,0)*$D18)))),0) -> 0 | N18: =IFERROR(IF(N$4="",0,IF($E18="kWh",VLOOKUP(N$4,'4. Billing Determinants'!$B$19:$R$41,4,0)/'4. Billing Determinants'!$E$41*$D18,IF($E18="kW",VLOOKUP(N$4,'4. Billing Determinants'!$B$19:$R$41,5,0)/'4. Billing Determinants'!$F$41*$D18,IF($E18="Non-RPP kWh",VLOOKUP(N$4,'4. Billing Determinants'!$B$19:$R$41,6,0)/'4. Billing Determinants'!$G$41*$D18, VLOOKUP(N$4,'4. Billing Determinants'!$B$19:$AA$41,26,0)*$D18)))),0) -> 0 | O18: =IFERROR(IF(O$4="",0,IF($E18="kWh",VLOOKUP(O$4,'4. Billing Determinants'!$B$19:$R$41,4,0)/'4. Billing Determinants'!$E$41*$D18,IF($E18="kW",VLOOKUP(O$4,'4. Billing Determinants'!$B$19:$R$41,5,0)/'4. Billing Determinants'!$F$41*$D18,IF($E18="Non-RPP kWh",VLOOKUP(O$4,'4. Billing Determinants'!$B$19:$R$41,6,0)/'4. Billing Determinants'!$G$41*$D18, VLOOKUP(O$4,'4. Billing Determinants'!$B$19:$AA$41,26,0)*$D18)))),0) -> 0 | P18: =IFERROR(IF(P$4="",0,IF($E18="kWh",VLOOKUP(P$4,'4. Billing Determinants'!$B$19:$R$41,4,0)/'4. Billing Determinants'!$E$41*$D18,IF($E18="kW",VLOOKUP(P$4,'4. Billing Determinants'!$B$19:$R$41,5,0)/'4. Billing Determinants'!$F$41*$D18,IF($E18="Non-RPP kWh",VLOOKUP(P$4,'4. Billing Determinants'!$B$19:$R$41,6,0)/'4. Billing Determinants'!$G$41*$D18, VLOOKUP(P$4,'4. Billing Determinants'!$B$19:$AA$41,26,0)*$D18)))),0) -> 0 | Q18: =IFERROR(IF(Q$4="",0,IF($E18="kWh",VLOOKUP(Q$4,'4. Billing Determinants'!$B$19:$R$41,4,0)/'4. Billing Determinants'!$E$41*$D18,IF($E18="kW",VLOOKUP(Q$4,'4. Billing Determinants'!$B$19:$R$41,5,0)/'4. Billing Determinants'!$F$41*$D18,IF($E18="Non-RPP kWh",VLOOKUP(Q$4,'4. Billing Determinants'!$B$19:$R$41,6,0)/'4. Billing Determinants'!$G$41*$D18, VLOOKUP(Q$4,'4. Billing Determinants'!$B$19:$AA$41,26,0)*$D18)))),0) -> 0 | R18: =IFERROR(IF(R$4="",0,IF($E18="kWh",VLOOKUP(R$4,'4. Billing Determinants'!$B$19:$R$41,4,0)/'4. Billing Determinants'!$E$41*$D18,IF($E18="kW",VLOOKUP(R$4,'4. Billing Determinants'!$B$19:$R$41,5,0)/'4. Billing Determinants'!$F$41*$D18,IF($E18="Non-RPP kWh",VLOOKUP(R$4,'4. Billing Determinants'!$B$19:$R$41,6,0)/'4. Billing Determinants'!$G$41*$D18, VLOOKUP(R$4,'4. Billing Determinants'!$B$19:$AA$41,26,0)*$D18)))),0) -> 0 | S18: =IFERROR(IF(S$4="",0,IF($E18="kWh",VLOOKUP(S$4,'4. Billing Determinants'!$B$19:$R$41,4,0)/'4. Billing Determinants'!$E$41*$D18,IF($E18="kW",VLOOKUP(S$4,'4. Billing Determinants'!$B$19:$R$41,5,0)/'4. Billing Determinants'!$F$41*$D18,IF($E18="Non-RPP kWh",VLOOKUP(S$4,'4. Billing Determinants'!$B$19:$R$41,6,0)/'4. Billing Determinants'!$G$41*$D18, VLOOKUP(S$4,'4. Billing Determinants'!$B$19:$AA$41,26,0)*$D18)))),0) -> 0 | T18: =IFERROR(IF(T$4="",0,IF($E18="kWh",VLOOKUP(T$4,'4. Billing Determinants'!$B$19:$R$41,4,0)/'4. Billing Determinants'!$E$41*$D18,IF($E18="kW",VLOOKUP(T$4,'4. Billing Determinants'!$B$19:$R$41,5,0)/'4. Billing Determinants'!$F$41*$D18,IF($E18="Non-RPP kWh",VLOOKUP(T$4,'4. Billing Determinants'!$B$19:$R$41,6,0)/'4. Billing Determinants'!$G$41*$D18, VLOOKUP(T$4,'4. Billing Determinants'!$B$19:$AA$41,26,0)*$D18)))),0) -> 0 | U18: =IFERROR(IF(U$4="",0,IF($E18="kWh",VLOOKUP(U$4,'4. Billing Determinants'!$B$19:$R$41,4,0)/'4. Billing Determinants'!$E$41*$D18,IF($E18="kW",VLOOKUP(U$4,'4. Billing Determinants'!$B$19:$R$41,5,0)/'4. Billing Determinants'!$F$41*$D18,IF($E18="Non-RPP kWh",VLOOKUP(U$4,'4. Billing Determinants'!$B$19:$R$41,6,0)/'4. Billing Determinants'!$G$41*$D18, VLOOKUP(U$4,'4. Billing Determinants'!$B$19:$AA$41,26,0)*$D18)))),0) -> 0 | V18: =IFERROR(IF(V$4="",0,IF($E18="kWh",VLOOKUP(V$4,'4. Billing Determinants'!$B$19:$R$41,4,0)/'4. Billing Determinants'!$E$41*$D18,IF($E18="kW",VLOOKUP(V$4,'4. Billing Determinants'!$B$19:$R$41,5,0)/'4. Billing Determinants'!$F$41*$D18,IF($E18="Non-RPP kWh",VLOOKUP(V$4,'4. Billing Determinants'!$B$19:$R$41,6,0)/'4. Billing Determinants'!$G$41*$D18, VLOOKUP(V$4,'4. Billing Determinants'!$B$19:$AA$41,26,0)*$D18)))),0) -> 0 | W18: =IFERROR(IF(W$4="",0,IF($E18="kWh",VLOOKUP(W$4,'4. Billing Determinants'!$B$19:$R$41,4,0)/'4. Billing Determinants'!$E$41*$D18,IF($E18="kW",VLOOKUP(W$4,'4. Billing Determinants'!$B$19:$R$41,5,0)/'4. Billing Determinants'!$F$41*$D18,IF($E18="Non-RPP kWh",VLOOKUP(W$4,'4. Billing Determinants'!$B$19:$R$41,6,0)/'4. Billing Determinants'!$G$41*$D18, VLOOKUP(W$4,'4. Billing Determinants'!$B$19:$AA$41,26,0)*$D18)))),0) -> 0 | X18: =IFERROR(IF(X$4="",0,IF($E18="kWh",VLOOKUP(X$4,'4. Billing Determinants'!$B$19:$R$41,4,0)/'4. Billing Determinants'!$E$41*$D18,IF($E18="kW",VLOOKUP(X$4,'4. Billing Determinants'!$B$19:$R$41,5,0)/'4. Billing Determinants'!$F$41*$D18,IF($E18="Non-RPP kWh",VLOOKUP(X$4,'4. Billing Determinants'!$B$19:$R$41,6,0)/'4. Billing Determinants'!$G$41*$D18, VLOOKUP(X$4,'4. Billing Determinants'!$B$19:$AA$41,26,0)*$D18)))),0) -> 0 | Y18: =IFERROR(IF(Y$4="",0,IF($E18="kWh",VLOOKUP(Y$4,'4. Billing Determinants'!$B$19:$R$41,4,0)/'4. Billing Determinants'!$E$41*$D18,IF($E18="kW",VLOOKUP(Y$4,'4. Billing Determinants'!$B$19:$R$41,5,0)/'4. Billing Determinants'!$F$41*$D18,IF($E18="Non-RPP kWh",VLOOKUP(Y$4,'4. Billing Determinants'!$B$19:$R$41,6,0)/'4. Billing Determinants'!$G$41*$D18, VLOOKUP(Y$4,'4. Billing Determinants'!$B$19:$AA$41,26,0)*$D18)))),0) -> 0
A19: 16 | B19: Total of Group 1 Accounts (excluding 1589) | D19: =SUM(D5:D18)-D11 -> -3647212.775 | F19: =SUM(F5:F18)-F11 -> -1219540.735 | G19: =SUM(G5:G18)-G11 -> -415997.8706 | H19: -1960238.275 | I19: -30158.39872 | J19: -1545.437263 | K19: -5680.337479 | L19: -13705.00167 | M19: 0 | N19: 0 | O19: 0 | P19: 0 | Q19: 0 | R19: 0 | S19: 0 | T19: 0 | U19: 0 | V19: 0 | W19: 0 | X19: 0 | Y19: 0
A20: 17
A21: 18 | B21: Other Regulatory Assets - Sub-Account - Deferred IFRS Transition Costs | C21: 1508 | D21: ='2. 2016 Continuity Schedule'!BT47 -> 255423.2553 | E21: kWh | F21: =IFERROR(IF(F$4="",0,IF($E21="kWh",VLOOKUP(F$4,'4. Billing Determinants'!$B$19:$R$41,4,0)/'4. Billing Determinants'!$E$41*$D21,IF($E21="kW",VLOOKUP(F$4,'4. Billing Determinants'!$B$19:$R$41,5,0)/'4. Billing Determinants'!$F$41*$D21,IF($E21="Non-RPP kWh",VLOOKUP(F$4,'4. Billing Determinants'!$B$19:$R$41,6,0)/'4. Billing Determinants'!$G$41*$D21,IF($E21="Distribution Rev.",VLOOKUP(F$4,'4. Billing Determinants'!$B$19:$R$41,8,0)/'4. Billing Determinants'!$I$41*$D21, VLOOKUP(F$4,'4. Billing Determinants'!$B$19:$R$41,3,0)/'4. Billing Determinants'!$D$41*$D21))))),0) -> 80409.94989 | G21: =IFERROR(IF(G$4="",0,IF($E21="kWh",VLOOKUP(G$4,'4. Billing Determinants'!$B$19:$R$41,4,0)/'4. Billing Determinants'!$E$41*$D21,IF($E21="kW",VLOOKUP(G$4,'4. Billing Determinants'!$B$19:$R$41,5,0)/'4. Billing Determinants'!$F$41*$D21,IF($E21="Non-RPP kWh",VLOOKUP(G$4,'4. Billing Determinants'!$B$19:$R$41,6,0)/'4. Billing Determinants'!$G$41*$D21,IF($E21="Distribution Rev.",VLOOKUP(G$4,'4. Billing Determinants'!$B$19:$R$41,8,0)/'4. Billing Determinants'!$I$41*$D21, VLOOKUP(G$4,'4. Billing Determinants'!$B$19:$R$41,3,0)/'4. Billing Determinants'!$D$41*$D21))))),0) -> 27529.06826 | H21: =IFERROR(IF(H$4="",0,IF($E21="kWh",VLOOKUP(H$4,'4. Billing Determinants'!$B$19:$R$41,4,0)/'4. Billing Determinants'!$E$41*$D21,IF($E21="kW",VLOOKUP(H$4,'4. Billing Determinants'!$B$19:$R$41,5,0)/'4. Billing Determinants'!$F$41*$D21,IF($E21="Non-RPP kWh",VLOOKUP(H$4,'4. Billing Determinants'!$B$19:$R$41,6,0)/'4. Billing Determinants'!$G$41*$D21,IF($E21="Distribution Rev.",VLOOKUP(H$4,'4. Billing Determinants'!$B$19:$R$41,8,0)/'4. Billing Determinants'!$I$41*$D21, VLOOKUP(H$4,'4. Billing Determinants'!$B$19:$R$41,3,0)/'4. Billing Determinants'!$D$41*$D21))))),0) -> 131363.4576 | I21: =IFERROR(IF(I$4="",0,IF($E21="kWh",VLOOKUP(I$4,'4. Billing Determinants'!$B$19:$R$41,4,0)/'4. Billing Determinants'!$E$41*$D21,IF($E21="kW",VLOOKUP(I$4,'4. Billing Determinants'!$B$19:$R$41,5,0)/'4. Billing Determinants'!$F$41*$D21,IF($E21="Non-RPP kWh",VLOOKUP(I$4,'4. Billing Determinants'!$B$19:$R$41,6,0)/'4. Billing Determinants'!$G$41*$D21,IF($E21="Distribution Rev.",VLOOKUP(I$4,'4. Billing Determinants'!$B$19:$R$41,8,0)/'4. Billing Determinants'!$I$41*$D21, VLOOKUP(I$4,'4. Billing Determinants'!$B$19:$R$41,3,0)/'4. Billing Determinants'!$D$41*$D21))))),0) -> 1995.761683 | J21: =IFERROR(IF(J$4="",0,IF($E21="kWh",VLOOKUP(J$4,'4. Billing Determinants'!$B$19:$R$41,4,0)/'4. Billing Determinants'!$E$41*$D21,IF($E21="kW",VLOOKUP(J$4,'4. Billing Determinants'!$B$19:$R$41,5,0)/'4. Billing Determinants'!$F$41*$D21,IF($E21="Non-RPP kWh",VLOOKUP(J$4,'4. Billing Determinants'!$B$19:$R$41,6,0)/'4. Billing Determinants'!$G$41*$D21,IF($E21="Distribution Rev.",VLOOKUP(J$4,'4. Billing Determinants'!$B$19:$R$41,8,0)/'4. Billing Determinants'!$I$41*$D21, VLOOKUP(J$4,'4. Billing Determinants'!$B$19:$R$41,3,0)/'4. Billing Determinants'!$D$41*$D21))))),0) -> 102.2708242 | K21: =IFERROR(IF(K$4="",0,IF($E21="kWh",VLOOKUP(K$4,'4. Billing Determinants'!$B$19:$R$41,4,0)/'4. Billing Determinants'!$E$41*$D21,IF($E21="kW",VLOOKUP(K$4,'4. Billing Determinants'!$B$19:$R$41,5,0)/'4. Billing Determinants'!$F$41*$D21,IF($E21="Non-RPP kWh",VLOOKUP(K$4,'4. Billing Determinants'!$B$19:$R$41,6,0)/'4. Billing Determinants'!$G$41*$D21,IF($E21="Distribution Rev.",VLOOKUP(K$4,'4. Billing Determinants'!$B$19:$R$41,8,0)/'4. Billing Determinants'!$I$41*$D21, VLOOKUP(K$4,'4. Billing Determinants'!$B$19:$R$41,3,0)/'4. Billing Determinants'!$D$41*$D21))))),0) -> 375.9019525 | L21: =IFERROR(IF(L$4="",0,IF($E21="kWh",VLOOKUP(L$4,'4. Billing Determinants'!$B$19:$R$41,4,0)/'4. Billing Determinants'!$E$41*$D21,IF($E21="kW",VLOOKUP(L$4,'4. Billing Determinants'!$B$19:$R$41,5,0)/'4. Billing Determinants'!$F$41*$D21,IF($E21="Non-RPP kWh",VLOOKUP(L$4,'4. Billing Determinants'!$B$19:$R$41,6,0)/'4. Billing Determinants'!$G$41*$D21,IF($E21="Distribution Rev.",VLOOKUP(L$4,'4. Billing Determinants'!$B$19:$R$41,8,0)/'4. Billing Determinants'!$I$41*$D21, VLOOKUP(L$4,'4. Billing Determinants'!$B$19:$R$41,3,0)/'4. Billing Determinants'!$D$41*$D21))))),0) -> 13646.84513 | M21: =IFERROR(IF(M$4="",0,IF($E21="kWh",VLOOKUP(M$4,'4. Billing Determinants'!$B$19:$R$41,4,0)/'4. Billing Determinants'!$E$41*$D21,IF($E21="kW",VLOOKUP(M$4,'4. Billing Determinants'!$B$19:$R$41,5,0)/'4. Billing Determinants'!$F$41*$D21,IF($E21="Non-RPP kWh",VLOOKUP(M$4,'4. Billing Determinants'!$B$19:$R$41,6,0)/'4. Billing Determinants'!$G$41*$D21,IF($E21="Distribution Rev.",VLOOKUP(M$4,'4. Billing Determinants'!$B$19:$R$41,8,0)/'4. Billing Determinants'!$I$41*$D21, VLOOKUP(M$4,'4. Billing Determinants'!$B$19:$R$41,3,0)/'4. Billing Determinants'!$D$41*$D21))))),0) -> 0 | N21: =IFERROR(IF(N$4="",0,IF($E21="kWh",VLOOKUP(N$4,'4. Billing Determinants'!$B$19:$R$41,4,0)/'4. Billing Determinants'!$E$41*$D21,IF($E21="kW",VLOOKUP(N$4,'4. Billing Determinants'!$B$19:$R$41,5,0)/'4. Billing Determinants'!$F$41*$D21,IF($E21="Non-RPP kWh",VLOOKUP(N$4,'4. Billing Determinants'!$B$19:$R$41,6,0)/'4. Billing Determinants'!$G$41*$D21,IF($E21="Distribution Rev.",VLOOKUP(N$4,'4. Billing Determinants'!$B$19:$R$41,8,0)/'4. Billing Determinants'!$I$41*$D21, VLOOKUP(N$4,'4. Billing Determinants'!$B$19:$R$41,3,0)/'4. Billing Determinants'!$D$41*$D21))))),0) -> 0 | O21: =IFERROR(IF(O$4="",0,IF($E21="kWh",VLOOKUP(O$4,'4. Billing Determinants'!$B$19:$R$41,4,0)/'4. Billing Determinants'!$E$41*$D21,IF($E21="kW",VLOOKUP(O$4,'4. Billing Determinants'!$B$19:$R$41,5,0)/'4. Billing Determinants'!$F$41*$D21,IF($E21="Non-RPP kWh",VLOOKUP(O$4,'4. Billing Determinants'!$B$19:$R$41,6,0)/'4. Billing Determinants'!$G$41*$D21,IF($E21="Distribution Rev.",VLOOKUP(O$4,'4. Billing Determinants'!$B$19:$R$41,8,0)/'4. Billing Determinants'!$I$41*$D21, VLOOKUP(O$4,'4. Billing Determinants'!$B$19:$R$41,3,0)/'4. Billing Determinants'!$D$41*$D21))))),0) -> 0 | P21: =IFERROR(IF(P$4="",0,IF($E21="kWh",VLOOKUP(P$4,'4. Billing Determinants'!$B$19:$R$41,4,0)/'4. Billing Determinants'!$E$41*$D21,IF($E21="kW",VLOOKUP(P$4,'4. Billing Determinants'!$B$19:$R$41,5,0)/'4. Billing Determinants'!$F$41*$D21,IF($E21="Non-RPP kWh",VLOOKUP(P$4,'4. Billing Determinants'!$B$19:$R$41,6,0)/'4. Billing Determinants'!$G$41*$D21,IF($E21="Distribution Rev.",VLOOKUP(P$4,'4. Billing Determinants'!$B$19:$R$41,8,0)/'4. Billing Determinants'!$I$41*$D21, VLOOKUP(P$4,'4. Billing Determinants'!$B$19:$R$41,3,0)/'4. Billing Determinants'!$D$41*$D21))))),0) -> 0 | Q21: =IFERROR(IF(Q$4="",0,IF($E21="kWh",VLOOKUP(Q$4,'4. Billing Determinants'!$B$19:$R$41,4,0)/'4. Billing Determinants'!$E$41*$D21,IF($E21="kW",VLOOKUP(Q$4,'4. Billing Determinants'!$B$19:$R$41,5,0)/'4. Billing Determinants'!$F$41*$D21,IF($E21="Non-RPP kWh",VLOOKUP(Q$4,'4. Billing Determinants'!$B$19:$R$41,6,0)/'4. Billing Determinants'!$G$41*$D21,IF($E21="Distribution Rev.",VLOOKUP(Q$4,'4. Billing Determinants'!$B$19:$R$41,8,0)/'4. Billing Determinants'!$I$41*$D21, VLOOKUP(Q$4,'4. Billing Determinants'!$B$19:$R$41,3,0)/'4. Billing Determinants'!$D$41*$D21))))),0) -> 0 | R21: =IFERROR(IF(R$4="",0,IF($E21="kWh",VLOOKUP(R$4,'4. Billing Determinants'!$B$19:$R$41,4,0)/'4. Billing Determinants'!$E$41*$D21,IF($E21="kW",VLOOKUP(R$4,'4. Billing Determinants'!$B$19:$R$41,5,0)/'4. Billing Determinants'!$F$41*$D21,IF($E21="Non-RPP kWh",VLOOKUP(R$4,'4. Billing Determinants'!$B$19:$R$41,6,0)/'4. Billing Determinants'!$G$41*$D21,IF($E21="Distribution Rev.",VLOOKUP(R$4,'4. Billing Determinants'!$B$19:$R$41,8,0)/'4. Billing Determinants'!$I$41*$D21, VLOOKUP(R$4,'4. Billing Determinants'!$B$19:$R$41,3,0)/'4. Billing Determinants'!$D$41*$D21))))),0) -> 0 | S21: =IFERROR(IF(S$4="",0,IF($E21="kWh",VLOOKUP(S$4,'4. Billing Determinants'!$B$19:$R$41,4,0)/'4. Billing Determinants'!$E$41*$D21,IF($E21="kW",VLOOKUP(S$4,'4. Billing Determinants'!$B$19:$R$41,5,0)/'4. Billing Determinants'!$F$41*$D21,IF($E21="Non-RPP kWh",VLOOKUP(S$4,'4. Billing Determinants'!$B$19:$R$41,6,0)/'4. Billing Determinants'!$G$41*$D21,IF($E21="Distribution Rev.",VLOOKUP(S$4,'4. Billing Determinants'!$B$19:$R$41,8,0)/'4. Billing Determinants'!$I$41*$D21, VLOOKUP(S$4,'4. Billing Determinants'!$B$19:$R$41,3,0)/'4. Billing Determinants'!$D$41*$D21))))),0) -> 0 | T21: =IFERROR(IF(T$4="",0,IF($E21="kWh",VLOOKUP(T$4,'4. Billing Determinants'!$B$19:$R$41,4,0)/'4. Billing Determinants'!$E$41*$D21,IF($E21="kW",VLOOKUP(T$4,'4. Billing Determinants'!$B$19:$R$41,5,0)/'4. Billing Determinants'!$F$41*$D21,IF($E21="Non-RPP kWh",VLOOKUP(T$4,'4. Billing Determinants'!$B$19:$R$41,6,0)/'4. Billing Determinants'!$G$41*$D21,IF($E21="Distribution Rev.",VLOOKUP(T$4,'4. Billing Determinants'!$B$19:$R$41,8,0)/'4. Billing Determinants'!$I$41*$D21, VLOOKUP(T$4,'4. Billing Determinants'!$B$19:$R$41,3,0)/'4. Billing Determinants'!$D$41*$D21))))),0) -> 0 | U21: =IFERROR(IF(U$4="",0,IF($E21="kWh",VLOOKUP(U$4,'4. Billing Determinants'!$B$19:$R$41,4,0)/'4. Billing Determinants'!$E$41*$D21,IF($E21="kW",VLOOKUP(U$4,'4. Billing Determinants'!$B$19:$R$41,5,0)/'4. Billing Determinants'!$F$41*$D21,IF($E21="Non-RPP kWh",VLOOKUP(U$4,'4. Billing Determinants'!$B$19:$R$41,6,0)/'4. Billing Determinants'!$G$41*$D21,IF($E21="Distribution Rev.",VLOOKUP(U$4,'4. Billing Determinants'!$B$19:$R$41,8,0)/'4. Billing Determinants'!$I$41*$D21, VLOOKUP(U$4,'4. Billing Determinants'!$B$19:$R$41,3,0)/'4. Billing Determinants'!$D$41*$D21))))),0) -> 0 | V21: =IFERROR(IF(V$4="",0,IF($E21="kWh",VLOOKUP(V$4,'4. Billing Determinants'!$B$19:$R$41,4,0)/'4. Billing Determinants'!$E$41*$D21,IF($E21="kW",VLOOKUP(V$4,'4. Billing Determinants'!$B$19:$R$41,5,0)/'4. Billing Determinants'!$F$41*$D21,IF($E21="Non-RPP kWh",VLOOKUP(V$4,'4. Billing Determinants'!$B$19:$R$41,6,0)/'4. Billing Determinants'!$G$41*$D21,IF($E21="Distribution Rev.",VLOOKUP(V$4,'4. Billing Determinants'!$B$19:$R$41,8,0)/'4. Billing Determinants'!$I$41*$D21, VLOOKUP(V$4,'4. Billing Determinants'!$B$19:$R$41,3,0)/'4. Billing Determinants'!$D$41*$D21))))),0) -> 0 | W21: =IFERROR(IF(W$4="",0,IF($E21="kWh",VLOOKUP(W$4,'4. Billing Determinants'!$B$19:$R$41,4,0)/'4. Billing Determinants'!$E$41*$D21,IF($E21="kW",VLOOKUP(W$4,'4. Billing Determinants'!$B$19:$R$41,5,0)/'4. Billing Determinants'!$F$41*$D21,IF($E21="Non-RPP kWh",VLOOKUP(W$4,'4. Billing Determinants'!$B$19:$R$41,6,0)/'4. Billing Determinants'!$G$41*$D21,IF($E21="Distribution Rev.",VLOOKUP(W$4,'4. Billing Determinants'!$B$19:$R$41,8,0)/'4. Billing Determinants'!$I$41*$D21, VLOOKUP(W$4,'4. Billing Determinants'!$B$19:$R$41,3,0)/'4. Billing Determinants'!$D$41*$D21))))),0) -> 0 | X21: =IFERROR(IF(X$4="",0,IF($E21="kWh",VLOOKUP(X$4,'4. Billing Determinants'!$B$19:$R$41,4,0)/'4. Billing Determinants'!$E$41*$D21,IF($E21="kW",VLOOKUP(X$4,'4. Billing Determinants'!$B$19:$R$41,5,0)/'4. Billing Determinants'!$F$41*$D21,IF($E21="Non-RPP kWh",VLOOKUP(X$4,'4. Billing Determinants'!$B$19:$R$41,6,0)/'4. Billing Determinants'!$G$41*$D21,IF($E21="Distribution Rev.",VLOOKUP(X$4,'4. Billing Determinants'!$B$19:$R$41,8,0)/'4. Billing Determinants'!$I$41*$D21, VLOOKUP(X$4,'4. Billing Determinants'!$B$19:$R$41,3,0)/'4. Billing Determinants'!$D$41*$D21))))),0) -> 0 | Y21: =IFERROR(IF(Y$4="",0,IF($E21="kWh",VLOOKUP(Y$4,'4. Billing Determinants'!$B$19:$R$41,4,0)/'4. Billing Determinants'!$E$41*$D21,IF($E21="kW",VLOOKUP(Y$4,'4. Billing Determinants'!$B$19:$R$41,5,0)/'4. Billing Determinants'!$F$41*$D21,IF($E21="Non-RPP kWh",VLOOKUP(Y$4,'4. Billing Determinants'!$B$19:$R$41,6,0)/'4. Billing Determinants'!$G$41*$D21,IF($E21="Distribution Rev.",VLOOKUP(Y$4,'4. Billing Determinants'!$B$19:$R$41,8,0)/'4. Billing Determinants'!$I$41*$D21, VLOOKUP(Y$4,'4. Billing Determinants'!$B$19:$R$41,3,0)/'4. Billing Determinants'!$D$41*$D21))))),0) -> 0
A22: 19 | B22: Other Regulatory Assets - Sub-Account - Incremental Capital Charges | C22: 1508 | D22: ='2. 2016 Continuity Schedule'!BT48 -> 0 | E22: kWh | F22: =IFERROR(IF(F$4="",0,IF($E22="kWh",VLOOKUP(F$4,'4. Billing Determinants'!$B$19:$R$41,4,0)/'4. Billing Determinants'!$E$41*$D22,IF($E22="kW",VLOOKUP(F$4,'4. Billing Determinants'!$B$19:$R$41,5,0)/'4. Billing Determinants'!$F$41*$D22,IF($E22="Non-RPP kWh",VLOOKUP(F$4,'4. Billing Determinants'!$B$19:$R$41,6,0)/'4. Billing Determinants'!$G$41*$D22,IF($E22="Distribution Rev.",VLOOKUP(F$4,'4. Billing Determinants'!$B$19:$R$41,8,0)/'4. Billing Determinants'!$I$41*$D22, VLOOKUP(F$4,'4. Billing Determinants'!$B$19:$R$41,3,0)/'4. Billing Determinants'!$D$41*$D22))))),0) -> 0 | G22: =IFERROR(IF(G$4="",0,IF($E22="kWh",VLOOKUP(G$4,'4. Billing Determinants'!$B$19:$R$41,4,0)/'4. Billing Determinants'!$E$41*$D22,IF($E22="kW",VLOOKUP(G$4,'4. Billing Determinants'!$B$19:$R$41,5,0)/'4. Billing Determinants'!$F$41*$D22,IF($E22="Non-RPP kWh",VLOOKUP(G$4,'4. Billing Determinants'!$B$19:$R$41,6,0)/'4. Billing Determinants'!$G$41*$D22,IF($E22="Distribution Rev.",VLOOKUP(G$4,'4. Billing Determinants'!$B$19:$R$41,8,0)/'4. Billing Determinants'!$I$41*$D22, VLOOKUP(G$4,'4. Billing Determinants'!$B$19:$R$41,3,0)/'4. Billing Determinants'!$D$41*$D22))))),0) -> 0 | H22: =IFERROR(IF(H$4="",0,IF($E22="kWh",VLOOKUP(H$4,'4. Billing Determinants'!$B$19:$R$41,4,0)/'4. Billing Determinants'!$E$41*$D22,IF($E22="kW",VLOOKUP(H$4,'4. Billing Determinants'!$B$19:$R$41,5,0)/'4. Billing Determinants'!$F$41*$D22,IF($E22="Non-RPP kWh",VLOOKUP(H$4,'4. Billing Determinants'!$B$19:$R$41,6,0)/'4. Billing Determinants'!$G$41*$D22,IF($E22="Distribution Rev.",VLOOKUP(H$4,'4. Billing Determinants'!$B$19:$R$41,8,0)/'4. Billing Determinants'!$I$41*$D22, VLOOKUP(H$4,'4. Billing Determinants'!$B$19:$R$41,3,0)/'4. Billing Determinants'!$D$41*$D22))))),0) -> 0 | I22: =IFERROR(IF(I$4="",0,IF($E22="kWh",VLOOKUP(I$4,'4. Billing Determinants'!$B$19:$R$41,4,0)/'4. Billing Determinants'!$E$41*$D22,IF($E22="kW",VLOOKUP(I$4,'4. Billing Determinants'!$B$19:$R$41,5,0)/'4. Billing Determinants'!$F$41*$D22,IF($E22="Non-RPP kWh",VLOOKUP(I$4,'4. Billing Determinants'!$B$19:$R$41,6,0)/'4. Billing Determinants'!$G$41*$D22,IF($E22="Distribution Rev.",VLOOKUP(I$4,'4. Billing Determinants'!$B$19:$R$41,8,0)/'4. Billing Determinants'!$I$41*$D22, VLOOKUP(I$4,'4. Billing Determinants'!$B$19:$R$41,3,0)/'4. Billing Determinants'!$D$41*$D22))))),0) -> 0 | J22: =IFERROR(IF(J$4="",0,IF($E22="kWh",VLOOKUP(J$4,'4. Billing Determinants'!$B$19:$R$41,4,0)/'4. Billing Determinants'!$E$41*$D22,IF($E22="kW",VLOOKUP(J$4,'4. Billing Determinants'!$B$19:$R$41,5,0)/'4. Billing Determinants'!$F$41*$D22,IF($E22="Non-RPP kWh",VLOOKUP(J$4,'4. Billing Determinants'!$B$19:$R$41,6,0)/'4. Billing Determinants'!$G$41*$D22,IF($E22="Distribution Rev.",VLOOKUP(J$4,'4. Billing Determinants'!$B$19:$R$41,8,0)/'4. Billing Determinants'!$I$41*$D22, VLOOKUP(J$4,'4. Billing Determinants'!$B$19:$R$41,3,0)/'4. Billing Determinants'!$D$41*$D22))))),0) -> 0 | K22: =IFERROR(IF(K$4="",0,IF($E22="kWh",VLOOKUP(K$4,'4. Billing Determinants'!$B$19:$R$41,4,0)/'4. Billing Determinants'!$E$41*$D22,IF($E22="kW",VLOOKUP(K$4,'4. Billing Determinants'!$B$19:$R$41,5,0)/'4. Billing Determinants'!$F$41*$D22,IF($E22="Non-RPP kWh",VLOOKUP(K$4,'4. Billing Determinants'!$B$19:$R$41,6,0)/'4. Billing Determinants'!$G$41*$D22,IF($E22="Distribution Rev.",VLOOKUP(K$4,'4. Billing Determinants'!$B$19:$R$41,8,0)/'4. Billing Determinants'!$I$41*$D22, VLOOKUP(K$4,'4. Billing Determinants'!$B$19:$R$41,3,0)/'4. Billing Determinants'!$D$41*$D22))))),0) -> 0 | L22: =IFERROR(IF(L$4="",0,IF($E22="kWh",VLOOKUP(L$4,'4. Billing Determinants'!$B$19:$R$41,4,0)/'4. Billing Determinants'!$E$41*$D22,IF($E22="kW",VLOOKUP(L$4,'4. Billing Determinants'!$B$19:$R$41,5,0)/'4. Billing Determinants'!$F$41*$D22,IF($E22="Non-RPP kWh",VLOOKUP(L$4,'4. Billing Determinants'!$B$19:$R$41,6,0)/'4. Billing Determinants'!$G$41*$D22,IF($E22="Distribution Rev.",VLOOKUP(L$4,'4. Billing Determinants'!$B$19:$R$41,8,0)/'4. Billing Determinants'!$I$41*$D22, VLOOKUP(L$4,'4. Billing Determinants'!$B$19:$R$41,3,0)/'4. Billing Determinants'!$D$41*$D22))))),0) -> 0 | M22: =IFERROR(IF(M$4="",0,IF($E22="kWh",VLOOKUP(M$4,'4. Billing Determinants'!$B$19:$R$41,4,0)/'4. Billing Determinants'!$E$41*$D22,IF($E22="kW",VLOOKUP(M$4,'4. Billing Determinants'!$B$19:$R$41,5,0)/'4. Billing Determinants'!$F$41*$D22,IF($E22="Non-RPP kWh",VLOOKUP(M$4,'4. Billing Determinants'!$B$19:$R$41,6,0)/'4. Billing Determinants'!$G$41*$D22,IF($E22="Distribution Rev.",VLOOKUP(M$4,'4. Billing Determinants'!$B$19:$R$41,8,0)/'4. Billing Determinants'!$I$41*$D22, VLOOKUP(M$4,'4. Billing Determinants'!$B$19:$R$41,3,0)/'4. Billing Determinants'!$D$41*$D22))))),0) -> 0 | N22: =IFERROR(IF(N$4="",0,IF($E22="kWh",VLOOKUP(N$4,'4. Billing Determinants'!$B$19:$R$41,4,0)/'4. Billing Determinants'!$E$41*$D22,IF($E22="kW",VLOOKUP(N$4,'4. Billing Determinants'!$B$19:$R$41,5,0)/'4. Billing Determinants'!$F$41*$D22,IF($E22="Non-RPP kWh",VLOOKUP(N$4,'4. Billing Determinants'!$B$19:$R$41,6,0)/'4. Billing Determinants'!$G$41*$D22,IF($E22="Distribution Rev.",VLOOKUP(N$4,'4. Billing Determinants'!$B$19:$R$41,8,0)/'4. Billing Determinants'!$I$41*$D22, VLOOKUP(N$4,'4. Billing Determinants'!$B$19:$R$41,3,0)/'4. Billing Determinants'!$D$41*$D22))))),0) -> 0 | O22: =IFERROR(IF(O$4="",0,IF($E22="kWh",VLOOKUP(O$4,'4. Billing Determinants'!$B$19:$R$41,4,0)/'4. Billing Determinants'!$E$41*$D22,IF($E22="kW",VLOOKUP(O$4,'4. Billing Determinants'!$B$19:$R$41,5,0)/'4. Billing Determinants'!$F$41*$D22,IF($E22="Non-RPP kWh",VLOOKUP(O$4,'4. Billing Determinants'!$B$19:$R$41,6,0)/'4. Billing Determinants'!$G$41*$D22,IF($E22="Distribution Rev.",VLOOKUP(O$4,'4. Billing Determinants'!$B$19:$R$41,8,0)/'4. Billing Determinants'!$I$41*$D22, VLOOKUP(O$4,'4. Billing Determinants'!$B$19:$R$41,3,0)/'4. Billing Determinants'!$D$41*$D22))))),0) -> 0 | P22: =IFERROR(IF(P$4="",0,IF($E22="kWh",VLOOKUP(P$4,'4. Billing Determinants'!$B$19:$R$41,4,0)/'4. Billing Determinants'!$E$41*$D22,IF($E22="kW",VLOOKUP(P$4,'4. Billing Determinants'!$B$19:$R$41,5,0)/'4. Billing Determinants'!$F$41*$D22,IF($E22="Non-RPP kWh",VLOOKUP(P$4,'4. Billing Determinants'!$B$19:$R$41,6,0)/'4. Billing Determinants'!$G$41*$D22,IF($E22="Distribution Rev.",VLOOKUP(P$4,'4. Billing Determinants'!$B$19:$R$41,8,0)/'4. Billing Determinants'!$I$41*$D22, VLOOKUP(P$4,'4. Billing Determinants'!$B$19:$R$41,3,0)/'4. Billing Determinants'!$D$41*$D22))))),0) -> 0 | Q22: =IFERROR(IF(Q$4="",0,IF($E22="kWh",VLOOKUP(Q$4,'4. Billing Determinants'!$B$19:$R$41,4,0)/'4. Billing Determinants'!$E$41*$D22,IF($E22="kW",VLOOKUP(Q$4,'4. Billing Determinants'!$B$19:$R$41,5,0)/'4. Billing Determinants'!$F$41*$D22,IF($E22="Non-RPP kWh",VLOOKUP(Q$4,'4. Billing Determinants'!$B$19:$R$41,6,0)/'4. Billing Determinants'!$G$41*$D22,IF($E22="Distribution Rev.",VLOOKUP(Q$4,'4. Billing Determinants'!$B$19:$R$41,8,0)/'4. Billing Determinants'!$I$41*$D22, VLOOKUP(Q$4,'4. Billing Determinants'!$B$19:$R$41,3,0)/'4. Billing Determinants'!$D$41*$D22))))),0) -> 0 | R22: =IFERROR(IF(R$4="",0,IF($E22="kWh",VLOOKUP(R$4,'4. Billing Determinants'!$B$19:$R$41,4,0)/'4. Billing Determinants'!$E$41*$D22,IF($E22="kW",VLOOKUP(R$4,'4. Billing Determinants'!$B$19:$R$41,5,0)/'4. Billing Determinants'!$F$41*$D22,IF($E22="Non-RPP kWh",VLOOKUP(R$4,'4. Billing Determinants'!$B$19:$R$41,6,0)/'4. Billing Determinants'!$G$41*$D22,IF($E22="Distribution Rev.",VLOOKUP(R$4,'4. Billing Determinants'!$B$19:$R$41,8,0)/'4. Billing Determinants'!$I$41*$D22, VLOOKUP(R$4,'4. Billing Determinants'!$B$19:$R$41,3,0)/'4. Billing Determinants'!$D$41*$D22))))),0) -> 0 | S22: =IFERROR(IF(S$4="",0,IF($E22="kWh",VLOOKUP(S$4,'4. Billing Determinants'!$B$19:$R$41,4,0)/'4. Billing Determinants'!$E$41*$D22,IF($E22="kW",VLOOKUP(S$4,'4. Billing Determinants'!$B$19:$R$41,5,0)/'4. Billing Determinants'!$F$41*$D22,IF($E22="Non-RPP kWh",VLOOKUP(S$4,'4. Billing Determinants'!$B$19:$R$41,6,0)/'4. Billing Determinants'!$G$41*$D22,IF($E22="Distribution Rev.",VLOOKUP(S$4,'4. Billing Determinants'!$B$19:$R$41,8,0)/'4. Billing Determinants'!$I$41*$D22, VLOOKUP(S$4,'4. Billing Determinants'!$B$19:$R$41,3,0)/'4. Billing Determinants'!$D$41*$D22))))),0) -> 0 | T22: =IFERROR(IF(T$4="",0,IF($E22="kWh",VLOOKUP(T$4,'4. Billing Determinants'!$B$19:$R$41,4,0)/'4. Billing Determinants'!$E$41*$D22,IF($E22="kW",VLOOKUP(T$4,'4. Billing Determinants'!$B$19:$R$41,5,0)/'4. Billing Determinants'!$F$41*$D22,IF($E22="Non-RPP kWh",VLOOKUP(T$4,'4. Billing Determinants'!$B$19:$R$41,6,0)/'4. Billing Determinants'!$G$41*$D22,IF($E22="Distribution Rev.",VLOOKUP(T$4,'4. Billing Determinants'!$B$19:$R$41,8,0)/'4. Billing Determinants'!$I$41*$D22, VLOOKUP(T$4,'4. Billing Determinants'!$B$19:$R$41,3,0)/'4. Billing Determinants'!$D$41*$D22))))),0) -> 0 | U22: =IFERROR(IF(U$4="",0,IF($E22="kWh",VLOOKUP(U$4,'4. Billing Determinants'!$B$19:$R$41,4,0)/'4. Billing Determinants'!$E$41*$D22,IF($E22="kW",VLOOKUP(U$4,'4. Billing Determinants'!$B$19:$R$41,5,0)/'4. Billing Determinants'!$F$41*$D22,IF($E22="Non-RPP kWh",VLOOKUP(U$4,'4. Billing Determinants'!$B$19:$R$41,6,0)/'4. Billing Determinants'!$G$41*$D22,IF($E22="Distribution Rev.",VLOOKUP(U$4,'4. Billing Determinants'!$B$19:$R$41,8,0)/'4. Billing Determinants'!$I$41*$D22, VLOOKUP(U$4,'4. Billing Determinants'!$B$19:$R$41,3,0)/'4. Billing Determinants'!$D$41*$D22))))),0) -> 0 | V22: =IFERROR(IF(V$4="",0,IF($E22="kWh",VLOOKUP(V$4,'4. Billing Determinants'!$B$19:$R$41,4,0)/'4. Billing Determinants'!$E$41*$D22,IF($E22="kW",VLOOKUP(V$4,'4. Billing Determinants'!$B$19:$R$41,5,0)/'4. Billing Determinants'!$F$41*$D22,IF($E22="Non-RPP kWh",VLOOKUP(V$4,'4. Billing Determinants'!$B$19:$R$41,6,0)/'4. Billing Determinants'!$G$41*$D22,IF($E22="Distribution Rev.",VLOOKUP(V$4,'4. Billing Determinants'!$B$19:$R$41,8,0)/'4. Billing Determinants'!$I$41*$D22, VLOOKUP(V$4,'4. Billing Determinants'!$B$19:$R$41,3,0)/'4. Billing Determinants'!$D$41*$D22))))),0) -> 0 | W22: =IFERROR(IF(W$4="",0,IF($E22="kWh",VLOOKUP(W$4,'4. Billing Determinants'!$B$19:$R$41,4,0)/'4. Billing Determinants'!$E$41*$D22,IF($E22="kW",VLOOKUP(W$4,'4. Billing Determinants'!$B$19:$R$41,5,0)/'4. Billing Determinants'!$F$41*$D22,IF($E22="Non-RPP kWh",VLOOKUP(W$4,'4. Billing Determinants'!$B$19:$R$41,6,0)/'4. Billing Determinants'!$G$41*$D22,IF($E22="Distribution Rev.",VLOOKUP(W$4,'4. Billing Determinants'!$B$19:$R$41,8,0)/'4. Billing Determinants'!$I$41*$D22, VLOOKUP(W$4,'4. Billing Determinants'!$B$19:$R$41,3,0)/'4. Billing Determinants'!$D$41*$D22))))),0) -> 0 | X22: =IFERROR(IF(X$4="",0,IF($E22="kWh",VLOOKUP(X$4,'4. Billing Determinants'!$B$19:$R$41,4,0)/'4. Billing Determinants'!$E$41*$D22,IF($E22="kW",VLOOKUP(X$4,'4. Billing Determinants'!$B$19:$R$41,5,0)/'4. Billing Determinants'!$F$41*$D22,IF($E22="Non-RPP kWh",VLOOKUP(X$4,'4. Billing Determinants'!$B$19:$R$41,6,0)/'4. Billing Determinants'!$G$41*$D22,IF($E22="Distribution Rev.",VLOOKUP(X$4,'4. Billing Determinants'!$B$19:$R$41,8,0)/'4. Billing Determinants'!$I$41*$D22, VLOOKUP(X$4,'4. Billing Determinants'!$B$19:$R$41,3,0)/'4. Billing Determinants'!$D$41*$D22))))),0) -> 0 | Y22: =IFERROR(IF(Y$4="",0,IF($E22="kWh",VLOOKUP(Y$4,'4. Billing Determinants'!$B$19:$R$41,4,0)/'4. Billing Determinants'!$E$41*$D22,IF($E22="kW",VLOOKUP(Y$4,'4. Billing Determinants'!$B$19:$R$41,5,0)/'4. Billing Determinants'!$F$41*$D22,IF($E22="Non-RPP kWh",VLOOKUP(Y$4,'4. Billing Determinants'!$B$19:$R$41,6,0)/'4. Billing Determinants'!$G$41*$D22,IF($E22="Distribution Rev.",VLOOKUP(Y$4,'4. Billing Determinants'!$B$19:$R$41,8,0)/'4. Billing Determinants'!$I$41*$D22, VLOOKUP(Y$4,'4. Billing Determinants'!$B$19:$R$41,3,0)/'4. Billing Determinants'!$D$41*$D22))))),0) -> 0
A23: 20 | B23: Other Regulatory Assets - Sub-Account - Financial Assistance Payment and Recovery Variance - Ontario Clean Energy Benefit Act | C23: 1508 | D23: ='2. 2016 Continuity Schedule'!BT49 -> 0 | E23: kWh | F23: =IFERROR(IF(F$4="",0,IF($E23="kWh",VLOOKUP(F$4,'4. Billing Determinants'!$B$19:$R$41,4,0)/'4. Billing Determinants'!$E$41*$D23,IF($E23="kW",VLOOKUP(F$4,'4. Billing Determinants'!$B$19:$R$41,5,0)/'4. Billing Determinants'!$F$41*$D23,IF($E23="Non-RPP kWh",VLOOKUP(F$4,'4. Billing Determinants'!$B$19:$R$41,6,0)/'4. Billing Determinants'!$G$41*$D23,IF($E23="Distribution Rev.",VLOOKUP(F$4,'4. Billing Determinants'!$B$19:$R$41,8,0)/'4. Billing Determinants'!$I$41*$D23, VLOOKUP(F$4,'4. Billing Determinants'!$B$19:$R$41,3,0)/'4. Billing Determinants'!$D$41*$D23))))),0) -> 0 | G23: =IFERROR(IF(G$4="",0,IF($E23="kWh",VLOOKUP(G$4,'4. Billing Determinants'!$B$19:$R$41,4,0)/'4. Billing Determinants'!$E$41*$D23,IF($E23="kW",VLOOKUP(G$4,'4. Billing Determinants'!$B$19:$R$41,5,0)/'4. Billing Determinants'!$F$41*$D23,IF($E23="Non-RPP kWh",VLOOKUP(G$4,'4. Billing Determinants'!$B$19:$R$41,6,0)/'4. Billing Determinants'!$G$41*$D23,IF($E23="Distribution Rev.",VLOOKUP(G$4,'4. Billing Determinants'!$B$19:$R$41,8,0)/'4. Billing Determinants'!$I$41*$D23, VLOOKUP(G$4,'4. Billing Determinants'!$B$19:$R$41,3,0)/'4. Billing Determinants'!$D$41*$D23))))),0) -> 0 | H23: =IFERROR(IF(H$4="",0,IF($E23="kWh",VLOOKUP(H$4,'4. Billing Determinants'!$B$19:$R$41,4,0)/'4. Billing Determinants'!$E$41*$D23,IF($E23="kW",VLOOKUP(H$4,'4. Billing Determinants'!$B$19:$R$41,5,0)/'4. Billing Determinants'!$F$41*$D23,IF($E23="Non-RPP kWh",VLOOKUP(H$4,'4. Billing Determinants'!$B$19:$R$41,6,0)/'4. Billing Determinants'!$G$41*$D23,IF($E23="Distribution Rev.",VLOOKUP(H$4,'4. Billing Determinants'!$B$19:$R$41,8,0)/'4. Billing Determinants'!$I$41*$D23, VLOOKUP(H$4,'4. Billing Determinants'!$B$19:$R$41,3,0)/'4. Billing Determinants'!$D$41*$D23))))),0) -> 0 | I23: =IFERROR(IF(I$4="",0,IF($E23="kWh",VLOOKUP(I$4,'4. Billing Determinants'!$B$19:$R$41,4,0)/'4. Billing Determinants'!$E$41*$D23,IF($E23="kW",VLOOKUP(I$4,'4. Billing Determinants'!$B$19:$R$41,5,0)/'4. Billing Determinants'!$F$41*$D23,IF($E23="Non-RPP kWh",VLOOKUP(I$4,'4. Billing Determinants'!$B$19:$R$41,6,0)/'4. Billing Determinants'!$G$41*$D23,IF($E23="Distribution Rev.",VLOOKUP(I$4,'4. Billing Determinants'!$B$19:$R$41,8,0)/'4. Billing Determinants'!$I$41*$D23, VLOOKUP(I$4,'4. Billing Determinants'!$B$19:$R$41,3,0)/'4. Billing Determinants'!$D$41*$D23))))),0) -> 0 | J23: =IFERROR(IF(J$4="",0,IF($E23="kWh",VLOOKUP(J$4,'4. Billing Determinants'!$B$19:$R$41,4,0)/'4. Billing Determinants'!$E$41*$D23,IF($E23="kW",VLOOKUP(J$4,'4. Billing Determinants'!$B$19:$R$41,5,0)/'4. Billing Determinants'!$F$41*$D23,IF($E23="Non-RPP kWh",VLOOKUP(J$4,'4. Billing Determinants'!$B$19:$R$41,6,0)/'4. Billing Determinants'!$G$41*$D23,IF($E23="Distribution Rev.",VLOOKUP(J$4,'4. Billing Determinants'!$B$19:$R$41,8,0)/'4. Billing Determinants'!$I$41*$D23, VLOOKUP(J$4,'4. Billing Determinants'!$B$19:$R$41,3,0)/'4. Billing Determinants'!$D$41*$D23))))),0) -> 0 | K23: =IFERROR(IF(K$4="",0,IF($E23="kWh",VLOOKUP(K$4,'4. Billing Determinants'!$B$19:$R$41,4,0)/'4. Billing Determinants'!$E$41*$D23,IF($E23="kW",VLOOKUP(K$4,'4. Billing Determinants'!$B$19:$R$41,5,0)/'4. Billing Determinants'!$F$41*$D23,IF($E23="Non-RPP kWh",VLOOKUP(K$4,'4. Billing Determinants'!$B$19:$R$41,6,0)/'4. Billing Determinants'!$G$41*$D23,IF($E23="Distribution Rev.",VLOOKUP(K$4,'4. Billing Determinants'!$B$19:$R$41,8,0)/'4. Billing Determinants'!$I$41*$D23, VLOOKUP(K$4,'4. Billing Determinants'!$B$19:$R$41,3,0)/'4. Billing Determinants'!$D$41*$D23))))),0) -> 0 | L23: =IFERROR(IF(L$4="",0,IF($E23="kWh",VLOOKUP(L$4,'4. Billing Determinants'!$B$19:$R$41,4,0)/'4. Billing Determinants'!$E$41*$D23,IF($E23="kW",VLOOKUP(L$4,'4. Billing Determinants'!$B$19:$R$41,5,0)/'4. Billing Determinants'!$F$41*$D23,IF($E23="Non-RPP kWh",VLOOKUP(L$4,'4. Billing Determinants'!$B$19:$R$41,6,0)/'4. Billing Determinants'!$G$41*$D23,IF($E23="Distribution Rev.",VLOOKUP(L$4,'4. Billing Determinants'!$B$19:$R$41,8,0)/'4. Billing Determinants'!$I$41*$D23, VLOOKUP(L$4,'4. Billing Determinants'!$B$19:$R$41,3,0)/'4. Billing Determinants'!$D$41*$D23))))),0) -> 0 | M23: =IFERROR(IF(M$4="",0,IF($E23="kWh",VLOOKUP(M$4,'4. Billing Determinants'!$B$19:$R$41,4,0)/'4. Billing Determinants'!$E$41*$D23,IF($E23="kW",VLOOKUP(M$4,'4. Billing Determinants'!$B$19:$R$41,5,0)/'4. Billing Determinants'!$F$41*$D23,IF($E23="Non-RPP kWh",VLOOKUP(M$4,'4. Billing Determinants'!$B$19:$R$41,6,0)/'4. Billing Determinants'!$G$41*$D23,IF($E23="Distribution Rev.",VLOOKUP(M$4,'4. Billing Determinants'!$B$19:$R$41,8,0)/'4. Billing Determinants'!$I$41*$D23, VLOOKUP(M$4,'4. Billing Determinants'!$B$19:$R$41,3,0)/'4. Billing Determinants'!$D$41*$D23))))),0) -> 0 | N23: =IFERROR(IF(N$4="",0,IF($E23="kWh",VLOOKUP(N$4,'4. Billing Determinants'!$B$19:$R$41,4,0)/'4. Billing Determinants'!$E$41*$D23,IF($E23="kW",VLOOKUP(N$4,'4. Billing Determinants'!$B$19:$R$41,5,0)/'4. Billing Determinants'!$F$41*$D23,IF($E23="Non-RPP kWh",VLOOKUP(N$4,'4. Billing Determinants'!$B$19:$R$41,6,0)/'4. Billing Determinants'!$G$41*$D23,IF($E23="Distribution Rev.",VLOOKUP(N$4,'4. Billing Determinants'!$B$19:$R$41,8,0)/'4. Billing Determinants'!$I$41*$D23, VLOOKUP(N$4,'4. Billing Determinants'!$B$19:$R$41,3,0)/'4. Billing Determinants'!$D$41*$D23))))),0) -> 0 | O23: =IFERROR(IF(O$4="",0,IF($E23="kWh",VLOOKUP(O$4,'4. Billing Determinants'!$B$19:$R$41,4,0)/'4. Billing Determinants'!$E$41*$D23,IF($E23="kW",VLOOKUP(O$4,'4. Billing Determinants'!$B$19:$R$41,5,0)/'4. Billing Determinants'!$F$41*$D23,IF($E23="Non-RPP kWh",VLOOKUP(O$4,'4. Billing Determinants'!$B$19:$R$41,6,0)/'4. Billing Determinants'!$G$41*$D23,IF($E23="Distribution Rev.",VLOOKUP(O$4,'4. Billing Determinants'!$B$19:$R$41,8,0)/'4. Billing Determinants'!$I$41*$D23, VLOOKUP(O$4,'4. Billing Determinants'!$B$19:$R$41,3,0)/'4. Billing Determinants'!$D$41*$D23))))),0) -> 0 | P23: =IFERROR(IF(P$4="",0,IF($E23="kWh",VLOOKUP(P$4,'4. Billing Determinants'!$B$19:$R$41,4,0)/'4. Billing Determinants'!$E$41*$D23,IF($E23="kW",VLOOKUP(P$4,'4. Billing Determinants'!$B$19:$R$41,5,0)/'4. Billing Determinants'!$F$41*$D23,IF($E23="Non-RPP kWh",VLOOKUP(P$4,'4. Billing Determinants'!$B$19:$R$41,6,0)/'4. Billing Determinants'!$G$41*$D23,IF($E23="Distribution Rev.",VLOOKUP(P$4,'4. Billing Determinants'!$B$19:$R$41,8,0)/'4. Billing Determinants'!$I$41*$D23, VLOOKUP(P$4,'4. Billing Determinants'!$B$19:$R$41,3,0)/'4. Billing Determinants'!$D$41*$D23))))),0) -> 0 | Q23: =IFERROR(IF(Q$4="",0,IF($E23="kWh",VLOOKUP(Q$4,'4. Billing Determinants'!$B$19:$R$41,4,0)/'4. Billing Determinants'!$E$41*$D23,IF($E23="kW",VLOOKUP(Q$4,'4. Billing Determinants'!$B$19:$R$41,5,0)/'4. Billing Determinants'!$F$41*$D23,IF($E23="Non-RPP kWh",VLOOKUP(Q$4,'4. Billing Determinants'!$B$19:$R$41,6,0)/'4. Billing Determinants'!$G$41*$D23,IF($E23="Distribution Rev.",VLOOKUP(Q$4,'4. Billing Determinants'!$B$19:$R$41,8,0)/'4. Billing Determinants'!$I$41*$D23, VLOOKUP(Q$4,'4. Billing Determinants'!$B$19:$R$41,3,0)/'4. Billing Determinants'!$D$41*$D23))))),0) -> 0 | R23: =IFERROR(IF(R$4="",0,IF($E23="kWh",VLOOKUP(R$4,'4. Billing Determinants'!$B$19:$R$41,4,0)/'4. Billing Determinants'!$E$41*$D23,IF($E23="kW",VLOOKUP(R$4,'4. Billing Determinants'!$B$19:$R$41,5,0)/'4. Billing Determinants'!$F$41*$D23,IF($E23="Non-RPP kWh",VLOOKUP(R$4,'4. Billing Determinants'!$B$19:$R$41,6,0)/'4. Billing Determinants'!$G$41*$D23,IF($E23="Distribution Rev.",VLOOKUP(R$4,'4. Billing Determinants'!$B$19:$R$41,8,0)/'4. Billing Determinants'!$I$41*$D23, VLOOKUP(R$4,'4. Billing Determinants'!$B$19:$R$41,3,0)/'4. Billing Determinants'!$D$41*$D23))))),0) -> 0 | S23: =IFERROR(IF(S$4="",0,IF($E23="kWh",VLOOKUP(S$4,'4. Billing Determinants'!$B$19:$R$41,4,0)/'4. Billing Determinants'!$E$41*$D23,IF($E23="kW",VLOOKUP(S$4,'4. Billing Determinants'!$B$19:$R$41,5,0)/'4. Billing Determinants'!$F$41*$D23,IF($E23="Non-RPP kWh",VLOOKUP(S$4,'4. Billing Determinants'!$B$19:$R$41,6,0)/'4. Billing Determinants'!$G$41*$D23,IF($E23="Distribution Rev.",VLOOKUP(S$4,'4. Billing Determinants'!$B$19:$R$41,8,0)/'4. Billing Determinants'!$I$41*$D23, VLOOKUP(S$4,'4. Billing Determinants'!$B$19:$R$41,3,0)/'4. Billing Determinants'!$D$41*$D23))))),0) -> 0 | T23: =IFERROR(IF(T$4="",0,IF($E23="kWh",VLOOKUP(T$4,'4. Billing Determinants'!$B$19:$R$41,4,0)/'4. Billing Determinants'!$E$41*$D23,IF($E23="kW",VLOOKUP(T$4,'4. Billing Determinants'!$B$19:$R$41,5,0)/'4. Billing Determinants'!$F$41*$D23,IF($E23="Non-RPP kWh",VLOOKUP(T$4,'4. Billing Determinants'!$B$19:$R$41,6,0)/'4. Billing Determinants'!$G$41*$D23,IF($E23="Distribution Rev.",VLOOKUP(T$4,'4. Billing Determinants'!$B$19:$R$41,8,0)/'4. Billing Determinants'!$I$41*$D23, VLOOKUP(T$4,'4. Billing Determinants'!$B$19:$R$41,3,0)/'4. Billing Determinants'!$D$41*$D23))))),0) -> 0 | U23: =IFERROR(IF(U$4="",0,IF($E23="kWh",VLOOKUP(U$4,'4. Billing Determinants'!$B$19:$R$41,4,0)/'4. Billing Determinants'!$E$41*$D23,IF($E23="kW",VLOOKUP(U$4,'4. Billing Determinants'!$B$19:$R$41,5,0)/'4. Billing Determinants'!$F$41*$D23,IF($E23="Non-RPP kWh",VLOOKUP(U$4,'4. Billing Determinants'!$B$19:$R$41,6,0)/'4. Billing Determinants'!$G$41*$D23,IF($E23="Distribution Rev.",VLOOKUP(U$4,'4. Billing Determinants'!$B$19:$R$41,8,0)/'4. Billing Determinants'!$I$41*$D23, VLOOKUP(U$4,'4. Billing Determinants'!$B$19:$R$41,3,0)/'4. Billing Determinants'!$D$41*$D23))))),0) -> 0 | V23: =IFERROR(IF(V$4="",0,IF($E23="kWh",VLOOKUP(V$4,'4. Billing Determinants'!$B$19:$R$41,4,0)/'4. Billing Determinants'!$E$41*$D23,IF($E23="kW",VLOOKUP(V$4,'4. Billing Determinants'!$B$19:$R$41,5,0)/'4. Billing Determinants'!$F$41*$D23,IF($E23="Non-RPP kWh",VLOOKUP(V$4,'4. Billing Determinants'!$B$19:$R$41,6,0)/'4. Billing Determinants'!$G$41*$D23,IF($E23="Distribution Rev.",VLOOKUP(V$4,'4. Billing Determinants'!$B$19:$R$41,8,0)/'4. Billing Determinants'!$I$41*$D23, VLOOKUP(V$4,'4. Billing Determinants'!$B$19:$R$41,3,0)/'4. Billing Determinants'!$D$41*$D23))))),0) -> 0 | W23: =IFERROR(IF(W$4="",0,IF($E23="kWh",VLOOKUP(W$4,'4. Billing Determinants'!$B$19:$R$41,4,0)/'4. Billing Determinants'!$E$41*$D23,IF($E23="kW",VLOOKUP(W$4,'4. Billing Determinants'!$B$19:$R$41,5,0)/'4. Billing Determinants'!$F$41*$D23,IF($E23="Non-RPP kWh",VLOOKUP(W$4,'4. Billing Determinants'!$B$19:$R$41,6,0)/'4. Billing Determinants'!$G$41*$D23,IF($E23="Distribution Rev.",VLOOKUP(W$4,'4. Billing Determinants'!$B$19:$R$41,8,0)/'4. Billing Determinants'!$I$41*$D23, VLOOKUP(W$4,'4. Billing Determinants'!$B$19:$R$41,3,0)/'4. Billing Determinants'!$D$41*$D23))))),0) -> 0 | X23: =IFERROR(IF(X$4="",0,IF($E23="kWh",VLOOKUP(X$4,'4. Billing Determinants'!$B$19:$R$41,4,0)/'4. Billing Determinants'!$E$41*$D23,IF($E23="kW",VLOOKUP(X$4,'4. Billing Determinants'!$B$19:$R$41,5,0)/'4. Billing Determinants'!$F$41*$D23,IF($E23="Non-RPP kWh",VLOOKUP(X$4,'4. Billing Determinants'!$B$19:$R$41,6,0)/'4. Billing Determinants'!$G$41*$D23,IF($E23="Distribution Rev.",VLOOKUP(X$4,'4. Billing Determinants'!$B$19:$R$41,8,0)/'4. Billing Determinants'!$I$41*$D23, VLOOKUP(X$4,'4. Billing Determinants'!$B$19:$R$41,3,0)/'4. Billing Determinants'!$D$41*$D23))))),0) -> 0 | Y23: =IFERROR(IF(Y$4="",0,IF($E23="kWh",VLOOKUP(Y$4,'4. Billing Determinants'!$B$19:$R$41,4,0)/'4. Billing Determinants'!$E$41*$D23,IF($E23="kW",VLOOKUP(Y$4,'4. Billing Determinants'!$B$19:$R$41,5,0)/'4. Billing Determinants'!$F$41*$D23,IF($E23="Non-RPP kWh",VLOOKUP(Y$4,'4. Billing Determinants'!$B$19:$R$41,6,0)/'4. Billing Determinants'!$G$41*$D23,IF($E23="Distribution Rev.",VLOOKUP(Y$4,'4. Billing Determinants'!$B$19:$R$41,8,0)/'4. Billing Determinants'!$I$41*$D23, VLOOKUP(Y$4,'4. Billing Determinants'!$B$19:$R$41,3,0)/'4. Billing Determinants'!$D$41*$D23))))),0) -> 0
